{"text_format":"1","workbook":"xlsx","n_sheets":11,"sheets":["Info","Legenda","Anno 2025 Capitalizzato","Foglio2","anagrafica ASL-presidio-tipo st","SP_nuovoPDC","altre anagrafiche","ANAGR","Totale investimenti","Controlli","Foglio1"],"not_rendered":{"charts":0,"images":1,"macros":1,"external_links":1,"defined_names":30,"comments":0,"pivot_tables":0},"unopened":[],"bounds":{"document_bytes":16777216,"sheet_cells":100000,"rows_first":2000,"rows_last":500,"rows_between":2000,"halvings":0,"cell_chars":16384,"cell_head_chars":4096},"cells_cut":0,"cells_raw":0,"read":"whole","date_system":"1900"}

{"sheet":"Info","index":0,"n_rows":51,"n_cols":12,"rows_kept":51,"cut":false,"hidden":false,"merged":[]}
[]
["Azienda"]
["Anno",2025]
[]
["Modulo","CONS"]
[]
["Versione","V1"]
[]
[]
[]
[null,null,null,null,null,null,null,null,null,null,311,"ASL MILANO N° 3"]
[null,null,null,null,null,null,null,null,null,null,312,"ASL PAVIA"]
[null,null,null,null,null,null,null,null,null,null,313,"ASL SONDRIO"]
[null,null,null,null,null,null,null,null,null,null,314,"ASL VARESE"]
[null,null,null,null,null,null,null,null,null,null,315,"ASL VALCAMONICA"]
[null,null,null,null,null,null,null,null,null,null,951,"FONDAZIONE MACCHI - VARESE"]
[null,null,null,null,null,null,null,null,null,null,952,"SANT'ANTONIO ABATE - GALLARATE"]
[null,null,null,null,null,null,null,null,null,null,953,"OSPEDALE DI CIRCOLO - BUSTO ARSIZIO"]
[null,null,null,null,null,null,null,null,null,null,954,"SPEDALI CIVILI - BRESCIA"]
[null,null,null,null,null,null,null,null,null,null,955,"M. MELLINI - CHIARI"]
[null,null,null,null,null,null,null,null,null,null,956,"OSPEDALE CIVILE - DESENZANO DEL GARDA"]
[null,null,null,null,null,null,null,null,null,null,957,"ISTITUTI OSPITALIERI - CREMONA"]
[null,null,null,null,null,null,null,null,null,null,958,"OSPEDALE MAGGIORE - CREMA"]
[null,null,null,null,null,null,null,null,null,null,959,"SANT'ANNA - COMO"]
[null,null,null,null,null,null,null,null,null,null,960,"CIRCOLO DI LECCO"]
[null,null,null,null,null,null,null,null,null,null,962,"OSPEDALI RIUNITI - BERGAMO"]
[null,null,null,null,null,null,null,null,null,null,963,"OSPEDALE TREVIGLIO CARAVAGGIO - TREVIGLIO"]
[null,null,null,null,null,null,null,null,null,null,964,"BOLOGNINI - SERIATE"]
[null,null,null,null,null,null,null,null,null,null,965,"CARLO POMA - MANTOVA"]
[null,null,null,null,null,null,null,null,null,null,966,"L. SACCO - MILANO"]
[null,null,null,null,null,null,null,null,null,null,967,"NIGUARDA CA' GRANDA - MILANO"]
[null,null,null,null,null,null,null,null,null,null,968,"IST. CLINICI DI PERFEZIONAMENTO - MILANO"]
[null,null,null,null,null,null,null,null,null,null,969,"FATEBENEFRATELLI - MILANO"]
[null,null,null,null,null,null,null,null,null,null,970,"SAN PAOLO - MILANO"]
[null,null,null,null,null,null,null,null,null,null,971,"IST. ORTOPEDICO G. PINI - MILANO"]
[null,null,null,null,null,null,null,null,null,null,972,"SAN CARLO BORROMEO - MILANO"]
[null,null,null,null,null,null,null,null,null,null,973,"OSPEDALE CIVILE - LEGNANO"]
[null,null,null,null,null,null,null,null,null,null,974,"G. SALVINI - GARBAGNATE MILANESE"]
[null,null,null,null,null,null,null,null,null,null,975,"OSPEDALE DI CIRCOLO - MELEGNANO"]
[null,null,null,null,null,null,null,null,null,null,976,"OSPEDALE DI DESIO E VIMERCATE"]
[null,null,null,null,null,null,null,null,null,null,977,"SAN GERARDO DEI TINTORI - MONZA"]
[null,null,null,null,null,null,null,null,null,null,978,"A.O. DELLA PROVINCIA DI LODI"]
[null,null,null,null,null,null,null,null,null,null,979,"A.O. DELLA PROVINCIA DI PAVIA"]
[null,null,null,null,null,null,null,null,null,null,980,"A.O. DELLA VALTELLINA E VALCHIAVENNA"]
[null,null,null,null,null,null,null,null,null,null,920,"I.N.R.C.A. DI CASATENOVO"]
[null,null,null,null,null,null,null,null,null,null,922,"FONDAZIONE IRCCS ISTITUTO TUMORI DI MILANO"]
[null,null,null,null,null,null,null,null,null,null,923,"FONDAZIONE IRCCS ISTITUTO BESTA DI MILANO"]
[null,null,null,null,null,null,null,null,null,null,924,"FONDAZIONE IRCCS POLICLINICO SAN MATTEO DI PAVIA"]
[null,null,null,null,null,null,null,null,null,null,925,"FONDAZIONE IRCCS OSPEDALE MAGGIORE P.R.M. DI MILANO"]
[null,null,null,null,null,null,null,null,null,null,991,"AZIENDA REGIONALE EMERGENZA URGENZA (AREU)"]
[null,null,null,null,null,null,null,null,null,null,"XXX","--"]

{"sheet":"Legenda","index":1,"n_rows":97,"n_cols":6,"rows_kept":97,"cut":false,"hidden":true,"merged":[[82,0,95,0],[82,1,95,1],[82,3,95,3],[0,0,0,3],[1,0,1,3],[12,0,13,0],[12,1,13,1],[12,3,13,3],[36,0,52,0],[38,3,39,3],[36,1,52,1],[56,1,56,3],[63,0,64,0],[63,1,64,1],[63,3,64,3]]}
["Form Piano Investimenti \n"]
["Legenda per la compilazione"]
[]
["Fogli Cespiti Capitalizzati",null,"AREA SANITARIA"]
["NOME CAMPO",null,"SPIEGAZIONE DI COSA VA INSERITO NEL CAMPO"]
["ASL vecchia denominazione","=","campo obbligatorio","confermato"]
["Struttura/Presidio ospedaliero","=","campo obbligatorio ad eccezione degli interventi generici e/o interventi plurimi in più presidi","confermato"]
["ID PIANO INVESTIMENTI","=","codice di identificativo univoco dell'investimento correlato alla form 33 di Stato patrimoniale. Tipologia codifica: ASL-foglio-anno-codice commessa/aziendale (500CEaa00000000000)","NUOVO. N.B. Il codice in questione si autocompila a seguito dell'inserimento della descrizione dell'investimento (manterrà il progressivo finchè non viene inserito il codice univoco aziendale o la commessa)"]
["GRADO di PRIORITA' degli INVESTIMENTI","=","Attribuire ad ogni investimento il grado di priorità su una scala da 1 a n, evitando di usare più di una volta lo stesso numero","ELIMINATO"]
["CONTO DELLO STATO PATRIMONIALE","=","Indicare il conto dello stato patrimoniale.","confermato"]
["DESCRIZIONE INVESTIMENTO","=","Sintetica descrizione dell'investimento. Inserire voci singole se il valore è >= 50.000 €. In caso di importi inferiori raggruppare per cluster (es. PC e … postazioni lavoro; mobili e arredi studi medici…)","confermato"]
["CODICE COMMESSA O CODICE AZIENDALE PROGETTO","=","codice di identificativo dell'investimento ","NUOVO"]
["SOGGETTO AD AUTORIZZAZIONE CRITE","=","SI. Nel caso l'investimento complessivo superi la soglia CRITE (200.000 € + IVA)","La compilazione di questo campo diventa obbligatoria al pari del provvedimento autorizzativo e della data dello stesso"]
[null,null,"NO. Nel caso l'investimento complessivo non superi la soglia CRITE (200.000 € + IVA)"]
["DATA AUTORIZZAZIONE CRITE","=","Indicare la data di autorizzazione gg/mm/aa","confermato"]
["PROVVEDIMENTO di AUTORIZZAZIONE ","=","campo obbligatorio. Deve essere inserita la DGRV o il DDR autorizzativo","confermato. Nelle more del provvedimento autorizzativo, stante l'obbligatorietà dello stesso deve essere inserito il protocollo del verbale della seduta CRITE che autorizza la linea di investimento"]
["TIPOLOGIA LAVORI","=","Campo obbligatorio solo per la parte di Edilizia. Da compilare come da art. 128 co.3 D.Lgs. 163/2006 secondo i seguenti parametri:                                                                                                                                                                                                                                                                                            1) nuova realizzazione                                                                                                                                                                                                                                                                                                                                                                                                                                                                                                                    2) demolizione                                                                                                                                                                                                                                                                                                                                                                                                                                                                                                                            3) lavori di recupero del patrimonio esistente                                                                                                                                                                                                                                                                                                                                                                                                                                                                  4) ristrutturazione                                                                                                                                                                                                                                                                                                                                                                                                                                                                                                                               5) interventi di adeguamento normativo                                                                                                                                                                                                                                                                                                                                                                                                                                                                                6) manutenzione ordinaria                                                                                                                                                                                                                                                                                                                                                                                                                                                                                                              7) manutenzione straordinaria                                                                                                                                                                                                                                                                                                                                                                                                                                                                                              8) ampliamento","NUOVO. Nei casi di natura differente rispetto all'Edilizia/Impiantistica deve essere segnalato solamente la procedura tramite gara regionale"]
["STATO DI AVANZAMENTO CESPITE/INTERVENTO","=","Si chiede di esplicitare lo stato di avanzamento dell'iter amministrativo di acquisizione del cespite / realizzazione dell'opera. Nello specifico, il campo può assumere uno dei seguenti valori:\n1) iter non ancora avviato: procedura di acquisizione/realizzazione non è ancora stata avviata, presente solamente un progetto di fattibilità tecnico-economica (nel piano delle opere pubbliche corrisponde al \"documento di fattibilità delle alternative progettuali\");\n2) presenza del documento finale relativo al progetto di fattibilità tecnico-economica                                                                                                                                                                                                                                                                                                                                                                            3) iter avviato con la presenza del documento di progetto definitivo;\n4) presente il progetto esecutivo: significa che per i lavori è già stata adottata la \"delibera a contrarre\" (Dl. 163/2006) e le risorse necessarie per l'opera sono da considerarsi vincolate. cespite entrato nel processo produttivo. Per gli acquisti, tale momento è da individuarsi nell'adozione della delibera di indizione della procedura d'acquisto","modificato nel contenuto. Va compilato secondo i contenuti presenti nel Piano Opere Pubbliche. Per i cespiti non afferenti all'edilizia ed impiantistica i valori saranno quelli corrispondenti, ma adattati all'iter procedurale. =>                                                                                               1) iter non ancora avviato, il cespite è solo in programmazione;                                                                                                                                                                                                                                                                                                                                                                                                                                 2) esiste apposita richiesta protocollata ed inviate alla CRITE (nel caso di cespite sopra soglia comunitaria)                                                                                                                                                                                                                                                                                                                                       3) l'iter è stato avviato perchè esiste parere protocollato della CRITE o perchè è stata adottata la deliberazione a contrarre da parte dell'azienda. Le risorse necessarie correlate devono considerarsi vincolate                                                                                                                         4) cespite entrato nel processo produttivo",null,"x"]
["STIMA TEMPI di ESECUZIONE LAVORI","=","Campo obbligatorio solamente per l'Edilizia e l'impiantistica. Indicare il trimestre di inizio e fine lavori","NUOVO. Da compilare secondo le logiche dei GANNT di avanzamento lavori di natura edile","collaudo"]
["VALORE PROGRAMMATO del cespite/intervento","=","Indicare il valore deliberato/programmato per il cespite o intervento manutentivo/migliorativo, indipendentemente dal tempo necessario per realizzarlo","confermato"]
["CESPITI CAPITALIZZATI nel 20XX provenienti da IMMOBILIZZAZIONI in CORSO (quote realizzate negli anni precedenti)","=","Campo obbligatorio dove inserire le quote che si prevede di capitalizzare nell'anno che provengono da immobilizzazioni in corso acconti. ","Modificato nel significato e nei contenuti. Significato: rappresenta il valore parziale dell'intera opera che sarà capitalizzato nell'anno in corso e che provengono da immobilizzazioni in corso. Contenuto: sono state raggruppate tutte le quote dell'anno anche realizzate fino al 2011, senza obbligo di copertura (a seguito di analisi dei Piani Investimento non risultano presenti quote che saranno capitalizzate entro il 2020 e rilevanti, senza correlata copertura)"]
["1) CESPITI CAPITALIZZATI NEL 20XX:\n     a) quota realizzata fino al 31/12/2011","=","Inserire la quota parte realizzata fino al 31/12/2011 dei cespiti provenienti da immobilizzazioni in corso e acconti e che si prevede di capitalizzare nel 2017","ELIMINATO"]
["1) CESPITI CAPITALIZZATI NEL 20XX:\n     a1) di cui finanziato al 31/12/2011","=","Inserire l'ammontare del finanziamento in conto capitale per quanto realizzato fino al 31/12/2011","ELIMINATO"]
["1) CESPITI CAPITALIZZATI NEL 20XX:\n     b) quota realizzata nel 2012","=","Inserire la quota parte realizzata dal 01/01/2012 al 31/12/2012","ELIMINATO"]
["1) CESPITI CAPITALIZZATI NEL 20XX:\n     c) quota realizzata nel 2013","=","Inserire la quota parte realizzata dal 01/01/2013 al 31/12/2013","ELIMINATO"]
["1) CESPITI CAPITALIZZATI NEL 20XX:\n     d) quota realizzata nel 2014","=","Inserire la quota parte realizzata dal 01/01/2014 al 31/12/2014","ELIMINATO"]
["1) CESPITI CAPITALIZZATI NEL 20XX:\n     e) quota realizzata nel 2015","=","Inserire la quota parte realizzata dal 01/01/2015 al 31/12/2015","ELIMINATO"]
["1) CESPITI CAPITALIZZATI NEL 20XX:\n     f) quota realizzata nel 2016","=","Inserire la quota parte realizzata dal 01/01/2016 al 31/12/2016","ELIMINATO"]
["1) CESPITI CAPITALIZZATI NEL 20XX:\n    g) quota realizzata nel 2017","=","Inserire la quota parte realizzata dal 01/01/2017 al 31/12/2017","ELIMINATO"]
["1) CESPITI CAPITALIZZATI NEL 20XX:\n    h) quota realizzata nel 2018","=","Inserire la quota parte realizzata dal 01/01/2018 al 31/12/2018","ELIMINATO"]
["1) CESPITI CAPITALIZZATI NEL 20XX:\n    i) quota completata/che si prevede di completare nel 2019","=","Inserire la quota parte realizzata nel 2019 dei cespiti provenienti da immobilizzazioni in corso e acconti e che si prevede di capitalizzare nel 2019","ELIMINATO"]
["1) CESPITI CAPITALIZZATI:\n     h) sub-totale = a + b + c + d + e + f + g + h + i","=","Campo somma.","ELIMINATO"]
["1) CESPITI CAPITALIZZATI:\n     i) fabbisogno al 31/12/2016 = b + c + d + e + f + g + h + i","=","Somma del fabbisogno al 31/12/2019, risultante dalla somma tra la quota che si prevede di realizzare nel 2019 e il fabbisogno finanziario derivante da quanto realizzato negli anni precedenti ","ELIMINATO"]
["2) NUOVI ACQUISTI e INCREMENTI MIGLIORATIVI (su cespiti già esistenti)  CAPITALIZZATI nel 2019","=","Inserire i beni che si prevede di acquistare nel 20XX + gli incrementi migliorativi che si prevede di realizzare e che si capitalizzeranno nel 20XX.\nTale voce corrisponde alla sommatoria del \"Totale Acquisizioni\" di Immobilizzazioni Materiali (foglio \"Immobilizzazioni Materiali\", colonna \"Totale Acquisizioni\" della form “01-08 SAN SP A A Immobilizzazioni”) ed Immateriali (foglio \"Immobilizzazioni Immateriali\", colonna \"Totale Acquisizioni\" della form “01-08 SAN SP A A Immobilizzazioni”) al netto del \"Totale Acquisizioni\" di Immobilizzazioni in Corso e Acconti (Materiali e Immateriali presenti nella form “01-08 SAN SP A A Immobilizzazioni”) e al netto della quota di Immobilizzazioni in corso e Acconti capitalizzata nell'esercizio (Materiali e Immateriali presenti nella form “01-08 SAN SP A A Immobilizzazioni”, Colonna \"Immobilizzazioni in corso capitalizzate\" (O11) dei fogli \"Immobilizzazioni Materiali\" ed \"Immobilizzazioni Immateriali\").","confermato"]
["3) TOTALE CAPITALIZZATO 2019","=","Campo somma. Somma dei nuovi acquisti + le immobilizzazioni in corso eseguite negli anni pregressi che hanno consentito di concludere un cespite/intervento. Indica l'ammontare che si prevede di capitalizzare a fine 20XX\nCorrisponde alla sommatoria del \"Totale Acquisizioni\" di Immobilizzazioni Materiali ed Immobilizzazioni Immateriali al netto del \"Totale Acquisizioni\" relative alle Immobilizzazioni in corso e Acconti presenti nella form “01-08 SAN SP A A Immobilizzazioni”.","confermato"]
["4) TOTALE FABBISOGNO PER CESPITI CAPITALIZZATI 2017","=","Campo somma. Indica il fabbisogno di investimenti per cespiti capitalizzati nel 20XX. Tale importo è dato dai nuovi acquisti del 20XX (tra cui gli interventi incrementativi iniziati e conclusi nel 20XX) + le immobilizziazioni in corso realizzate nel 2012, 2013, 2014... Da tale importo è esclusa la quota non finanziata realizzata fino al 31/12/2011","ELIMINATO. Tutte le quote che saranno capitalizzate entro il 31/12/2020 e realizzate ante 31/12/2011, senza obbligo di copertura, ancora presenti nei piani degli investimenti saranno finanziate con bilancio aziendale, stante gli importi non rilevanti (analisi dei piani)"]
["FONTI DI FINANZIAMENTO","=","1. Contributi regionali in conto capitale","confermato"]
[null,null,"2. Contributi statali in conto capitale (ex articolo 20 Legge 11 marzo 1988, n. 67, Aids, ecc.)","confermato"]
[null,null,"3. Contributi comunali in conto capitale","MODIFICATO. Accorpati in un'unica voce tutti i restanti contributi in c/capitale \"da altre PA\""]
[null,null,"4. Contributi da altre amministrazioni pubbliche in conto capitale"]
[null,null,"5. Contributi in conto capitale acquisiti da soggetti privati (fondazioni bancarie e non, donazioni, lasciti, ecc.)","confermato"]
[null,null,"6. Contributi vincolati destinati in parte al finanziamento di beni immobilizzati","confermato"]
[null,null,"7. Utili d’esercizio conseguiti negli esercizi precedenti e reinvestiti.","confermato. L'utilizzo degli stessi deve avvenire previa autorizzazione da richiedere alla CRITE e per le sole linee di investimento relative all'edilizia e impiantistica, salvo specifiche indicazioni della CRITE che valuterà il singolo caso di specie."]
[null,null,"8. Introiti derivanti dalle alienazioni realizzate (comprese le plusvalenze sulle alienazioni non imputate a Conto Economico). Si rinvia all''art. 29 del D.Lgs 118 e alla casistica applicativa \"la sterilizzazione degli ammortamenti\". ","confermato. L'utilizzo degli stessi deve avvenire per il finanziamento di cespiti o lavori che prevedono un impiego di risorse considerevoli."]
[null,null,"9. Finanziamento temporaneo autorizzato tramite fondo di rotazione (art. 9 L.R. 55/94), a fronte di alienazioni da realizzare ","confermato. Da eliminare?"]
[null,null,"10. Entrate derivanti dalla contrazione di mutui autorizzati (nei limiti e con i vincoli art. 5 e 6 legge n. 55/94 e DGR 125/2011).","confermato"]
[null,null,"11. Fondo per il finanziamento degli investimenti DGR 929/2021","contributi in c/esercizio. Qualora l'investimento non venga capitalizzato nell'anno e slitti all'anno successivo, l'importo, già rettificato a CE, andrà inserito nella fonte riserve (colonna 14)."]
[null,null,"12. Fondo regionale  Obiettivi di Piano","contributi in c/capitale. Sono le assegnazione alle Aziende Sanitarie del Veneto delle risorse per l'erogazione dei livelli essenziali di assistenza per l'anno 20XX"]
[null,null,"13. Utili GSA, elenchi cespiti Covid Azero, DGR spazzola c/capitale","contributi in c/capitale. Vengono assegnati dalla CRITE per specifici investimenti richiesti dalle Aziende"]
[null,null,"14. Rettifiche da assegnazioni fondo regionale per gli investimenti anni precedenti (eccedenza dell'assegnato rispetto al liquidato anni anni precedenti)","modificato nel contenuto. Va compilato secondo i contenuti riportati della tavola 33 di Stato Patrimoniale. L'importo correlato dovrà essere stornato anche nella medesima form"]
[null,null,"15. Contributi aziendali in conto esercizio (compresi i finanziamenti a funzione), DGR spazzola c/esercizio (da rettificare a CE)","confermato"]
[null,null,"16. Cespiti senza copertura finanziaria","NUOVO"]
[null,null,"Totale fonti di finanziamento: somma delle voci precedenti colonne 1-15","CAMPO SOMMA. Modificato nel contenuto: deve quadrare con il capitalizzato al netto della colonna 16 che rappresenterà l'unica fonte di squadratura"]
["QUADRATURA","=","Verifica che il \"TOTALE INVESTIMENTI 2015/2016/2017/20xx\" coincida con il totale delle fonti di finanziamento. Non è prevista la squadratura.","ELIMINATO"]
["NOTE","=","Campo di testo libero per le segnalazioni e le specifiche delle Aziende","confermato. Non vanno inseriti i provvedimenti per i quali esistono apposite colonne"]
[]
["Foglio Immobilizzazioni in corso e acconti","si propone un primo foglio \"Immobilizzazioni in corso acconti anno X-1\" come base di partenza --> segue capitalizzato anno X, capitalizzato anno X+1, immobilizzazioni in corso"]
["NOME CAMPO",null,"SPIEGAZIONE DI COSA VA INSERITO NEL CAMPO"]
["ASL vecchia denominazione","=","campo obbligatorio","COME CAPITALIZZATO"]
["Struttura/Presidio ospedaliero","=","campo obbligatorio ad eccezione degli interventi generici e/o interventi plurimi in più presidi","COME CAPITALIZZATO"]
["GRADO di PRIORITA' degli INVESTIMENTI","=","Attribuire ad ogni investimento il grado di priorità su una scala da 1 a n, evitando di usare più di una volta lo stesso numero.","="]
["CONTO DELLO STATO PATRIMONIALE","=","Indicare il conto dello stato patrimoniale.","="]
["DESCRIZIONE INVESTIMENTO","=","Sintetica descrizione dell'investimento. Inserire voci singole se il valore è >= 20.000 €, raggruppare se inferiori","="]
["SOGGETTO AD AUTORIZZAZIONE CRITE","=","SI. Nel caso l'investimento complessivo superi la soglia CRITE (200.000 € + IVA)","="]
[null,null,"NO. Nel caso l'investimento complessivo non superi la soglia CRITE (200.000 € + IVA)"]
["DATA AUTORIZZAZIONE CRITE","=","Indicare la data di autorizzazione gg/mm/aa","="]
["STATO DI AVANZAMENTO CESPITE/INTERVENTO","=","Si chiede di esplicitare lo stato di avanzamento dell'iter amministrativo di acquisizione del cespite / realizzazione dell'opera.\nNello specifico, il campo può assumere uno dei seguenti valori:\n1) iter non ancora avviato: cespite inserito nella programmazione, ma la procedura di acquisizione/realizzazione non è ancora stata avviata;\n2) iter avviato: significa che per i lavori è già stata adottata la \"delibera a contrarre\" (Dl. 163/2006) e le risorse necessarie per l'opera sono da considerarsi vincolate. Per gli acquisti, tale momento è da individuarsi nell'adozione della delibera di indizione della procedura d'acquisto;\n3) cespite entrato nel processo produttivo.","="]
["Valore PROGRAMMATO del cespite/intervento","=","Indicare il valore deliberato/programmato per il cespite o intervento manutentivo/migliorativo, indipendentemente dal tempo necessario per realizzarlo","="]
["1) IMMOBILIZZAZIONI IN CORSO E ACCONTI AL 31/12/ 2017:\n     a) quota realizzata fino al 31/12/2011","=","Inserire la quota parte realizzata fino al 31/12/2011 delle immobilizzazioni in corso e acconti che si prevede di avere ancora in corso al 31/12/2017","="]
["1) IMMOBILIZZAZIONI IN CORSO E ACCONTI AL 31/12/ 2017:\n     a1) quota realizzata fino al 31/12/2011 - di cui finanziato","=","Inserire l'ammontare del finanziamento in conto capitale per quanto realizzato fino al 31/12/2011","="]
["1) IMMOBILIZZAZIONI IN CORSO E ACCONTI AL 31/12/ 2017:\n     b) di cui quota realizzata nel 2012","=","Inserire la quota parte realizzata dal 01/01/2012 al 31/12/2012","="]
["1) IMMOBILIZZAZIONI IN CORSO E ACCONTI AL 31/12/ 2017:\n     c) di cui quota realizzata nel 2013","=","Inserire la quota parte realizzata dal 01/01/2013 al 31/12/2013","="]
["1) IMMOBILIZZAZIONI IN CORSO E ACCONTI AL 31/12/ 2017:\n     d) di cui quota realizzata nel 2014",null,"Inserire la quota parte realizzata dal 01/01/2014 al 31/12/2014"]
["1)  IMMOBILIZZAZIONI IN CORSO E ACCONTI AL 31/12/ 2017:\n     e) quota che si prevede di completare nel 2015","=","Inserire la quota parte realizzata dal 01/01/2015 al 31/12/2015","="]
["1)  IMMOBILIZZAZIONI IN CORSO E ACCONTI AL 31/12/ 2017:\n     f) quota che si prevede di completare nel 2016","=","Inserire la quota parte realizzata dal 01/01/2016 al 31/12/2016","="]
["1) CESPITI CAPITALIZZATI NEL 2017:\n    g) quota completata/che si prevede di completare nel 2017","=","Inserire la quota parte che si prevede di realizzare nel 2017 delle immobilizzazioni in corso e acconti che si prevede di avere al 31/12/2017","="]
["1) IMMOBILIZZAZIONI IN CORSO E ACCONTI AL 31/12/ 2017:\n     h) sub-totale = a + b + c + d + e + f + g","=","Campo somma.","="]
["1)  IMMOBILIZZAZIONI IN CORSO E ACCONTI AL 31/12/ 2017:\n     i) fabbisogno al 31/12/2018 = b + c + d + e + f + g","=","fabbisogno al 31/12/2018, risultante dalla quota parte di immobilizzazioni in corso realizzate negli anni 2012, 2013, 2014, 2015, 2016 e 2017","="]
[]
["2)","=","NON COMPILABILE","="]
["3) TOTALE IMMOBILIZZAZIONI IN CORSO AL 31/12/2017","=","Ripropone il valore delle Immobilizzazioni in corso e acconti che si prevede di avere al 31/12/2017","="]
["4) TOTALE FABBISOGNO IMMOBILIZZAZIONI IN CORSO al 31/12/2017","=","Ripropone il fabbisogno di investimenti per le immobiliazzioni in corso e acconti realizzate negli anni 2012, 2013, 2014, 2015, 2016 e 2017.","="]
["FONTI DI FINANZIAMENTO","=","1. Contributi regionali in conto capitale","="]
[null,null,"2. Contributi statali in conto capitale (ex articolo 20 Legge 11 marzo 1988, n. 67, Aids, ecc.)"]
[null,null,"3. Contributi comunali in conto capitale"]
[null,null,"4. Contributi da altre amministrazioni pubbliche in conto capitale"]
[null,null,"5. Contributi in conto capitale acquisiti da soggetti privati (fondazioni bancarie e non, donazioni, lasciti, ecc.)"]
[null,null,"6. Contributi vincolati destinati in parte al finanziamento di beni immobilizzati"]
[null,null,"7. Utili d’esercizio conseguiti negli esercizi precedenti e reinvestiti. Vedi nota avente ad oggetto \"terza rendicontazione trimestrale 2012\"."]
[null,null,"8. Introiti derivanti dalle alienazioni realizzate (comprese le plusvalenze sulle alienazioni non imputate a Conto Economico da 01/01/2012). Si rinvia all''art. 29 del D.Lgs 118 e alla casistica applicativa \"la sterilizzazione degli ammortamenti\". "]
[null,null,"9. Finanziamento temporaneo autorizzato tramite fondo di rotazione (art. 9 L.R. 55/94), a fronte di alienazioni da realizzare "]
[null,null,"10. Entrate derivanti dalla contrazione di mutui autorizzati (nei limiti e con i vincoli art. 5 e 6 legge n. 55/94 e DGR 125/2011)."]
[null,null,"11. Fondo regionale per gli investimenti (non valorizzabile)"]
[null,null,"12. Fondo regionale per gli investimenti anni precedenti (non valorizzabile)"]
[null,null,"13. Stima contributi aziendali in conto esercizio."]
[null,null,"Totale fonti di finanziamento: somma delle voci precedenti"]
["QUADRATURA","=","Verifica che il \"TOTALE INVESTIMENTI 2017\" coincida con il totale delle fonti di finanziamento. Può essere prevista una squadratura.","="]

{"sheet":"Anno 2025 Capitalizzato","index":2,"n_rows":967,"n_cols":39,"rows_kept":967,"cut":false,"hidden":false,"merged":[[3,35,5,35],[3,36,4,36],[508,16,509,16],[512,16,522,16],[523,16,532,16],[536,16,541,16],[3,17,4,17],[511,17,511,19],[2,14,2,18],[2,19,2,34],[3,15,4,15],[3,16,4,16],[3,18,4,18],[3,14,4,14],[3,0,4,0],[3,1,4,1],[3,6,4,6],[3,7,4,7],[3,8,4,8],[3,2,4,2],[3,5,4,5],[0,2,0,5],[2,2,2,7],[2,8,2,13],[3,9,4,9],[3,10,4,10],[3,11,4,11],[3,13,4,13]]}
[{"$f":"Info!A2","v":"Azienda"},{"$f":"Info!B2","v":0},{"$f":"Info!C2","v":0},null,null,null,{"$f":"Info!B3&\" \"&Info!B5","v":"2025 CONS"}]
[]
[null,null,"ANAGRAFICA INVESTIMENTO",null,null,null,null,null,"CRITE",null,null,null,null,null,"INVESTIMENTO",null,null,null,null,"F O N T I    D I    F I N A N Z I A M E N T O"]
["AS nuova denominazione","AS vecchia denominazione","struttura / presidio ospedaliero inseirre nel menu a tendina la voce residuale  \"sedi varie\" togliere tutte le sedi e altre sedi",null,null,"Conto dello Stato Patrimoniale","Descrizione investimento","Codice commessa o Codice Aziendale Progetto","Soggetto ad autorizzazione CRITE","Data e/o Provvedimento di autorizzazione CRITE","Tipologia di lavori/modalità di acquisizione","Investimento legato al PNRR",null,"investimento rientrante nell'ambito dell'emergenza \"Covid - 19\"- PANFLU","Valore PROGRAMMATO del cespite/intervento","❶                                                        CESPITI CAPITALIZZATI provenienti da Immobilizzazioni in corso fino al 31/12/2024","❷                                                                         NUOVI ACQUISTI e INCREMENTI MIGLIORATIVI (su cespiti già esistenti)  CAPITALIZZATI entro il 31/12/2025","❸  = 1+2                                                    TOTALE CAPITALIZZATO AL 31/12/2025","4  IN CORSO AL 31/12/2025 ","PAA070a\nPAA070b\nPAA070d\n\n","PAA040 (a e b)\nPAA050 (a e b)\nPAA060 (a e b)","PAA080","PAA100","PAA090b\nPAA090c\nPAA090d\nPAA090e","PAA000","PAA130 Riserve da plusvalenze\nPAA140 Contributi da reinvestire","PDA000 Debiti per mutui (non viene iscritta alcuna riserva)","PAA070c \n","PAA070c","PAA070c","PAA090a ","PAA090a ","PAA060a ","TOTALE FINANZIAMENTI ","//","NOTE","QUADRATURA"]
[null,null,null,"Area di Investimento","ANNO di realizzazione ",null,null,null,null,null,null,null,"Codice CUP (se \"Sì\" PNRR)",null,null,null,null,null,null,"❶                                         Contributi regionali in conto capitale","❷                                          Contributi statali in conto capitale","❹                                          Contributi in conto capitale da altre P.A.","❺                                   Contributi in conto capitale acquisti da soggetti privati","❻                                               Contributi vincolati destinati in parte al finanziamento di beni immobili, esclusi i finaziamenti a funzione","❼                                    Utili di esercizio","❽                                   Introiti derivanti da alienazioni","❿                                     Entrate derivanti da contrazione di mutui autorizzati","⓫\n Fondo per il Finanziamento\ndegli Investimenti - POTENZIAMENTO\n","⓬                                                Impiego Obiettivi di piano -    \nUtili GSA - \nCespiti COVID/PANFLU da elenchi Azienda Zero","13\n Fondo per il Finanziamento\ndegli Investimenti -MANTENIMENTO (Budget Aziendale)","⓮\nRettifiche già apportate in anni precedenti (correlata tavola 33 SP)","⓯\nContributi aziendali in conto esercizio\n(compresi i finanziamenti a funzione)\n","⓰\nCespiti Finanziati con il DL 34/2020 \"Rilancio\" - Covid\nDGRV 782/2020",null,"\n⓱ \nCespiti in attesa di copertura finanziaria"]
["TOTALI","TOTALI"," "," "," "," "," "," "," "," "," "," "," "," ",{"$f":"SUBTOTAL(9,O7:O498)","v":126529176},0,108696476,108696476,17832700,0,54889456,0,0,2300000,319300,0,0,0,0,0,0,69020420,0,126529176,0,null,{"$f":"SUBTOTAL(9,AK7:AK498)","v":0}]
["500.Azienda Zero","500.Azienda Zero","tutte le sedi ","INFORMATICA",2025,"AAA100-7-A.I.3.c) Diritti di brevetto e diritti di utilizzazione delle opere d'ingegno - altri","servizio sostitutivo 118 - tel. 116/117 AQ sistema di Risposta Sanitaria 116117","116_01",null,null,null,null,null,null,2800000,null,2800000,{"$f":"+P7+Q7","v":2800000},null,null,null,null,null,null,null,null,null,null,null,null,null,{"$f":"R7","v":2800000},null,{"$f":"SUM(T7:AG7)","v":2800000},{"$f":"R7-AH7","v":0},null,{"$f":"+R7+S7-AH7","v":0},{"$f":"IF(AND(OR(C7=\"\",#REF!=\"\",F7=\"\",G7=\"\",H7=\"\"),AND(R7<>0)),1,0)","v":{"$error":"#REF!"}},{"$f":"IF(AND(L7=\"SI\",M7=\"\"),1,0)","v":0}]
["500.Azienda Zero","500.Azienda Zero","tutte le sedi ","INFORMATICA",2025,"AAA200-7-A.I.5.g) Altre immobilizzazioni immateriali","118Accordo Quadro \"Servizi applicativi per l'affidamento di servizi di supporto in ambito sanità digitale - sistemi informativi clinico-assistenziali\" Lotto 1 - Sistema di Gestione del 118","118_01",null,null,null,null,null,null,50000,null,50000,{"$f":"+P8+Q8","v":50000},null,null,null,null,null,null,null,null,null,null,null,null,null,{"$f":"R8","v":50000},null,50000,{"$f":"R8-AH8","v":0},null,0,{"$f":"IF(AND(OR(C8=\"\",#REF!=\"\",F8=\"\",G8=\"\",H8=\"\"),AND(R8<>0)),1,0)","v":{"$error":"#REF!"}},0]
["500.Azienda Zero","500.Azienda Zero","tutte le sedi ","INFORMATICA",2025,"AAA200-7-A.I.5.g) Altre immobilizzazioni immateriali","ANAGAccordo Quadro \"Servizi Applicativi in ottica Cloud (SAC) e servizi di PMO per le PA\" Lotto 4 - Servizi per la gestione delle anagrafi regionali","ANA_01",null,null,null,null,null,null,310000,null,310000,310000,null,null,null,null,null,null,null,null,null,null,null,null,null,310000,null,310000,0,null,0,{"$f":"IF(AND(OR(C9=\"\",#REF!=\"\",F9=\"\",G9=\"\",H9=\"\"),AND(R9<>0)),1,0)","v":{"$error":"#REF!"}},0]
["500.Azienda Zero","500.Azienda Zero","tutte le sedi ","INFORMATICA",2025,"AAA200-7-A.I.5.g) Altre immobilizzazioni immateriali","APAccordo Quadro \"Servizi applicativi e l'affidamento di servizi di supporto in ambito sanità digitale - sistemi informativi clinico-assistenziali\" Lotto 1 - Realizzazione della soluzione digitale di Anatomia Patologica per gli Enti Sanitari della Regione Veneto","ANP_01",null,null,null,null,null,null,140000,null,140000,140000,null,null,null,null,null,null,null,null,null,null,null,null,null,140000,null,140000,0,null,0,{"$f":"IF(AND(OR(C10=\"\",#REF!=\"\",F10=\"\",G10=\"\",H10=\"\"),AND(R10<>0)),1,0)","v":{"$error":"#REF!"}},0]
["500.Azienda Zero","500.Azienda Zero","tutte le sedi ","INFORMATICA",2025,"AAA100-7-A.I.3.c) Diritti di brevetto e diritti di utilizzazione delle opere d'ingegno - altri","Continuità dei servizi FSER SAR, Anagrafi, Security e Portali, Biosorveglianza e Piattaforma farmaceutica","APP_01",null,null,null,null,null,null,700000,null,700000,700000,null,null,null,null,null,null,null,null,null,null,null,null,null,700000,null,700000,0,null,0,{"$f":"IF(AND(OR(C11=\"\",#REF!=\"\",F11=\"\",G11=\"\",H11=\"\"),AND(R11<>0)),1,0)","v":{"$error":"#REF!"}},0]
["500.Azienda Zero","500.Azienda Zero","tutte le sedi ","INFORMATICA",2025,"AAA100-7-A.I.3.c) Diritti di brevetto e diritti di utilizzazione delle opere d'ingegno - altri","Affidamento diretto Arsenal","ARS_01",null,null,null,null,null,null,800000,null,800000,800000,null,null,null,null,null,null,null,null,null,null,null,null,null,800000,null,800000,0,null,0,{"$f":"IF(AND(OR(C12=\"\",#REF!=\"\",F12=\"\",G12=\"\",H12=\"\"),AND(R12<>0)),1,0)","v":{"$error":"#REF!"}},0]
["500.Azienda Zero","500.Azienda Zero","tutte le sedi ","INFORMATICA",2025,"AAA200-7-A.I.5.g) Altre immobilizzazioni immateriali","Piattaforma ARXIVAR","ARX_01",null,null,null,null,null,null,4000,null,4000,4000,null,null,null,null,null,null,null,null,null,null,null,null,null,4000,null,4000,0,null,0,{"$f":"IF(AND(OR(C13=\"\",#REF!=\"\",F13=\"\",G13=\"\",H13=\"\"),AND(R13<>0)),1,0)","v":{"$error":"#REF!"}},0]
["500.Azienda Zero","500.Azienda Zero","tutte le sedi ","INFORMATICA",2025,"AAA100-7-A.I.3.c) Diritti di brevetto e diritti di utilizzazione delle opere d'ingegno - altri","Servizi Sw Atlante - Charta","ATC_01",null,null,null,null,null,null,66700,null,66700,66700,null,null,null,null,null,null,null,null,null,null,null,null,null,66700,null,66700,0,null,0,{"$f":"IF(AND(OR(C14=\"\",#REF!=\"\",F14=\"\",G14=\"\",H14=\"\"),AND(R14<>0)),1,0)","v":{"$error":"#REF!"}},0]
["500.Azienda Zero","500.Azienda Zero","tutte le sedi ","INFORMATICA",2025,"AAA200-7-A.I.5.g) Altre immobilizzazioni immateriali","Servizi software CACEDEM (Cartella Clinica Elettronica Demenze)","CAC_01",null,null,null,null,null,null,30000,null,30000,30000,null,null,null,null,null,null,null,null,null,null,null,null,null,30000,null,30000,0,null,0,{"$f":"IF(AND(OR(C15=\"\",#REF!=\"\",F15=\"\",G15=\"\",H15=\"\"),AND(R15<>0)),1,0)","v":{"$error":"#REF!"}},0]
["500.Azienda Zero","500.Azienda Zero","tutte le sedi ","INFORMATICA",2025,"AAA200-7-A.I.5.g) Altre immobilizzazioni immateriali","Servizi CREV (Centro Regionale Emidemiologia Veterinaria) - LOTTO 1","CRE_01",null,null,null,null,null,null,860000,null,860000,860000,null,null,null,null,null,null,null,null,null,null,null,null,null,860000,null,860000,0,null,0,{"$f":"IF(AND(OR(C16=\"\",#REF!=\"\",F16=\"\",G16=\"\",H16=\"\"),AND(R16<>0)),1,0)","v":{"$error":"#REF!"}},0]
["500.Azienda Zero","500.Azienda Zero","tutte le sedi ","INFORMATICA",2025,"AAA200-7-A.I.5.g) Altre immobilizzazioni immateriali","Servizi CREV (Centro Regionale Emidemiologia Veterinaria) - LOTTO 2","CRE_02",null,null,null,null,null,null,195000,null,195000,195000,null,null,null,null,null,null,null,null,null,null,null,null,null,195000,null,195000,0,null,0,{"$f":"IF(AND(OR(C17=\"\",#REF!=\"\",F17=\"\",G17=\"\",H17=\"\"),AND(R17<>0)),1,0)","v":{"$error":"#REF!"}},0]
["500.Azienda Zero","500.Azienda Zero","tutte le sedi ","INFORMATICA",2025,"AAA100-7-A.I.3.c) Diritti di brevetto e diritti di utilizzazione delle opere d'ingegno - altri","Accordo Quadro Demand, sicurezza e privacy","DEM_01",null,null,null,null,null,null,500000,null,500000,500000,null,null,null,null,null,null,null,null,null,null,null,null,null,500000,null,500000,0,null,0,{"$f":"IF(AND(OR(C18=\"\",#REF!=\"\",F18=\"\",G18=\"\",H18=\"\"),AND(R18<>0)),1,0)","v":{"$error":"#REF!"}},0]
["500.Azienda Zero","500.Azienda Zero","tutte le sedi ","INFORMATICA",2025,"AAA200-7-A.I.5.g) Altre immobilizzazioni immateriali","Applicativo \"Registro Veneto di Dialisi e Trapianto\"","DET_01",null,null,null,null,null,null,20000,null,20000,20000,null,null,null,null,null,null,null,null,null,null,null,null,null,20000,null,20000,0,null,0,{"$f":"IF(AND(OR(C19=\"\",#REF!=\"\",F19=\"\",G19=\"\",H19=\"\"),AND(R19<>0)),1,0)","v":{"$error":"#REF!"}},0]
["500.Azienda Zero","500.Azienda Zero","tutte le sedi ","INFORMATICA",2025,"AAA100-7-A.I.3.c) Diritti di brevetto e diritti di utilizzazione delle opere d'ingegno - altri","Accordo Quadro \"Servizi applicativi di Data Management e servizi di Project Management Office Lotto n. 2 - DataWareHouse","DWH_01",null,null,null,null,null,null,5150000,null,5150000,5150000,null,null,null,null,null,null,null,null,null,null,null,null,null,5150000,null,5150000,0,null,0,{"$f":"IF(AND(OR(C20=\"\",#REF!=\"\",F20=\"\",G20=\"\",H20=\"\"),AND(R20<>0)),1,0)","v":{"$error":"#REF!"}},0]
["500.Azienda Zero","500.Azienda Zero","tutte le sedi ","INFORMATICA",2025,"AAA200-7-A.I.5.g) Altre immobilizzazioni immateriali","Piattaforma ECM","ECM_01",null,null,null,null,null,null,150000,null,150000,150000,null,null,null,null,null,null,null,null,null,null,null,null,null,150000,null,150000,0,null,0,{"$f":"IF(AND(OR(C21=\"\",#REF!=\"\",F21=\"\",G21=\"\",H21=\"\"),AND(R21<>0)),1,0)","v":{"$error":"#REF!"}},0]
["500.Azienda Zero","500.Azienda Zero","tutte le sedi ","INFORMATICA",2025,"AAA200-7-A.I.5.g) Altre immobilizzazioni immateriali","Software gestione dati attività trasfusionale (EMOSITRA EMONET)","EMO_01",null,null,null,null,null,null,10000,null,10000,10000,null,null,null,null,null,null,null,null,null,null,null,null,null,10000,null,10000,0,null,0,{"$f":"IF(AND(OR(C22=\"\",#REF!=\"\",F22=\"\",G22=\"\",H22=\"\"),AND(R22<>0)),1,0)","v":{"$error":"#REF!"}},0]
["500.Azienda Zero","500.Azienda Zero","tutte le sedi ","INFORMATICA",2025,"AAA100-7-A.I.3.c) Diritti di brevetto e diritti di utilizzazione delle opere d'ingegno - altri","FARMAAccordo Quadro \"Servizi Applicativi in ottica Cloud (SAC) e servizi di PMO per le PA\" Lotto 4 - Servizi per la gestione della piattaforma regionale farmaceutica","FAR_01",null,null,null,null,null,null,550000,null,550000,550000,null,null,null,null,null,null,null,null,null,null,null,null,null,550000,null,550000,0,null,0,{"$f":"IF(AND(OR(C23=\"\",#REF!=\"\",F23=\"\",G23=\"\",H23=\"\"),AND(R23<>0)),1,0)","v":{"$error":"#REF!"}},0]
["500.Azienda Zero","500.Azienda Zero","tutte le sedi ","INFORMATICA",2025,"AAA200-7-A.I.5.g) Altre immobilizzazioni immateriali","Piattaforma sperimentazioni farmaci: servizio SaaS","FAR_02",null,null,null,null,null,null,150000,null,150000,150000,null,null,null,null,null,null,null,null,null,null,null,null,null,150000,null,150000,0,null,0,{"$f":"IF(AND(OR(C24=\"\",#REF!=\"\",F24=\"\",G24=\"\",H24=\"\"),AND(R24<>0)),1,0)","v":{"$error":"#REF!"}},0]
["500.Azienda Zero","500.Azienda Zero","tutte le sedi ","INFORMATICA",2025,"AAA200-7-A.I.5.g) Altre immobilizzazioni immateriali","Graduatoria farmacisti","GRF_01",null,null,null,null,null,null,50000,null,50000,50000,null,null,null,null,null,null,null,null,null,null,null,null,null,50000,null,50000,0,null,0,{"$f":"IF(AND(OR(C25=\"\",#REF!=\"\",F25=\"\",G25=\"\",H25=\"\"),AND(R25<>0)),1,0)","v":{"$error":"#REF!"}},0]
["500.Azienda Zero","500.Azienda Zero","tutte le sedi ","INFORMATICA",2025,"AAA200-7-A.I.5.g) Altre immobilizzazioni immateriali","Servizi software ICD (Impegnativa di Cura Domiciliare)","ICD_01",null,null,null,null,null,null,151100,null,151100,151100,null,null,null,null,null,null,null,null,null,null,null,null,null,151100,null,151100,0,null,0,{"$f":"IF(AND(OR(C26=\"\",#REF!=\"\",F26=\"\",G26=\"\",H26=\"\"),AND(R26<>0)),1,0)","v":{"$error":"#REF!"}},0]
["500.Azienda Zero","500.Azienda Zero","tutte le sedi ","INFORMATICA",2025,"AAA100-7-A.I.3.c) Diritti di brevetto e diritti di utilizzazione delle opere d'ingegno - altri","Acquisto licenze (compresa \"Denodo Enterprise Subscription License\")","LIC_01",null,null,null,null,null,null,75000,null,75000,75000,null,null,null,null,null,null,null,null,null,null,null,null,null,75000,null,75000,0,null,0,{"$f":"IF(AND(OR(C27=\"\",#REF!=\"\",F27=\"\",G27=\"\",H27=\"\"),AND(R27<>0)),1,0)","v":{"$error":"#REF!"}},0]
["500.Azienda Zero","500.Azienda Zero","tutte le sedi ","INFORMATICA",2025,"AAA120c-7-A.I.4.c) Diritti di brevetto e diritti di utilizzazione delle opere d'ingegno","Acquisto licenze (compresa \"Denodo Enterprise Subscription License\")","LIC_01",null,null,null,null,null,null,42700,null,null,0,42700,null,null,null,null,null,null,null,null,null,null,null,null,42700,null,42700,{"$f":"S28-AH28","v":0},null,0,{"$f":"IF(AND(OR(C28=\"\",#REF!=\"\",F28=\"\",G28=\"\",H28=\"\"),AND(R28<>0)),1,0)","v":{"$error":"#REF!"}},0]
["500.Azienda Zero","500.Azienda Zero","tutte le sedi ","INFORMATICA",2025,"AAA140-7-A.I.5.a) Concessioni, licenze, marchi e diritti simili","Acquisto licenze (compresa \"Denodo Enterprise Subscription License\")","LIC_01",null,null,null,null,null,null,150000,null,150000,150000,null,null,null,null,null,null,null,null,null,null,null,null,null,150000,null,150000,0,null,0,{"$f":"IF(AND(OR(C29=\"\",#REF!=\"\",F29=\"\",G29=\"\",H29=\"\"),AND(R29<>0)),1,0)","v":{"$error":"#REF!"}},0]
["500.Azienda Zero","500.Azienda Zero","tutte le sedi ","INFORMATICA",2025,"AAA200-7-A.I.5.g) Altre immobilizzazioni immateriali","LISAccordo Quadro \"Servizi applicativi e l'affidamento di servizi di supporto in ambito sanità digitale - sistemi informativi clinico-assistenziali\" Lotto 1 - Realizzazione di una soluzione standardizzata e centralizzata dei sistemi informativi di laboratorio di analisi cliniche (LIS), incluse la genetica, microbiologia e biologia molecolare.","LIS_01",null,null,null,null,null,null,44000,null,44000,44000,null,null,null,null,null,null,null,null,null,null,null,null,null,44000,null,44000,0,null,0,{"$f":"IF(AND(OR(C30=\"\",#REF!=\"\",F30=\"\",G30=\"\",H30=\"\"),AND(R30<>0)),1,0)","v":{"$error":"#REF!"}},0]
["500.Azienda Zero","500.Azienda Zero","tutte le sedi ","INFORMATICA",2025,"AAA200-7-A.I.5.g) Altre immobilizzazioni immateriali","LOGAccordo Quadro \"Servizi applicativi e l'affidamento di servizi di supporto in ambito sanità digitale - sistemi informativi clinico-assistenziali\" Lotto 1 - Sistema di Logistica del Farmaco","LOG_01",null,null,null,null,null,null,51000,null,51000,51000,null,null,null,null,null,null,null,null,null,null,null,null,null,51000,null,51000,0,null,0,{"$f":"IF(AND(OR(C31=\"\",#REF!=\"\",F31=\"\",G31=\"\",H31=\"\"),AND(R31<>0)),1,0)","v":{"$error":"#REF!"}},0]
["500.Azienda Zero","500.Azienda Zero","tutte le sedi ","INFORMATICA",2025,"AAA100-7-A.I.3.c) Diritti di brevetto e diritti di utilizzazione delle opere d'ingegno - altri","Licenze e Cloud Oracle","ORA_01",null,null,null,null,null,null,3700000,null,3700000,3700000,null,null,null,null,null,null,null,null,null,null,null,null,null,3700000,null,3700000,0,null,0,{"$f":"IF(AND(OR(C32=\"\",#REF!=\"\",F32=\"\",G32=\"\",H32=\"\"),AND(R32<>0)),1,0)","v":{"$error":"#REF!"}},0]
["500.Azienda Zero","500.Azienda Zero","tutte le sedi ","INFORMATICA",2025,"AAA200-7-A.I.5.g) Altre immobilizzazioni immateriali","PMAAccordo Quadro \"Servizi applicativi e l'affidamento di servizi di supporto in ambito sanità digitale - sistemi informativi clinico-assistenziali\" Lotto 1 - Realizzazione della soluzione digitale per la gestione dei centri di Procreazione Medicalmente Assistita (PMA) della Regione Veneto.","PMA_01",null,null,null,null,null,null,125000,null,125000,125000,null,null,null,null,null,null,null,null,null,null,null,null,null,125000,null,125000,0,null,0,{"$f":"IF(AND(OR(C33=\"\",#REF!=\"\",F33=\"\",G33=\"\",H33=\"\"),AND(R33<>0)),1,0)","v":{"$error":"#REF!"}},0]
["500.Azienda Zero","500.Azienda Zero","tutte le sedi ","INFORMATICA",2025,"AAA200-7-A.I.5.g) Altre immobilizzazioni immateriali","PNCAR","PNC_01",null,null,null,null,null,null,1100000,null,1100000,1100000,null,null,null,null,null,1100000,null,null,null,null,null,null,null,null,null,1100000,0,null,0,{"$f":"IF(AND(OR(C34=\"\",#REF!=\"\",F34=\"\",G34=\"\",H34=\"\"),AND(R34<>0)),1,0)","v":{"$error":"#REF!"}},0]
["500.Azienda Zero","500.Azienda Zero","tutte le sedi ","INFORMATICA",2025,"AAA100-7-A.I.3.c) Diritti di brevetto e diritti di utilizzazione delle opere d'ingegno - altri","PSN (AMC AREAS compreso)","PSN_01",null,null,null,null,null,null,2850000,null,2850000,2850000,null,null,null,null,null,null,null,null,null,null,null,null,null,2850000,null,2850000,0,null,0,{"$f":"IF(AND(OR(C35=\"\",#REF!=\"\",F35=\"\",G35=\"\",H35=\"\"),AND(R35<>0)),1,0)","v":{"$error":"#REF!"}},0]
["500.Azienda Zero","500.Azienda Zero","tutte le sedi ","INFORMATICA",2025,"AAA100-7-A.I.3.c) Diritti di brevetto e diritti di utilizzazione delle opere d'ingegno - altri","Licenze Qlik","QLK_01",null,null,null,null,null,null,260000,null,260000,260000,null,null,null,null,null,null,null,null,null,null,null,null,null,260000,null,260000,0,null,0,{"$f":"IF(AND(OR(C36=\"\",#REF!=\"\",F36=\"\",G36=\"\",H36=\"\"),AND(R36<>0)),1,0)","v":{"$error":"#REF!"}},0]
["500.Azienda Zero","500.Azienda Zero","tutte le sedi ","INFORMATICA",2025,"AAA200-7-A.I.5.g) Altre immobilizzazioni immateriali","Malattie rare","RAR_01",null,null,null,null,null,null,50000,null,50000,50000,null,null,null,null,null,null,null,null,null,null,null,null,null,50000,null,50000,0,null,0,{"$f":"IF(AND(OR(C37=\"\",#REF!=\"\",F37=\"\",G37=\"\",H37=\"\"),AND(R37<>0)),1,0)","v":{"$error":"#REF!"}},0]
["500.Azienda Zero","500.Azienda Zero","tutte le sedi ","INFORMATICA",2025,"AAA200-7-A.I.5.g) Altre immobilizzazioni immateriali","RISAccordo Quadro \"Servizi applicativi e l'affidamento di servizi di supporto in ambito sanità digitale - sistemi informativi clinico-assistenziali\" Lotto 1 - Realizzazione del Sistema di RIS-PACS per gli Enti Sanitari della Regione Veneto.","RIS_01",null,null,null,null,null,null,1350000,null,1350000,1350000,null,null,null,null,null,null,null,null,null,null,null,null,null,1350000,null,1350000,0,null,0,{"$f":"IF(AND(OR(C38=\"\",#REF!=\"\",F38=\"\",G38=\"\",H38=\"\"),AND(R38<>0)),1,0)","v":{"$error":"#REF!"}},0]
["500.Azienda Zero","500.Azienda Zero","tutte le sedi ","INFORMATICA",2025,"AAA100-7-A.I.3.c) Diritti di brevetto e diritti di utilizzazione delle opere d'ingegno - altri","Informatizzazione Rete Oncologica Veneta","ROV_01",null,null,null,null,null,null,460000,null,460000,460000,null,null,null,null,null,null,null,null,null,null,null,null,null,460000,null,460000,0,null,0,{"$f":"IF(AND(OR(C39=\"\",#REF!=\"\",F39=\"\",G39=\"\",H39=\"\"),AND(R39<>0)),1,0)","v":{"$error":"#REF!"}},0]
["500.Azienda Zero","500.Azienda Zero","tutte le sedi ","INFORMATICA",2025,"AAA200-7-A.I.5.g) Altre immobilizzazioni immateriali","Servizi Screening","SCR_01",null,null,null,null,null,null,585600,null,585600,585600,null,null,null,null,null,null,null,null,null,null,null,null,null,585600,null,585600,0,null,0,{"$f":"IF(AND(OR(C40=\"\",#REF!=\"\",F40=\"\",G40=\"\",H40=\"\"),AND(R40<>0)),1,0)","v":{"$error":"#REF!"}},0]
["500.Azienda Zero","500.Azienda Zero","tutte le sedi ","INFORMATICA",2025,"AAA200-7-A.I.5.g) Altre immobilizzazioni immateriali","SECAccordo Quadro \"Servizi Applicativi in ottica Cloud (SAC) e servizi di PMO per le PA\" Lotto 4 - Servizi per Security frame work e portali","SEC_01",null,null,null,null,null,null,10000,null,10000,10000,null,null,null,null,null,null,null,null,null,null,null,null,null,10000,null,10000,0,null,0,{"$f":"IF(AND(OR(C41=\"\",#REF!=\"\",F41=\"\",G41=\"\",H41=\"\"),AND(R41<>0)),1,0)","v":{"$error":"#REF!"}},0]
["500.Azienda Zero","500.Azienda Zero","tutte le sedi ","INFORMATICA",2025,"AAA200-7-A.I.5.g) Altre immobilizzazioni immateriali","Servizi SIO (Sistema Informativo Ospedaliero)","SIO_01",null,null,null,null,null,null,550000,null,550000,550000,null,null,null,null,null,null,null,null,null,null,null,null,null,550000,null,550000,0,null,0,{"$f":"IF(AND(OR(C42=\"\",#REF!=\"\",F42=\"\",G42=\"\",H42=\"\"),AND(R42<>0)),1,0)","v":{"$error":"#REF!"}},0]
["500.Azienda Zero","500.Azienda Zero","tutte le sedi ","INFORMATICA",2025,"AAA200-7-A.I.5.g) Altre immobilizzazioni immateriali","SITAccordo Quadro \"Servizi applicativi e l'affidamento di servizi di supporto in ambito sanità digitale - sistemi informativi clinico-assistenziali\" Lotto 1 - Sistema di Gestione del processo Trasfusionale","SIT_01",null,null,null,null,null,null,38500,null,38500,38500,null,null,null,null,null,null,null,null,null,null,null,null,null,38500,null,38500,0,null,0,{"$f":"IF(AND(OR(C43=\"\",#REF!=\"\",F43=\"\",G43=\"\",H43=\"\"),AND(R43<>0)),1,0)","v":{"$error":"#REF!"}},0]
["500.Azienda Zero","500.Azienda Zero","tutte le sedi ","INFORMATICA",2025,"AAA200-7-A.I.5.g) Altre immobilizzazioni immateriali","SPC CLOUD 2: AMC FSER e CSCR","SPC_01",null,null,null,null,null,null,280000,null,280000,280000,null,null,null,null,null,null,null,null,null,null,null,null,null,280000,null,280000,0,null,0,{"$f":"IF(AND(OR(C44=\"\",#REF!=\"\",F44=\"\",G44=\"\",H44=\"\"),AND(R44<>0)),1,0)","v":{"$error":"#REF!"}},0]
["500.Azienda Zero","500.Azienda Zero","tutte le sedi ","INFORMATICA",2025,"AAA100-7-A.I.3.c) Diritti di brevetto e diritti di utilizzazione delle opere d'ingegno - altri","Servizi SPISAL","SPI_01",null,null,null,null,null,null,195000,null,195000,195000,null,null,null,null,null,null,null,null,null,null,null,null,null,195000,null,195000,0,null,0,{"$f":"IF(AND(OR(C45=\"\",#REF!=\"\",F45=\"\",G45=\"\",H45=\"\"),AND(R45<>0)),1,0)","v":{"$error":"#REF!"}},0]
["500.Azienda Zero","500.Azienda Zero","tutte le sedi ","INFORMATICA",2025,"AAA100-7-A.I.3.c) Diritti di brevetto e diritti di utilizzazione delle opere d'ingegno - altri","Accordo Quadro Supply","SUP_01",null,null,null,null,null,null,1750000,null,1750000,1750000,null,null,null,null,null,null,null,null,null,null,null,null,null,1750000,null,1750000,0,null,0,{"$f":"IF(AND(OR(C46=\"\",#REF!=\"\",F46=\"\",G46=\"\",H46=\"\"),AND(R46<>0)),1,0)","v":{"$error":"#REF!"}},0]
["500.Azienda Zero","500.Azienda Zero","tutte le sedi ","INFORMATICA",2025,"AAA200-7-A.I.5.g) Altre immobilizzazioni immateriali","Servizio di Infrastruttura Regionale di Telemedicina","TEL_01",null,null,null,"SI","H11J23001070001",null,7200000,null,7200000,7200000,null,null,7200000,null,null,null,null,null,null,null,null,null,null,null,null,7200000,0,null,0,{"$f":"IF(AND(OR(C47=\"\",#REF!=\"\",F47=\"\",G47=\"\",H47=\"\"),AND(R47<>0)),1,0)","v":{"$error":"#REF!"}},0]
["500.Azienda Zero","500.Azienda Zero","tutte le sedi ","INFORMATICA",2025,"AAA100-7-A.I.3.c) Diritti di brevetto e diritti di utilizzazione delle opere d'ingegno - altri","Servizi SIAVR (Sistema Informativo Anagrafe Vaccinale Regionale)","VAC_01",null,null,null,null,null,null,215000,null,215000,215000,null,null,null,null,null,null,null,null,null,null,null,null,null,215000,null,215000,0,null,0,{"$f":"IF(AND(OR(C48=\"\",#REF!=\"\",F48=\"\",G48=\"\",H48=\"\"),AND(R48<>0)),1,0)","v":{"$error":"#REF!"}},0]
["500.Azienda Zero","500.Azienda Zero","tutte le sedi ","INFORMATICA",2025,"AAA140-7-A.I.5.a) Concessioni, licenze, marchi e diritti simili","VMWARE","VMW_01",null,null,null,null,null,null,2450000,null,2450000,2450000,null,null,null,null,null,null,null,null,null,null,null,null,null,2450000,null,2450000,0,null,0,{"$f":"IF(AND(OR(C49=\"\",#REF!=\"\",F49=\"\",G49=\"\",H49=\"\"),AND(R49<>0)),1,0)","v":{"$error":"#REF!"}},0]
["500.Azienda Zero","500.Azienda Zero","tutte le sedi ","INFORMATICA",2025,"AAA100-7-A.I.3.c) Diritti di brevetto e diritti di utilizzazione delle opere d'ingegno - altri","Accordo Quadro \"Servizi applicativi di Data Management e servizi di Project Management Office Lotto n. 1 - Biosorveglianza","BIO_01",null,null,null,null,null,"SI",20000,null,20000,20000,null,null,null,null,null,null,null,null,null,null,null,null,null,20000,null,20000,0,null,0,{"$f":"IF(AND(OR(C50=\"\",#REF!=\"\",F50=\"\",G50=\"\",H50=\"\"),AND(R50<>0)),1,0)","v":{"$error":"#REF!"}},0]
["500.Azienda Zero","500.Azienda Zero","tutte le sedi ","INFORMATICA",2025,"AAA200-7-A.I.5.g) Altre immobilizzazioni immateriali","Servizi di manutenzione, di help desk, di assistenza sistemistica, di supporto, di formazione e sviluppo del sistema \"MyPrenota\"","MYP_01",null,null,null,null,null,"SI",5000,null,5000,5000,null,null,null,null,null,null,null,null,null,null,null,null,null,5000,null,5000,0,null,0,{"$f":"IF(AND(OR(C51=\"\",#REF!=\"\",F51=\"\",G51=\"\",H51=\"\"),AND(R51<>0)),1,0)","v":{"$error":"#REF!"}},0]
["500.Azienda Zero","500.Azienda Zero","tutte le sedi ","EDILIZIA",2025,"AAA160b-7-A.I.5.c.2) Altre migliorie su beni di terzi","Acquisto Segnaletica e cartellonistica","UOC LOGISTICA_01",null,null,null,null,null,null,10000,null,10000,10000,null,null,null,null,null,null,10000,null,null,null,null,null,null,null,null,10000,0,null,0,{"$f":"IF(AND(OR(C52=\"\",#REF!=\"\",F52=\"\",G52=\"\",H52=\"\"),AND(R52<>0)),1,0)","v":{"$error":"#REF!"}},0]
["500.Azienda Zero","500.Azienda Zero","tutte le sedi ","EDILIZIA",2025,"AAA160b-7-A.I.5.c.2) Altre migliorie su beni di terzi","Installazione di batterie di accumulo per impianto fotovoltaico esistente","UOC LOGISTICA_02",null,null,null,null,null,null,30500,null,30500,30500,null,null,null,null,null,null,30500,null,null,null,null,null,null,null,null,30500,0,null,0,{"$f":"IF(AND(OR(C53=\"\",#REF!=\"\",F53=\"\",G53=\"\",H53=\"\"),AND(R53<>0)),1,0)","v":{"$error":"#REF!"}},0]
["500.Azienda Zero","500.Azienda Zero","tutte le sedi ","EDILIZIA",2025,"AAA160b-7-A.I.5.c.2) Altre migliorie su beni di terzi","Installazione impianto fotovoltaico con batterie di accumulo","UOC LOGISTICA_03",null,null,null,null,null,null,134200,null,134200,134200,null,null,null,null,null,null,134200,null,null,null,null,null,null,null,null,134200,0,null,0,{"$f":"IF(AND(OR(C54=\"\",#REF!=\"\",F54=\"\",G54=\"\",H54=\"\"),AND(R54<>0)),1,0)","v":{"$error":"#REF!"}},0]
["500.Azienda Zero","500.Azienda Zero","tutte le sedi ","EDILIZIA",2025,"AAA160b-7-A.I.5.c.2) Altre migliorie su beni di terzi","Installazione UPS per rack","UOC LOGISTICA_04",null,null,null,null,null,null,11500,null,11500,11500,null,null,null,null,null,null,11500,null,null,null,null,null,null,null,null,11500,0,null,0,{"$f":"IF(AND(OR(C55=\"\",#REF!=\"\",F55=\"\",G55=\"\",H55=\"\"),AND(R55<>0)),1,0)","v":{"$error":"#REF!"}},0]
["500.Azienda Zero","500.Azienda Zero","tutte le sedi ","EDILIZIA",2025,"AAA160b-7-A.I.5.c.2) Altre migliorie su beni di terzi","Interventi di manutenzione incrementativa dei fabbricati a carattere edile/impiantistico","UOC LOGISTICA_05",null,null,null,null,null,null,100000,null,100000,100000,null,null,null,null,null,null,100000,null,null,null,null,null,null,null,null,100000,0,null,0,{"$f":"IF(AND(OR(C56=\"\",#REF!=\"\",F56=\"\",G56=\"\",H56=\"\"),AND(R56<>0)),1,0)","v":{"$error":"#REF!"}},0]
["500.Azienda Zero","500.Azienda Zero","tutte le sedi ","EDILIZIA",2025,"AAA160b-7-A.I.5.c.2) Altre migliorie su beni di terzi","Manutenzione incrementativa ascensori","UOC LOGISTICA_06",null,null,null,null,null,null,5000,null,5000,5000,null,null,null,null,null,null,5000,null,null,null,null,null,null,null,null,5000,0,null,0,{"$f":"IF(AND(OR(C57=\"\",#REF!=\"\",F57=\"\",G57=\"\",H57=\"\"),AND(R57<>0)),1,0)","v":{"$error":"#REF!"}},0]
["500.Azienda Zero","500.Azienda Zero","tutte le sedi ","EDILIZIA",2025,"AAA160b-7-A.I.5.c.2) Altre migliorie su beni di terzi","Miglioramento sistema di sicurezza degli ascensori, con installazione di batterie tampone per discesa automatica al piano","UOC LOGISTICA_07",null,null,null,null,null,null,12000,null,12000,12000,null,null,null,null,null,null,12000,null,null,null,null,null,null,null,null,12000,0,null,0,{"$f":"IF(AND(OR(C58=\"\",#REF!=\"\",F58=\"\",G58=\"\",H58=\"\"),AND(R58<>0)),1,0)","v":{"$error":"#REF!"}},0]
["500.Azienda Zero","500.Azienda Zero","tutte le sedi ","EDILIZIA",2025,"AAA160b-7-A.I.5.c.2) Altre migliorie su beni di terzi","Sistemazione porte ascensori corpo A","UOC LOGISTICA_08",null,null,null,null,null,null,6100,null,6100,6100,null,null,null,null,null,null,6100,null,null,null,null,null,null,null,null,6100,0,null,0,{"$f":"IF(AND(OR(C59=\"\",#REF!=\"\",F59=\"\",G59=\"\",H59=\"\"),AND(R59<>0)),1,0)","v":{"$error":"#REF!"}},0]
["500.Azienda Zero","500.Azienda Zero","tutte le sedi ","EDILIZIA",2025,"AAA160b-7-A.I.5.c.2) Altre migliorie su beni di terzi","Sostituzione porte REI di collegamento con scale accesso da portineria nel corpo A","UOC LOGISTICA_09",null,null,null,null,null,null,10000,null,10000,10000,null,null,null,null,null,null,10000,null,null,null,null,null,null,null,null,10000,0,null,0,{"$f":"IF(AND(OR(C60=\"\",#REF!=\"\",F60=\"\",G60=\"\",H60=\"\"),AND(R60<>0)),1,0)","v":{"$error":"#REF!"}},0]
["500.Azienda Zero","500.Azienda Zero","tutte le sedi ","ATTREZZATURE",2025,"AAA420-7-A.II.4.a) Attrezzature sanitarie e scientifiche","Acquisto defibrillatori per sedi di Casa Rossa e Via Ugo Foscolo","UOC LOGISTICA_10",null,null,null,null,null,null,2000,null,2000,2000,null,null,null,null,null,null,null,null,null,null,null,null,null,2000,null,2000,0,null,0,{"$f":"IF(AND(OR(C61=\"\",#REF!=\"\",F61=\"\",G61=\"\",H61=\"\"),AND(R61<>0)),1,0)","v":{"$error":"#REF!"}},0]
["500.Azienda Zero","500.Azienda Zero","tutte le sedi ","ALTRO",2025,"AAA450-7-A.II.5.a) Mobili e arredi","Acquisto cancelleria","UOC LOGISTICA_11",null,null,null,null,null,null,1000,null,1000,1000,null,null,null,null,null,null,null,null,null,null,null,null,null,1000,null,1000,0,null,0,{"$f":"IF(AND(OR(C62=\"\",#REF!=\"\",F62=\"\",G62=\"\",H62=\"\"),AND(R62<>0)),1,0)","v":{"$error":"#REF!"}},0]
["500.Azienda Zero","500.Azienda Zero","tutte le sedi ","ALTRO",2025,"AAA450-7-A.II.5.a) Mobili e arredi","Acquisto Mobili e Arredi","UOC LOGISTICA_12",null,null,null,null,null,null,45000,null,45000,45000,null,null,null,null,null,null,null,null,null,null,null,null,null,45000,null,45000,0,null,0,{"$f":"IF(AND(OR(C63=\"\",#REF!=\"\",F63=\"\",G63=\"\",H63=\"\"),AND(R63<>0)),1,0)","v":{"$error":"#REF!"}},0]
["500.Azienda Zero","500.Azienda Zero","tutte le sedi ","ALTRO",2025,"AAA520a-7-A.II.8.a.1) Macchine d'ufficio","Acquisto cancelleria","UOC LOGISTICA_13",null,null,null,null,null,null,500,null,500,500,null,null,null,null,null,null,null,null,null,null,null,null,null,500,null,500,0,null,0,{"$f":"IF(AND(OR(C64=\"\",#REF!=\"\",F64=\"\",G64=\"\",H64=\"\"),AND(R64<>0)),1,0)","v":{"$error":"#REF!"}},0]
["500.Azienda Zero","500.Azienda Zero","tutte le sedi ","ALTRO",2025,"AAA520b-7-A.II.8.a.2) Altre immobilizzazioni materiali (altri beni)","Acquisto Mobili e Arredi","UOC LOGISTICA_14",null,null,null,null,null,null,5000,null,5000,5000,null,null,null,null,null,null,null,null,null,null,null,null,null,5000,null,5000,0,null,0,{"$f":"IF(AND(OR(C65=\"\",#REF!=\"\",F65=\"\",G65=\"\",H65=\"\"),AND(R65<>0)),1,0)","v":{"$error":"#REF!"}},0]
["500.Azienda Zero","500.Azienda Zero","tutte le sedi ","INFORMATICA",2025,"AAA100-7-A.I.3.c) Diritti di brevetto e diritti di utilizzazione delle opere d'ingegno - altri","servizi hosting e di attività di sviluppo software per l’aggiornamento ed estensione dell’applicativo “ACRA” per il Registro Tumori del Veneto","ACR_01",null,null,null,null,null,null,100000,null,100000,100000,null,null,null,null,null,null,null,null,null,null,null,null,null,100000,null,100000,0,null,0,{"$f":"IF(AND(OR(C66=\"\",#REF!=\"\",F66=\"\",G66=\"\",H66=\"\"),AND(R66<>0)),1,0)","v":{"$error":"#REF!"}},0]
["500.Azienda Zero","500.Azienda Zero","tutte le sedi ","INFORMATICA",2025,"AAA100-7-A.I.3.c) Diritti di brevetto e diritti di utilizzazione delle opere d'ingegno - altri","Applicativo Protocollo e delibere","BAB_01",null,null,null,null,null,null,175000,null,175000,175000,null,null,null,null,null,null,null,null,null,null,null,null,null,175000,null,175000,0,null,0,{"$f":"IF(AND(OR(C67=\"\",#REF!=\"\",F67=\"\",G67=\"\",H67=\"\"),AND(R67<>0)),1,0)","v":{"$error":"#REF!"}},0]
["500.Azienda Zero","500.Azienda Zero","tutte le sedi ","INFORMATICA",2025,"AAA200-7-A.I.5.g) Altre immobilizzazioni immateriali","Portale CRAT","CRA_01",null,null,null,null,null,null,30000,null,30000,30000,null,null,null,null,null,null,null,null,null,null,null,null,null,30000,null,30000,0,null,0,{"$f":"IF(AND(OR(C68=\"\",#REF!=\"\",F68=\"\",G68=\"\",H68=\"\"),AND(R68<>0)),1,0)","v":{"$error":"#REF!"}},0]
["500.Azienda Zero","500.Azienda Zero","tutte le sedi ","ALTRO",2025,"AAA520a-7-A.II.8.a.1) Macchine d'ufficio","Acquisto PC, Server e attrezzature per videoconferenza","HWV_01",null,null,null,null,null,null,450000,null,450000,450000,null,null,null,null,null,null,null,null,null,null,null,null,null,450000,null,450000,0,null,0,{"$f":"IF(AND(OR(C69=\"\",#REF!=\"\",F69=\"\",G69=\"\",H69=\"\"),AND(R69<>0)),1,0)","v":{"$error":"#REF!"}},0]
["500.Azienda Zero","500.Azienda Zero","tutte le sedi ","INFORMATICA",2025,"AAA140-7-A.I.5.a) Concessioni, licenze, marchi e diritti simili","Manutenzione sito SER (Servizio Epidemiologico Regionale) e sito RTV (Registro Tumori del Veneto)","SER_01",null,null,null,null,null,null,15000,null,15000,15000,null,null,null,null,null,null,null,null,null,null,null,null,null,15000,null,15000,0,null,0,{"$f":"IF(AND(OR(C70=\"\",#REF!=\"\",F70=\"\",G70=\"\",H70=\"\"),AND(R70<>0)),1,0)","v":{"$error":"#REF!"}},0]
["500.Azienda Zero","500.Azienda Zero","tutte le sedi ","INFORMATICA",2025,"AAA100-7-A.I.3.c) Diritti di brevetto e diritti di utilizzazione delle opere d'ingegno - altri","SIRIT (Sistema Informatizzato per la raccolta di informazioni sulla tratta)","SIR_01",null,null,null,null,null,null,85400,null,85400,{"$f":"+P71+Q71","v":85400},null,null,null,null,null,null,null,null,null,null,null,null,null,85400,null,{"$f":"SUM(T71:AG71)","v":85400},0,null,0,{"$f":"IF(AND(OR(C71=\"\",#REF!=\"\",F71=\"\",G71=\"\",H71=\"\"),AND(R71<>0)),1,0)","v":{"$error":"#REF!"}},{"$f":"IF(AND(L71=\"SI\",M71=\"\"),1,0)","v":0}]
["500.Azienda Zero","500.Azienda Zero","tutte le sedi ","INFORMATICA",2025,"AAA121d-7-A.I.4.d.4) Altre immobilizzazioni immateriali","Investimento 1.1.1: Ammodernamento del parco tecnologico e digitale ospedaliero (Digitalizzazione DEA) : 118Accordo Quadro \"Servizi applicativi per l'affidamento di servizi di supporto in ambito sanità digitale - sistemi informativi clinico-assistenziali\" Lotto 1 - Sistema di Gestione del 118","118_01",null,null,null,"SI","B36G21073020006, B96G21060470006, I46G21001710006, I26G21001460006, I96G21006100006, J76G21005050006, J76G21005060006, J26G21005490006, J96G21006690006, I76G21003010006, B16G21062360006, I86G21002960006, I46G21001690006, I56G21002460006, I46G21001700006, H76G21002260006, H96G21002410006, I36G21002280006, I36G21002290006, F16G21002120006, F66G21001380006, F66G21001370006, I91B21006770001, E36G21004850006",null,1610000,null,null,0,1610000,null,1610000,null,null,null,null,null,null,null,null,null,null,null,null,1610000,{"$f":"S72-AH72","v":0},null,0,{"$f":"IF(AND(OR(C72=\"\",#REF!=\"\",F72=\"\",G72=\"\",H72=\"\"),AND(R72<>0)),1,0)","v":{"$error":"#REF!"}},0]
["500.Azienda Zero","500.Azienda Zero","tutte le sedi ","INFORMATICA",2025,"AAA121d-7-A.I.4.d.4) Altre immobilizzazioni immateriali","Investimento 1.1.1: Ammodernamento del parco tecnologico e digitale ospedaliero (Digitalizzazione DEA) : ANAGAccordo Quadro \"Servizi Applicativi in ottica Cloud (SAC) e servizi di PMO per le PA\" Lotto 4 - Servizi per la gestione delle anagrafi regionali","ANA_01",null,null,null,"SI","B36G21073020006, B96G21060470006, I46G21001710006, I26G21001460006, I96G21006100006, J76G21005050006, J76G21005060006, J26G21005490006, J96G21006690006, I76G21003010006, B16G21062360006, I86G21002960006, I46G21001690006, I56G21002460006, I46G21001700006, H76G21002260006, H96G21002410006, I36G21002280006, I36G21002290006, F16G21002120006, F66G21001380006, F66G21001370006, I91B21006770001, E36G21004850006",null,610000,null,null,0,610000,null,610000,null,null,null,null,null,null,null,null,null,null,null,null,610000,{"$f":"S73-AH73","v":0},null,0,{"$f":"IF(AND(OR(C73=\"\",#REF!=\"\",F73=\"\",G73=\"\",H73=\"\"),AND(R73<>0)),1,0)","v":{"$error":"#REF!"}},0]
["500.Azienda Zero","500.Azienda Zero","tutte le sedi ","INFORMATICA",2025,"AAA121d-7-A.I.4.d.4) Altre immobilizzazioni immateriali","Investimento 1.1.1: Ammodernamento del parco tecnologico e digitale ospedaliero (Digitalizzazione DEA) : APAccordo Quadro \"Servizi applicativi e l'affidamento di servizi di supporto in ambito sanità digitale - sistemi informativi clinico-assistenziali\" Lotto 1 - Realizzazione della soluzione digitale di Anatomia Patologica per gli Enti Sanitari della Regione Veneto","ANP_01",null,null,null,"SI","B36G21073020006, B96G21060470006, I46G21001710006, I26G21001460006, I96G21006100006, J76G21005050006, J76G21005060006, J26G21005490006, J96G21006690006, I76G21003010006, B16G21062360006, I86G21002960006, I46G21001690006, I56G21002460006, I46G21001700006, H76G21002260006, H96G21002410006, I36G21002280006, I36G21002290006, F16G21002120006, F66G21001380006, F66G21001370006, I91B21006770001, E36G21004850006",null,1950000,null,null,0,1950000,null,1950000,null,null,null,null,null,null,null,null,null,null,null,null,1950000,{"$f":"S74-AH74","v":0},null,0,{"$f":"IF(AND(OR(C74=\"\",#REF!=\"\",F74=\"\",G74=\"\",H74=\"\"),AND(R74<>0)),1,0)","v":{"$error":"#REF!"}},0]
["500.Azienda Zero","500.Azienda Zero","tutte le sedi ","INFORMATICA",2025,"AAA100-7-A.I.3.c) Diritti di brevetto e diritti di utilizzazione delle opere d'ingegno - altri","Investimento 1.1.1: Ammodernamento del parco tecnologico e digitale ospedaliero (Digitalizzazione DEA) : Continuità dei servizi FSER SAR, Anagrafi, Security e Portali, Biosorveglianza e Piattaforma farmaceutica","APP_01",null,null,null,"SI","C97H22002670001",null,3100000,null,3100000,3100000,null,null,3100000,null,null,null,null,null,null,null,null,null,null,null,null,3100000,{"$f":"R75-AH75","v":0},null,0,{"$f":"IF(AND(OR(C75=\"\",#REF!=\"\",F75=\"\",G75=\"\",H75=\"\"),AND(R75<>0)),1,0)","v":{"$error":"#REF!"}},0]
["500.Azienda Zero","500.Azienda Zero","tutte le sedi ","INFORMATICA",2025,"AAA100-7-A.I.3.c) Diritti di brevetto e diritti di utilizzazione delle opere d'ingegno - altri","soluzioni di Bi per analisi dati di relazione con cittadino","BIC_01",null,null,null,"SI","C96G22002550001",null,500000,null,500000,500000,null,null,500000,null,null,null,null,null,null,null,null,null,null,null,null,500000,0,null,0,{"$f":"IF(AND(OR(C76=\"\",#REF!=\"\",F76=\"\",G76=\"\",H76=\"\"),AND(R76<>0)),1,0)","v":{"$error":"#REF!"}},0]
["500.Azienda Zero","500.Azienda Zero","tutte le sedi ","INFORMATICA",2025,"AAA100-7-A.I.3.c) Diritti di brevetto e diritti di utilizzazione delle opere d'ingegno - altri","Digital Human e Metaverso per il miglioramento dell’esperienza del cittadino","DHM_01",null,null,null,"SI","C96G22002550001",null,500000,null,500000,500000,null,null,500000,null,null,null,null,null,null,null,null,null,null,null,null,500000,0,null,0,{"$f":"IF(AND(OR(C77=\"\",#REF!=\"\",F77=\"\",G77=\"\",H77=\"\"),AND(R77<>0)),1,0)","v":{"$error":"#REF!"}},0]
["500.Azienda Zero","500.Azienda Zero","tutte le sedi ","INFORMATICA",2025,"AAA120c-7-A.I.4.c) Diritti di brevetto e diritti di utilizzazione delle opere d'ingegno","Investimento 1.1.1: Ammodernamento del parco tecnologico e digitale ospedaliero (Digitalizzazione DEA) : FSERAccordo Quadro \"Servizi Applicativi in ottica Cloud (SAC) e servizi di PMO per le PA\" Lotto 4 - Servizi per la gestione del FSER e del SAR","FSE_01",null,null,null,"SI","B36G21073020006, B96G21060470006, I46G21001710006, I26G21001460006, I96G21006100006, J76G21005050006, J76G21005060006, J26G21005490006, J96G21006690006, I76G21003010006, B16G21062360006, I86G21002960006, I46G21001690006, I56G21002460006, I46G21001700006, H76G21002260006, H96G21002410006, I36G21002280006, I36G21002290006, F16G21002120006, F66G21001380006, F66G21001370006, I91B21006770001, E36G21004850006",null,100000,null,null,0,100000,null,100000,null,null,null,null,null,null,null,null,null,null,null,null,100000,{"$f":"S78-AH78","v":0},null,0,{"$f":"IF(AND(OR(C78=\"\",#REF!=\"\",F78=\"\",G78=\"\",H78=\"\"),AND(R78<>0)),1,0)","v":{"$error":"#REF!"}},0]
["500.Azienda Zero","500.Azienda Zero","tutte le sedi ","INFORMATICA",2025,"AAA140-7-A.I.5.a) Concessioni, licenze, marchi e diritti simili","Investimento 1.3.1 (b) - Adozione e utilizzo FSE da parte delle Regioni/Province autonome - Potenziamento delle infrastrutture digitali : Sistema di gestione assitenza per il fascicolo - PNRR (competenze digitali fascicolo)","GAF_01",null,null,null,"SI","C97H22002670001",null,1000000,null,1000000,1000000,null,null,1000000,null,null,null,null,null,null,null,null,null,null,null,null,1000000,0,null,0,{"$f":"IF(AND(OR(C79=\"\",#REF!=\"\",F79=\"\",G79=\"\",H79=\"\"),AND(R79<>0)),1,0)","v":{"$error":"#REF!"}},0]
["500.Azienda Zero","500.Azienda Zero","tutte le sedi ","INFORMATICA",2025,"AAA100-7-A.I.3.c) Diritti di brevetto e diritti di utilizzazione delle opere d'ingegno - altri","IA - Liste attesa - PNRR (competenze digitali fascicolo)","IAL_01",null,null,null,"SI","C96G22002550001",null,500000,null,500000,500000,null,null,500000,null,null,null,null,null,null,null,null,null,null,null,null,500000,0,null,0,{"$f":"IF(AND(OR(C80=\"\",#REF!=\"\",F80=\"\",G80=\"\",H80=\"\"),AND(R80<>0)),1,0)","v":{"$error":"#REF!"}},0]
["500.Azienda Zero","500.Azienda Zero","tutte le sedi ","INFORMATICA",2025,"AAA100-7-A.I.3.c) Diritti di brevetto e diritti di utilizzazione delle opere d'ingegno - altri","Interventi per incremento competenze digitali FSE - Conto PNRR per informazione/competenze digitali","INC_01",null,null,null,"SI","C96G22002550001",null,1588000,null,1588000,1588000,null,null,1588000,null,null,null,null,null,null,null,null,null,null,null,null,1588000,0,null,0,{"$f":"IF(AND(OR(C81=\"\",#REF!=\"\",F81=\"\",G81=\"\",H81=\"\"),AND(R81<>0)),1,0)","v":{"$error":"#REF!"}},0]
["500.Azienda Zero","500.Azienda Zero","tutte le sedi ","INFORMATICA",2025,"AAA121d-7-A.I.4.d.4) Altre immobilizzazioni immateriali","Investimento 1.1.1: Ammodernamento del parco tecnologico e digitale ospedaliero (Digitalizzazione DEA) : LISAccordo Quadro \"Servizi applicativi e l'affidamento di servizi di supporto in ambito sanità digitale - sistemi informativi clinico-assistenziali\" Lotto 1 - Realizzazione di una soluzione standardizzata e centralizzata dei sistemi informativi di laboratorio di analisi cliniche (LIS), incluse la genetica, microbiologia e biologia molecolare.","LIS_01",null,null,null,"SI","B36G21073020006, B96G21060470006, I46G21001710006, I26G21001460006, I96G21006100006, J76G21005050006, J76G21005060006, J26G21005490006, J96G21006690006, I76G21003010006, B16G21062360006, I86G21002960006, I46G21001690006, I56G21002460006, I46G21001700006, H76G21002260006, H96G21002410006, I36G21002280006, I36G21002290006, F16G21002120006, F66G21001380006, F66G21001370006, I91B21006770001, E36G21004850006",null,4200000,null,null,0,4200000,null,4200000,null,null,null,null,null,null,null,null,null,null,null,null,4200000,{"$f":"S82-AH82","v":0},null,0,{"$f":"IF(AND(OR(C82=\"\",#REF!=\"\",F82=\"\",G82=\"\",H82=\"\"),AND(R82<>0)),1,0)","v":{"$error":"#REF!"}},0]
["500.Azienda Zero","500.Azienda Zero","tutte le sedi ","INFORMATICA",2025,"AAA121d-7-A.I.4.d.4) Altre immobilizzazioni immateriali","Investimento 1.1.1: Ammodernamento del parco tecnologico e digitale ospedaliero (Digitalizzazione DEA) : LOGAccordo Quadro \"Servizi applicativi e l'affidamento di servizi di supporto in ambito sanità digitale - sistemi informativi clinico-assistenziali\" Lotto 1 - Sistema di Logistica del Farmaco","LOG_01",null,null,null,"SI","B36G21073020006, B96G21060470006, I46G21001710006, I26G21001460006, I96G21006100006, J76G21005050006, J76G21005060006, J26G21005490006, J96G21006690006, I76G21003010006, B16G21062360006, I86G21002960006, I46G21001690006, I56G21002460006, I46G21001700006, H76G21002260006, H96G21002410006, I36G21002280006, I36G21002290006, F16G21002120006, F66G21001380006, F66G21001370006, I91B21006770001, E36G21004850006",null,3100000,null,null,0,3100000,null,3100000,null,null,null,null,null,null,null,null,null,null,null,null,3100000,{"$f":"S83-AH83","v":0},null,0,{"$f":"IF(AND(OR(C83=\"\",#REF!=\"\",F83=\"\",G83=\"\",H83=\"\"),AND(R83<>0)),1,0)","v":{"$error":"#REF!"}},0]
["500.Azienda Zero","500.Azienda Zero","tutte le sedi ","INFORMATICA",2025,"AAA100-7-A.I.3.c) Diritti di brevetto e diritti di utilizzazione delle opere d'ingegno - altri","presa in carico PDTA - PNRR (competenze digitali fascicolo)","PDT_01",null,null,null,"SI","C96G22002550001",null,200000,null,200000,200000,null,null,200000,null,null,null,null,null,null,null,null,null,null,null,null,200000,0,null,0,{"$f":"IF(AND(OR(C84=\"\",#REF!=\"\",F84=\"\",G84=\"\",H84=\"\"),AND(R84<>0)),1,0)","v":{"$error":"#REF!"}},0]
["500.Azienda Zero","500.Azienda Zero","tutte le sedi ","INFORMATICA",2025,"AAA121d-7-A.I.4.d.4) Altre immobilizzazioni immateriali","Investimento 1.1.1: Ammodernamento del parco tecnologico e digitale ospedaliero (Digitalizzazione DEA) : PMAAccordo Quadro \"Servizi applicativi e l'affidamento di servizi di supporto in ambito sanità digitale - sistemi informativi clinico-assistenziali\" Lotto 1 - Realizzazione della soluzione digitale per la gestione dei centri di Procreazione Medicalmente Assistita (PMA) della Regione Veneto.","PMA_01",null,null,null,"SI","B36G21073020006, B96G21060470006, I46G21001710006, I26G21001460006, I96G21006100006, J76G21005050006, J76G21005060006, J26G21005490006, J96G21006690006, I76G21003010006, B16G21062360006, I86G21002960006, I46G21001690006, I56G21002460006, I46G21001700006, H76G21002260006, H96G21002410006, I36G21002280006, I36G21002290006, F16G21002120006, F66G21001380006, F66G21001370006, I91B21006770001, E36G21004850006",null,250000,null,null,0,250000,null,250000,null,null,null,null,null,null,null,null,null,null,null,null,250000,{"$f":"S85-AH85","v":0},null,0,{"$f":"IF(AND(OR(C85=\"\",#REF!=\"\",F85=\"\",G85=\"\",H85=\"\"),AND(R85<>0)),1,0)","v":{"$error":"#REF!"}},0]
["500.Azienda Zero","500.Azienda Zero","tutte le sedi ","INFORMATICA",2025,"AAA121d-7-A.I.4.d.4) Altre immobilizzazioni immateriali","Investimento 1.1.1: Ammodernamento del parco tecnologico e digitale ospedaliero (Digitalizzazione DEA) : Adesione all'Accordo Quadro Consip S.p.A. \"Servizi applicativi e servizi di supporto in ambito Sanità digitale: Sistemi informativi Clinico-Assistenziali per le Pubbliche Amministrazioni del SSN - Lotto 5 NORD\"","PRR_01",null,null,null,"SI","B36G21073020006, B96G21060470006, I46G21001710006, I26G21001460006, I96G21006100006, J76G21005050006, J76G21005060006, J26G21005490006, J96G21006690006, I76G21003010006, B16G21062360006, I86G21002960006, I46G21001690006, I56G21002460006, I46G21001700006, H76G21002260006, H96G21002410006, I36G21002280006, I36G21002290006, F16G21002120006, F66G21001380006, F66G21001370006, I91B21006770001, E36G21004850006",null,2500000,null,null,0,2500000,null,2500000,null,null,null,null,null,null,null,null,null,null,null,null,2500000,{"$f":"S86-AH86","v":0},null,0,{"$f":"IF(AND(OR(C86=\"\",#REF!=\"\",F86=\"\",G86=\"\",H86=\"\"),AND(R86<>0)),1,0)","v":{"$error":"#REF!"}},0]
["500.Azienda Zero","500.Azienda Zero","tutte le sedi ","INFORMATICA",2025,"AAA100-7-A.I.3.c) Diritti di brevetto e diritti di utilizzazione delle opere d'ingegno - altri","SANITA' DIGITALE Adesione all'Accordo Quadro Consip S.p.A. \"Servizi applicativi e servizi di supporto in ambito Sanità digitale: Sistemi informativi Clinico-Assistenziali per le Pubbliche Amministrazioni del SSN - Lotto 5 NORD\"-Regione","PRR_02",null,null,null,"SI","C96G22002550001",null,500000,null,500000,500000,null,null,null,null,null,500000,null,null,null,null,null,null,null,null,null,500000,0,null,0,{"$f":"IF(AND(OR(C87=\"\",#REF!=\"\",F87=\"\",G87=\"\",H87=\"\"),AND(R87<>0)),1,0)","v":{"$error":"#REF!"}},0]
["500.Azienda Zero","500.Azienda Zero","tutte le sedi ","INFORMATICA",2025,"AAA121d-7-A.I.4.d.4) Altre immobilizzazioni immateriali","Investimento 1.1.1: Ammodernamento del parco tecnologico e digitale ospedaliero (Digitalizzazione DEA) : RISAccordo Quadro \"Servizi applicativi e l'affidamento di servizi di supporto in ambito sanità digitale - sistemi informativi clinico-assistenziali\" Lotto 1 - Realizzazione del Sistema di RIS-PACS per gli Enti Sanitari della Regione Veneto.","RIS_01",null,null,null,"SI","B36G21073020006, B96G21060470006, I46G21001710006, I26G21001460006, I96G21006100006, J76G21005050006, J76G21005060006, J26G21005490006, J96G21006690006, I76G21003010006, B16G21062360006, I86G21002960006, I46G21001690006, I56G21002460006, I46G21001700006, H76G21002260006, H96G21002410006, I36G21002280006, I36G21002290006, F16G21002120006, F66G21001380006, F66G21001370006, I91B21006770001, E36G21004850006",null,1220000,null,null,0,1220000,null,1220000,null,null,null,null,null,null,null,null,null,null,null,null,1220000,{"$f":"S88-AH88","v":0},null,0,{"$f":"IF(AND(OR(C88=\"\",#REF!=\"\",F88=\"\",G88=\"\",H88=\"\"),AND(R88<>0)),1,0)","v":{"$error":"#REF!"}},0]
["500.Azienda Zero","500.Azienda Zero","tutte le sedi ","INFORMATICA",2025,"AAA120c-7-A.I.4.c) Diritti di brevetto e diritti di utilizzazione delle opere d'ingegno","Investimento 1.1.1: Ammodernamento del parco tecnologico e digitale ospedaliero (Digitalizzazione DEA) : SECAccordo Quadro \"Servizi Applicativi in ottica Cloud (SAC) e servizi di PMO per le PA\" Lotto 4 - Servizi per Security frame work e portali","SEC_01",null,null,null,"SI","B36G21073020006, B96G21060470006, I46G21001710006, I26G21001460006, I96G21006100006, J76G21005050006, J76G21005060006, J26G21005490006, J96G21006690006, I76G21003010006, B16G21062360006, I86G21002960006, I46G21001690006, I56G21002460006, I46G21001700006, H76G21002260006, H96G21002410006, I36G21002280006, I36G21002290006, F16G21002120006, F66G21001380006, F66G21001370006, I91B21006770001, E36G21004850006",null,150000,null,null,0,150000,null,150000,null,null,null,null,null,null,null,null,null,null,null,null,150000,{"$f":"S89-AH89","v":0},null,0,{"$f":"IF(AND(OR(C89=\"\",#REF!=\"\",F89=\"\",G89=\"\",H89=\"\"),AND(R89<>0)),1,0)","v":{"$error":"#REF!"}},0]
["500.Azienda Zero","500.Azienda Zero","tutte le sedi ","INFORMATICA",2025,"AAA121d-7-A.I.4.d.4) Altre immobilizzazioni immateriali","Investimento 1.1.1: Ammodernamento del parco tecnologico e digitale ospedaliero (Digitalizzazione DEA) : SITAccordo Quadro \"Servizi applicativi e l'affidamento di servizi di supporto in ambito sanità digitale - sistemi informativi clinico-assistenziali\" Lotto 1 - Sistema di Gestione del processo Trasfusionale","SIT_01",null,null,null,"SI","B36G21073020006, B96G21060470006, I46G21001710006, I26G21001460006, I96G21006100006, J76G21005050006, J76G21005060006, J26G21005490006, J96G21006690006, I76G21003010006, B16G21062360006, I86G21002960006, I46G21001690006, I56G21002460006, I46G21001700006, H76G21002260006, H96G21002410006, I36G21002280006, I36G21002290006, F16G21002120006, F66G21001380006, F66G21001370006, I91B21006770001, E36G21004850006",null,2100000,null,null,0,2100000,null,2100000,null,null,null,null,null,null,null,null,null,null,null,null,2100000,{"$f":"S90-AH90","v":0},null,0,{"$f":"IF(AND(OR(C90=\"\",#REF!=\"\",F90=\"\",G90=\"\",H90=\"\"),AND(R90<>0)),1,0)","v":{"$error":"#REF!"}},0]
["500.Azienda Zero","500.Azienda Zero","tutte le sedi ","INFORMATICA",2025,"AAA100-7-A.I.3.c) Diritti di brevetto e diritti di utilizzazione delle opere d'ingegno - altri","Accordo Quadro Supply","SUP_01",null,null,null,"SI","C97H22002670001; C97H22003120001; C97H22003130001; C97H22003140001; C97H22003150001",null,850000,null,850000,850000,null,null,850000,null,null,null,null,null,null,null,null,null,null,null,null,850000,0,null,{"$f":"+R91-AH91","v":0},{"$f":"IF(AND(OR(C91=\"\",#REF!=\"\",F91=\"\",G91=\"\",H91=\"\"),AND(R91<>0)),1,0)","v":{"$error":"#REF!"}},0]
["500.Azienda Zero","500.Azienda Zero","tutte le sedi ","INFORMATICA",2026,"AAA200-7-A.I.5.g) Altre immobilizzazioni immateriali","118Accordo Quadro \"Servizi applicativi per l'affidamento di servizi di supporto in ambito sanità digitale - sistemi informativi clinico-assistenziali\" Lotto 1 - Sistema di Gestione del 118","118_01",null,null,null,null,null,null,100000,null,100000,100000,null,null,null,null,null,null,null,null,null,null,null,null,null,100000,null,100000,0,null,0,{"$f":"IF(AND(OR(C92=\"\",#REF!=\"\",F92=\"\",G92=\"\",H92=\"\"),AND(R92<>0)),1,0)","v":{"$error":"#REF!"}},0]
["500.Azienda Zero","500.Azienda Zero","tutte le sedi ","INFORMATICA",2026,"AAA200-7-A.I.5.g) Altre immobilizzazioni immateriali","APAccordo Quadro \"Servizi applicativi e l'affidamento di servizi di supporto in ambito sanità digitale - sistemi informativi clinico-assistenziali\" Lotto 1 - Realizzazione della soluzione digitale di Anatomia Patologica per gli Enti Sanitari della Regione Veneto","ANP_01",null,null,null,null,null,null,145000,null,145000,145000,null,null,null,null,null,null,null,null,null,null,null,null,null,145000,null,145000,0,null,0,{"$f":"IF(AND(OR(C93=\"\",#REF!=\"\",F93=\"\",G93=\"\",H93=\"\"),AND(R93<>0)),1,0)","v":{"$error":"#REF!"}},0]
["500.Azienda Zero","500.Azienda Zero","tutte le sedi ","INFORMATICA",2026,"AAA100-7-A.I.3.c) Diritti di brevetto e diritti di utilizzazione delle opere d'ingegno - altri","Continuità dei servizi FSER SAR, Anagrafi, Security e Portali, Biosorveglianza e Piattaforma farmaceutica","APP_01",null,null,null,null,null,null,4200000,null,4200000,4200000,null,null,null,null,null,null,null,null,null,null,null,null,null,4200000,null,4200000,0,null,0,{"$f":"IF(AND(OR(C94=\"\",#REF!=\"\",F94=\"\",G94=\"\",H94=\"\"),AND(R94<>0)),1,0)","v":{"$error":"#REF!"}},0]
["500.Azienda Zero","500.Azienda Zero","tutte le sedi ","INFORMATICA",2026,"AAA100-7-A.I.3.c) Diritti di brevetto e diritti di utilizzazione delle opere d'ingegno - altri","Affidamento diretto Arsenal","ARS_01",null,null,null,null,null,null,700000,null,700000,700000,null,null,null,null,null,null,null,null,null,null,null,null,null,700000,null,700000,0,null,0,{"$f":"IF(AND(OR(C95=\"\",#REF!=\"\",F95=\"\",G95=\"\",H95=\"\"),AND(R95<>0)),1,0)","v":{"$error":"#REF!"}},0]
["500.Azienda Zero","500.Azienda Zero","tutte le sedi ","INFORMATICA",2026,"AAA200-7-A.I.5.g) Altre immobilizzazioni immateriali","Piattaforma ARXIVAR","ARX_01",null,null,null,null,null,null,4500,null,4500,4500,null,null,null,null,null,null,null,null,null,null,null,null,null,4500,null,4500,0,null,0,{"$f":"IF(AND(OR(C96=\"\",#REF!=\"\",F96=\"\",G96=\"\",H96=\"\"),AND(R96<>0)),1,0)","v":{"$error":"#REF!"}},0]
["500.Azienda Zero","500.Azienda Zero","tutte le sedi ","INFORMATICA",2026,"AAA100-7-A.I.3.c) Diritti di brevetto e diritti di utilizzazione delle opere d'ingegno - altri","Servizi Sw Atlante - Charta","ATC_01",null,null,null,null,null,null,33500,null,33500,33500,null,null,null,null,null,null,null,null,null,null,null,null,null,33500,null,33500,0,null,0,{"$f":"IF(AND(OR(C97=\"\",#REF!=\"\",F97=\"\",G97=\"\",H97=\"\"),AND(R97<>0)),1,0)","v":{"$error":"#REF!"}},0]
["500.Azienda Zero","500.Azienda Zero","tutte le sedi ","INFORMATICA",2026,"AAA200-7-A.I.5.g) Altre immobilizzazioni immateriali","Servizi software CACEDEM (Cartella Clinica Elettronica Demenze)","CAC_01",null,null,null,null,null,null,30000,null,30000,30000,null,null,null,null,null,null,null,null,null,null,null,null,null,30000,null,30000,0,null,0,{"$f":"IF(AND(OR(C98=\"\",#REF!=\"\",F98=\"\",G98=\"\",H98=\"\"),AND(R98<>0)),1,0)","v":{"$error":"#REF!"}},0]
["500.Azienda Zero","500.Azienda Zero","tutte le sedi ","INFORMATICA",2026,"AAA200-7-A.I.5.g) Altre immobilizzazioni immateriali","Servizi CREV (Centro Regionale Emidemiologia Veterinaria) - LOTTO 1","CRE_01",null,null,null,null,null,null,420000,null,420000,420000,null,null,null,null,null,null,null,null,null,null,null,null,null,420000,null,420000,0,null,0,{"$f":"IF(AND(OR(C99=\"\",#REF!=\"\",F99=\"\",G99=\"\",H99=\"\"),AND(R99<>0)),1,0)","v":{"$error":"#REF!"}},0]
["500.Azienda Zero","500.Azienda Zero","tutte le sedi ","INFORMATICA",2026,"AAA200-7-A.I.5.g) Altre immobilizzazioni immateriali","Servizi CREV (Centro Regionale Emidemiologia Veterinaria) - LOTTO 2","CRE_02",null,null,null,null,null,null,128000,null,128000,128000,null,null,null,null,null,null,null,null,null,null,null,null,null,128000,null,128000,0,null,0,{"$f":"IF(AND(OR(C100=\"\",#REF!=\"\",F100=\"\",G100=\"\",H100=\"\"),AND(R100<>0)),1,0)","v":{"$error":"#REF!"}},0]
["500.Azienda Zero","500.Azienda Zero","tutte le sedi ","INFORMATICA",2026,"AAA100-7-A.I.3.c) Diritti di brevetto e diritti di utilizzazione delle opere d'ingegno - altri","Accordo Quadro Demand, sicurezza e privacy","DEM_01",null,null,null,null,null,null,460000,null,460000,460000,null,null,null,null,null,null,null,null,null,null,null,null,null,460000,null,460000,0,null,0,{"$f":"IF(AND(OR(C101=\"\",#REF!=\"\",F101=\"\",G101=\"\",H101=\"\"),AND(R101<>0)),1,0)","v":{"$error":"#REF!"}},0]
["500.Azienda Zero","500.Azienda Zero","tutte le sedi ","INFORMATICA",2026,"AAA200-7-A.I.5.g) Altre immobilizzazioni immateriali","Applicativo \"Registro Veneto di Dialisi e Trapianto\"","DET_01",null,null,null,null,null,null,20000,null,20000,20000,null,null,null,null,null,null,null,null,null,null,null,null,null,20000,null,20000,0,null,0,{"$f":"IF(AND(OR(C102=\"\",#REF!=\"\",F102=\"\",G102=\"\",H102=\"\"),AND(R102<>0)),1,0)","v":{"$error":"#REF!"}},0]
["500.Azienda Zero","500.Azienda Zero","tutte le sedi ","INFORMATICA",2026,"AAA100-7-A.I.3.c) Diritti di brevetto e diritti di utilizzazione delle opere d'ingegno - altri","Accordo Quadro \"Servizi applicativi di Data Management e servizi di Project Management Office Lotto n. 2 - DataWareHouse","DWH_01",null,null,null,null,null,null,3600000,null,3600000,3600000,null,null,null,null,null,null,null,null,null,null,null,null,null,3600000,null,3600000,0,null,0,{"$f":"IF(AND(OR(C103=\"\",#REF!=\"\",F103=\"\",G103=\"\",H103=\"\"),AND(R103<>0)),1,0)","v":{"$error":"#REF!"}},0]
["500.Azienda Zero","500.Azienda Zero","tutte le sedi ","INFORMATICA",2026,"AAA200-7-A.I.5.g) Altre immobilizzazioni immateriali","Piattaforma ECM","ECM_01",null,null,null,null,null,null,150000,null,150000,150000,null,null,null,null,null,null,null,null,null,null,null,null,null,150000,null,150000,0,null,0,{"$f":"IF(AND(OR(C104=\"\",#REF!=\"\",F104=\"\",G104=\"\",H104=\"\"),AND(R104<>0)),1,0)","v":{"$error":"#REF!"}},0]
["500.Azienda Zero","500.Azienda Zero","tutte le sedi ","INFORMATICA",2026,"AAA200-7-A.I.5.g) Altre immobilizzazioni immateriali","Piattaforma sperimentazioni farmaci: servizio SaaS","FAR_02",null,null,null,null,null,null,55000,null,55000,55000,null,null,null,null,null,null,null,null,null,null,null,null,null,55000,null,55000,0,null,0,{"$f":"IF(AND(OR(C105=\"\",#REF!=\"\",F105=\"\",G105=\"\",H105=\"\"),AND(R105<>0)),1,0)","v":{"$error":"#REF!"}},0]
["500.Azienda Zero","500.Azienda Zero","tutte le sedi ","INFORMATICA",2026,"AAA200-7-A.I.5.g) Altre immobilizzazioni immateriali","Graduatoria farmacisti","GRF_01",null,null,null,null,null,null,10000,null,10000,10000,null,null,null,null,null,null,null,null,null,null,null,null,null,10000,null,10000,0,null,0,{"$f":"IF(AND(OR(C106=\"\",#REF!=\"\",F106=\"\",G106=\"\",H106=\"\"),AND(R106<>0)),1,0)","v":{"$error":"#REF!"}},0]
["500.Azienda Zero","500.Azienda Zero","tutte le sedi ","INFORMATICA",2026,"AAA200-7-A.I.5.g) Altre immobilizzazioni immateriali","Servizi software ICD (Impegnativa di Cura Domiciliare)","ICD_01",null,null,null,null,null,null,31800,null,31800,31800,null,null,null,null,null,null,null,null,null,null,null,null,null,31800,null,31800,0,null,0,{"$f":"IF(AND(OR(C107=\"\",#REF!=\"\",F107=\"\",G107=\"\",H107=\"\"),AND(R107<>0)),1,0)","v":{"$error":"#REF!"}},0]
["500.Azienda Zero","500.Azienda Zero","tutte le sedi ","INFORMATICA",2026,"AAA100-7-A.I.3.c) Diritti di brevetto e diritti di utilizzazione delle opere d'ingegno - altri","Acquisto licenze (compresa \"Denodo Enterprise Subscription License\")","LIC_01",null,null,null,null,null,null,75000,null,75000,75000,null,null,null,null,null,null,null,null,null,null,null,null,null,75000,null,75000,0,null,0,{"$f":"IF(AND(OR(C108=\"\",#REF!=\"\",F108=\"\",G108=\"\",H108=\"\"),AND(R108<>0)),1,0)","v":{"$error":"#REF!"}},0]
["500.Azienda Zero","500.Azienda Zero","tutte le sedi ","INFORMATICA",2026,"AAA120c-7-A.I.4.c) Diritti di brevetto e diritti di utilizzazione delle opere d'ingegno","Acquisto licenze (compresa \"Denodo Enterprise Subscription License\")","LIC_01",null,null,null,null,null,null,42000,null,42000,42000,null,null,null,null,null,null,null,null,null,null,null,null,null,42000,null,42000,0,null,0,{"$f":"IF(AND(OR(C109=\"\",#REF!=\"\",F109=\"\",G109=\"\",H109=\"\"),AND(R109<>0)),1,0)","v":{"$error":"#REF!"}},0]
["500.Azienda Zero","500.Azienda Zero","tutte le sedi ","INFORMATICA",2026,"AAA140-7-A.I.5.a) Concessioni, licenze, marchi e diritti simili","Acquisto licenze (compresa \"Denodo Enterprise Subscription License\")","LIC_01",null,null,null,null,null,null,150000,null,150000,150000,null,null,null,null,null,null,null,null,null,null,null,null,null,150000,null,150000,0,null,0,{"$f":"IF(AND(OR(C110=\"\",#REF!=\"\",F110=\"\",G110=\"\",H110=\"\"),AND(R110<>0)),1,0)","v":{"$error":"#REF!"}},0]
["500.Azienda Zero","500.Azienda Zero","tutte le sedi ","INFORMATICA",2026,"AAA200-7-A.I.5.g) Altre immobilizzazioni immateriali","LISAccordo Quadro \"Servizi applicativi e l'affidamento di servizi di supporto in ambito sanità digitale - sistemi informativi clinico-assistenziali\" Lotto 1 - Realizzazione di una soluzione standardizzata e centralizzata dei sistemi informativi di laboratorio di analisi cliniche (LIS), incluse la genetica, microbiologia e biologia molecolare.","LIS_01",null,null,null,null,null,null,87000,null,87000,87000,null,null,null,null,null,null,null,null,null,null,null,null,null,87000,null,87000,0,null,0,{"$f":"IF(AND(OR(C111=\"\",#REF!=\"\",F111=\"\",G111=\"\",H111=\"\"),AND(R111<>0)),1,0)","v":{"$error":"#REF!"}},0]
["500.Azienda Zero","500.Azienda Zero","tutte le sedi ","INFORMATICA",2026,"AAA200-7-A.I.5.g) Altre immobilizzazioni immateriali","PMAAccordo Quadro \"Servizi applicativi e l'affidamento di servizi di supporto in ambito sanità digitale - sistemi informativi clinico-assistenziali\" Lotto 1 - Realizzazione della soluzione digitale per la gestione dei centri di Procreazione Medicalmente Assistita (PMA) della Regione Veneto.","PMA_01",null,null,null,null,null,null,22000,null,22000,22000,null,null,null,null,null,null,null,null,null,null,null,null,null,22000,null,22000,0,null,0,{"$f":"IF(AND(OR(C112=\"\",#REF!=\"\",F112=\"\",G112=\"\",H112=\"\"),AND(R112<>0)),1,0)","v":{"$error":"#REF!"}},0]
["500.Azienda Zero","500.Azienda Zero","tutte le sedi ","INFORMATICA",2026,"AAA200-7-A.I.5.g) Altre immobilizzazioni immateriali","PNCAR","PNC_01",null,null,null,null,null,null,350000,null,350000,350000,null,null,null,null,null,350000,null,null,null,null,null,null,null,null,null,350000,0,null,0,{"$f":"IF(AND(OR(C113=\"\",#REF!=\"\",F113=\"\",G113=\"\",H113=\"\"),AND(R113<>0)),1,0)","v":{"$error":"#REF!"}},0]
["500.Azienda Zero","500.Azienda Zero","tutte le sedi ","INFORMATICA",2026,"AAA100-7-A.I.3.c) Diritti di brevetto e diritti di utilizzazione delle opere d'ingegno - altri","PSN (AMC AREAS compreso)","PSN_01",null,null,null,null,null,null,2800000,null,2800000,2800000,null,null,null,null,null,null,null,null,null,null,null,null,null,2800000,null,2800000,0,null,0,{"$f":"IF(AND(OR(C114=\"\",#REF!=\"\",F114=\"\",G114=\"\",H114=\"\"),AND(R114<>0)),1,0)","v":{"$error":"#REF!"}},0]
["500.Azienda Zero","500.Azienda Zero","tutte le sedi ","INFORMATICA",2026,"AAA100-7-A.I.3.c) Diritti di brevetto e diritti di utilizzazione delle opere d'ingegno - altri","Licenze Qlik","QLK_01",null,null,null,null,null,null,260000,null,260000,260000,null,null,null,null,null,null,null,null,null,null,null,null,null,260000,null,260000,0,null,0,{"$f":"IF(AND(OR(C115=\"\",#REF!=\"\",F115=\"\",G115=\"\",H115=\"\"),AND(R115<>0)),1,0)","v":{"$error":"#REF!"}},0]
["500.Azienda Zero","500.Azienda Zero","tutte le sedi ","INFORMATICA",2026,"AAA200-7-A.I.5.g) Altre immobilizzazioni immateriali","RISAccordo Quadro \"Servizi applicativi e l'affidamento di servizi di supporto in ambito sanità digitale - sistemi informativi clinico-assistenziali\" Lotto 1 - Realizzazione del Sistema di RIS-PACS per gli Enti Sanitari della Regione Veneto.","RIS_01",null,null,null,null,null,null,783770,null,783770,783770,null,null,null,null,null,null,null,null,null,null,null,null,null,783770,null,783770,0,null,0,{"$f":"IF(AND(OR(C116=\"\",#REF!=\"\",F116=\"\",G116=\"\",H116=\"\"),AND(R116<>0)),1,0)","v":{"$error":"#REF!"}},0]
["500.Azienda Zero","500.Azienda Zero","tutte le sedi ","INFORMATICA",2026,"AAA200-7-A.I.5.g) Altre immobilizzazioni immateriali","Servizi Screening","SCR_01",null,null,null,null,null,null,285000,null,285000,285000,null,null,null,null,null,null,null,null,null,null,null,null,null,285000,null,285000,0,null,0,{"$f":"IF(AND(OR(C117=\"\",#REF!=\"\",F117=\"\",G117=\"\",H117=\"\"),AND(R117<>0)),1,0)","v":{"$error":"#REF!"}},0]
["500.Azienda Zero","500.Azienda Zero","tutte le sedi ","INFORMATICA",2026,"AAA200-7-A.I.5.g) Altre immobilizzazioni immateriali","Servizi SIO (Sistema Informativo Ospedaliero)","SIO_01",null,null,null,null,null,null,550000,null,550000,550000,null,null,null,null,null,null,null,null,null,null,null,null,null,550000,null,550000,0,null,0,{"$f":"IF(AND(OR(C118=\"\",#REF!=\"\",F118=\"\",G118=\"\",H118=\"\"),AND(R118<>0)),1,0)","v":{"$error":"#REF!"}},0]
["500.Azienda Zero","500.Azienda Zero","tutte le sedi ","INFORMATICA",2026,"AAA200-7-A.I.5.g) Altre immobilizzazioni immateriali","SITAccordo Quadro \"Servizi applicativi e l'affidamento di servizi di supporto in ambito sanità digitale - sistemi informativi clinico-assistenziali\" Lotto 1 - Sistema di Gestione del processo Trasfusionale","SIT_01",null,null,null,null,null,null,77000,null,77000,77000,null,null,null,null,null,null,null,null,null,null,null,null,null,77000,null,77000,0,null,0,{"$f":"IF(AND(OR(C119=\"\",#REF!=\"\",F119=\"\",G119=\"\",H119=\"\"),AND(R119<>0)),1,0)","v":{"$error":"#REF!"}},0]
["500.Azienda Zero","500.Azienda Zero","tutte le sedi ","INFORMATICA",2026,"AAA100-7-A.I.3.c) Diritti di brevetto e diritti di utilizzazione delle opere d'ingegno - altri","Accordo Quadro Supply","SUP_01",null,null,null,null,null,null,1750000,null,1750000,1750000,null,null,null,null,null,null,null,null,null,null,null,null,null,1750000,null,1750000,0,null,0,{"$f":"IF(AND(OR(C120=\"\",#REF!=\"\",F120=\"\",G120=\"\",H120=\"\"),AND(R120<>0)),1,0)","v":{"$error":"#REF!"}},0]
["500.Azienda Zero","500.Azienda Zero","tutte le sedi ","INFORMATICA",2026,"AAA200-7-A.I.5.g) Altre immobilizzazioni immateriali","Servizio di Infrastruttura Regionale di Telemedicina","TEL_01",null,null,null,"SI","H11J23001070001",null,5550000,null,5550000,5550000,null,null,5550000,null,null,null,null,null,null,null,null,null,null,null,null,5550000,0,null,0,{"$f":"IF(AND(OR(C121=\"\",#REF!=\"\",F121=\"\",G121=\"\",H121=\"\"),AND(R121<>0)),1,0)","v":{"$error":"#REF!"}},0]
["500.Azienda Zero","500.Azienda Zero","tutte le sedi ","INFORMATICA",2026,"AAA100-7-A.I.3.c) Diritti di brevetto e diritti di utilizzazione delle opere d'ingegno - altri","Servizi SIAVR (Sistema Informativo Anagrafe Vaccinale Regionale)","VAC_01",null,null,null,null,null,null,215000,null,215000,215000,null,null,null,null,null,null,null,null,null,null,null,null,null,215000,null,215000,0,null,0,{"$f":"IF(AND(OR(C122=\"\",#REF!=\"\",F122=\"\",G122=\"\",H122=\"\"),AND(R122<>0)),1,0)","v":{"$error":"#REF!"}},0]
["500.Azienda Zero","500.Azienda Zero","tutte le sedi ","INFORMATICA",2026,"AAA140-7-A.I.5.a) Concessioni, licenze, marchi e diritti simili","VMWARE","VMW_01",null,null,null,null,null,null,2450000,null,2450000,2450000,null,null,null,null,null,null,null,null,null,null,null,null,null,2450000,null,2450000,0,null,0,{"$f":"IF(AND(OR(C123=\"\",#REF!=\"\",F123=\"\",G123=\"\",H123=\"\"),AND(R123<>0)),1,0)","v":{"$error":"#REF!"}},0]
["500.Azienda Zero","500.Azienda Zero","tutte le sedi ","INFORMATICA",2026,"AAA200-7-A.I.5.g) Altre immobilizzazioni immateriali","Servizi di manutenzione, di help desk, di assistenza sistemistica, di supporto, di formazione e sviluppo del sistema \"MyPrenota\"","MYP_01",null,null,null,null,null,null,5000,null,5000,5000,null,null,null,null,null,null,null,null,null,null,null,null,null,5000,null,5000,0,null,0,{"$f":"IF(AND(OR(C124=\"\",#REF!=\"\",F124=\"\",G124=\"\",H124=\"\"),AND(R124<>0)),1,0)","v":{"$error":"#REF!"}},0]
["500.Azienda Zero","500.Azienda Zero","tutte le sedi ","INFORMATICA",2026,"AAA100-7-A.I.3.c) Diritti di brevetto e diritti di utilizzazione delle opere d'ingegno - altri","servizi hosting e di attività di sviluppo software per l’aggiornamento ed estensione dell’applicativo “ACRA” per il Registro Tumori del Veneto","ACR_01",null,null,null,null,null,null,26400,null,26400,26400,null,null,null,null,null,null,null,null,null,null,null,null,null,26400,null,26400,0,null,0,{"$f":"IF(AND(OR(C125=\"\",#REF!=\"\",F125=\"\",G125=\"\",H125=\"\"),AND(R125<>0)),1,0)","v":{"$error":"#REF!"}},0]
["500.Azienda Zero","500.Azienda Zero","tutte le sedi ","INFORMATICA",2026,"AAA100-7-A.I.3.c) Diritti di brevetto e diritti di utilizzazione delle opere d'ingegno - altri","Applicativo Protocollo e delibere","BAB_01",null,null,null,null,null,null,175000,null,175000,175000,null,null,null,null,null,null,null,null,null,null,null,null,null,175000,null,175000,0,null,0,{"$f":"IF(AND(OR(C126=\"\",#REF!=\"\",F126=\"\",G126=\"\",H126=\"\"),AND(R126<>0)),1,0)","v":{"$error":"#REF!"}},0]
["500.Azienda Zero","500.Azienda Zero","tutte le sedi ","INFORMATICA",2026,"AAA140-7-A.I.5.a) Concessioni, licenze, marchi e diritti simili","Manutenzione sito SER (Servizio Epidemiologico Regionale) e sito RTV (Registro Tumori del Veneto)","SER_01",null,null,null,null,null,null,15000,null,15000,15000,null,null,null,null,null,null,null,null,null,null,null,null,null,15000,null,15000,0,null,0,{"$f":"IF(AND(OR(C127=\"\",#REF!=\"\",F127=\"\",G127=\"\",H127=\"\"),AND(R127<>0)),1,0)","v":{"$error":"#REF!"}},0]
["500.Azienda Zero","500.Azienda Zero","tutte le sedi ","INFORMATICA",2026,"AAA100-7-A.I.3.c) Diritti di brevetto e diritti di utilizzazione delle opere d'ingegno - altri","SIRIT (Sistema Informatizzato per la raccolta di informazioni sulla tratta)","SIR_01",null,null,null,null,null,null,6100,null,6100,6100,null,null,null,null,null,null,null,null,null,null,null,null,null,6100,null,6100,0,null,0,{"$f":"IF(AND(OR(C128=\"\",#REF!=\"\",F128=\"\",G128=\"\",H128=\"\"),AND(R128<>0)),1,0)","v":{"$error":"#REF!"}},0]
["500.Azienda Zero","500.Azienda Zero","tutte le sedi ","INFORMATICA",2026,"AAA100-7-A.I.3.c) Diritti di brevetto e diritti di utilizzazione delle opere d'ingegno - altri","Continuità dei servizi FSER SAR, Anagrafi, Security e Portali, Biosorveglianza e Piattaforma farmaceutica","APP_01",null,null,null,"SI","C97H22002670001",null,2100000,null,2100000,2100000,null,null,2100000,null,null,null,null,null,null,null,null,null,null,null,null,2100000,0,null,0,{"$f":"IF(AND(OR(C129=\"\",#REF!=\"\",F129=\"\",G129=\"\",H129=\"\"),AND(R129<>0)),1,0)","v":{"$error":"#REF!"}},0]
["500.Azienda Zero","500.Azienda Zero","tutte le sedi ","INFORMATICA",2026,"AAA120c-7-A.I.4.c) Diritti di brevetto e diritti di utilizzazione delle opere d'ingegno","FSERAccordo Quadro \"Servizi Applicativi in ottica Cloud (SAC) e servizi di PMO per le PA\" Lotto 4 - Servizi per la gestione del FSER e del SAR","FSE_01",null,null,null,"SI","B36G21073020006, B96G21060470006, I46G21001710006, I26G21001460006, I96G21006100006, J76G21005050006, J76G21005060006, J26G21005490006, J96G21006690006, I76G21003010006, B16G21062360006, I86G21002960006, I46G21001690006, I56G21002460006, I46G21001700006, H76G21002260006, H96G21002410006, I36G21002280006, I36G21002290006, F16G21002120006, F66G21001380006, F66G21001370006, I91B21006770001, E36G21004850006",null,1556000,null,1556000,1556000,null,null,1556000,null,null,null,null,null,null,null,null,null,null,null,null,1556000,0,null,0,{"$f":"IF(AND(OR(C130=\"\",#REF!=\"\",F130=\"\",G130=\"\",H130=\"\"),AND(R130<>0)),1,0)","v":{"$error":"#REF!"}},0]
["500.Azienda Zero","500.Azienda Zero","tutte le sedi ","INFORMATICA",2026,"AAA100-7-A.I.3.c) Diritti di brevetto e diritti di utilizzazione delle opere d'ingegno - altri","IA - Liste attesa - PNRR (competenze digitali fascicolo)","IAL_01",null,null,null,"SI","C96G22002550001",null,100000,null,100000,100000,null,null,100000,null,null,null,null,null,null,null,null,null,null,null,null,100000,0,null,0,{"$f":"IF(AND(OR(C131=\"\",#REF!=\"\",F131=\"\",G131=\"\",H131=\"\"),AND(R131<>0)),1,0)","v":{"$error":"#REF!"}},0]
["500.Azienda Zero","500.Azienda Zero","tutte le sedi ","INFORMATICA",2026,"AAA100-7-A.I.3.c) Diritti di brevetto e diritti di utilizzazione delle opere d'ingegno - altri","Interventi per incremento competenze digitali FSE - Conto PNRR per informazione/competenze digitali","INC_01",null,null,null,"SI","C96G22002550001",null,1270000,null,1270000,1270000,null,null,1270000,null,null,null,null,null,null,null,null,null,null,null,null,1270000,0,null,0,{"$f":"IF(AND(OR(C132=\"\",#REF!=\"\",F132=\"\",G132=\"\",H132=\"\"),AND(R132<>0)),1,0)","v":{"$error":"#REF!"}},0]
["500.Azienda Zero","500.Azienda Zero","tutte le sedi ","INFORMATICA",2026,"AAA100-7-A.I.3.c) Diritti di brevetto e diritti di utilizzazione delle opere d'ingegno - altri","presa in carico PDTA - PNRR (competenze digitali fascicolo)","PDT_01",null,null,null,"SI","C96G22002550001",null,100000,null,100000,100000,null,null,100000,null,null,null,null,null,null,null,null,null,null,null,null,100000,0,null,0,{"$f":"IF(AND(OR(C133=\"\",#REF!=\"\",F133=\"\",G133=\"\",H133=\"\"),AND(R133<>0)),1,0)","v":{"$error":"#REF!"}},0]
["500.Azienda Zero","500.Azienda Zero","tutte le sedi ","INFORMATICA",2026,"AAA121d-7-A.I.4.d.4) Altre immobilizzazioni immateriali","Investimento 1.1.1: Ammodernamento del parco tecnologico e digitale ospedaliero (Digitalizzazione DEA) : Adesione all'Accordo Quadro Consip S.p.A. \"Servizi applicativi e servizi di supporto in ambito Sanità digitale: Sistemi informativi Clinico-Assistenziali per le Pubbliche Amministrazioni del SSN - Lotto 5 NORD\"","PRR_01",null,null,null,"SI","B36G21073020006, B96G21060470006, I46G21001710006, I26G21001460006, I96G21006100006, J76G21005050006, J76G21005060006, J26G21005490006, J96G21006690006, I76G21003010006, B16G21062360006, I86G21002960006, I46G21001690006, I56G21002460006, I46G21001700006, H76G21002260006, H96G21002410006, I36G21002280006, I36G21002290006, F16G21002120006, F66G21001380006, F66G21001370006, I91B21006770001, E36G21004850006",null,1500000,null,1500000,{"$f":"+P134+Q134","v":1500000},null,null,1500000,null,null,null,null,null,null,null,null,null,null,null,null,{"$f":"SUM(T134:AG134)","v":1500000},0,null,0,{"$f":"IF(AND(OR(C134=\"\",#REF!=\"\",F134=\"\",G134=\"\",H134=\"\"),AND(R134<>0)),1,0)","v":{"$error":"#REF!"}},{"$f":"IF(AND(L134=\"SI\",M134=\"\"),1,0)","v":0}]
["500.Azienda Zero","500.Azienda Zero","tutte le sedi ","INFORMATICA",2026,"AAA100-7-A.I.3.c) Diritti di brevetto e diritti di utilizzazione delle opere d'ingegno - altri","SANITA' DIGITALE Adesione all'Accordo Quadro Consip S.p.A. \"Servizi applicativi e servizi di supporto in ambito Sanità digitale: Sistemi informativi Clinico-Assistenziali per le Pubbliche Amministrazioni del SSN - Lotto 5 NORD\"-Regione","PRR_02",null,null,null,"SI","C96G22002550001",null,250000,null,250000,250000,null,null,250000,null,null,null,null,null,null,null,null,null,null,null,null,250000,{"$f":"R135-AH135","v":0},null,0,{"$f":"IF(AND(OR(C135=\"\",#REF!=\"\",F135=\"\",G135=\"\",H135=\"\"),AND(R135<>0)),1,0)","v":{"$error":"#REF!"}},0]
["500.Azienda Zero","500.Azienda Zero","tutte le sedi ","INFORMATICA",2026,"AAA100-7-A.I.3.c) Diritti di brevetto e diritti di utilizzazione delle opere d'ingegno - altri","Accordo Quadro Supply","SUP_01",null,null,null,"SI","C97H22002670001; C97H22003120001; C97H22003130001; C97H22003140001; C97H22003150001",null,850000,null,850000,850000,null,null,850000,null,null,null,null,null,null,null,null,null,null,null,null,850000,0,null,0,{"$f":"IF(AND(OR(C136=\"\",#REF!=\"\",F136=\"\",G136=\"\",H136=\"\"),AND(R136<>0)),1,0)","v":{"$error":"#REF!"}},0]
["500.Azienda Zero","500.Azienda Zero","tutte le sedi ","INFORMATICA",2026,"AAA200-7-A.I.5.g) Altre immobilizzazioni immateriali","Sistema Informativo Territoriale - CONSULTORIO","CON_01",null,null,null,"SI","C97H2200313000",null,559456,null,559456,{"$f":"+P137+Q137","v":559456},null,null,559456,null,null,null,null,null,null,null,null,null,null,null,null,559456,0,null,0,{"$f":"IF(AND(OR(C137=\"\",#REF!=\"\",F137=\"\",G137=\"\",H137=\"\"),AND(R137<>0)),1,0)","v":{"$error":"#REF!"}},{"$f":"IF(AND(L137=\"SI\",M137=\"\"),1,0)","v":0}]
["500.Azienda Zero","500.Azienda Zero","tutte le sedi ","INFORMATICA",2027,"AAA100-7-A.I.3.c) Diritti di brevetto e diritti di utilizzazione delle opere d'ingegno - altri","Continuità dei servizi FSER SAR, Anagrafi, Security e Portali, Biosorveglianza e Piattaforma farmaceutica","APP_01",null,null,null,null,null,null,4100000,null,4100000,4100000,null,null,null,null,null,null,null,null,null,null,null,null,null,4100000,null,4100000,0,null,0,{"$f":"IF(AND(OR(C138=\"\",#REF!=\"\",F138=\"\",G138=\"\",H138=\"\"),AND(R138<>0)),1,0)","v":{"$error":"#REF!"}},0]
["500.Azienda Zero","500.Azienda Zero","tutte le sedi ","INFORMATICA",2027,"AAA100-7-A.I.3.c) Diritti di brevetto e diritti di utilizzazione delle opere d'ingegno - altri","Affidamento diretto Arsenal","ARS_01",null,null,null,null,null,null,500000,null,500000,500000,null,null,null,null,null,null,null,null,null,null,null,null,null,500000,null,500000,0,null,0,{"$f":"IF(AND(OR(C139=\"\",#REF!=\"\",F139=\"\",G139=\"\",H139=\"\"),AND(R139<>0)),1,0)","v":{"$error":"#REF!"}},0]
["500.Azienda Zero","500.Azienda Zero","tutte le sedi ","INFORMATICA",2027,"AAA140-7-A.I.5.a) Concessioni, licenze, marchi e diritti simili","Piattaforma ARXIVAR","ARX_01",null,null,null,null,null,null,15250,null,15250,15250,null,null,null,null,null,null,null,null,null,null,null,null,null,15250,null,15250,0,null,0,{"$f":"IF(AND(OR(C140=\"\",#REF!=\"\",F140=\"\",G140=\"\",H140=\"\"),AND(R140<>0)),1,0)","v":{"$error":"#REF!"}},0]
["500.Azienda Zero","500.Azienda Zero","tutte le sedi ","INFORMATICA",2027,"AAA200-7-A.I.5.g) Altre immobilizzazioni immateriali","Piattaforma ARXIVAR","ARX_01",null,null,null,null,null,null,4500,null,4500,4500,null,null,null,null,null,null,null,null,null,null,null,null,null,4500,null,4500,0,null,0,{"$f":"IF(AND(OR(C141=\"\",#REF!=\"\",F141=\"\",G141=\"\",H141=\"\"),AND(R141<>0)),1,0)","v":{"$error":"#REF!"}},0]
["500.Azienda Zero","500.Azienda Zero","tutte le sedi ","INFORMATICA",2027,"AAA100-7-A.I.3.c) Diritti di brevetto e diritti di utilizzazione delle opere d'ingegno - altri","Servizi Sw Atlante - Charta","ATC_01",null,null,null,null,null,null,33500,null,33500,33500,null,null,null,null,null,null,null,null,null,null,null,null,null,33500,null,33500,0,null,0,{"$f":"IF(AND(OR(C142=\"\",#REF!=\"\",F142=\"\",G142=\"\",H142=\"\"),AND(R142<>0)),1,0)","v":{"$error":"#REF!"}},0]
["500.Azienda Zero","500.Azienda Zero","tutte le sedi ","INFORMATICA",2027,"AAA200-7-A.I.5.g) Altre immobilizzazioni immateriali","Servizi software CACEDEM (Cartella Clinica Elettronica Demenze)","CAC_01",null,null,null,null,null,null,28000,null,28000,28000,null,null,null,null,null,null,null,null,null,null,null,null,null,28000,null,28000,0,null,0,{"$f":"IF(AND(OR(C143=\"\",#REF!=\"\",F143=\"\",G143=\"\",H143=\"\"),AND(R143<>0)),1,0)","v":{"$error":"#REF!"}},0]
["500.Azienda Zero","500.Azienda Zero","tutte le sedi ","INFORMATICA",2027,"AAA200-7-A.I.5.g) Altre immobilizzazioni immateriali","Servizi CREV (Centro Regionale Emidemiologia Veterinaria) - LOTTO 1","CRE_01",null,null,null,null,null,null,310000,null,310000,310000,null,null,null,null,null,null,null,null,null,null,null,null,null,310000,null,310000,0,null,0,{"$f":"IF(AND(OR(C144=\"\",#REF!=\"\",F144=\"\",G144=\"\",H144=\"\"),AND(R144<>0)),1,0)","v":{"$error":"#REF!"}},0]
["500.Azienda Zero","500.Azienda Zero","tutte le sedi ","INFORMATICA",2027,"AAA200-7-A.I.5.g) Altre immobilizzazioni immateriali","Servizi CREV (Centro Regionale Emidemiologia Veterinaria) - LOTTO 2","CRE_02",null,null,null,null,null,null,65000,null,65000,65000,null,null,null,null,null,null,null,null,null,null,null,null,null,65000,null,65000,0,null,0,{"$f":"IF(AND(OR(C145=\"\",#REF!=\"\",F145=\"\",G145=\"\",H145=\"\"),AND(R145<>0)),1,0)","v":{"$error":"#REF!"}},0]
["500.Azienda Zero","500.Azienda Zero","tutte le sedi ","INFORMATICA",2027,"AAA100-7-A.I.3.c) Diritti di brevetto e diritti di utilizzazione delle opere d'ingegno - altri","Accordo Quadro Demand, sicurezza e privacy","DEM_01",null,null,null,null,null,null,460000,null,460000,460000,null,null,null,null,null,null,null,null,null,null,null,null,null,460000,null,460000,0,null,0,{"$f":"IF(AND(OR(C146=\"\",#REF!=\"\",F146=\"\",G146=\"\",H146=\"\"),AND(R146<>0)),1,0)","v":{"$error":"#REF!"}},0]
["500.Azienda Zero","500.Azienda Zero","tutte le sedi ","INFORMATICA",2027,"AAA200-7-A.I.5.g) Altre immobilizzazioni immateriali","Applicativo \"Registro Veneto di Dialisi e Trapianto\"","DET_01",null,null,null,null,null,null,20000,null,20000,20000,null,null,null,null,null,null,null,null,null,null,null,null,null,20000,null,20000,0,null,0,{"$f":"IF(AND(OR(C147=\"\",#REF!=\"\",F147=\"\",G147=\"\",H147=\"\"),AND(R147<>0)),1,0)","v":{"$error":"#REF!"}},0]
["500.Azienda Zero","500.Azienda Zero","tutte le sedi ","INFORMATICA",2027,"AAA100-7-A.I.3.c) Diritti di brevetto e diritti di utilizzazione delle opere d'ingegno - altri","Accordo Quadro \"Servizi applicativi di Data Management e servizi di Project Management Office Lotto n. 2 - DataWareHouse","DWH_01",null,null,null,null,null,null,3100000,null,3100000,3100000,null,null,null,null,null,null,null,null,null,null,null,null,null,3100000,null,3100000,0,null,0,{"$f":"IF(AND(OR(C148=\"\",#REF!=\"\",F148=\"\",G148=\"\",H148=\"\"),AND(R148<>0)),1,0)","v":{"$error":"#REF!"}},0]
["500.Azienda Zero","500.Azienda Zero","tutte le sedi ","INFORMATICA",2027,"AAA200-7-A.I.5.g) Altre immobilizzazioni immateriali","Piattaforma ECM","ECM_01",null,null,null,null,null,null,150000,null,150000,150000,null,null,null,null,null,null,null,null,null,null,null,null,null,150000,null,150000,0,null,0,{"$f":"IF(AND(OR(C149=\"\",#REF!=\"\",F149=\"\",G149=\"\",H149=\"\"),AND(R149<>0)),1,0)","v":{"$error":"#REF!"}},0]
["500.Azienda Zero","500.Azienda Zero","tutte le sedi ","INFORMATICA",2027,"AAA200-7-A.I.5.g) Altre immobilizzazioni immateriali","Piattaforma sperimentazioni farmaci: servizio SaaS","FAR_02",null,null,null,null,null,null,55000,null,55000,55000,null,null,null,null,null,null,null,null,null,null,null,null,null,55000,null,55000,0,null,0,{"$f":"IF(AND(OR(C150=\"\",#REF!=\"\",F150=\"\",G150=\"\",H150=\"\"),AND(R150<>0)),1,0)","v":{"$error":"#REF!"}},0]
["500.Azienda Zero","500.Azienda Zero","tutte le sedi ","INFORMATICA",2027,"AAA200-7-A.I.5.g) Altre immobilizzazioni immateriali","Graduatoria farmacisti","GRF_01",null,null,null,null,null,null,10000,null,10000,10000,null,null,null,null,null,null,null,null,null,null,null,null,null,10000,null,10000,0,null,0,{"$f":"IF(AND(OR(C151=\"\",#REF!=\"\",F151=\"\",G151=\"\",H151=\"\"),AND(R151<>0)),1,0)","v":{"$error":"#REF!"}},0]
["500.Azienda Zero","500.Azienda Zero","tutte le sedi ","INFORMATICA",2027,"AAA200-7-A.I.5.g) Altre immobilizzazioni immateriali","Servizi software ICD (Impegnativa di Cura Domiciliare)","ICD_01",null,null,null,null,null,null,6400,null,6400,6400,null,null,null,null,null,null,null,null,null,null,null,null,null,6400,null,6400,0,null,{"$f":"+R152-AH152","v":0},{"$f":"IF(AND(OR(C152=\"\",#REF!=\"\",F152=\"\",G152=\"\",H152=\"\"),AND(R152<>0)),1,0)","v":{"$error":"#REF!"}},0]
["500.Azienda Zero","500.Azienda Zero","tutte le sedi ","INFORMATICA",2027,"AAA100-7-A.I.3.c) Diritti di brevetto e diritti di utilizzazione delle opere d'ingegno - altri","Acquisto licenze (compresa \"Denodo Enterprise Subscription License\")","LIC_01",null,null,null,null,null,null,75000,null,75000,75000,null,null,null,null,null,null,null,null,null,null,null,null,null,75000,null,75000,0,null,0,{"$f":"IF(AND(OR(C153=\"\",#REF!=\"\",F153=\"\",G153=\"\",H153=\"\"),AND(R153<>0)),1,0)","v":{"$error":"#REF!"}},0]
["500.Azienda Zero","500.Azienda Zero","tutte le sedi ","INFORMATICA",2027,"AAA120c-7-A.I.4.c) Diritti di brevetto e diritti di utilizzazione delle opere d'ingegno","Acquisto licenze (compresa \"Denodo Enterprise Subscription License\")","LIC_01",null,null,null,null,null,null,42000,null,42000,42000,null,null,null,null,null,null,null,null,null,null,null,null,null,42000,null,42000,0,null,0,{"$f":"IF(AND(OR(C154=\"\",#REF!=\"\",F154=\"\",G154=\"\",H154=\"\"),AND(R154<>0)),1,0)","v":{"$error":"#REF!"}},0]
["500.Azienda Zero","500.Azienda Zero","tutte le sedi ","INFORMATICA",2027,"AAA140-7-A.I.5.a) Concessioni, licenze, marchi e diritti simili","Acquisto licenze (compresa \"Denodo Enterprise Subscription License\")","LIC_01",null,null,null,null,null,null,150000,null,150000,150000,null,null,null,null,null,null,null,null,null,null,null,null,null,150000,null,150000,0,null,0,{"$f":"IF(AND(OR(C155=\"\",#REF!=\"\",F155=\"\",G155=\"\",H155=\"\"),AND(R155<>0)),1,0)","v":{"$error":"#REF!"}},0]
["500.Azienda Zero","500.Azienda Zero","tutte le sedi ","INFORMATICA",2027,"AAA200-7-A.I.5.g) Altre immobilizzazioni immateriali","PNCAR","PNC_01",null,null,null,null,null,null,350000,null,350000,350000,null,null,null,null,null,350000,null,null,null,null,null,null,null,null,null,350000,0,null,0,{"$f":"IF(AND(OR(C156=\"\",#REF!=\"\",F156=\"\",G156=\"\",H156=\"\"),AND(R156<>0)),1,0)","v":{"$error":"#REF!"}},0]
["500.Azienda Zero","500.Azienda Zero","tutte le sedi ","INFORMATICA",2027,"AAA100-7-A.I.3.c) Diritti di brevetto e diritti di utilizzazione delle opere d'ingegno - altri","PSN (AMC AREAS compreso)","PSN_01",null,null,null,null,null,null,2800000,null,2800000,2800000,null,null,null,null,null,null,null,null,null,null,null,null,null,2800000,null,2800000,0,null,0,{"$f":"IF(AND(OR(C157=\"\",#REF!=\"\",F157=\"\",G157=\"\",H157=\"\"),AND(R157<>0)),1,0)","v":{"$error":"#REF!"}},0]
["500.Azienda Zero","500.Azienda Zero","tutte le sedi ","INFORMATICA",2027,"AAA100-7-A.I.3.c) Diritti di brevetto e diritti di utilizzazione delle opere d'ingegno - altri","Licenze Qlik","QLK_01",null,null,null,null,null,null,260000,null,260000,260000,null,null,null,null,null,null,null,null,null,null,null,null,null,260000,null,260000,0,null,0,{"$f":"IF(AND(OR(C158=\"\",#REF!=\"\",F158=\"\",G158=\"\",H158=\"\"),AND(R158<>0)),1,0)","v":{"$error":"#REF!"}},0]
["500.Azienda Zero","500.Azienda Zero","tutte le sedi ","INFORMATICA",2027,"AAA200-7-A.I.5.g) Altre immobilizzazioni immateriali","Servizi Screening","SCR_01",null,null,null,null,null,null,285000,null,285000,285000,null,null,null,null,null,null,null,null,null,null,null,null,null,285000,null,285000,0,null,0,{"$f":"IF(AND(OR(C159=\"\",#REF!=\"\",F159=\"\",G159=\"\",H159=\"\"),AND(R159<>0)),1,0)","v":{"$error":"#REF!"}},0]
["500.Azienda Zero","500.Azienda Zero","tutte le sedi ","INFORMATICA",2027,"AAA200-7-A.I.5.g) Altre immobilizzazioni immateriali","Servizi SIO (Sistema Informativo Ospedaliero)","SIO_01",null,null,null,null,null,null,550000,null,550000,550000,null,null,null,null,null,null,null,null,null,null,null,null,null,550000,null,550000,0,null,0,{"$f":"IF(AND(OR(C160=\"\",#REF!=\"\",F160=\"\",G160=\"\",H160=\"\"),AND(R160<>0)),1,0)","v":{"$error":"#REF!"}},0]
["500.Azienda Zero","500.Azienda Zero","tutte le sedi ","INFORMATICA",2027,"AAA100-7-A.I.3.c) Diritti di brevetto e diritti di utilizzazione delle opere d'ingegno - altri","Accordo Quadro Supply","SUP_01",null,null,null,null,null,null,1750000,null,1750000,1750000,null,null,null,null,null,null,null,null,null,null,null,null,null,1750000,null,1750000,0,null,0,{"$f":"IF(AND(OR(C161=\"\",#REF!=\"\",F161=\"\",G161=\"\",H161=\"\"),AND(R161<>0)),1,0)","v":{"$error":"#REF!"}},0]
["500.Azienda Zero","500.Azienda Zero","tutte le sedi ","INFORMATICA",2027,"AAA100-7-A.I.3.c) Diritti di brevetto e diritti di utilizzazione delle opere d'ingegno - altri","Servizi SIAVR (Sistema Informativo Anagrafe Vaccinale Regionale)","VAC_01",null,null,null,null,null,null,215000,null,215000,215000,null,null,null,null,null,null,null,null,null,null,null,null,null,215000,null,215000,0,null,0,{"$f":"IF(AND(OR(C162=\"\",#REF!=\"\",F162=\"\",G162=\"\",H162=\"\"),AND(R162<>0)),1,0)","v":{"$error":"#REF!"}},0]
["500.Azienda Zero","500.Azienda Zero","tutte le sedi ","INFORMATICA",2027,"AAA140-7-A.I.5.a) Concessioni, licenze, marchi e diritti simili","VMWARE","VMW_01",null,null,null,null,null,null,2450000,null,2450000,2450000,null,null,null,null,null,null,null,null,null,null,null,null,null,2450000,null,2450000,0,null,0,{"$f":"IF(AND(OR(C163=\"\",#REF!=\"\",F163=\"\",G163=\"\",H163=\"\"),AND(R163<>0)),1,0)","v":{"$error":"#REF!"}},0]
["500.Azienda Zero","500.Azienda Zero","tutte le sedi ","INFORMATICA",2027,"AAA200-7-A.I.5.g) Altre immobilizzazioni immateriali","Servizi di manutenzione, di help desk, di assistenza sistemistica, di supporto, di formazione e sviluppo del sistema \"MyPrenota\"","MYP_01",null,null,null,null,null,null,5000,null,5000,5000,null,null,null,null,null,null,null,null,null,null,null,null,null,5000,null,5000,0,null,0,{"$f":"IF(AND(OR(C164=\"\",#REF!=\"\",F164=\"\",G164=\"\",H164=\"\"),AND(R164<>0)),1,0)","v":{"$error":"#REF!"}},0]
["500.Azienda Zero","500.Azienda Zero","tutte le sedi ","INFORMATICA",2027,"AAA100-7-A.I.3.c) Diritti di brevetto e diritti di utilizzazione delle opere d'ingegno - altri","servizi hosting e di attività di sviluppo software per l’aggiornamento ed estensione dell’applicativo “ACRA” per il Registro Tumori del Veneto","ACR_01",null,null,null,null,null,null,20000,null,20000,20000,null,null,null,null,null,null,null,null,null,null,null,null,null,20000,null,20000,0,null,0,{"$f":"IF(AND(OR(C165=\"\",#REF!=\"\",F165=\"\",G165=\"\",H165=\"\"),AND(R165<>0)),1,0)","v":{"$error":"#REF!"}},0]
["500.Azienda Zero","500.Azienda Zero","tutte le sedi ","INFORMATICA",2027,"AAA100-7-A.I.3.c) Diritti di brevetto e diritti di utilizzazione delle opere d'ingegno - altri","Applicativo Protocollo e delibere","BAB_01",null,null,null,null,null,null,175000,null,175000,175000,null,null,null,null,null,null,null,null,null,null,null,null,null,175000,null,175000,0,null,0,{"$f":"IF(AND(OR(C166=\"\",#REF!=\"\",F166=\"\",G166=\"\",H166=\"\"),AND(R166<>0)),1,0)","v":{"$error":"#REF!"}},0]
["500.Azienda Zero","500.Azienda Zero","tutte le sedi ","INFORMATICA",2027,"AAA140-7-A.I.5.a) Concessioni, licenze, marchi e diritti simili","Manutenzione sito SER (Servizio Epidemiologico Regionale) e sito RTV (Registro Tumori del Veneto)","SER_01",null,null,null,null,null,null,15000,null,15000,15000,null,null,null,null,null,null,null,null,null,null,null,null,null,15000,null,15000,0,null,0,{"$f":"IF(AND(OR(C167=\"\",#REF!=\"\",F167=\"\",G167=\"\",H167=\"\"),AND(R167<>0)),1,0)","v":{"$error":"#REF!"}},0]
["500.Azienda Zero","500.Azienda Zero","tutte le sedi ","INFORMATICA",2027,"AAA100-7-A.I.3.c) Diritti di brevetto e diritti di utilizzazione delle opere d'ingegno - altri","SIRIT (Sistema Informatizzato per la raccolta di informazioni sulla tratta)","SIR_01",null,null,null,null,null,null,3700,null,3700,3700,null,null,null,null,null,null,null,null,null,null,null,null,null,3700,null,3700,0,null,0,{"$f":"IF(AND(OR(C168=\"\",#REF!=\"\",F168=\"\",G168=\"\",H168=\"\"),AND(R168<>0)),1,0)","v":{"$error":"#REF!"}},0]
["500.Azienda Zero","500.Azienda Zero","tutte le sedi ","INFORMATICA",2027,"AAA100-7-A.I.3.c) Diritti di brevetto e diritti di utilizzazione delle opere d'ingegno - altri","Continuità dei servizi FSER SAR, Anagrafi, Security e Portali, Biosorveglianza e Piattaforma farmaceutica","APP_01",null,null,null,"SI","C97H22002670001",null,5100000,null,5100000,5100000,null,null,5100000,null,null,null,null,null,null,null,null,null,null,null,null,5100000,0,null,0,{"$f":"IF(AND(OR(C169=\"\",#REF!=\"\",F169=\"\",G169=\"\",H169=\"\"),AND(R169<>0)),1,0)","v":{"$error":"#REF!"}},0]
["500.Azienda Zero","500.Azienda Zero","tutte le sedi ","INFORMATICA",2027,"AAA120c-7-A.I.4.c) Diritti di brevetto e diritti di utilizzazione delle opere d'ingegno","FSERAccordo Quadro \"Servizi Applicativi in ottica Cloud (SAC) e servizi di PMO per le PA\" Lotto 4 - Servizi per la gestione del FSER e del SAR","FSE_01",null,null,null,"SI","B36G21073020006, B96G21060470006, I46G21001710006, I26G21001460006, I96G21006100006, J76G21005050006, J76G21005060006, J26G21005490006, J96G21006690006, I76G21003010006, B16G21062360006, I86G21002960006, I46G21001690006, I56G21002460006, I46G21001700006, H76G21002260006, H96G21002410006, I36G21002280006, I36G21002290006, F16G21002120006, F66G21001380006, F66G21001370006, I91B21006770001, E36G21004850006",null,1153000,null,1153000,1153000,null,null,1153000,null,null,null,null,null,null,null,null,null,null,null,null,1153000,0,null,0,{"$f":"IF(AND(OR(C170=\"\",#REF!=\"\",F170=\"\",G170=\"\",H170=\"\"),AND(R170<>0)),1,0)","v":{"$error":"#REF!"}},0]
["500.Azienda Zero","500.Azienda Zero","tutte le sedi ","INFORMATICA",2027,"AAA100-7-A.I.3.c) Diritti di brevetto e diritti di utilizzazione delle opere d'ingegno - altri","IA - Liste attesa - PNRR (competenze digitali fascicolo)","IAL_01",null,null,null,"SI","C97H22002670001",null,100000,null,100000,100000,null,null,100000,null,null,null,null,null,null,null,null,null,null,null,null,100000,0,null,0,{"$f":"IF(AND(OR(C171=\"\",#REF!=\"\",F171=\"\",G171=\"\",H171=\"\"),AND(R171<>0)),1,0)","v":{"$error":"#REF!"}},0]
["500.Azienda Zero","500.Azienda Zero","tutte le sedi ","INFORMATICA",2027,"AAA100-7-A.I.3.c) Diritti di brevetto e diritti di utilizzazione delle opere d'ingegno - altri","Interventi per incremento competenze digitali FSE - Conto PNRR per informazione/competenze digitali","INC_01",null,null,null,"SI","C96G22002550001",null,523000,null,523000,523000,null,null,523000,null,null,null,null,null,null,null,null,null,null,null,null,523000,0,null,0,{"$f":"IF(AND(OR(C172=\"\",#REF!=\"\",F172=\"\",G172=\"\",H172=\"\"),AND(R172<>0)),1,0)","v":{"$error":"#REF!"}},0]
["500.Azienda Zero","500.Azienda Zero","tutte le sedi ","INFORMATICA",2027,"AAA100-7-A.I.3.c) Diritti di brevetto e diritti di utilizzazione delle opere d'ingegno - altri","presa in carico PDTA - PNRR (competenze digitali fascicolo)","PDT_01",null,null,null,"SI","C96G22002550001",null,100000,null,100000,100000,null,null,100000,null,null,null,null,null,null,null,null,null,null,null,null,100000,0,null,0,{"$f":"IF(AND(OR(C173=\"\",#REF!=\"\",F173=\"\",G173=\"\",H173=\"\"),AND(R173<>0)),1,0)","v":{"$error":"#REF!"}},0]
["500.Azienda Zero","500.Azienda Zero","tutte le sedi ","INFORMATICA",2027,"AAA100-7-A.I.3.c) Diritti di brevetto e diritti di utilizzazione delle opere d'ingegno - altri","Accordo Quadro Supply","SUP_01",null,null,null,"SI","C97H22002670001; C97H22003120001; C97H22003130001; C97H22003140001; C97H22003150001",null,850000,null,850000,850000,null,null,850000,null,null,null,null,null,null,null,null,null,null,null,null,850000,0,null,0,{"$f":"IF(AND(OR(C174=\"\",#REF!=\"\",F174=\"\",G174=\"\",H174=\"\"),AND(R174<>0)),1,0)","v":{"$error":"#REF!"}},0]
["500.Azienda Zero","500.Azienda Zero","tutte le sedi ","INFORMATICA",2025,"AAA200-7-A.I.5.g) Altre immobilizzazioni immateriali","Sistema Informativo Territoriale - ADI","ADI_01",null,null,null,null,null,null,500000,null,500000,500000,null,null,null,null,null,null,null,null,null,null,null,null,null,500000,null,500000,0,null,0,{"$f":"IF(AND(OR(C175=\"\",#REF!=\"\",F175=\"\",G175=\"\",H175=\"\"),AND(R175<>0)),1,0)","v":{"$error":"#REF!"}},0]
["500.Azienda Zero","500.Azienda Zero","tutte le sedi ","INFORMATICA",2025,"AAA200-7-A.I.5.g) Altre immobilizzazioni immateriali","GOVERNANCE e SVILUPPI CENTRALI PER IL SITEMA INFORMATIVO TERRITORIALE","GSV_01",null,null,null,null,null,null,550000,null,550000,550000,null,null,null,null,null,null,null,null,null,null,null,null,null,550000,null,550000,0,null,0,{"$f":"IF(AND(OR(C176=\"\",#REF!=\"\",F176=\"\",G176=\"\",H176=\"\"),AND(R176<>0)),1,0)","v":{"$error":"#REF!"}},0]
["500.Azienda Zero","500.Azienda Zero","tutte le sedi ","INFORMATICA",2026,"AAA200-7-A.I.5.g) Altre immobilizzazioni immateriali","Sistema Informativo Territoriale - ADI","ADI_01",null,null,null,null,null,null,183200,null,183200,183200,null,null,null,null,null,null,null,null,null,null,null,null,null,183200,null,183200,0,null,0,{"$f":"IF(AND(OR(C177=\"\",#REF!=\"\",F177=\"\",G177=\"\",H177=\"\"),AND(R177<>0)),1,0)","v":{"$error":"#REF!"}},0]
["500.Azienda Zero","500.Azienda Zero","tutte le sedi ","INFORMATICA",2026,"AAA200-7-A.I.5.g) Altre immobilizzazioni immateriali","GOVERNANCE e SVILUPPI CENTRALI PER IL SITEMA INFORMATIVO TERRITORIALE","GSV_01",null,null,null,null,null,null,550000,null,550000,550000,null,null,null,null,null,null,null,null,null,null,null,null,null,550000,null,550000,0,null,0,{"$f":"IF(AND(OR(C178=\"\",#REF!=\"\",F178=\"\",G178=\"\",H178=\"\"),AND(R178<>0)),1,0)","v":{"$error":"#REF!"}},0]
["500.Azienda Zero","500.Azienda Zero","tutte le sedi ","INFORMATICA",2027,"AAA200-7-A.I.5.g) Altre immobilizzazioni immateriali","GOVERNANCE e SVILUPPI CENTRALI PER IL SITEMA INFORMATIVO TERRITORIALE","GSV_01",null,null,null,null,null,null,550000,null,550000,550000,null,null,null,null,null,null,null,null,null,null,null,null,null,550000,null,550000,0,null,0,{"$f":"IF(AND(OR(C179=\"\",#REF!=\"\",F179=\"\",G179=\"\",H179=\"\"),AND(R179<>0)),1,0)","v":{"$error":"#REF!"}},0]
["500.Azienda Zero","500.Azienda Zero","tutte le sedi ","INFORMATICA",2025,"AAA140-7-A.I.5.a) Concessioni, licenze, marchi e diritti simili","Licenze d'Uso per Software","LIC_09",null,null,null,null,null,null,319300,null,319300,319300,null,null,null,null,null,null,null,null,null,null,null,null,null,319300,null,319300,0,null,0,{"$f":"IF(AND(OR(C180=\"\",#REF!=\"\",F180=\"\",G180=\"\",H180=\"\"),AND(R180<>0)),1,0)","v":{"$error":"#REF!"}},0]
[null,null,null,null,null,null,null,null,null,null,null,null,null,null,null,null,null,0,null,null,null,null,null,null,null,null,null,null,null,null,null,null,null,0,0,null,0,{"$f":"IF(AND(OR(C181=\"\",#REF!=\"\",F181=\"\",G181=\"\",H181=\"\"),AND(R181<>0)),1,0)","v":{"$error":"#REF!"}},0]
[null,null,null,null,null,null,null,null,null,null,null,null,null,null,null,null,null,0,null,null,null,null,null,null,null,null,null,null,null,null,null,null,null,0,0,null,0,{"$f":"IF(AND(OR(C182=\"\",#REF!=\"\",F182=\"\",G182=\"\",H182=\"\"),AND(R182<>0)),1,0)","v":{"$error":"#REF!"}},0]
[null,null,null,null,null,null,null,null,null,null,null,null,null,null,null,null,null,0,null,null,null,null,null,null,null,null,null,null,null,null,null,null,null,0,0,null,0,{"$f":"IF(AND(OR(C183=\"\",#REF!=\"\",F183=\"\",G183=\"\",H183=\"\"),AND(R183<>0)),1,0)","v":{"$error":"#REF!"}},0]
[null,null,null,null,null,null,null,null,null,null,null,null,null,null,null,null,null,0,null,null,null,null,null,null,null,null,null,null,null,null,null,null,null,0,0,null,0,{"$f":"IF(AND(OR(C184=\"\",#REF!=\"\",F184=\"\",G184=\"\",H184=\"\"),AND(R184<>0)),1,0)","v":{"$error":"#REF!"}},0]
[null,null,null,null,null,null,null,null,null,null,null,null,null,null,null,null,null,0,null,null,null,null,null,null,null,null,null,null,null,null,null,null,null,0,0,null,0,{"$f":"IF(AND(OR(C185=\"\",#REF!=\"\",F185=\"\",G185=\"\",H185=\"\"),AND(R185<>0)),1,0)","v":{"$error":"#REF!"}},0]
[null,null,null,null,null,null,null,null,null,null,null,null,null,null,null,null,null,0,null,null,null,null,null,null,null,null,null,null,null,null,null,null,null,0,0,null,0,{"$f":"IF(AND(OR(C186=\"\",#REF!=\"\",F186=\"\",G186=\"\",H186=\"\"),AND(R186<>0)),1,0)","v":{"$error":"#REF!"}},0]
[null,null,null,null,null,null,null,null,null,null,null,null,null,null,null,null,null,0,null,null,null,null,null,null,null,null,null,null,null,null,null,null,null,0,0,null,0,{"$f":"IF(AND(OR(C187=\"\",#REF!=\"\",F187=\"\",G187=\"\",H187=\"\"),AND(R187<>0)),1,0)","v":{"$error":"#REF!"}},0]
[null,null,null,null,null,null,null,null,null,null,null,null,null,null,null,null,null,0,null,null,null,null,null,null,null,null,null,null,null,null,null,null,null,0,0,null,0,{"$f":"IF(AND(OR(C188=\"\",#REF!=\"\",F188=\"\",G188=\"\",H188=\"\"),AND(R188<>0)),1,0)","v":{"$error":"#REF!"}},0]
[null,null,null,null,null,null,null,null,null,null,null,null,null,null,null,null,null,0,null,null,null,null,null,null,null,null,null,null,null,null,null,null,null,0,0,null,0,{"$f":"IF(AND(OR(C189=\"\",#REF!=\"\",F189=\"\",G189=\"\",H189=\"\"),AND(R189<>0)),1,0)","v":{"$error":"#REF!"}},0]
[null,null,null,null,null,null,null,null,null,null,null,null,null,null,null,null,null,0,null,null,null,null,null,null,null,null,null,null,null,null,null,null,null,0,0,null,0,{"$f":"IF(AND(OR(C190=\"\",#REF!=\"\",F190=\"\",G190=\"\",H190=\"\"),AND(R190<>0)),1,0)","v":{"$error":"#REF!"}},0]
[null,null,null,null,null,null,null,null,null,null,null,null,null,null,null,null,null,0,null,null,null,null,null,null,null,null,null,null,null,null,null,null,null,0,0,null,0,{"$f":"IF(AND(OR(C191=\"\",#REF!=\"\",F191=\"\",G191=\"\",H191=\"\"),AND(R191<>0)),1,0)","v":{"$error":"#REF!"}},0]
[null,null,null,null,null,null,null,null,null,null,null,null,null,null,null,null,null,0,null,null,null,null,null,null,null,null,null,null,null,null,null,null,null,0,0,null,0,{"$f":"IF(AND(OR(C192=\"\",#REF!=\"\",F192=\"\",G192=\"\",H192=\"\"),AND(R192<>0)),1,0)","v":{"$error":"#REF!"}},0]
[null,null,null,null,null,null,null,null,null,null,null,null,null,null,null,null,null,0,null,null,null,null,null,null,null,null,null,null,null,null,null,null,null,0,0,null,0,{"$f":"IF(AND(OR(C193=\"\",#REF!=\"\",F193=\"\",G193=\"\",H193=\"\"),AND(R193<>0)),1,0)","v":{"$error":"#REF!"}},0]
[null,null,null,null,null,null,null,null,null,null,null,null,null,null,null,null,null,0,null,null,null,null,null,null,null,null,null,null,null,null,null,null,null,0,0,null,0,{"$f":"IF(AND(OR(C194=\"\",#REF!=\"\",F194=\"\",G194=\"\",H194=\"\"),AND(R194<>0)),1,0)","v":{"$error":"#REF!"}},0]
[null,null,null,null,null,null,null,null,null,null,null,null,null,null,null,null,null,0,null,null,null,null,null,null,null,null,null,null,null,null,null,null,null,0,0,null,0,{"$f":"IF(AND(OR(C195=\"\",#REF!=\"\",F195=\"\",G195=\"\",H195=\"\"),AND(R195<>0)),1,0)","v":{"$error":"#REF!"}},0]
[null,null,null,null,null,null,null,null,null,null,null,null,null,null,null,null,null,{"$f":"+P196+Q196","v":0},null,null,null,null,null,null,null,null,null,null,null,null,null,null,null,{"$f":"SUM(T196:AG196)","v":0},0,null,0,{"$f":"IF(AND(OR(C196=\"\",#REF!=\"\",F196=\"\",G196=\"\",H196=\"\"),AND(R196<>0)),1,0)","v":{"$error":"#REF!"}},{"$f":"IF(AND(L196=\"SI\",M196=\"\"),1,0)","v":0}]
[null,null,null,null,null,null,null,null,null,null,null,null,null,null,null,null,null,0,null,null,null,null,null,null,null,null,null,null,null,null,null,null,null,0,{"$f":"R197-AH197","v":0},null,0,{"$f":"IF(AND(OR(C197=\"\",#REF!=\"\",F197=\"\",G197=\"\",H197=\"\"),AND(R197<>0)),1,0)","v":{"$error":"#REF!"}},0]
[null,null,null,null,null,null,null,null,null,null,null,null,null,null,null,null,null,0,null,null,null,null,null,null,null,null,null,null,null,null,null,null,null,0,0,null,0,{"$f":"IF(AND(OR(C198=\"\",#REF!=\"\",F198=\"\",G198=\"\",H198=\"\"),AND(R198<>0)),1,0)","v":{"$error":"#REF!"}},0]
[null,null,null,null,null,null,null,null,null,null,null,null,null,null,null,null,null,0,null,null,null,null,null,null,null,null,null,null,null,null,null,null,null,0,0,null,0,{"$f":"IF(AND(OR(C199=\"\",#REF!=\"\",F199=\"\",G199=\"\",H199=\"\"),AND(R199<>0)),1,0)","v":{"$error":"#REF!"}},0]
[null,null,null,null,null,null,null,null,null,null,null,null,null,null,null,null,null,0,null,null,null,null,null,null,null,null,null,null,null,null,null,null,null,0,0,null,0,{"$f":"IF(AND(OR(C200=\"\",#REF!=\"\",F200=\"\",G200=\"\",H200=\"\"),AND(R200<>0)),1,0)","v":{"$error":"#REF!"}},0]
[null,null,null,null,null,null,null,null,null,null,null,null,null,null,null,null,null,0,null,null,null,null,null,null,null,null,null,null,null,null,null,null,null,0,0,null,0,{"$f":"IF(AND(OR(C201=\"\",#REF!=\"\",F201=\"\",G201=\"\",H201=\"\"),AND(R201<>0)),1,0)","v":{"$error":"#REF!"}},0]
[null,null,null,null,null,null,null,null,null,null,null,null,null,null,null,null,null,0,null,null,null,null,null,null,null,null,null,null,null,null,null,null,null,0,0,null,0,{"$f":"IF(AND(OR(C202=\"\",#REF!=\"\",F202=\"\",G202=\"\",H202=\"\"),AND(R202<>0)),1,0)","v":{"$error":"#REF!"}},0]
[null,null,null,null,null,null,null,null,null,null,null,null,null,null,null,null,null,0,null,null,null,null,null,null,null,null,null,null,null,null,null,null,null,0,0,null,0,{"$f":"IF(AND(OR(C203=\"\",#REF!=\"\",F203=\"\",G203=\"\",H203=\"\"),AND(R203<>0)),1,0)","v":{"$error":"#REF!"}},0]
[null,null,null,null,null,null,null,null,null,null,null,null,null,null,null,null,null,0,null,null,null,null,null,null,null,null,null,null,null,null,null,null,null,0,0,null,0,{"$f":"IF(AND(OR(C204=\"\",#REF!=\"\",F204=\"\",G204=\"\",H204=\"\"),AND(R204<>0)),1,0)","v":{"$error":"#REF!"}},0]
[null,null,null,null,null,null,null,null,null,null,null,null,null,null,null,null,null,0,null,null,null,null,null,null,null,null,null,null,null,null,null,null,null,0,0,null,0,{"$f":"IF(AND(OR(C205=\"\",#REF!=\"\",F205=\"\",G205=\"\",H205=\"\"),AND(R205<>0)),1,0)","v":{"$error":"#REF!"}},0]
[null,null,null,null,null,null,null,null,null,null,null,null,null,null,null,null,null,0,null,null,null,null,null,null,null,null,null,null,null,null,null,null,null,0,0,null,0,{"$f":"IF(AND(OR(C206=\"\",#REF!=\"\",F206=\"\",G206=\"\",H206=\"\"),AND(R206<>0)),1,0)","v":{"$error":"#REF!"}},0]
[null,null,null,null,null,null,null,null,null,null,null,null,null,null,null,null,null,0,null,null,null,null,null,null,null,null,null,null,null,null,null,null,null,0,0,null,0,{"$f":"IF(AND(OR(C207=\"\",#REF!=\"\",F207=\"\",G207=\"\",H207=\"\"),AND(R207<>0)),1,0)","v":{"$error":"#REF!"}},0]
[null,null,null,null,null,null,null,null,null,null,null,null,null,null,null,null,null,0,null,null,null,null,null,null,null,null,null,null,null,null,null,null,null,0,0,null,0,{"$f":"IF(AND(OR(C208=\"\",#REF!=\"\",F208=\"\",G208=\"\",H208=\"\"),AND(R208<>0)),1,0)","v":{"$error":"#REF!"}},0]
[null,null,null,null,null,null,null,null,null,null,null,null,null,null,null,null,null,0,null,null,null,null,null,null,null,null,null,null,null,null,null,null,null,0,0,null,0,{"$f":"IF(AND(OR(C209=\"\",#REF!=\"\",F209=\"\",G209=\"\",H209=\"\"),AND(R209<>0)),1,0)","v":{"$error":"#REF!"}},0]
[null,null,null,null,null,null,null,null,null,null,null,null,null,null,null,null,null,0,null,null,null,null,null,null,null,null,null,null,null,null,null,null,null,0,0,null,0,{"$f":"IF(AND(OR(C210=\"\",#REF!=\"\",F210=\"\",G210=\"\",H210=\"\"),AND(R210<>0)),1,0)","v":{"$error":"#REF!"}},0]
[null,null,null,null,null,null,null,null,null,null,null,null,null,null,null,null,null,0,null,null,null,null,null,null,null,null,null,null,null,null,null,null,null,0,0,null,0,{"$f":"IF(AND(OR(C211=\"\",#REF!=\"\",F211=\"\",G211=\"\",H211=\"\"),AND(R211<>0)),1,0)","v":{"$error":"#REF!"}},0]
[null,null,null,null,null,null,null,null,null,null,null,null,null,null,null,null,null,0,null,null,null,null,null,null,null,null,null,null,null,null,null,null,null,0,0,null,0,{"$f":"IF(AND(OR(C212=\"\",#REF!=\"\",F212=\"\",G212=\"\",H212=\"\"),AND(R212<>0)),1,0)","v":{"$error":"#REF!"}},0]
[null,null,null,null,null,null,null,null,null,null,null,null,null,null,null,null,null,0,null,null,null,null,null,null,null,null,null,null,null,null,null,null,null,0,0,null,0,{"$f":"IF(AND(OR(C213=\"\",#REF!=\"\",F213=\"\",G213=\"\",H213=\"\"),AND(R213<>0)),1,0)","v":{"$error":"#REF!"}},0]
[null,null,null,null,null,null,null,null,null,null,null,null,null,null,null,null,null,0,null,null,null,null,null,null,null,null,null,null,null,null,null,null,null,0,0,null,0,{"$f":"IF(AND(OR(C214=\"\",#REF!=\"\",F214=\"\",G214=\"\",H214=\"\"),AND(R214<>0)),1,0)","v":{"$error":"#REF!"}},0]
[null,null,null,null,null,null,null,null,null,null,null,null,null,null,null,null,null,0,null,null,null,null,null,null,null,null,null,null,null,null,null,null,null,0,0,null,{"$f":"+R215-AH215","v":0},{"$f":"IF(AND(OR(C215=\"\",#REF!=\"\",F215=\"\",G215=\"\",H215=\"\"),AND(R215<>0)),1,0)","v":{"$error":"#REF!"}},0]
[null,null,null,null,null,null,null,null,null,null,null,null,null,null,null,null,null,0,null,null,null,null,null,null,null,null,null,null,null,null,null,null,null,0,0,null,0,{"$f":"IF(AND(OR(C216=\"\",#REF!=\"\",F216=\"\",G216=\"\",H216=\"\"),AND(R216<>0)),1,0)","v":{"$error":"#REF!"}},0]
[null,null,null,null,null,null,null,null,null,null,null,null,null,null,null,null,null,0,null,null,null,null,null,null,null,null,null,null,null,null,null,null,null,0,0,null,0,{"$f":"IF(AND(OR(C217=\"\",#REF!=\"\",F217=\"\",G217=\"\",H217=\"\"),AND(R217<>0)),1,0)","v":{"$error":"#REF!"}},0]
[null,null,null,null,null,null,null,null,null,null,null,null,null,null,null,null,null,0,null,null,null,null,null,null,null,null,null,null,null,null,null,null,null,0,0,null,0,{"$f":"IF(AND(OR(C218=\"\",#REF!=\"\",F218=\"\",G218=\"\",H218=\"\"),AND(R218<>0)),1,0)","v":{"$error":"#REF!"}},0]
[null,null,null,null,null,null,null,null,null,null,null,null,null,null,null,null,null,0,null,null,null,null,null,null,null,null,null,null,null,null,null,null,null,0,0,null,0,{"$f":"IF(AND(OR(C219=\"\",#REF!=\"\",F219=\"\",G219=\"\",H219=\"\"),AND(R219<>0)),1,0)","v":{"$error":"#REF!"}},0]
[null,null,null,null,null,null,null,null,null,null,null,null,null,null,null,null,null,0,null,null,null,null,null,null,null,null,null,null,null,null,null,null,null,0,0,null,0,{"$f":"IF(AND(OR(C220=\"\",#REF!=\"\",F220=\"\",G220=\"\",H220=\"\"),AND(R220<>0)),1,0)","v":{"$error":"#REF!"}},0]
[null,null,null,null,null,null,null,null,null,null,null,null,null,null,null,null,null,0,null,null,null,null,null,null,null,null,null,null,null,null,null,null,null,0,0,null,0,{"$f":"IF(AND(OR(C221=\"\",#REF!=\"\",F221=\"\",G221=\"\",H221=\"\"),AND(R221<>0)),1,0)","v":{"$error":"#REF!"}},0]
[null,null,null,null,null,null,null,null,null,null,null,null,null,null,null,null,null,0,null,null,null,null,null,null,null,null,null,null,null,null,null,null,null,0,0,null,0,{"$f":"IF(AND(OR(C222=\"\",#REF!=\"\",F222=\"\",G222=\"\",H222=\"\"),AND(R222<>0)),1,0)","v":{"$error":"#REF!"}},0]
[null,null,null,null,null,null,null,null,null,null,null,null,null,null,null,null,null,0,null,null,null,null,null,null,null,null,null,null,null,null,null,null,null,0,0,null,0,{"$f":"IF(AND(OR(C223=\"\",#REF!=\"\",F223=\"\",G223=\"\",H223=\"\"),AND(R223<>0)),1,0)","v":{"$error":"#REF!"}},0]
[null,null,null,null,null,null,null,null,null,null,null,null,null,null,null,null,null,0,null,null,null,null,null,null,null,null,null,null,null,null,null,null,null,0,0,null,0,{"$f":"IF(AND(OR(C224=\"\",#REF!=\"\",F224=\"\",G224=\"\",H224=\"\"),AND(R224<>0)),1,0)","v":{"$error":"#REF!"}},0]
[null,null,null,null,null,null,null,null,null,null,null,null,null,null,null,null,null,0,null,null,null,null,null,null,null,null,null,null,null,null,null,null,null,0,0,null,0,{"$f":"IF(AND(OR(C225=\"\",#REF!=\"\",F225=\"\",G225=\"\",H225=\"\"),AND(R225<>0)),1,0)","v":{"$error":"#REF!"}},0]
[null,null,null,null,null,null,null,null,null,null,null,null,null,null,null,null,null,0,null,null,null,null,null,null,null,null,null,null,null,null,null,null,null,0,0,null,0,{"$f":"IF(AND(OR(C226=\"\",#REF!=\"\",F226=\"\",G226=\"\",H226=\"\"),AND(R226<>0)),1,0)","v":{"$error":"#REF!"}},0]
[null,null,null,null,null,null,null,null,null,null,null,null,null,null,null,null,null,0,null,null,null,null,null,null,null,null,null,null,null,null,null,null,null,0,0,null,0,{"$f":"IF(AND(OR(C227=\"\",#REF!=\"\",F227=\"\",G227=\"\",H227=\"\"),AND(R227<>0)),1,0)","v":{"$error":"#REF!"}},0]
[null,null,null,null,null,null,null,null,null,null,null,null,null,null,null,null,null,0,null,null,null,null,null,null,null,null,null,null,null,null,null,null,null,0,0,null,0,{"$f":"IF(AND(OR(C228=\"\",#REF!=\"\",F228=\"\",G228=\"\",H228=\"\"),AND(R228<>0)),1,0)","v":{"$error":"#REF!"}},0]
[null,null,null,null,null,null,null,null,null,null,null,null,null,null,null,null,null,0,null,null,null,null,null,null,null,null,null,null,null,null,null,null,null,0,0,null,0,{"$f":"IF(AND(OR(C229=\"\",#REF!=\"\",F229=\"\",G229=\"\",H229=\"\"),AND(R229<>0)),1,0)","v":{"$error":"#REF!"}},0]
[null,null,null,null,null,null,null,null,null,null,null,null,null,null,null,null,null,0,null,null,null,null,null,null,null,null,null,null,null,null,null,null,null,0,0,null,0,{"$f":"IF(AND(OR(C230=\"\",#REF!=\"\",F230=\"\",G230=\"\",H230=\"\"),AND(R230<>0)),1,0)","v":{"$error":"#REF!"}},0]
[null,null,null,null,null,null,null,null,null,null,null,null,null,null,null,null,null,0,null,null,null,null,null,null,null,null,null,null,null,null,null,null,null,0,0,null,0,{"$f":"IF(AND(OR(C231=\"\",#REF!=\"\",F231=\"\",G231=\"\",H231=\"\"),AND(R231<>0)),1,0)","v":{"$error":"#REF!"}},0]
[null,null,null,null,null,null,null,null,null,null,null,null,null,null,null,null,null,0,null,null,null,null,null,null,null,null,null,null,null,null,null,null,null,0,0,null,0,{"$f":"IF(AND(OR(C232=\"\",#REF!=\"\",F232=\"\",G232=\"\",H232=\"\"),AND(R232<>0)),1,0)","v":{"$error":"#REF!"}},0]
[null,null,null,null,null,null,null,null,null,null,null,null,null,null,null,null,null,0,null,null,null,null,null,null,null,null,null,null,null,null,null,null,null,0,0,null,0,{"$f":"IF(AND(OR(C233=\"\",#REF!=\"\",F233=\"\",G233=\"\",H233=\"\"),AND(R233<>0)),1,0)","v":{"$error":"#REF!"}},0]
[null,null,null,null,null,null,null,null,null,null,null,null,null,null,null,null,null,0,null,null,null,null,null,null,null,null,null,null,null,null,null,null,null,0,0,null,0,{"$f":"IF(AND(OR(C234=\"\",#REF!=\"\",F234=\"\",G234=\"\",H234=\"\"),AND(R234<>0)),1,0)","v":{"$error":"#REF!"}},0]
[null,null,null,null,null,null,null,null,null,null,null,null,null,null,null,null,null,0,null,null,null,null,null,null,null,null,null,null,null,null,null,null,null,0,0,null,0,{"$f":"IF(AND(OR(C235=\"\",#REF!=\"\",F235=\"\",G235=\"\",H235=\"\"),AND(R235<>0)),1,0)","v":{"$error":"#REF!"}},0]
[null,null,null,null,null,null,null,null,null,null,null,null,null,null,null,null,null,0,null,null,null,null,null,null,null,null,null,null,null,null,null,null,null,0,0,null,0,{"$f":"IF(AND(OR(C236=\"\",#REF!=\"\",F236=\"\",G236=\"\",H236=\"\"),AND(R236<>0)),1,0)","v":{"$error":"#REF!"}},0]
[null,null,null,null,null,null,null,null,null,null,null,null,null,null,null,null,null,0,null,null,null,null,null,null,null,null,null,null,null,null,null,null,null,0,0,null,0,{"$f":"IF(AND(OR(C237=\"\",#REF!=\"\",F237=\"\",G237=\"\",H237=\"\"),AND(R237<>0)),1,0)","v":{"$error":"#REF!"}},0]
[null,null,null,null,null,null,null,null,null,null,null,null,null,null,null,null,null,0,null,null,null,null,null,null,null,null,null,null,null,null,null,null,null,0,0,null,0,{"$f":"IF(AND(OR(C238=\"\",#REF!=\"\",F238=\"\",G238=\"\",H238=\"\"),AND(R238<>0)),1,0)","v":{"$error":"#REF!"}},0]
[null,null,null,null,null,null,null,null,null,null,null,null,null,null,null,null,null,0,null,null,null,null,null,null,null,null,null,null,null,null,null,null,null,0,0,null,0,{"$f":"IF(AND(OR(C239=\"\",#REF!=\"\",F239=\"\",G239=\"\",H239=\"\"),AND(R239<>0)),1,0)","v":{"$error":"#REF!"}},0]
[null,null,null,null,null,null,null,null,null,null,null,null,null,null,null,null,null,0,null,null,null,null,null,null,null,null,null,null,null,null,null,null,null,0,0,null,0,{"$f":"IF(AND(OR(C240=\"\",#REF!=\"\",F240=\"\",G240=\"\",H240=\"\"),AND(R240<>0)),1,0)","v":{"$error":"#REF!"}},0]
[null,null,null,null,null,null,null,null,null,null,null,null,null,null,null,null,null,0,null,null,null,null,null,null,null,null,null,null,null,null,null,null,null,0,0,null,0,{"$f":"IF(AND(OR(C241=\"\",#REF!=\"\",F241=\"\",G241=\"\",H241=\"\"),AND(R241<>0)),1,0)","v":{"$error":"#REF!"}},0]
[null,null,null,null,null,null,null,null,null,null,null,null,null,null,null,null,null,0,null,null,null,null,null,null,null,null,null,null,null,null,null,null,null,0,0,null,0,{"$f":"IF(AND(OR(C242=\"\",#REF!=\"\",F242=\"\",G242=\"\",H242=\"\"),AND(R242<>0)),1,0)","v":{"$error":"#REF!"}},0]
[null,null,null,null,null,null,null,null,null,null,null,null,null,null,null,null,null,0,null,null,null,null,null,null,null,null,null,null,null,null,null,null,null,0,0,null,0,{"$f":"IF(AND(OR(C243=\"\",#REF!=\"\",F243=\"\",G243=\"\",H243=\"\"),AND(R243<>0)),1,0)","v":{"$error":"#REF!"}},0]
[null,null,null,null,null,null,null,null,null,null,null,null,null,null,null,null,null,0,null,null,null,null,null,null,null,null,null,null,null,null,null,null,null,0,0,null,0,{"$f":"IF(AND(OR(C244=\"\",#REF!=\"\",F244=\"\",G244=\"\",H244=\"\"),AND(R244<>0)),1,0)","v":{"$error":"#REF!"}},0]
[null,null,null,null,null,null,null,null,null,null,null,null,null,null,null,null,null,0,null,null,null,null,null,null,null,null,null,null,null,null,null,null,null,0,0,null,0,{"$f":"IF(AND(OR(C245=\"\",#REF!=\"\",F245=\"\",G245=\"\",H245=\"\"),AND(R245<>0)),1,0)","v":{"$error":"#REF!"}},0]
[null,null,null,null,null,null,null,null,null,null,null,null,null,null,null,null,null,0,null,null,null,null,null,null,null,null,null,null,null,null,null,null,null,0,0,null,0,{"$f":"IF(AND(OR(C246=\"\",#REF!=\"\",F246=\"\",G246=\"\",H246=\"\"),AND(R246<>0)),1,0)","v":{"$error":"#REF!"}},0]
[null,null,null,null,null,null,null,null,null,null,null,null,null,null,null,null,null,0,null,null,null,null,null,null,null,null,null,null,null,null,null,null,null,0,0,null,0,{"$f":"IF(AND(OR(C247=\"\",#REF!=\"\",F247=\"\",G247=\"\",H247=\"\"),AND(R247<>0)),1,0)","v":{"$error":"#REF!"}},0]
[null,null,null,null,null,null,null,null,null,null,null,null,null,null,null,null,null,0,null,null,null,null,null,null,null,null,null,null,null,null,null,null,null,0,0,null,0,{"$f":"IF(AND(OR(C248=\"\",#REF!=\"\",F248=\"\",G248=\"\",H248=\"\"),AND(R248<>0)),1,0)","v":{"$error":"#REF!"}},0]
[null,null,null,null,null,null,null,null,null,null,null,null,null,null,null,null,null,0,null,null,null,null,null,null,null,null,null,null,null,null,null,null,null,0,0,null,0,{"$f":"IF(AND(OR(C249=\"\",#REF!=\"\",F249=\"\",G249=\"\",H249=\"\"),AND(R249<>0)),1,0)","v":{"$error":"#REF!"}},0]
[null,null,null,null,null,null,null,null,null,null,null,null,null,null,null,null,null,0,null,null,null,null,null,null,null,null,null,null,null,null,null,null,null,0,0,null,0,{"$f":"IF(AND(OR(C250=\"\",#REF!=\"\",F250=\"\",G250=\"\",H250=\"\"),AND(R250<>0)),1,0)","v":{"$error":"#REF!"}},0]
[null,null,null,null,null,null,null,null,null,null,null,null,null,null,null,null,null,0,null,null,null,null,null,null,null,null,null,null,null,null,null,null,null,0,0,null,0,{"$f":"IF(AND(OR(C251=\"\",#REF!=\"\",F251=\"\",G251=\"\",H251=\"\"),AND(R251<>0)),1,0)","v":{"$error":"#REF!"}},0]
[null,null,null,null,null,null,null,null,null,null,null,null,null,null,null,null,null,0,null,null,null,null,null,null,null,null,null,null,null,null,null,null,null,0,0,null,0,{"$f":"IF(AND(OR(C252=\"\",#REF!=\"\",F252=\"\",G252=\"\",H252=\"\"),AND(R252<>0)),1,0)","v":{"$error":"#REF!"}},0]
[null,null,null,null,null,null,null,null,null,null,null,null,null,null,null,null,null,0,null,null,null,null,null,null,null,null,null,null,null,null,null,null,null,0,0,null,0,{"$f":"IF(AND(OR(C253=\"\",#REF!=\"\",F253=\"\",G253=\"\",H253=\"\"),AND(R253<>0)),1,0)","v":{"$error":"#REF!"}},0]
[null,null,null,null,null,null,null,null,null,null,null,null,null,null,null,null,null,0,null,null,null,null,null,null,null,null,null,null,null,null,null,null,null,0,0,null,0,{"$f":"IF(AND(OR(C254=\"\",#REF!=\"\",F254=\"\",G254=\"\",H254=\"\"),AND(R254<>0)),1,0)","v":{"$error":"#REF!"}},0]
[null,null,null,null,null,null,null,null,null,null,null,null,null,null,null,null,null,0,null,null,null,null,null,null,null,null,null,null,null,null,null,null,null,0,0,null,0,{"$f":"IF(AND(OR(C255=\"\",#REF!=\"\",F255=\"\",G255=\"\",H255=\"\"),AND(R255<>0)),1,0)","v":{"$error":"#REF!"}},0]
[null,null,null,null,null,null,null,null,null,null,null,null,null,null,null,null,null,0,null,null,null,null,null,null,null,null,null,null,null,null,null,null,null,0,0,null,0,{"$f":"IF(AND(OR(C256=\"\",#REF!=\"\",F256=\"\",G256=\"\",H256=\"\"),AND(R256<>0)),1,0)","v":{"$error":"#REF!"}},0]
[null,null,null,null,null,null,null,null,null,null,null,null,null,null,null,null,null,0,null,null,null,null,null,null,null,null,null,null,null,null,null,null,null,0,0,null,0,{"$f":"IF(AND(OR(C257=\"\",#REF!=\"\",F257=\"\",G257=\"\",H257=\"\"),AND(R257<>0)),1,0)","v":{"$error":"#REF!"}},0]
[null,null,null,null,null,null,null,null,null,null,null,null,null,null,null,null,null,0,null,null,null,null,null,null,null,null,null,null,null,null,null,null,null,0,0,null,0,{"$f":"IF(AND(OR(C258=\"\",#REF!=\"\",F258=\"\",G258=\"\",H258=\"\"),AND(R258<>0)),1,0)","v":{"$error":"#REF!"}},0]
[null,null,null,null,null,null,null,null,null,null,null,null,null,null,null,null,null,0,null,null,null,null,null,null,null,null,null,null,null,null,null,null,null,0,0,null,0,{"$f":"IF(AND(OR(C259=\"\",#REF!=\"\",F259=\"\",G259=\"\",H259=\"\"),AND(R259<>0)),1,0)","v":{"$error":"#REF!"}},0]
[null,null,null,null,null,null,null,null,null,null,null,null,null,null,null,null,null,{"$f":"+P260+Q260","v":0},null,null,null,null,null,null,null,null,null,null,null,null,null,null,null,{"$f":"SUM(T260:AG260)","v":0},0,null,0,{"$f":"IF(AND(OR(C260=\"\",#REF!=\"\",F260=\"\",G260=\"\",H260=\"\"),AND(R260<>0)),1,0)","v":{"$error":"#REF!"}},{"$f":"IF(AND(L260=\"SI\",M260=\"\"),1,0)","v":0}]
[null,null,null,null,null,null,null,null,null,null,null,null,null,null,null,null,null,0,null,null,null,null,null,null,null,null,null,null,null,null,null,null,null,0,{"$f":"R261-AH261","v":0},null,0,{"$f":"IF(AND(OR(C261=\"\",#REF!=\"\",F261=\"\",G261=\"\",H261=\"\"),AND(R261<>0)),1,0)","v":{"$error":"#REF!"}},0]
[null,null,null,null,null,null,null,null,null,null,null,null,null,null,null,null,null,0,null,null,null,null,null,null,null,null,null,null,null,null,null,null,null,0,0,null,0,{"$f":"IF(AND(OR(C262=\"\",#REF!=\"\",F262=\"\",G262=\"\",H262=\"\"),AND(R262<>0)),1,0)","v":{"$error":"#REF!"}},0]
[null,null,null,null,null,null,null,null,null,null,null,null,null,null,null,null,null,0,null,null,null,null,null,null,null,null,null,null,null,null,null,null,null,0,0,null,0,{"$f":"IF(AND(OR(C263=\"\",#REF!=\"\",F263=\"\",G263=\"\",H263=\"\"),AND(R263<>0)),1,0)","v":{"$error":"#REF!"}},0]
[null,null,null,null,null,null,null,null,null,null,null,null,null,null,null,null,null,0,null,null,null,null,null,null,null,null,null,null,null,null,null,null,null,0,0,null,0,{"$f":"IF(AND(OR(C264=\"\",#REF!=\"\",F264=\"\",G264=\"\",H264=\"\"),AND(R264<>0)),1,0)","v":{"$error":"#REF!"}},0]
[null,null,null,null,null,null,null,null,null,null,null,null,null,null,null,null,null,0,null,null,null,null,null,null,null,null,null,null,null,null,null,null,null,0,0,null,0,{"$f":"IF(AND(OR(C265=\"\",#REF!=\"\",F265=\"\",G265=\"\",H265=\"\"),AND(R265<>0)),1,0)","v":{"$error":"#REF!"}},0]
[null,null,null,null,null,null,null,null,null,null,null,null,null,null,null,null,null,0,null,null,null,null,null,null,null,null,null,null,null,null,null,null,null,0,0,null,0,{"$f":"IF(AND(OR(C266=\"\",#REF!=\"\",F266=\"\",G266=\"\",H266=\"\"),AND(R266<>0)),1,0)","v":{"$error":"#REF!"}},0]
[null,null,null,null,null,null,null,null,null,null,null,null,null,null,null,null,null,0,null,null,null,null,null,null,null,null,null,null,null,null,null,null,null,0,0,null,0,{"$f":"IF(AND(OR(C267=\"\",#REF!=\"\",F267=\"\",G267=\"\",H267=\"\"),AND(R267<>0)),1,0)","v":{"$error":"#REF!"}},0]
[null,null,null,null,null,null,null,null,null,null,null,null,null,null,null,null,null,0,null,null,null,null,null,null,null,null,null,null,null,null,null,null,null,0,0,null,0,{"$f":"IF(AND(OR(C268=\"\",#REF!=\"\",F268=\"\",G268=\"\",H268=\"\"),AND(R268<>0)),1,0)","v":{"$error":"#REF!"}},0]
[null,null,null,null,null,null,null,null,null,null,null,null,null,null,null,null,null,0,null,null,null,null,null,null,null,null,null,null,null,null,null,null,null,0,0,null,0,{"$f":"IF(AND(OR(C269=\"\",#REF!=\"\",F269=\"\",G269=\"\",H269=\"\"),AND(R269<>0)),1,0)","v":{"$error":"#REF!"}},0]
[null,null,null,null,null,null,null,null,null,null,null,null,null,null,null,null,null,0,null,null,null,null,null,null,null,null,null,null,null,null,null,null,null,0,0,null,0,{"$f":"IF(AND(OR(C270=\"\",#REF!=\"\",F270=\"\",G270=\"\",H270=\"\"),AND(R270<>0)),1,0)","v":{"$error":"#REF!"}},0]
[null,null,null,null,null,null,null,null,null,null,null,null,null,null,null,null,null,0,null,null,null,null,null,null,null,null,null,null,null,null,null,null,null,0,0,null,0,{"$f":"IF(AND(OR(C271=\"\",#REF!=\"\",F271=\"\",G271=\"\",H271=\"\"),AND(R271<>0)),1,0)","v":{"$error":"#REF!"}},0]
[null,null,null,null,null,null,null,null,null,null,null,null,null,null,null,null,null,0,null,null,null,null,null,null,null,null,null,null,null,null,null,null,null,0,0,null,0,{"$f":"IF(AND(OR(C272=\"\",#REF!=\"\",F272=\"\",G272=\"\",H272=\"\"),AND(R272<>0)),1,0)","v":{"$error":"#REF!"}},0]
[null,null,null,null,null,null,null,null,null,null,null,null,null,null,null,null,null,0,null,null,null,null,null,null,null,null,null,null,null,null,null,null,null,0,0,null,0,{"$f":"IF(AND(OR(C273=\"\",#REF!=\"\",F273=\"\",G273=\"\",H273=\"\"),AND(R273<>0)),1,0)","v":{"$error":"#REF!"}},0]
[null,null,null,null,null,null,null,null,null,null,null,null,null,null,null,null,null,0,null,null,null,null,null,null,null,null,null,null,null,null,null,null,null,0,0,null,0,{"$f":"IF(AND(OR(C274=\"\",#REF!=\"\",F274=\"\",G274=\"\",H274=\"\"),AND(R274<>0)),1,0)","v":{"$error":"#REF!"}},0]
[null,null,null,null,null,null,null,null,null,null,null,null,null,null,null,null,null,0,null,null,null,null,null,null,null,null,null,null,null,null,null,null,null,0,0,null,0,{"$f":"IF(AND(OR(C275=\"\",#REF!=\"\",F275=\"\",G275=\"\",H275=\"\"),AND(R275<>0)),1,0)","v":{"$error":"#REF!"}},0]
[null,null,null,null,null,null,null,null,null,null,null,null,null,null,null,null,null,0,null,null,null,null,null,null,null,null,null,null,null,null,null,null,null,0,0,null,0,{"$f":"IF(AND(OR(C276=\"\",#REF!=\"\",F276=\"\",G276=\"\",H276=\"\"),AND(R276<>0)),1,0)","v":{"$error":"#REF!"}},0]
[null,null,null,null,null,null,null,null,null,null,null,null,null,null,null,null,null,0,null,null,null,null,null,null,null,null,null,null,null,null,null,null,null,0,0,null,0,{"$f":"IF(AND(OR(C277=\"\",#REF!=\"\",F277=\"\",G277=\"\",H277=\"\"),AND(R277<>0)),1,0)","v":{"$error":"#REF!"}},0]
[null,null,null,null,null,null,null,null,null,null,null,null,null,null,null,null,null,0,null,null,null,null,null,null,null,null,null,null,null,null,null,null,null,0,0,null,0,{"$f":"IF(AND(OR(C278=\"\",#REF!=\"\",F278=\"\",G278=\"\",H278=\"\"),AND(R278<>0)),1,0)","v":{"$error":"#REF!"}},0]
[null,null,null,null,null,null,null,null,null,null,null,null,null,null,null,null,null,0,null,null,null,null,null,null,null,null,null,null,null,null,null,null,null,0,0,null,{"$f":"+R279-AH279","v":0},{"$f":"IF(AND(OR(C279=\"\",#REF!=\"\",F279=\"\",G279=\"\",H279=\"\"),AND(R279<>0)),1,0)","v":{"$error":"#REF!"}},0]
[null,null,null,null,null,null,null,null,null,null,null,null,null,null,null,null,null,0,null,null,null,null,null,null,null,null,null,null,null,null,null,null,null,0,0,null,0,{"$f":"IF(AND(OR(C280=\"\",#REF!=\"\",F280=\"\",G280=\"\",H280=\"\"),AND(R280<>0)),1,0)","v":{"$error":"#REF!"}},0]
[null,null,null,null,null,null,null,null,null,null,null,null,null,null,null,null,null,0,null,null,null,null,null,null,null,null,null,null,null,null,null,null,null,0,0,null,0,{"$f":"IF(AND(OR(C281=\"\",#REF!=\"\",F281=\"\",G281=\"\",H281=\"\"),AND(R281<>0)),1,0)","v":{"$error":"#REF!"}},0]
[null,null,null,null,null,null,null,null,null,null,null,null,null,null,null,null,null,0,null,null,null,null,null,null,null,null,null,null,null,null,null,null,null,0,0,null,0,{"$f":"IF(AND(OR(C282=\"\",#REF!=\"\",F282=\"\",G282=\"\",H282=\"\"),AND(R282<>0)),1,0)","v":{"$error":"#REF!"}},0]
[null,null,null,null,null,null,null,null,null,null,null,null,null,null,null,null,null,0,null,null,null,null,null,null,null,null,null,null,null,null,null,null,null,0,0,null,0,{"$f":"IF(AND(OR(C283=\"\",#REF!=\"\",F283=\"\",G283=\"\",H283=\"\"),AND(R283<>0)),1,0)","v":{"$error":"#REF!"}},0]
[null,null,null,null,null,null,null,null,null,null,null,null,null,null,null,null,null,0,null,null,null,null,null,null,null,null,null,null,null,null,null,null,null,0,0,null,0,{"$f":"IF(AND(OR(C284=\"\",#REF!=\"\",F284=\"\",G284=\"\",H284=\"\"),AND(R284<>0)),1,0)","v":{"$error":"#REF!"}},0]
[null,null,null,null,null,null,null,null,null,null,null,null,null,null,null,null,null,0,null,null,null,null,null,null,null,null,null,null,null,null,null,null,null,0,0,null,0,{"$f":"IF(AND(OR(C285=\"\",#REF!=\"\",F285=\"\",G285=\"\",H285=\"\"),AND(R285<>0)),1,0)","v":{"$error":"#REF!"}},0]
[null,null,null,null,null,null,null,null,null,null,null,null,null,null,null,null,null,0,null,null,null,null,null,null,null,null,null,null,null,null,null,null,null,0,0,null,0,{"$f":"IF(AND(OR(C286=\"\",#REF!=\"\",F286=\"\",G286=\"\",H286=\"\"),AND(R286<>0)),1,0)","v":{"$error":"#REF!"}},0]
[null,null,null,null,null,null,null,null,null,null,null,null,null,null,null,null,null,0,null,null,null,null,null,null,null,null,null,null,null,null,null,null,null,0,0,null,0,{"$f":"IF(AND(OR(C287=\"\",#REF!=\"\",F287=\"\",G287=\"\",H287=\"\"),AND(R287<>0)),1,0)","v":{"$error":"#REF!"}},0]
[null,null,null,null,null,null,null,null,null,null,null,null,null,null,null,null,null,0,null,null,null,null,null,null,null,null,null,null,null,null,null,null,null,0,0,null,0,{"$f":"IF(AND(OR(C288=\"\",#REF!=\"\",F288=\"\",G288=\"\",H288=\"\"),AND(R288<>0)),1,0)","v":{"$error":"#REF!"}},0]
[null,null,null,null,null,null,null,null,null,null,null,null,null,null,null,null,null,0,null,null,null,null,null,null,null,null,null,null,null,null,null,null,null,0,0,null,0,{"$f":"IF(AND(OR(C289=\"\",#REF!=\"\",F289=\"\",G289=\"\",H289=\"\"),AND(R289<>0)),1,0)","v":{"$error":"#REF!"}},0]
[null,null,null,null,null,null,null,null,null,null,null,null,null,null,null,null,null,0,null,null,null,null,null,null,null,null,null,null,null,null,null,null,null,0,0,null,0,{"$f":"IF(AND(OR(C290=\"\",#REF!=\"\",F290=\"\",G290=\"\",H290=\"\"),AND(R290<>0)),1,0)","v":{"$error":"#REF!"}},0]
[null,null,null,null,null,null,null,null,null,null,null,null,null,null,null,null,null,0,null,null,null,null,null,null,null,null,null,null,null,null,null,null,null,0,0,null,0,{"$f":"IF(AND(OR(C291=\"\",#REF!=\"\",F291=\"\",G291=\"\",H291=\"\"),AND(R291<>0)),1,0)","v":{"$error":"#REF!"}},0]
[null,null,null,null,null,null,null,null,null,null,null,null,null,null,null,null,null,0,null,null,null,null,null,null,null,null,null,null,null,null,null,null,null,0,0,null,0,{"$f":"IF(AND(OR(C292=\"\",#REF!=\"\",F292=\"\",G292=\"\",H292=\"\"),AND(R292<>0)),1,0)","v":{"$error":"#REF!"}},0]
[null,null,null,null,null,null,null,null,null,null,null,null,null,null,null,null,null,0,null,null,null,null,null,null,null,null,null,null,null,null,null,null,null,0,0,null,0,{"$f":"IF(AND(OR(C293=\"\",#REF!=\"\",F293=\"\",G293=\"\",H293=\"\"),AND(R293<>0)),1,0)","v":{"$error":"#REF!"}},0]
[null,null,null,null,null,null,null,null,null,null,null,null,null,null,null,null,null,0,null,null,null,null,null,null,null,null,null,null,null,null,null,null,null,0,0,null,0,{"$f":"IF(AND(OR(C294=\"\",#REF!=\"\",F294=\"\",G294=\"\",H294=\"\"),AND(R294<>0)),1,0)","v":{"$error":"#REF!"}},0]
[null,null,null,null,null,null,null,null,null,null,null,null,null,null,null,null,null,0,null,null,null,null,null,null,null,null,null,null,null,null,null,null,null,0,0,null,0,{"$f":"IF(AND(OR(C295=\"\",#REF!=\"\",F295=\"\",G295=\"\",H295=\"\"),AND(R295<>0)),1,0)","v":{"$error":"#REF!"}},0]
[null,null,null,null,null,null,null,null,null,null,null,null,null,null,null,null,null,0,null,null,null,null,null,null,null,null,null,null,null,null,null,null,null,0,0,null,0,{"$f":"IF(AND(OR(C296=\"\",#REF!=\"\",F296=\"\",G296=\"\",H296=\"\"),AND(R296<>0)),1,0)","v":{"$error":"#REF!"}},0]
[null,null,null,null,null,null,null,null,null,null,null,null,null,null,null,null,null,0,null,null,null,null,null,null,null,null,null,null,null,null,null,null,null,0,0,null,0,{"$f":"IF(AND(OR(C297=\"\",#REF!=\"\",F297=\"\",G297=\"\",H297=\"\"),AND(R297<>0)),1,0)","v":{"$error":"#REF!"}},0]
[null,null,null,null,null,null,null,null,null,null,null,null,null,null,null,null,null,0,null,null,null,null,null,null,null,null,null,null,null,null,null,null,null,0,0,null,0,{"$f":"IF(AND(OR(C298=\"\",#REF!=\"\",F298=\"\",G298=\"\",H298=\"\"),AND(R298<>0)),1,0)","v":{"$error":"#REF!"}},0]
[null,null,null,null,null,null,null,null,null,null,null,null,null,null,null,null,null,0,null,null,null,null,null,null,null,null,null,null,null,null,null,null,null,0,0,null,0,{"$f":"IF(AND(OR(C299=\"\",#REF!=\"\",F299=\"\",G299=\"\",H299=\"\"),AND(R299<>0)),1,0)","v":{"$error":"#REF!"}},0]
[null,null,null,null,null,null,null,null,null,null,null,null,null,null,null,null,null,0,null,null,null,null,null,null,null,null,null,null,null,null,null,null,null,0,0,null,0,{"$f":"IF(AND(OR(C300=\"\",#REF!=\"\",F300=\"\",G300=\"\",H300=\"\"),AND(R300<>0)),1,0)","v":{"$error":"#REF!"}},0]
[null,null,null,null,null,null,null,null,null,null,null,null,null,null,null,null,null,0,null,null,null,null,null,null,null,null,null,null,null,null,null,null,null,0,0,null,0,{"$f":"IF(AND(OR(C301=\"\",#REF!=\"\",F301=\"\",G301=\"\",H301=\"\"),AND(R301<>0)),1,0)","v":{"$error":"#REF!"}},0]
[null,null,null,null,null,null,null,null,null,null,null,null,null,null,null,null,null,0,null,null,null,null,null,null,null,null,null,null,null,null,null,null,null,0,0,null,0,{"$f":"IF(AND(OR(C302=\"\",#REF!=\"\",F302=\"\",G302=\"\",H302=\"\"),AND(R302<>0)),1,0)","v":{"$error":"#REF!"}},0]
[null,null,null,null,null,null,null,null,null,null,null,null,null,null,null,null,null,0,null,null,null,null,null,null,null,null,null,null,null,null,null,null,null,0,0,null,0,{"$f":"IF(AND(OR(C303=\"\",#REF!=\"\",F303=\"\",G303=\"\",H303=\"\"),AND(R303<>0)),1,0)","v":{"$error":"#REF!"}},0]
[null,null,null,null,null,null,null,null,null,null,null,null,null,null,null,null,null,0,null,null,null,null,null,null,null,null,null,null,null,null,null,null,null,0,0,null,0,{"$f":"IF(AND(OR(C304=\"\",#REF!=\"\",F304=\"\",G304=\"\",H304=\"\"),AND(R304<>0)),1,0)","v":{"$error":"#REF!"}},0]
[null,null,null,null,null,null,null,null,null,null,null,null,null,null,null,null,null,0,null,null,null,null,null,null,null,null,null,null,null,null,null,null,null,0,0,null,0,{"$f":"IF(AND(OR(C305=\"\",#REF!=\"\",F305=\"\",G305=\"\",H305=\"\"),AND(R305<>0)),1,0)","v":{"$error":"#REF!"}},0]
[null,null,null,null,null,null,null,null,null,null,null,null,null,null,null,null,null,0,null,null,null,null,null,null,null,null,null,null,null,null,null,null,null,0,0,null,0,{"$f":"IF(AND(OR(C306=\"\",#REF!=\"\",F306=\"\",G306=\"\",H306=\"\"),AND(R306<>0)),1,0)","v":{"$error":"#REF!"}},0]
[null,null,null,null,null,null,null,null,null,null,null,null,null,null,null,null,null,0,null,null,null,null,null,null,null,null,null,null,null,null,null,null,null,0,0,null,0,{"$f":"IF(AND(OR(C307=\"\",#REF!=\"\",F307=\"\",G307=\"\",H307=\"\"),AND(R307<>0)),1,0)","v":{"$error":"#REF!"}},0]
[null,null,null,null,null,null,null,null,null,null,null,null,null,null,null,null,null,0,null,null,null,null,null,null,null,null,null,null,null,null,null,null,null,0,0,null,0,{"$f":"IF(AND(OR(C308=\"\",#REF!=\"\",F308=\"\",G308=\"\",H308=\"\"),AND(R308<>0)),1,0)","v":{"$error":"#REF!"}},0]
[null,null,null,null,null,null,null,null,null,null,null,null,null,null,null,null,null,0,null,null,null,null,null,null,null,null,null,null,null,null,null,null,null,0,0,null,0,{"$f":"IF(AND(OR(C309=\"\",#REF!=\"\",F309=\"\",G309=\"\",H309=\"\"),AND(R309<>0)),1,0)","v":{"$error":"#REF!"}},0]
[null,null,null,null,null,null,null,null,null,null,null,null,null,null,null,null,null,0,null,null,null,null,null,null,null,null,null,null,null,null,null,null,null,0,0,null,0,{"$f":"IF(AND(OR(C310=\"\",#REF!=\"\",F310=\"\",G310=\"\",H310=\"\"),AND(R310<>0)),1,0)","v":{"$error":"#REF!"}},0]
[null,null,null,null,null,null,null,null,null,null,null,null,null,null,null,null,null,0,null,null,null,null,null,null,null,null,null,null,null,null,null,null,null,0,0,null,0,{"$f":"IF(AND(OR(C311=\"\",#REF!=\"\",F311=\"\",G311=\"\",H311=\"\"),AND(R311<>0)),1,0)","v":{"$error":"#REF!"}},0]
[null,null,null,null,null,null,null,null,null,null,null,null,null,null,null,null,null,0,null,null,null,null,null,null,null,null,null,null,null,null,null,null,null,0,0,null,0,{"$f":"IF(AND(OR(C312=\"\",#REF!=\"\",F312=\"\",G312=\"\",H312=\"\"),AND(R312<>0)),1,0)","v":{"$error":"#REF!"}},0]
[null,null,null,null,null,null,null,null,null,null,null,null,null,null,null,null,null,0,null,null,null,null,null,null,null,null,null,null,null,null,null,null,null,0,0,null,0,{"$f":"IF(AND(OR(C313=\"\",#REF!=\"\",F313=\"\",G313=\"\",H313=\"\"),AND(R313<>0)),1,0)","v":{"$error":"#REF!"}},0]
[null,null,null,null,null,null,null,null,null,null,null,null,null,null,null,null,null,0,null,null,null,null,null,null,null,null,null,null,null,null,null,null,null,0,0,null,0,{"$f":"IF(AND(OR(C314=\"\",#REF!=\"\",F314=\"\",G314=\"\",H314=\"\"),AND(R314<>0)),1,0)","v":{"$error":"#REF!"}},0]
[null,null,null,null,null,null,null,null,null,null,null,null,null,null,null,null,null,0,null,null,null,null,null,null,null,null,null,null,null,null,null,null,null,0,0,null,0,{"$f":"IF(AND(OR(C315=\"\",#REF!=\"\",F315=\"\",G315=\"\",H315=\"\"),AND(R315<>0)),1,0)","v":{"$error":"#REF!"}},0]
[null,null,null,null,null,null,null,null,null,null,null,null,null,null,null,null,null,0,null,null,null,null,null,null,null,null,null,null,null,null,null,null,null,0,0,null,0,{"$f":"IF(AND(OR(C316=\"\",#REF!=\"\",F316=\"\",G316=\"\",H316=\"\"),AND(R316<>0)),1,0)","v":{"$error":"#REF!"}},0]
[null,null,null,null,null,null,null,null,null,null,null,null,null,null,null,null,null,0,null,null,null,null,null,null,null,null,null,null,null,null,null,null,null,0,0,null,0,{"$f":"IF(AND(OR(C317=\"\",#REF!=\"\",F317=\"\",G317=\"\",H317=\"\"),AND(R317<>0)),1,0)","v":{"$error":"#REF!"}},0]
[null,null,null,null,null,null,null,null,null,null,null,null,null,null,null,null,null,0,null,null,null,null,null,null,null,null,null,null,null,null,null,null,null,0,0,null,0,{"$f":"IF(AND(OR(C318=\"\",#REF!=\"\",F318=\"\",G318=\"\",H318=\"\"),AND(R318<>0)),1,0)","v":{"$error":"#REF!"}},0]
[null,null,null,null,null,null,null,null,null,null,null,null,null,null,null,null,null,0,null,null,null,null,null,null,null,null,null,null,null,null,null,null,null,0,0,null,0,{"$f":"IF(AND(OR(C319=\"\",#REF!=\"\",F319=\"\",G319=\"\",H319=\"\"),AND(R319<>0)),1,0)","v":{"$error":"#REF!"}},0]
[null,null,null,null,null,null,null,null,null,null,null,null,null,null,null,null,null,0,null,null,null,null,null,null,null,null,null,null,null,null,null,null,null,0,0,null,0,{"$f":"IF(AND(OR(C320=\"\",#REF!=\"\",F320=\"\",G320=\"\",H320=\"\"),AND(R320<>0)),1,0)","v":{"$error":"#REF!"}},0]
[null,null,null,null,null,null,null,null,null,null,null,null,null,null,null,null,null,0,null,null,null,null,null,null,null,null,null,null,null,null,null,null,null,0,0,null,0,{"$f":"IF(AND(OR(C321=\"\",#REF!=\"\",F321=\"\",G321=\"\",H321=\"\"),AND(R321<>0)),1,0)","v":{"$error":"#REF!"}},0]
[null,null,null,null,null,null,null,null,null,null,null,null,null,null,null,null,null,0,null,null,null,null,null,null,null,null,null,null,null,null,null,null,null,0,0,null,0,{"$f":"IF(AND(OR(C322=\"\",#REF!=\"\",F322=\"\",G322=\"\",H322=\"\"),AND(R322<>0)),1,0)","v":{"$error":"#REF!"}},0]
[null,null,null,null,null,null,null,null,null,null,null,null,null,null,null,null,null,0,null,null,null,null,null,null,null,null,null,null,null,null,null,null,null,0,0,null,0,{"$f":"IF(AND(OR(C323=\"\",#REF!=\"\",F323=\"\",G323=\"\",H323=\"\"),AND(R323<>0)),1,0)","v":{"$error":"#REF!"}},0]
[null,null,null,null,null,null,null,null,null,null,null,null,null,null,null,null,null,{"$f":"+P324+Q324","v":0},null,null,null,null,null,null,null,null,null,null,null,null,null,null,null,{"$f":"SUM(T324:AG324)","v":0},0,null,0,{"$f":"IF(AND(OR(C324=\"\",#REF!=\"\",F324=\"\",G324=\"\",H324=\"\"),AND(R324<>0)),1,0)","v":{"$error":"#REF!"}},{"$f":"IF(AND(L324=\"SI\",M324=\"\"),1,0)","v":0}]
[null,null,null,null,null,null,null,null,null,null,null,null,null,null,null,null,null,0,null,null,null,null,null,null,null,null,null,null,null,null,null,null,null,0,{"$f":"R325-AH325","v":0},null,0,{"$f":"IF(AND(OR(C325=\"\",#REF!=\"\",F325=\"\",G325=\"\",H325=\"\"),AND(R325<>0)),1,0)","v":{"$error":"#REF!"}},0]
[null,null,null,null,null,null,null,null,null,null,null,null,null,null,null,null,null,0,null,null,null,null,null,null,null,null,null,null,null,null,null,null,null,0,0,null,0,{"$f":"IF(AND(OR(C326=\"\",#REF!=\"\",F326=\"\",G326=\"\",H326=\"\"),AND(R326<>0)),1,0)","v":{"$error":"#REF!"}},0]
[null,null,null,null,null,null,null,null,null,null,null,null,null,null,null,null,null,0,null,null,null,null,null,null,null,null,null,null,null,null,null,null,null,0,0,null,0,{"$f":"IF(AND(OR(C327=\"\",#REF!=\"\",F327=\"\",G327=\"\",H327=\"\"),AND(R327<>0)),1,0)","v":{"$error":"#REF!"}},0]
[null,null,null,null,null,null,null,null,null,null,null,null,null,null,null,null,null,0,null,null,null,null,null,null,null,null,null,null,null,null,null,null,null,0,0,null,0,{"$f":"IF(AND(OR(C328=\"\",#REF!=\"\",F328=\"\",G328=\"\",H328=\"\"),AND(R328<>0)),1,0)","v":{"$error":"#REF!"}},0]
[null,null,null,null,null,null,null,null,null,null,null,null,null,null,null,null,null,0,null,null,null,null,null,null,null,null,null,null,null,null,null,null,null,0,0,null,0,{"$f":"IF(AND(OR(C329=\"\",#REF!=\"\",F329=\"\",G329=\"\",H329=\"\"),AND(R329<>0)),1,0)","v":{"$error":"#REF!"}},0]
[null,null,null,null,null,null,null,null,null,null,null,null,null,null,null,null,null,0,null,null,null,null,null,null,null,null,null,null,null,null,null,null,null,0,0,null,0,{"$f":"IF(AND(OR(C330=\"\",#REF!=\"\",F330=\"\",G330=\"\",H330=\"\"),AND(R330<>0)),1,0)","v":{"$error":"#REF!"}},0]
[null,null,null,null,null,null,null,null,null,null,null,null,null,null,null,null,null,0,null,null,null,null,null,null,null,null,null,null,null,null,null,null,null,0,0,null,0,{"$f":"IF(AND(OR(C331=\"\",#REF!=\"\",F331=\"\",G331=\"\",H331=\"\"),AND(R331<>0)),1,0)","v":{"$error":"#REF!"}},0]
[null,null,null,null,null,null,null,null,null,null,null,null,null,null,null,null,null,0,null,null,null,null,null,null,null,null,null,null,null,null,null,null,null,0,0,null,0,{"$f":"IF(AND(OR(C332=\"\",#REF!=\"\",F332=\"\",G332=\"\",H332=\"\"),AND(R332<>0)),1,0)","v":{"$error":"#REF!"}},0]
[null,null,null,null,null,null,null,null,null,null,null,null,null,null,null,null,null,0,null,null,null,null,null,null,null,null,null,null,null,null,null,null,null,0,0,null,0,{"$f":"IF(AND(OR(C333=\"\",#REF!=\"\",F333=\"\",G333=\"\",H333=\"\"),AND(R333<>0)),1,0)","v":{"$error":"#REF!"}},0]
[null,null,null,null,null,null,null,null,null,null,null,null,null,null,null,null,null,0,null,null,null,null,null,null,null,null,null,null,null,null,null,null,null,0,0,null,0,{"$f":"IF(AND(OR(C334=\"\",#REF!=\"\",F334=\"\",G334=\"\",H334=\"\"),AND(R334<>0)),1,0)","v":{"$error":"#REF!"}},0]
[null,null,null,null,null,null,null,null,null,null,null,null,null,null,null,null,null,0,null,null,null,null,null,null,null,null,null,null,null,null,null,null,null,0,0,null,0,{"$f":"IF(AND(OR(C335=\"\",#REF!=\"\",F335=\"\",G335=\"\",H335=\"\"),AND(R335<>0)),1,0)","v":{"$error":"#REF!"}},0]
[null,null,null,null,null,null,null,null,null,null,null,null,null,null,null,null,null,0,null,null,null,null,null,null,null,null,null,null,null,null,null,null,null,0,0,null,0,{"$f":"IF(AND(OR(C336=\"\",#REF!=\"\",F336=\"\",G336=\"\",H336=\"\"),AND(R336<>0)),1,0)","v":{"$error":"#REF!"}},0]
[null,null,null,null,null,null,null,null,null,null,null,null,null,null,null,null,null,0,null,null,null,null,null,null,null,null,null,null,null,null,null,null,null,0,0,null,0,{"$f":"IF(AND(OR(C337=\"\",#REF!=\"\",F337=\"\",G337=\"\",H337=\"\"),AND(R337<>0)),1,0)","v":{"$error":"#REF!"}},0]
[null,null,null,null,null,null,null,null,null,null,null,null,null,null,null,null,null,0,null,null,null,null,null,null,null,null,null,null,null,null,null,null,null,0,0,null,0,{"$f":"IF(AND(OR(C338=\"\",#REF!=\"\",F338=\"\",G338=\"\",H338=\"\"),AND(R338<>0)),1,0)","v":{"$error":"#REF!"}},0]
[null,null,null,null,null,null,null,null,null,null,null,null,null,null,null,null,null,0,null,null,null,null,null,null,null,null,null,null,null,null,null,null,null,0,0,null,0,{"$f":"IF(AND(OR(C339=\"\",#REF!=\"\",F339=\"\",G339=\"\",H339=\"\"),AND(R339<>0)),1,0)","v":{"$error":"#REF!"}},0]
[null,null,null,null,null,null,null,null,null,null,null,null,null,null,null,null,null,0,null,null,null,null,null,null,null,null,null,null,null,null,null,null,null,0,0,null,0,{"$f":"IF(AND(OR(C340=\"\",#REF!=\"\",F340=\"\",G340=\"\",H340=\"\"),AND(R340<>0)),1,0)","v":{"$error":"#REF!"}},0]
[null,null,null,null,null,null,null,null,null,null,null,null,null,null,null,null,null,0,null,null,null,null,null,null,null,null,null,null,null,null,null,null,null,0,0,null,0,{"$f":"IF(AND(OR(C341=\"\",#REF!=\"\",F341=\"\",G341=\"\",H341=\"\"),AND(R341<>0)),1,0)","v":{"$error":"#REF!"}},0]
[null,null,null,null,null,null,null,null,null,null,null,null,null,null,null,null,null,0,null,null,null,null,null,null,null,null,null,null,null,null,null,null,null,0,0,null,0,{"$f":"IF(AND(OR(C342=\"\",#REF!=\"\",F342=\"\",G342=\"\",H342=\"\"),AND(R342<>0)),1,0)","v":{"$error":"#REF!"}},0]
[null,null,null,null,null,null,null,null,null,null,null,null,null,null,null,null,null,0,null,null,null,null,null,null,null,null,null,null,null,null,null,null,null,0,0,null,{"$f":"+R343-AH343","v":0},{"$f":"IF(AND(OR(C343=\"\",#REF!=\"\",F343=\"\",G343=\"\",H343=\"\"),AND(R343<>0)),1,0)","v":{"$error":"#REF!"}},0]
[null,null,null,null,null,null,null,null,null,null,null,null,null,null,null,null,null,0,null,null,null,null,null,null,null,null,null,null,null,null,null,null,null,0,0,null,0,{"$f":"IF(AND(OR(C344=\"\",#REF!=\"\",F344=\"\",G344=\"\",H344=\"\"),AND(R344<>0)),1,0)","v":{"$error":"#REF!"}},0]
[null,null,null,null,null,null,null,null,null,null,null,null,null,null,null,null,null,0,null,null,null,null,null,null,null,null,null,null,null,null,null,null,null,0,0,null,0,{"$f":"IF(AND(OR(C345=\"\",#REF!=\"\",F345=\"\",G345=\"\",H345=\"\"),AND(R345<>0)),1,0)","v":{"$error":"#REF!"}},0]
[null,null,null,null,null,null,null,null,null,null,null,null,null,null,null,null,null,0,null,null,null,null,null,null,null,null,null,null,null,null,null,null,null,0,0,null,0,{"$f":"IF(AND(OR(C346=\"\",#REF!=\"\",F346=\"\",G346=\"\",H346=\"\"),AND(R346<>0)),1,0)","v":{"$error":"#REF!"}},0]
[null,null,null,null,null,null,null,null,null,null,null,null,null,null,null,null,null,0,null,null,null,null,null,null,null,null,null,null,null,null,null,null,null,0,0,null,0,{"$f":"IF(AND(OR(C347=\"\",#REF!=\"\",F347=\"\",G347=\"\",H347=\"\"),AND(R347<>0)),1,0)","v":{"$error":"#REF!"}},0]
[null,null,null,null,null,null,null,null,null,null,null,null,null,null,null,null,null,0,null,null,null,null,null,null,null,null,null,null,null,null,null,null,null,0,0,null,0,{"$f":"IF(AND(OR(C348=\"\",#REF!=\"\",F348=\"\",G348=\"\",H348=\"\"),AND(R348<>0)),1,0)","v":{"$error":"#REF!"}},0]
[null,null,null,null,null,null,null,null,null,null,null,null,null,null,null,null,null,0,null,null,null,null,null,null,null,null,null,null,null,null,null,null,null,0,0,null,0,{"$f":"IF(AND(OR(C349=\"\",#REF!=\"\",F349=\"\",G349=\"\",H349=\"\"),AND(R349<>0)),1,0)","v":{"$error":"#REF!"}},0]
[null,null,null,null,null,null,null,null,null,null,null,null,null,null,null,null,null,0,null,null,null,null,null,null,null,null,null,null,null,null,null,null,null,0,0,null,0,{"$f":"IF(AND(OR(C350=\"\",#REF!=\"\",F350=\"\",G350=\"\",H350=\"\"),AND(R350<>0)),1,0)","v":{"$error":"#REF!"}},0]
[null,null,null,null,null,null,null,null,null,null,null,null,null,null,null,null,null,0,null,null,null,null,null,null,null,null,null,null,null,null,null,null,null,0,0,null,0,{"$f":"IF(AND(OR(C351=\"\",#REF!=\"\",F351=\"\",G351=\"\",H351=\"\"),AND(R351<>0)),1,0)","v":{"$error":"#REF!"}},0]
[null,null,null,null,null,null,null,null,null,null,null,null,null,null,null,null,null,0,null,null,null,null,null,null,null,null,null,null,null,null,null,null,null,0,0,null,0,{"$f":"IF(AND(OR(C352=\"\",#REF!=\"\",F352=\"\",G352=\"\",H352=\"\"),AND(R352<>0)),1,0)","v":{"$error":"#REF!"}},0]
[null,null,null,null,null,null,null,null,null,null,null,null,null,null,null,null,null,0,null,null,null,null,null,null,null,null,null,null,null,null,null,null,null,0,0,null,0,{"$f":"IF(AND(OR(C353=\"\",#REF!=\"\",F353=\"\",G353=\"\",H353=\"\"),AND(R353<>0)),1,0)","v":{"$error":"#REF!"}},0]
[null,null,null,null,null,null,null,null,null,null,null,null,null,null,null,null,null,0,null,null,null,null,null,null,null,null,null,null,null,null,null,null,null,0,0,null,0,{"$f":"IF(AND(OR(C354=\"\",#REF!=\"\",F354=\"\",G354=\"\",H354=\"\"),AND(R354<>0)),1,0)","v":{"$error":"#REF!"}},0]
[null,null,null,null,null,null,null,null,null,null,null,null,null,null,null,null,null,0,null,null,null,null,null,null,null,null,null,null,null,null,null,null,null,0,0,null,0,{"$f":"IF(AND(OR(C355=\"\",#REF!=\"\",F355=\"\",G355=\"\",H355=\"\"),AND(R355<>0)),1,0)","v":{"$error":"#REF!"}},0]
[null,null,null,null,null,null,null,null,null,null,null,null,null,null,null,null,null,0,null,null,null,null,null,null,null,null,null,null,null,null,null,null,null,0,0,null,0,{"$f":"IF(AND(OR(C356=\"\",#REF!=\"\",F356=\"\",G356=\"\",H356=\"\"),AND(R356<>0)),1,0)","v":{"$error":"#REF!"}},0]
[null,null,null,null,null,null,null,null,null,null,null,null,null,null,null,null,null,0,null,null,null,null,null,null,null,null,null,null,null,null,null,null,null,0,0,null,0,{"$f":"IF(AND(OR(C357=\"\",#REF!=\"\",F357=\"\",G357=\"\",H357=\"\"),AND(R357<>0)),1,0)","v":{"$error":"#REF!"}},0]
[null,null,null,null,null,null,null,null,null,null,null,null,null,null,null,null,null,0,null,null,null,null,null,null,null,null,null,null,null,null,null,null,null,0,0,null,0,{"$f":"IF(AND(OR(C358=\"\",#REF!=\"\",F358=\"\",G358=\"\",H358=\"\"),AND(R358<>0)),1,0)","v":{"$error":"#REF!"}},0]
[null,null,null,null,null,null,null,null,null,null,null,null,null,null,null,null,null,0,null,null,null,null,null,null,null,null,null,null,null,null,null,null,null,0,0,null,0,{"$f":"IF(AND(OR(C359=\"\",#REF!=\"\",F359=\"\",G359=\"\",H359=\"\"),AND(R359<>0)),1,0)","v":{"$error":"#REF!"}},0]
[null,null,null,null,null,null,null,null,null,null,null,null,null,null,null,null,null,0,null,null,null,null,null,null,null,null,null,null,null,null,null,null,null,0,0,null,0,{"$f":"IF(AND(OR(C360=\"\",#REF!=\"\",F360=\"\",G360=\"\",H360=\"\"),AND(R360<>0)),1,0)","v":{"$error":"#REF!"}},0]
[null,null,null,null,null,null,null,null,null,null,null,null,null,null,null,null,null,0,null,null,null,null,null,null,null,null,null,null,null,null,null,null,null,0,0,null,0,{"$f":"IF(AND(OR(C361=\"\",#REF!=\"\",F361=\"\",G361=\"\",H361=\"\"),AND(R361<>0)),1,0)","v":{"$error":"#REF!"}},0]
[null,null,null,null,null,null,null,null,null,null,null,null,null,null,null,null,null,0,null,null,null,null,null,null,null,null,null,null,null,null,null,null,null,0,0,null,0,{"$f":"IF(AND(OR(C362=\"\",#REF!=\"\",F362=\"\",G362=\"\",H362=\"\"),AND(R362<>0)),1,0)","v":{"$error":"#REF!"}},0]
[null,null,null,null,null,null,null,null,null,null,null,null,null,null,null,null,null,0,null,null,null,null,null,null,null,null,null,null,null,null,null,null,null,0,0,null,0,{"$f":"IF(AND(OR(C363=\"\",#REF!=\"\",F363=\"\",G363=\"\",H363=\"\"),AND(R363<>0)),1,0)","v":{"$error":"#REF!"}},0]
[null,null,null,null,null,null,null,null,null,null,null,null,null,null,null,null,null,0,null,null,null,null,null,null,null,null,null,null,null,null,null,null,null,0,0,null,0,{"$f":"IF(AND(OR(C364=\"\",#REF!=\"\",F364=\"\",G364=\"\",H364=\"\"),AND(R364<>0)),1,0)","v":{"$error":"#REF!"}},0]
[null,null,null,null,null,null,null,null,null,null,null,null,null,null,null,null,null,0,null,null,null,null,null,null,null,null,null,null,null,null,null,null,null,0,0,null,0,{"$f":"IF(AND(OR(C365=\"\",#REF!=\"\",F365=\"\",G365=\"\",H365=\"\"),AND(R365<>0)),1,0)","v":{"$error":"#REF!"}},0]
[null,null,null,null,null,null,null,null,null,null,null,null,null,null,null,null,null,0,null,null,null,null,null,null,null,null,null,null,null,null,null,null,null,0,0,null,0,{"$f":"IF(AND(OR(C366=\"\",#REF!=\"\",F366=\"\",G366=\"\",H366=\"\"),AND(R366<>0)),1,0)","v":{"$error":"#REF!"}},0]
[null,null,null,null,null,null,null,null,null,null,null,null,null,null,null,null,null,0,null,null,null,null,null,null,null,null,null,null,null,null,null,null,null,0,0,null,0,{"$f":"IF(AND(OR(C367=\"\",#REF!=\"\",F367=\"\",G367=\"\",H367=\"\"),AND(R367<>0)),1,0)","v":{"$error":"#REF!"}},0]
[null,null,null,null,null,null,null,null,null,null,null,null,null,null,null,null,null,0,null,null,null,null,null,null,null,null,null,null,null,null,null,null,null,0,0,null,0,{"$f":"IF(AND(OR(C368=\"\",#REF!=\"\",F368=\"\",G368=\"\",H368=\"\"),AND(R368<>0)),1,0)","v":{"$error":"#REF!"}},0]
[null,null,null,null,null,null,null,null,null,null,null,null,null,null,null,null,null,0,null,null,null,null,null,null,null,null,null,null,null,null,null,null,null,0,0,null,0,{"$f":"IF(AND(OR(C369=\"\",#REF!=\"\",F369=\"\",G369=\"\",H369=\"\"),AND(R369<>0)),1,0)","v":{"$error":"#REF!"}},0]
[null,null,null,null,null,null,null,null,null,null,null,null,null,null,null,null,null,0,null,null,null,null,null,null,null,null,null,null,null,null,null,null,null,0,0,null,0,{"$f":"IF(AND(OR(C370=\"\",#REF!=\"\",F370=\"\",G370=\"\",H370=\"\"),AND(R370<>0)),1,0)","v":{"$error":"#REF!"}},0]
[null,null,null,null,null,null,null,null,null,null,null,null,null,null,null,null,null,0,null,null,null,null,null,null,null,null,null,null,null,null,null,null,null,0,0,null,0,{"$f":"IF(AND(OR(C371=\"\",#REF!=\"\",F371=\"\",G371=\"\",H371=\"\"),AND(R371<>0)),1,0)","v":{"$error":"#REF!"}},0]
[null,null,null,null,null,null,null,null,null,null,null,null,null,null,null,null,null,0,null,null,null,null,null,null,null,null,null,null,null,null,null,null,null,0,0,null,0,{"$f":"IF(AND(OR(C372=\"\",#REF!=\"\",F372=\"\",G372=\"\",H372=\"\"),AND(R372<>0)),1,0)","v":{"$error":"#REF!"}},0]
[null,null,null,null,null,null,null,null,null,null,null,null,null,null,null,null,null,0,null,null,null,null,null,null,null,null,null,null,null,null,null,null,null,0,0,null,0,{"$f":"IF(AND(OR(C373=\"\",#REF!=\"\",F373=\"\",G373=\"\",H373=\"\"),AND(R373<>0)),1,0)","v":{"$error":"#REF!"}},0]
[null,null,null,null,null,null,null,null,null,null,null,null,null,null,null,null,null,0,null,null,null,null,null,null,null,null,null,null,null,null,null,null,null,0,0,null,0,{"$f":"IF(AND(OR(C374=\"\",#REF!=\"\",F374=\"\",G374=\"\",H374=\"\"),AND(R374<>0)),1,0)","v":{"$error":"#REF!"}},0]
[null,null,null,null,null,null,null,null,null,null,null,null,null,null,null,null,null,0,null,null,null,null,null,null,null,null,null,null,null,null,null,null,null,0,0,null,0,{"$f":"IF(AND(OR(C375=\"\",#REF!=\"\",F375=\"\",G375=\"\",H375=\"\"),AND(R375<>0)),1,0)","v":{"$error":"#REF!"}},0]
[null,null,null,null,null,null,null,null,null,null,null,null,null,null,null,null,null,0,null,null,null,null,null,null,null,null,null,null,null,null,null,null,null,0,0,null,0,{"$f":"IF(AND(OR(C376=\"\",#REF!=\"\",F376=\"\",G376=\"\",H376=\"\"),AND(R376<>0)),1,0)","v":{"$error":"#REF!"}},0]
[null,null,null,null,null,null,null,null,null,null,null,null,null,null,null,null,null,0,null,null,null,null,null,null,null,null,null,null,null,null,null,null,null,0,0,null,0,{"$f":"IF(AND(OR(C377=\"\",#REF!=\"\",F377=\"\",G377=\"\",H377=\"\"),AND(R377<>0)),1,0)","v":{"$error":"#REF!"}},0]
[null,null,null,null,null,null,null,null,null,null,null,null,null,null,null,null,null,0,null,null,null,null,null,null,null,null,null,null,null,null,null,null,null,0,0,null,0,{"$f":"IF(AND(OR(C378=\"\",#REF!=\"\",F378=\"\",G378=\"\",H378=\"\"),AND(R378<>0)),1,0)","v":{"$error":"#REF!"}},0]
[null,null,null,null,null,null,null,null,null,null,null,null,null,null,null,null,null,0,null,null,null,null,null,null,null,null,null,null,null,null,null,null,null,0,0,null,0,{"$f":"IF(AND(OR(C379=\"\",#REF!=\"\",F379=\"\",G379=\"\",H379=\"\"),AND(R379<>0)),1,0)","v":{"$error":"#REF!"}},0]
[null,null,null,null,null,null,null,null,null,null,null,null,null,null,null,null,null,0,null,null,null,null,null,null,null,null,null,null,null,null,null,null,null,0,0,null,0,{"$f":"IF(AND(OR(C380=\"\",#REF!=\"\",F380=\"\",G380=\"\",H380=\"\"),AND(R380<>0)),1,0)","v":{"$error":"#REF!"}},0]
[null,null,null,null,null,null,null,null,null,null,null,null,null,null,null,null,null,0,null,null,null,null,null,null,null,null,null,null,null,null,null,null,null,0,0,null,0,{"$f":"IF(AND(OR(C381=\"\",#REF!=\"\",F381=\"\",G381=\"\",H381=\"\"),AND(R381<>0)),1,0)","v":{"$error":"#REF!"}},0]
[null,null,null,null,null,null,null,null,null,null,null,null,null,null,null,null,null,0,null,null,null,null,null,null,null,null,null,null,null,null,null,null,null,0,0,null,0,{"$f":"IF(AND(OR(C382=\"\",#REF!=\"\",F382=\"\",G382=\"\",H382=\"\"),AND(R382<>0)),1,0)","v":{"$error":"#REF!"}},0]
[null,null,null,null,null,null,null,null,null,null,null,null,null,null,null,null,null,0,null,null,null,null,null,null,null,null,null,null,null,null,null,null,null,0,0,null,0,{"$f":"IF(AND(OR(C383=\"\",#REF!=\"\",F383=\"\",G383=\"\",H383=\"\"),AND(R383<>0)),1,0)","v":{"$error":"#REF!"}},0]
[null,null,null,null,null,null,null,null,null,null,null,null,null,null,null,null,null,0,null,null,null,null,null,null,null,null,null,null,null,null,null,null,null,0,0,null,0,{"$f":"IF(AND(OR(C384=\"\",#REF!=\"\",F384=\"\",G384=\"\",H384=\"\"),AND(R384<>0)),1,0)","v":{"$error":"#REF!"}},0]
[null,null,null,null,null,null,null,null,null,null,null,null,null,null,null,null,null,0,null,null,null,null,null,null,null,null,null,null,null,null,null,null,null,0,0,null,0,{"$f":"IF(AND(OR(C385=\"\",#REF!=\"\",F385=\"\",G385=\"\",H385=\"\"),AND(R385<>0)),1,0)","v":{"$error":"#REF!"}},0]
[null,null,null,null,null,null,null,null,null,null,null,null,null,null,null,null,null,0,null,null,null,null,null,null,null,null,null,null,null,null,null,null,null,0,0,null,0,{"$f":"IF(AND(OR(C386=\"\",#REF!=\"\",F386=\"\",G386=\"\",H386=\"\"),AND(R386<>0)),1,0)","v":{"$error":"#REF!"}},0]
[null,null,null,null,null,null,null,null,null,null,null,null,null,null,null,null,null,0,null,null,null,null,null,null,null,null,null,null,null,null,null,null,null,0,0,null,0,{"$f":"IF(AND(OR(C387=\"\",#REF!=\"\",F387=\"\",G387=\"\",H387=\"\"),AND(R387<>0)),1,0)","v":{"$error":"#REF!"}},0]
[null,null,null,null,null,null,null,null,null,null,null,null,null,null,null,null,null,{"$f":"+P388+Q388","v":0},null,null,null,null,null,null,null,null,null,null,null,null,null,null,null,{"$f":"SUM(T388:AG388)","v":0},0,null,0,{"$f":"IF(AND(OR(C388=\"\",#REF!=\"\",F388=\"\",G388=\"\",H388=\"\"),AND(R388<>0)),1,0)","v":{"$error":"#REF!"}},{"$f":"IF(AND(L388=\"SI\",M388=\"\"),1,0)","v":0}]
[null,null,null,null,null,null,null,null,null,null,null,null,null,null,null,null,null,0,null,null,null,null,null,null,null,null,null,null,null,null,null,null,null,0,{"$f":"R389-AH389","v":0},null,0,{"$f":"IF(AND(OR(C389=\"\",#REF!=\"\",F389=\"\",G389=\"\",H389=\"\"),AND(R389<>0)),1,0)","v":{"$error":"#REF!"}},0]
[null,null,null,null,null,null,null,null,null,null,null,null,null,null,null,null,null,0,null,null,null,null,null,null,null,null,null,null,null,null,null,null,null,0,0,null,0,{"$f":"IF(AND(OR(C390=\"\",#REF!=\"\",F390=\"\",G390=\"\",H390=\"\"),AND(R390<>0)),1,0)","v":{"$error":"#REF!"}},0]
[null,null,null,null,null,null,null,null,null,null,null,null,null,null,null,null,null,0,null,null,null,null,null,null,null,null,null,null,null,null,null,null,null,0,0,null,0,{"$f":"IF(AND(OR(C391=\"\",#REF!=\"\",F391=\"\",G391=\"\",H391=\"\"),AND(R391<>0)),1,0)","v":{"$error":"#REF!"}},0]
[null,null,null,null,null,null,null,null,null,null,null,null,null,null,null,null,null,0,null,null,null,null,null,null,null,null,null,null,null,null,null,null,null,0,0,null,0,{"$f":"IF(AND(OR(C392=\"\",#REF!=\"\",F392=\"\",G392=\"\",H392=\"\"),AND(R392<>0)),1,0)","v":{"$error":"#REF!"}},0]
[null,null,null,null,null,null,null,null,null,null,null,null,null,null,null,null,null,0,null,null,null,null,null,null,null,null,null,null,null,null,null,null,null,0,0,null,0,{"$f":"IF(AND(OR(C393=\"\",#REF!=\"\",F393=\"\",G393=\"\",H393=\"\"),AND(R393<>0)),1,0)","v":{"$error":"#REF!"}},0]
[null,null,null,null,null,null,null,null,null,null,null,null,null,null,null,null,null,0,null,null,null,null,null,null,null,null,null,null,null,null,null,null,null,0,0,null,0,{"$f":"IF(AND(OR(C394=\"\",#REF!=\"\",F394=\"\",G394=\"\",H394=\"\"),AND(R394<>0)),1,0)","v":{"$error":"#REF!"}},0]
[null,null,null,null,null,null,null,null,null,null,null,null,null,null,null,null,null,0,null,null,null,null,null,null,null,null,null,null,null,null,null,null,null,0,0,null,0,{"$f":"IF(AND(OR(C395=\"\",#REF!=\"\",F395=\"\",G395=\"\",H395=\"\"),AND(R395<>0)),1,0)","v":{"$error":"#REF!"}},0]
[null,null,null,null,null,null,null,null,null,null,null,null,null,null,null,null,null,0,null,null,null,null,null,null,null,null,null,null,null,null,null,null,null,0,0,null,0,{"$f":"IF(AND(OR(C396=\"\",#REF!=\"\",F396=\"\",G396=\"\",H396=\"\"),AND(R396<>0)),1,0)","v":{"$error":"#REF!"}},0]
[null,null,null,null,null,null,null,null,null,null,null,null,null,null,null,null,null,0,null,null,null,null,null,null,null,null,null,null,null,null,null,null,null,0,0,null,0,{"$f":"IF(AND(OR(C397=\"\",#REF!=\"\",F397=\"\",G397=\"\",H397=\"\"),AND(R397<>0)),1,0)","v":{"$error":"#REF!"}},0]
[null,null,null,null,null,null,null,null,null,null,null,null,null,null,null,null,null,0,null,null,null,null,null,null,null,null,null,null,null,null,null,null,null,0,0,null,0,{"$f":"IF(AND(OR(C398=\"\",#REF!=\"\",F398=\"\",G398=\"\",H398=\"\"),AND(R398<>0)),1,0)","v":{"$error":"#REF!"}},0]
[null,null,null,null,null,null,null,null,null,null,null,null,null,null,null,null,null,0,null,null,null,null,null,null,null,null,null,null,null,null,null,null,null,0,0,null,0,{"$f":"IF(AND(OR(C399=\"\",#REF!=\"\",F399=\"\",G399=\"\",H399=\"\"),AND(R399<>0)),1,0)","v":{"$error":"#REF!"}},0]
[null,null,null,null,null,null,null,null,null,null,null,null,null,null,null,null,null,0,null,null,null,null,null,null,null,null,null,null,null,null,null,null,null,0,0,null,0,{"$f":"IF(AND(OR(C400=\"\",#REF!=\"\",F400=\"\",G400=\"\",H400=\"\"),AND(R400<>0)),1,0)","v":{"$error":"#REF!"}},0]
[null,null,null,null,null,null,null,null,null,null,null,null,null,null,null,null,null,0,null,null,null,null,null,null,null,null,null,null,null,null,null,null,null,0,0,null,0,{"$f":"IF(AND(OR(C401=\"\",#REF!=\"\",F401=\"\",G401=\"\",H401=\"\"),AND(R401<>0)),1,0)","v":{"$error":"#REF!"}},0]
[null,null,null,null,null,null,null,null,null,null,null,null,null,null,null,null,null,0,null,null,null,null,null,null,null,null,null,null,null,null,null,null,null,0,0,null,0,{"$f":"IF(AND(OR(C402=\"\",#REF!=\"\",F402=\"\",G402=\"\",H402=\"\"),AND(R402<>0)),1,0)","v":{"$error":"#REF!"}},0]
[null,null,null,null,null,null,null,null,null,null,null,null,null,null,null,null,null,0,null,null,null,null,null,null,null,null,null,null,null,null,null,null,null,0,0,null,0,{"$f":"IF(AND(OR(C403=\"\",#REF!=\"\",F403=\"\",G403=\"\",H403=\"\"),AND(R403<>0)),1,0)","v":{"$error":"#REF!"}},0]
[null,null,null,null,null,null,null,null,null,null,null,null,null,null,null,null,null,0,null,null,null,null,null,null,null,null,null,null,null,null,null,null,null,0,0,null,0,{"$f":"IF(AND(OR(C404=\"\",#REF!=\"\",F404=\"\",G404=\"\",H404=\"\"),AND(R404<>0)),1,0)","v":{"$error":"#REF!"}},0]
[null,null,null,null,null,null,null,null,null,null,null,null,null,null,null,null,null,0,null,null,null,null,null,null,null,null,null,null,null,null,null,null,null,0,0,null,0,{"$f":"IF(AND(OR(C405=\"\",#REF!=\"\",F405=\"\",G405=\"\",H405=\"\"),AND(R405<>0)),1,0)","v":{"$error":"#REF!"}},0]
[null,null,null,null,null,null,null,null,null,null,null,null,null,null,null,null,null,0,null,null,null,null,null,null,null,null,null,null,null,null,null,null,null,0,0,null,0,{"$f":"IF(AND(OR(C406=\"\",#REF!=\"\",F406=\"\",G406=\"\",H406=\"\"),AND(R406<>0)),1,0)","v":{"$error":"#REF!"}},0]
[null,null,null,null,null,null,null,null,null,null,null,null,null,null,null,null,null,0,null,null,null,null,null,null,null,null,null,null,null,null,null,null,null,0,0,null,{"$f":"+R407-AH407","v":0},{"$f":"IF(AND(OR(C407=\"\",#REF!=\"\",F407=\"\",G407=\"\",H407=\"\"),AND(R407<>0)),1,0)","v":{"$error":"#REF!"}},0]
[null,null,null,null,null,null,null,null,null,null,null,null,null,null,null,null,null,0,null,null,null,null,null,null,null,null,null,null,null,null,null,null,null,0,0,null,0,{"$f":"IF(AND(OR(C408=\"\",#REF!=\"\",F408=\"\",G408=\"\",H408=\"\"),AND(R408<>0)),1,0)","v":{"$error":"#REF!"}},0]
[null,null,null,null,null,null,null,null,null,null,null,null,null,null,null,null,null,0,null,null,null,null,null,null,null,null,null,null,null,null,null,null,null,0,0,null,0,{"$f":"IF(AND(OR(C409=\"\",#REF!=\"\",F409=\"\",G409=\"\",H409=\"\"),AND(R409<>0)),1,0)","v":{"$error":"#REF!"}},0]
[null,null,null,null,null,null,null,null,null,null,null,null,null,null,null,null,null,0,null,null,null,null,null,null,null,null,null,null,null,null,null,null,null,0,0,null,0,{"$f":"IF(AND(OR(C410=\"\",#REF!=\"\",F410=\"\",G410=\"\",H410=\"\"),AND(R410<>0)),1,0)","v":{"$error":"#REF!"}},0]
[null,null,null,null,null,null,null,null,null,null,null,null,null,null,null,null,null,0,null,null,null,null,null,null,null,null,null,null,null,null,null,null,null,0,0,null,0,{"$f":"IF(AND(OR(C411=\"\",#REF!=\"\",F411=\"\",G411=\"\",H411=\"\"),AND(R411<>0)),1,0)","v":{"$error":"#REF!"}},0]
[null,null,null,null,null,null,null,null,null,null,null,null,null,null,null,null,null,0,null,null,null,null,null,null,null,null,null,null,null,null,null,null,null,0,0,null,0,{"$f":"IF(AND(OR(C412=\"\",#REF!=\"\",F412=\"\",G412=\"\",H412=\"\"),AND(R412<>0)),1,0)","v":{"$error":"#REF!"}},0]
[null,null,null,null,null,null,null,null,null,null,null,null,null,null,null,null,null,0,null,null,null,null,null,null,null,null,null,null,null,null,null,null,null,0,0,null,0,{"$f":"IF(AND(OR(C413=\"\",#REF!=\"\",F413=\"\",G413=\"\",H413=\"\"),AND(R413<>0)),1,0)","v":{"$error":"#REF!"}},0]
[null,null,null,null,null,null,null,null,null,null,null,null,null,null,null,null,null,0,null,null,null,null,null,null,null,null,null,null,null,null,null,null,null,0,0,null,0,{"$f":"IF(AND(OR(C414=\"\",#REF!=\"\",F414=\"\",G414=\"\",H414=\"\"),AND(R414<>0)),1,0)","v":{"$error":"#REF!"}},0]
[null,null,null,null,null,null,null,null,null,null,null,null,null,null,null,null,null,0,null,null,null,null,null,null,null,null,null,null,null,null,null,null,null,0,0,null,0,{"$f":"IF(AND(OR(C415=\"\",#REF!=\"\",F415=\"\",G415=\"\",H415=\"\"),AND(R415<>0)),1,0)","v":{"$error":"#REF!"}},0]
[null,null,null,null,null,null,null,null,null,null,null,null,null,null,null,null,null,0,null,null,null,null,null,null,null,null,null,null,null,null,null,null,null,0,0,null,0,{"$f":"IF(AND(OR(C416=\"\",#REF!=\"\",F416=\"\",G416=\"\",H416=\"\"),AND(R416<>0)),1,0)","v":{"$error":"#REF!"}},0]
[null,null,null,null,null,null,null,null,null,null,null,null,null,null,null,null,null,0,null,null,null,null,null,null,null,null,null,null,null,null,null,null,null,0,0,null,0,{"$f":"IF(AND(OR(C417=\"\",#REF!=\"\",F417=\"\",G417=\"\",H417=\"\"),AND(R417<>0)),1,0)","v":{"$error":"#REF!"}},0]
[null,null,null,null,null,null,null,null,null,null,null,null,null,null,null,null,null,0,null,null,null,null,null,null,null,null,null,null,null,null,null,null,null,0,0,null,0,{"$f":"IF(AND(OR(C418=\"\",#REF!=\"\",F418=\"\",G418=\"\",H418=\"\"),AND(R418<>0)),1,0)","v":{"$error":"#REF!"}},0]
[null,null,null,null,null,null,null,null,null,null,null,null,null,null,null,null,null,0,null,null,null,null,null,null,null,null,null,null,null,null,null,null,null,0,0,null,0,{"$f":"IF(AND(OR(C419=\"\",#REF!=\"\",F419=\"\",G419=\"\",H419=\"\"),AND(R419<>0)),1,0)","v":{"$error":"#REF!"}},0]
[null,null,null,null,null,null,null,null,null,null,null,null,null,null,null,null,null,0,null,null,null,null,null,null,null,null,null,null,null,null,null,null,null,0,0,null,0,{"$f":"IF(AND(OR(C420=\"\",#REF!=\"\",F420=\"\",G420=\"\",H420=\"\"),AND(R420<>0)),1,0)","v":{"$error":"#REF!"}},0]
[null,null,null,null,null,null,null,null,null,null,null,null,null,null,null,null,null,0,null,null,null,null,null,null,null,null,null,null,null,null,null,null,null,0,0,null,0,{"$f":"IF(AND(OR(C421=\"\",#REF!=\"\",F421=\"\",G421=\"\",H421=\"\"),AND(R421<>0)),1,0)","v":{"$error":"#REF!"}},0]
[null,null,null,null,null,null,null,null,null,null,null,null,null,null,null,null,null,0,null,null,null,null,null,null,null,null,null,null,null,null,null,null,null,0,0,null,0,{"$f":"IF(AND(OR(C422=\"\",#REF!=\"\",F422=\"\",G422=\"\",H422=\"\"),AND(R422<>0)),1,0)","v":{"$error":"#REF!"}},0]
[null,null,null,null,null,null,null,null,null,null,null,null,null,null,null,null,null,0,null,null,null,null,null,null,null,null,null,null,null,null,null,null,null,0,0,null,0,{"$f":"IF(AND(OR(C423=\"\",#REF!=\"\",F423=\"\",G423=\"\",H423=\"\"),AND(R423<>0)),1,0)","v":{"$error":"#REF!"}},0]
[null,null,null,null,null,null,null,null,null,null,null,null,null,null,null,null,null,0,null,null,null,null,null,null,null,null,null,null,null,null,null,null,null,0,0,null,0,{"$f":"IF(AND(OR(C424=\"\",#REF!=\"\",F424=\"\",G424=\"\",H424=\"\"),AND(R424<>0)),1,0)","v":{"$error":"#REF!"}},0]
[null,null,null,null,null,null,null,null,null,null,null,null,null,null,null,null,null,0,null,null,null,null,null,null,null,null,null,null,null,null,null,null,null,0,0,null,0,{"$f":"IF(AND(OR(C425=\"\",#REF!=\"\",F425=\"\",G425=\"\",H425=\"\"),AND(R425<>0)),1,0)","v":{"$error":"#REF!"}},0]
[null,null,null,null,null,null,null,null,null,null,null,null,null,null,null,null,null,0,null,null,null,null,null,null,null,null,null,null,null,null,null,null,null,0,0,null,0,{"$f":"IF(AND(OR(C426=\"\",#REF!=\"\",F426=\"\",G426=\"\",H426=\"\"),AND(R426<>0)),1,0)","v":{"$error":"#REF!"}},0]
[null,null,null,null,null,null,null,null,null,null,null,null,null,null,null,null,null,0,null,null,null,null,null,null,null,null,null,null,null,null,null,null,null,0,0,null,0,{"$f":"IF(AND(OR(C427=\"\",#REF!=\"\",F427=\"\",G427=\"\",H427=\"\"),AND(R427<>0)),1,0)","v":{"$error":"#REF!"}},0]
[null,null,null,null,null,null,null,null,null,null,null,null,null,null,null,null,null,0,null,null,null,null,null,null,null,null,null,null,null,null,null,null,null,0,0,null,0,{"$f":"IF(AND(OR(C428=\"\",#REF!=\"\",F428=\"\",G428=\"\",H428=\"\"),AND(R428<>0)),1,0)","v":{"$error":"#REF!"}},0]
[null,null,null,null,null,null,null,null,null,null,null,null,null,null,null,null,null,0,null,null,null,null,null,null,null,null,null,null,null,null,null,null,null,0,0,null,0,{"$f":"IF(AND(OR(C429=\"\",#REF!=\"\",F429=\"\",G429=\"\",H429=\"\"),AND(R429<>0)),1,0)","v":{"$error":"#REF!"}},0]
[null,null,null,null,null,null,null,null,null,null,null,null,null,null,null,null,null,0,null,null,null,null,null,null,null,null,null,null,null,null,null,null,null,0,0,null,0,{"$f":"IF(AND(OR(C430=\"\",#REF!=\"\",F430=\"\",G430=\"\",H430=\"\"),AND(R430<>0)),1,0)","v":{"$error":"#REF!"}},0]
[null,null,null,null,null,null,null,null,null,null,null,null,null,null,null,null,null,0,null,null,null,null,null,null,null,null,null,null,null,null,null,null,null,0,0,null,0,{"$f":"IF(AND(OR(C431=\"\",#REF!=\"\",F431=\"\",G431=\"\",H431=\"\"),AND(R431<>0)),1,0)","v":{"$error":"#REF!"}},0]
[null,null,null,null,null,null,null,null,null,null,null,null,null,null,null,null,null,0,null,null,null,null,null,null,null,null,null,null,null,null,null,null,null,0,0,null,0,{"$f":"IF(AND(OR(C432=\"\",#REF!=\"\",F432=\"\",G432=\"\",H432=\"\"),AND(R432<>0)),1,0)","v":{"$error":"#REF!"}},0]
[null,null,null,null,null,null,null,null,null,null,null,null,null,null,null,null,null,0,null,null,null,null,null,null,null,null,null,null,null,null,null,null,null,0,0,null,0,{"$f":"IF(AND(OR(C433=\"\",#REF!=\"\",F433=\"\",G433=\"\",H433=\"\"),AND(R433<>0)),1,0)","v":{"$error":"#REF!"}},0]
[null,null,null,null,null,null,null,null,null,null,null,null,null,null,null,null,null,0,null,null,null,null,null,null,null,null,null,null,null,null,null,null,null,0,0,null,0,{"$f":"IF(AND(OR(C434=\"\",#REF!=\"\",F434=\"\",G434=\"\",H434=\"\"),AND(R434<>0)),1,0)","v":{"$error":"#REF!"}},0]
[null,null,null,null,null,null,null,null,null,null,null,null,null,null,null,null,null,0,null,null,null,null,null,null,null,null,null,null,null,null,null,null,null,0,0,null,0,{"$f":"IF(AND(OR(C435=\"\",#REF!=\"\",F435=\"\",G435=\"\",H435=\"\"),AND(R435<>0)),1,0)","v":{"$error":"#REF!"}},0]
[null,null,null,null,null,null,null,null,null,null,null,null,null,null,null,null,null,0,null,null,null,null,null,null,null,null,null,null,null,null,null,null,null,0,0,null,0,{"$f":"IF(AND(OR(C436=\"\",#REF!=\"\",F436=\"\",G436=\"\",H436=\"\"),AND(R436<>0)),1,0)","v":{"$error":"#REF!"}},0]
[null,null,null,null,null,null,null,null,null,null,null,null,null,null,null,null,null,0,null,null,null,null,null,null,null,null,null,null,null,null,null,null,null,0,0,null,0,{"$f":"IF(AND(OR(C437=\"\",#REF!=\"\",F437=\"\",G437=\"\",H437=\"\"),AND(R437<>0)),1,0)","v":{"$error":"#REF!"}},0]
[null,null,null,null,null,null,null,null,null,null,null,null,null,null,null,null,null,0,null,null,null,null,null,null,null,null,null,null,null,null,null,null,null,0,0,null,0,{"$f":"IF(AND(OR(C438=\"\",#REF!=\"\",F438=\"\",G438=\"\",H438=\"\"),AND(R438<>0)),1,0)","v":{"$error":"#REF!"}},0]
[null,null,null,null,null,null,null,null,null,null,null,null,null,null,null,null,null,0,null,null,null,null,null,null,null,null,null,null,null,null,null,null,null,0,0,null,0,{"$f":"IF(AND(OR(C439=\"\",#REF!=\"\",F439=\"\",G439=\"\",H439=\"\"),AND(R439<>0)),1,0)","v":{"$error":"#REF!"}},0]
[null,null,null,null,null,null,null,null,null,null,null,null,null,null,null,null,null,0,null,null,null,null,null,null,null,null,null,null,null,null,null,null,null,0,0,null,0,{"$f":"IF(AND(OR(C440=\"\",#REF!=\"\",F440=\"\",G440=\"\",H440=\"\"),AND(R440<>0)),1,0)","v":{"$error":"#REF!"}},0]
[null,null,null,null,null,null,null,null,null,null,null,null,null,null,null,null,null,0,null,null,null,null,null,null,null,null,null,null,null,null,null,null,null,0,0,null,0,{"$f":"IF(AND(OR(C441=\"\",#REF!=\"\",F441=\"\",G441=\"\",H441=\"\"),AND(R441<>0)),1,0)","v":{"$error":"#REF!"}},0]
[null,null,null,null,null,null,null,null,null,null,null,null,null,null,null,null,null,0,null,null,null,null,null,null,null,null,null,null,null,null,null,null,null,0,0,null,0,{"$f":"IF(AND(OR(C442=\"\",#REF!=\"\",F442=\"\",G442=\"\",H442=\"\"),AND(R442<>0)),1,0)","v":{"$error":"#REF!"}},0]
[null,null,null,null,null,null,null,null,null,null,null,null,null,null,null,null,null,0,null,null,null,null,null,null,null,null,null,null,null,null,null,null,null,0,0,null,0,{"$f":"IF(AND(OR(C443=\"\",#REF!=\"\",F443=\"\",G443=\"\",H443=\"\"),AND(R443<>0)),1,0)","v":{"$error":"#REF!"}},0]
[null,null,null,null,null,null,null,null,null,null,null,null,null,null,null,null,null,0,null,null,null,null,null,null,null,null,null,null,null,null,null,null,null,0,0,null,0,{"$f":"IF(AND(OR(C444=\"\",#REF!=\"\",F444=\"\",G444=\"\",H444=\"\"),AND(R444<>0)),1,0)","v":{"$error":"#REF!"}},0]
[null,null,null,null,null,null,null,null,null,null,null,null,null,null,null,null,null,0,null,null,null,null,null,null,null,null,null,null,null,null,null,null,null,0,0,null,0,{"$f":"IF(AND(OR(C445=\"\",#REF!=\"\",F445=\"\",G445=\"\",H445=\"\"),AND(R445<>0)),1,0)","v":{"$error":"#REF!"}},0]
[null,null,null,null,null,null,null,null,null,null,null,null,null,null,null,null,null,0,null,null,null,null,null,null,null,null,null,null,null,null,null,null,null,0,0,null,0,{"$f":"IF(AND(OR(C446=\"\",#REF!=\"\",F446=\"\",G446=\"\",H446=\"\"),AND(R446<>0)),1,0)","v":{"$error":"#REF!"}},0]
[null,null,null,null,null,null,null,null,null,null,null,null,null,null,null,null,null,0,null,null,null,null,null,null,null,null,null,null,null,null,null,null,null,0,0,null,0,{"$f":"IF(AND(OR(C447=\"\",#REF!=\"\",F447=\"\",G447=\"\",H447=\"\"),AND(R447<>0)),1,0)","v":{"$error":"#REF!"}},0]
[null,null,null,null,null,null,null,null,null,null,null,null,null,null,null,null,null,0,null,null,null,null,null,null,null,null,null,null,null,null,null,null,null,0,0,null,0,{"$f":"IF(AND(OR(C448=\"\",#REF!=\"\",F448=\"\",G448=\"\",H448=\"\"),AND(R448<>0)),1,0)","v":{"$error":"#REF!"}},0]
[null,null,null,null,null,null,null,null,null,null,null,null,null,null,null,null,null,0,null,null,null,null,null,null,null,null,null,null,null,null,null,null,null,0,0,null,0,{"$f":"IF(AND(OR(C449=\"\",#REF!=\"\",F449=\"\",G449=\"\",H449=\"\"),AND(R449<>0)),1,0)","v":{"$error":"#REF!"}},0]
[null,null,null,null,null,null,null,null,null,null,null,null,null,null,null,null,null,0,null,null,null,null,null,null,null,null,null,null,null,null,null,null,null,0,0,null,0,{"$f":"IF(AND(OR(C450=\"\",#REF!=\"\",F450=\"\",G450=\"\",H450=\"\"),AND(R450<>0)),1,0)","v":{"$error":"#REF!"}},0]
[null,null,null,null,null,null,null,null,null,null,null,null,null,null,null,null,null,0,null,null,null,null,null,null,null,null,null,null,null,null,null,null,null,0,0,null,0,{"$f":"IF(AND(OR(C451=\"\",#REF!=\"\",F451=\"\",G451=\"\",H451=\"\"),AND(R451<>0)),1,0)","v":{"$error":"#REF!"}},0]
[null,null,null,null,null,null,null,null,null,null,null,null,null,null,null,null,null,{"$f":"+P452+Q452","v":0},null,null,null,null,null,null,null,null,null,null,null,null,null,null,null,{"$f":"SUM(T452:AG452)","v":0},0,null,0,{"$f":"IF(AND(OR(C452=\"\",#REF!=\"\",F452=\"\",G452=\"\",H452=\"\"),AND(R452<>0)),1,0)","v":{"$error":"#REF!"}},{"$f":"IF(AND(L452=\"SI\",M452=\"\"),1,0)","v":0}]
[null,null,null,null,null,null,null,null,null,null,null,null,null,null,null,null,null,0,null,null,null,null,null,null,null,null,null,null,null,null,null,null,null,0,{"$f":"R453-AH453","v":0},null,0,{"$f":"IF(AND(OR(C453=\"\",#REF!=\"\",F453=\"\",G453=\"\",H453=\"\"),AND(R453<>0)),1,0)","v":{"$error":"#REF!"}},0]
[null,null,null,null,null,null,null,null,null,null,null,null,null,null,null,null,null,0,null,null,null,null,null,null,null,null,null,null,null,null,null,null,null,0,0,null,0,{"$f":"IF(AND(OR(C454=\"\",#REF!=\"\",F454=\"\",G454=\"\",H454=\"\"),AND(R454<>0)),1,0)","v":{"$error":"#REF!"}},0]
[null,null,null,null,null,null,null,null,null,null,null,null,null,null,null,null,null,0,null,null,null,null,null,null,null,null,null,null,null,null,null,null,null,0,0,null,0,{"$f":"IF(AND(OR(C455=\"\",#REF!=\"\",F455=\"\",G455=\"\",H455=\"\"),AND(R455<>0)),1,0)","v":{"$error":"#REF!"}},0]
[null,null,null,null,null,null,null,null,null,null,null,null,null,null,null,null,null,0,null,null,null,null,null,null,null,null,null,null,null,null,null,null,null,0,0,null,0,{"$f":"IF(AND(OR(C456=\"\",#REF!=\"\",F456=\"\",G456=\"\",H456=\"\"),AND(R456<>0)),1,0)","v":{"$error":"#REF!"}},0]
[null,null,null,null,null,null,null,null,null,null,null,null,null,null,null,null,null,0,null,null,null,null,null,null,null,null,null,null,null,null,null,null,null,0,0,null,0,{"$f":"IF(AND(OR(C457=\"\",#REF!=\"\",F457=\"\",G457=\"\",H457=\"\"),AND(R457<>0)),1,0)","v":{"$error":"#REF!"}},0]
[null,null,null,null,null,null,null,null,null,null,null,null,null,null,null,null,null,0,null,null,null,null,null,null,null,null,null,null,null,null,null,null,null,0,0,null,0,{"$f":"IF(AND(OR(C458=\"\",#REF!=\"\",F458=\"\",G458=\"\",H458=\"\"),AND(R458<>0)),1,0)","v":{"$error":"#REF!"}},0]
[null,null,null,null,null,null,null,null,null,null,null,null,null,null,null,null,null,0,null,null,null,null,null,null,null,null,null,null,null,null,null,null,null,0,0,null,0,{"$f":"IF(AND(OR(C459=\"\",#REF!=\"\",F459=\"\",G459=\"\",H459=\"\"),AND(R459<>0)),1,0)","v":{"$error":"#REF!"}},0]
[null,null,null,null,null,null,null,null,null,null,null,null,null,null,null,null,null,0,null,null,null,null,null,null,null,null,null,null,null,null,null,null,null,0,0,null,0,{"$f":"IF(AND(OR(C460=\"\",#REF!=\"\",F460=\"\",G460=\"\",H460=\"\"),AND(R460<>0)),1,0)","v":{"$error":"#REF!"}},0]
[null,null,null,null,null,null,null,null,null,null,null,null,null,null,null,null,null,0,null,null,null,null,null,null,null,null,null,null,null,null,null,null,null,0,0,null,0,{"$f":"IF(AND(OR(C461=\"\",#REF!=\"\",F461=\"\",G461=\"\",H461=\"\"),AND(R461<>0)),1,0)","v":{"$error":"#REF!"}},0]
[null,null,null,null,null,null,null,null,null,null,null,null,null,null,null,null,null,0,null,null,null,null,null,null,null,null,null,null,null,null,null,null,null,0,0,null,0,{"$f":"IF(AND(OR(C462=\"\",#REF!=\"\",F462=\"\",G462=\"\",H462=\"\"),AND(R462<>0)),1,0)","v":{"$error":"#REF!"}},0]
[null,null,null,null,null,null,null,null,null,null,null,null,null,null,null,null,null,0,null,null,null,null,null,null,null,null,null,null,null,null,null,null,null,0,0,null,0,{"$f":"IF(AND(OR(C463=\"\",#REF!=\"\",F463=\"\",G463=\"\",H463=\"\"),AND(R463<>0)),1,0)","v":{"$error":"#REF!"}},0]
[null,null,null,null,null,null,null,null,null,null,null,null,null,null,null,null,null,0,null,null,null,null,null,null,null,null,null,null,null,null,null,null,null,0,0,null,0,{"$f":"IF(AND(OR(C464=\"\",#REF!=\"\",F464=\"\",G464=\"\",H464=\"\"),AND(R464<>0)),1,0)","v":{"$error":"#REF!"}},0]
[null,null,null,null,null,null,null,null,null,null,null,null,null,null,null,null,null,0,null,null,null,null,null,null,null,null,null,null,null,null,null,null,null,0,0,null,0,{"$f":"IF(AND(OR(C465=\"\",#REF!=\"\",F465=\"\",G465=\"\",H465=\"\"),AND(R465<>0)),1,0)","v":{"$error":"#REF!"}},0]
[null,null,null,null,null,null,null,null,null,null,null,null,null,null,null,null,null,0,null,null,null,null,null,null,null,null,null,null,null,null,null,null,null,0,0,null,0,{"$f":"IF(AND(OR(C466=\"\",#REF!=\"\",F466=\"\",G466=\"\",H466=\"\"),AND(R466<>0)),1,0)","v":{"$error":"#REF!"}},0]
[null,null,null,null,null,null,null,null,null,null,null,null,null,null,null,null,null,0,null,null,null,null,null,null,null,null,null,null,null,null,null,null,null,0,0,null,0,{"$f":"IF(AND(OR(C467=\"\",#REF!=\"\",F467=\"\",G467=\"\",H467=\"\"),AND(R467<>0)),1,0)","v":{"$error":"#REF!"}},0]
[null,null,null,null,null,null,null,null,null,null,null,null,null,null,null,null,null,0,null,null,null,null,null,null,null,null,null,null,null,null,null,null,null,0,0,null,0,{"$f":"IF(AND(OR(C468=\"\",#REF!=\"\",F468=\"\",G468=\"\",H468=\"\"),AND(R468<>0)),1,0)","v":{"$error":"#REF!"}},0]
[null,null,null,null,null,null,null,null,null,null,null,null,null,null,null,null,null,0,null,null,null,null,null,null,null,null,null,null,null,null,null,null,null,0,0,null,0,{"$f":"IF(AND(OR(C469=\"\",#REF!=\"\",F469=\"\",G469=\"\",H469=\"\"),AND(R469<>0)),1,0)","v":{"$error":"#REF!"}},0]
[null,null,null,null,null,null,null,null,null,null,null,null,null,null,null,null,null,0,null,null,null,null,null,null,null,null,null,null,null,null,null,null,null,0,0,null,0,{"$f":"IF(AND(OR(C470=\"\",#REF!=\"\",F470=\"\",G470=\"\",H470=\"\"),AND(R470<>0)),1,0)","v":{"$error":"#REF!"}},0]
[null,null,null,null,null,null,null,null,null,null,null,null,null,null,null,null,null,0,null,null,null,null,null,null,null,null,null,null,null,null,null,null,null,0,0,null,{"$f":"+R471-AH471","v":0},{"$f":"IF(AND(OR(C471=\"\",#REF!=\"\",F471=\"\",G471=\"\",H471=\"\"),AND(R471<>0)),1,0)","v":{"$error":"#REF!"}},0]
[null,null,null,null,null,null,null,null,null,null,null,null,null,null,null,null,null,0,null,null,null,null,null,null,null,null,null,null,null,null,null,null,null,0,0,null,0,{"$f":"IF(AND(OR(C472=\"\",#REF!=\"\",F472=\"\",G472=\"\",H472=\"\"),AND(R472<>0)),1,0)","v":{"$error":"#REF!"}},0]
[null,null,null,null,null,null,null,null,null,null,null,null,null,null,null,null,null,0,null,null,null,null,null,null,null,null,null,null,null,null,null,null,null,0,0,null,0,{"$f":"IF(AND(OR(C473=\"\",#REF!=\"\",F473=\"\",G473=\"\",H473=\"\"),AND(R473<>0)),1,0)","v":{"$error":"#REF!"}},0]
[null,null,null,null,null,null,null,null,null,null,null,null,null,null,null,null,null,0,null,null,null,null,null,null,null,null,null,null,null,null,null,null,null,0,0,null,0,{"$f":"IF(AND(OR(C474=\"\",#REF!=\"\",F474=\"\",G474=\"\",H474=\"\"),AND(R474<>0)),1,0)","v":{"$error":"#REF!"}},0]
[null,null,null,null,null,null,null,null,null,null,null,null,null,null,null,null,null,0,null,null,null,null,null,null,null,null,null,null,null,null,null,null,null,0,0,null,0,{"$f":"IF(AND(OR(C475=\"\",#REF!=\"\",F475=\"\",G475=\"\",H475=\"\"),AND(R475<>0)),1,0)","v":{"$error":"#REF!"}},0]
[null,null,null,null,null,null,null,null,null,null,null,null,null,null,null,null,null,0,null,null,null,null,null,null,null,null,null,null,null,null,null,null,null,0,0,null,0,{"$f":"IF(AND(OR(C476=\"\",#REF!=\"\",F476=\"\",G476=\"\",H476=\"\"),AND(R476<>0)),1,0)","v":{"$error":"#REF!"}},0]
[null,null,null,null,null,null,null,null,null,null,null,null,null,null,null,null,null,0,null,null,null,null,null,null,null,null,null,null,null,null,null,null,null,0,0,null,0,{"$f":"IF(AND(OR(C477=\"\",#REF!=\"\",F477=\"\",G477=\"\",H477=\"\"),AND(R477<>0)),1,0)","v":{"$error":"#REF!"}},0]
[null,null,null,null,null,null,null,null,null,null,null,null,null,null,null,null,null,0,null,null,null,null,null,null,null,null,null,null,null,null,null,null,null,0,0,null,0,{"$f":"IF(AND(OR(C478=\"\",#REF!=\"\",F478=\"\",G478=\"\",H478=\"\"),AND(R478<>0)),1,0)","v":{"$error":"#REF!"}},0]
[null,null,null,null,null,null,null,null,null,null,null,null,null,null,null,null,null,0,null,null,null,null,null,null,null,null,null,null,null,null,null,null,null,0,0,null,0,{"$f":"IF(AND(OR(C479=\"\",#REF!=\"\",F479=\"\",G479=\"\",H479=\"\"),AND(R479<>0)),1,0)","v":{"$error":"#REF!"}},0]
[null,null,null,null,null,null,null,null,null,null,null,null,null,null,null,null,null,0,null,null,null,null,null,null,null,null,null,null,null,null,null,null,null,0,0,null,0,{"$f":"IF(AND(OR(C480=\"\",#REF!=\"\",F480=\"\",G480=\"\",H480=\"\"),AND(R480<>0)),1,0)","v":{"$error":"#REF!"}},0]
[null,null,null,null,null,null,null,null,null,null,null,null,null,null,null,null,null,0,null,null,null,null,null,null,null,null,null,null,null,null,null,null,null,0,0,null,0,{"$f":"IF(AND(OR(C481=\"\",#REF!=\"\",F481=\"\",G481=\"\",H481=\"\"),AND(R481<>0)),1,0)","v":{"$error":"#REF!"}},0]
[null,null,null,null,null,null,null,null,null,null,null,null,null,null,null,null,null,0,null,null,null,null,null,null,null,null,null,null,null,null,null,null,null,0,0,null,0,{"$f":"IF(AND(OR(C482=\"\",#REF!=\"\",F482=\"\",G482=\"\",H482=\"\"),AND(R482<>0)),1,0)","v":{"$error":"#REF!"}},0]
[null,null,null,null,null,null,null,null,null,null,null,null,null,null,null,null,null,0,null,null,null,null,null,null,null,null,null,null,null,null,null,null,null,0,0,null,0,{"$f":"IF(AND(OR(C483=\"\",#REF!=\"\",F483=\"\",G483=\"\",H483=\"\"),AND(R483<>0)),1,0)","v":{"$error":"#REF!"}},0]
[null,null,null,null,null,null,null,null,null,null,null,null,null,null,null,null,null,0,null,null,null,null,null,null,null,null,null,null,null,null,null,null,null,0,0,null,0,{"$f":"IF(AND(OR(C484=\"\",#REF!=\"\",F484=\"\",G484=\"\",H484=\"\"),AND(R484<>0)),1,0)","v":{"$error":"#REF!"}},0]
[null,null,null,null,null,null,null,null,null,null,null,null,null,null,null,null,null,0,null,null,null,null,null,null,null,null,null,null,null,null,null,null,null,0,0,null,0,{"$f":"IF(AND(OR(C485=\"\",#REF!=\"\",F485=\"\",G485=\"\",H485=\"\"),AND(R485<>0)),1,0)","v":{"$error":"#REF!"}},0]
[null,null,null,null,null,null,null,null,null,null,null,null,null,null,null,null,null,0,null,null,null,null,null,null,null,null,null,null,null,null,null,null,null,0,0,null,0,{"$f":"IF(AND(OR(C486=\"\",#REF!=\"\",F486=\"\",G486=\"\",H486=\"\"),AND(R486<>0)),1,0)","v":{"$error":"#REF!"}},0]
[null,null,null,null,null,null,null,null,null,null,null,null,null,null,null,null,null,0,null,null,null,null,null,null,null,null,null,null,null,null,null,null,null,0,0,null,0,{"$f":"IF(AND(OR(C487=\"\",#REF!=\"\",F487=\"\",G487=\"\",H487=\"\"),AND(R487<>0)),1,0)","v":{"$error":"#REF!"}},0]
[null,null,null,null,null,null,null,null,null,null,null,null,null,null,null,null,null,0,null,null,null,null,null,null,null,null,null,null,null,null,null,null,null,0,0,null,0,{"$f":"IF(AND(OR(C488=\"\",#REF!=\"\",F488=\"\",G488=\"\",H488=\"\"),AND(R488<>0)),1,0)","v":{"$error":"#REF!"}},0]
[null,null,null,null,null,null,null,null,null,null,null,null,null,null,null,null,null,0,null,null,null,null,null,null,null,null,null,null,null,null,null,null,null,0,0,null,0,{"$f":"IF(AND(OR(C489=\"\",#REF!=\"\",F489=\"\",G489=\"\",H489=\"\"),AND(R489<>0)),1,0)","v":{"$error":"#REF!"}},0]
[null,null,null,null,null,null,null,null,null,null,null,null,null,null,null,null,null,0,null,null,null,null,null,null,null,null,null,null,null,null,null,null,null,0,0,null,0,{"$f":"IF(AND(OR(C490=\"\",#REF!=\"\",F490=\"\",G490=\"\",H490=\"\"),AND(R490<>0)),1,0)","v":{"$error":"#REF!"}},0]
[null,null,null,null,null,null,null,null,null,null,null,null,null,null,null,null,null,0,null,null,null,null,null,null,null,null,null,null,null,null,null,null,null,0,0,null,0,{"$f":"IF(AND(OR(C491=\"\",#REF!=\"\",F491=\"\",G491=\"\",H491=\"\"),AND(R491<>0)),1,0)","v":{"$error":"#REF!"}},0]
[null,null,null,null,null,null,null,null,null,null,null,null,null,null,null,null,null,0,null,null,null,null,null,null,null,null,null,null,null,null,null,null,null,0,0,null,0,{"$f":"IF(AND(OR(C492=\"\",#REF!=\"\",F492=\"\",G492=\"\",H492=\"\"),AND(R492<>0)),1,0)","v":{"$error":"#REF!"}},0]
[null,null,null,null,null,null,null,null,null,null,null,null,null,null,null,null,null,0,null,null,null,null,null,null,null,null,null,null,null,null,null,null,null,0,0,null,0,{"$f":"IF(AND(OR(C493=\"\",#REF!=\"\",F493=\"\",G493=\"\",H493=\"\"),AND(R493<>0)),1,0)","v":{"$error":"#REF!"}},0]
[null,null,null,null,null,null,null,null,null,null,null,null,null,null,null,null,null,0,null,null,null,null,null,null,null,null,null,null,null,null,null,null,null,0,0,null,0,{"$f":"IF(AND(OR(C494=\"\",#REF!=\"\",F494=\"\",G494=\"\",H494=\"\"),AND(R494<>0)),1,0)","v":{"$error":"#REF!"}},0]
[null,null,null,null,null,null,null,null,null,null,null,null,null,null,null,null,null,0,null,null,null,null,null,null,null,null,null,null,null,null,null,null,null,0,0,null,0,{"$f":"IF(AND(OR(C495=\"\",#REF!=\"\",F495=\"\",G495=\"\",H495=\"\"),AND(R495<>0)),1,0)","v":{"$error":"#REF!"}},0]
[null,null,null,null,null,null,null,null,null,null,null,null,null,null,null,null,null,0,null,null,null,null,null,null,null,null,null,null,null,null,null,null,null,0,0,null,0,{"$f":"IF(AND(OR(C496=\"\",#REF!=\"\",F496=\"\",G496=\"\",H496=\"\"),AND(R496<>0)),1,0)","v":{"$error":"#REF!"}},0]
[null,null,null,null,null,null,null,null,null,null,null,null,null,null,null,null,null,0,null,null,null,null,null,null,null,null,null,null,null,null,null,null,null,0,0,null,0,{"$f":"IF(AND(OR(C497=\"\",#REF!=\"\",F497=\"\",G497=\"\",H497=\"\"),AND(R497<>0)),1,0)","v":{"$error":"#REF!"}},0]
[null,null,null,null,null,null,null,null,null,null,null,null,null,null,null,null,null,0,null,null,null,null,null,null,null,null,null,null,null,null,null,null,null,0,0,null,0,{"$f":"IF(AND(OR(C498=\"\",#REF!=\"\",F498=\"\",G498=\"\",H498=\"\"),AND(R498<>0)),1,0)","v":{"$error":"#REF!"}},0]
[]
[]
[]
[]
[]
[]
[]
[]
["VECCHIA ASL","VECCHIA ASL","Codice Ospedale e Denominazione Istituto",null,null,"Ospedale - Struttura ambulatoriale","Pubblico/Privato","Tipo Struttura  [DGR 2122/2013]",null,null,null,null,null,"A) IMMOBILIZZAZIONI"]
["101.Belluno","101.Belluno","05020101. OSPEDALE S. MARTINO BELLUNO",null,null,"\"Struttura Presidio Ospedaliero\": Passaggio Gaudenzio","PUBBLICO","Hub provinciale",null,null,null,null,null,"A.I) IMMOBILIZZAZIONI IMMATERIALI",null,null,null,"Colonna autorizzazione CRITE",null,null,null,"EDILIZIA"]
["102.Feltre","102.Feltre","05020103. OSPEDALE DI AGORDO",null,null,"Casa Rossa","PUBBLICO","Ospedale nodo di rete con specificità ",null,null,null,null,null,"A.I.1) Costi di impianto e di ampliamento",null,null,"Nel caso l'investimento complessivo superi o no la soglia CRITE (200.000 € + IVA)","SI",null,null,null,"ATTREZZATURE"]
["103.BassanoDelGrappa","103.BassanoDelGrappa","05020104. OSPEDALE DI PIEVE DI CADORE",null,null,"Via U. Foscolo","PUBBLICO","Ospedale nodo di rete con specificità ",null,null,null,null,null,"A.I.1.a) Costi di impianto e di ampliamento",null,null,null,"NO",null,null,null,"INFORMATICA"]
["104.AltoVicentino","104.AltoVicentino",null,null,null,"altre sedi","Pubblico","OSPEDALE DI AGORDO",null,null,null,null,null,"A.I.1.b) F.do Amm.to costi di impianto e di ampliamento",null,null,null,null,null,null,null,"ALTRO"]
["105.OvestVicentino","105.OvestVicentino",null,null,null,"tutte le sedi ","Pubblico","OSPEDALE DI AGORDO",null,null,null,null,null,"A.I.2) Costi di ricerca e sviluppo",null,null,null,"colonna tipologia lavori (edilizia/impiantistica)"]
["106.Vicenza","106.Vicenza",null,null,null,null,"Pubblico",null,null,null,null,null,null,"A.I.2.a) Costi di ricerca e sviluppo",null,null,"Per la parte di Edilizia da compilare come da art. 128 co.3 D.Lgs. 163/2006 secondo i seguenti parametri","nuova realizzazione",null,"1 - nuova realizzazione"]
["107.PieveDiSoligo","107.PieveDiSoligo",null,null,null,null,"Pubblico",null,null,null,null,null,null,"A.I.2.b) F.do Amm.to costi di ricerca e sviluppo",null,null,null,"demolizione",null,"2 - demolizione"]
["108.Asolo","108.Asolo",null,null,null,null,"Pubblico",null,null,null,null,null,null,"A.I.3) Diritti di brevetto e diritti di utilizzazione delle opere d'ingegno",null,null,null,"lavori di recupero del patrimonio esistente",null,"3 - lavori di recupero del patrimonio esistente"]
["109.Treviso","109.Treviso",null,null,null,null,"Pubblico",null,null,null,null,null,null,"A.I.3.a) Diritti di brevetto e diritti di utilizzazione delle opere d'ingegno - derivanti dall'attività di ricerca",null,null,null,"ristrutturazione",null,"4 - ristrutturazione"]
["110.VenetoOrientale","110.VenetoOrientale",null,null,null,null,"Pubblico",null,null,null,null,null,null,"A.I.3.b) F.do Amm.to diritti di brevetto e diritti di utilizzazione delle opere d'ingegno - derivanti dall'attività di ricerca",null,null,null,"interventi di adeguamento normativo",null,"5 - interventi di adeguamento normativo"]
["112.Veneziana","112.Veneziana",null,null,null,null,"Pubblico",null,null,null,null,null,null,"A.I.3.c) Diritti di brevetto e diritti di utilizzazione delle opere d'ingegno - altri",null,null,null,"manutenzione ordinaria",null,"6 - manutenzione ordinaria"]
["113.Mirano","113.Mirano",null,null,null,null,"Pubblico",null,null,null,null,null,null,"A.I.3.d) F.do Amm.to diritti di brevetto e diritti di utilizzazione delle opere d'ingegno - altri",null,null,null,"manutenzione straordinaria",null,"7 - manutenzione straordinaria"]
["114.Chioggia","114.Chioggia",null,null,null,null,"Pubblico",null,null,null,null,null,null,"A.I.4) Immobilizzazioni immateriali in corso e acconti",null,null,null,"ampliamento",null,"8 - ampliamento"]
["115.AltaPadovana","115.AltaPadovana",null,null,null,null,"Privato",null,null,null,null,null,null,"A.I.4.a) Costi di impianto e di ampliamento",null,null,null,"gara regionale",null,"9 - gara regionale"]
["116.Padova","116.Padova",null,null,null,null,"Privato",null,null,null,null,null,null,"A.I.4.b) Costi di ricerca, sviluppo",null,null,null,"gara aziendale/procedura negoziata/convenzione/affidamento diretto/….",null,"10 - gara aziendale/procedura negoziata/convenzione/affidamento diretto/…."]
["117.Este","117.Este",null,null,null,null,"Pubblico",null,null,null,null,null,null,"A.I.4.c) Diritti di brevetto e diritti di utilizzazione delle opere d'ingegno"]
["118.Rovigo","118.Rovigo",null,null,null,null,"Pubblico",null,null,null,null,null,null,"A.I.4.d) Altre immobilizzazioni immateriali",null,null,"esplicitare lo stato di avanzamento dell'iter amministrativo di acquisizione del cespite / realizzazione dell'opera","colonna stato di avanzamento (edilizia)"]
["119.Adria","119.Adria",null,null,null,null,"Pubblico",null,null,null,null,null,null,"A.I.4.d.1) Concessioni, licenze, marchi e diritti simili",null,null,null,"iter non ancora avviato"]
["120.Verona","120.Verona",null,null,null,null,"Pubblico",null,null,null,null,null,null,"A.I.4.d.2) Migliorie su beni di terzi",null,null,null,"presenza del documento finale relativo al progetto di fattibilità tecnico-economica"]
["121.Legnago","121.Legnago",null,null,null,null,"Pubblico",null,null,null,null,null,null,"A.I.4.d.2.a) Migliorie su beni di terzi con vincolo di destinazione sanitaria senza termini di scadenza",null,null,null,"iter avviato con la presenza del documento di progetto definitivo"]
["122.Bussolengo","122.Bussolengo","05020201. OSPEDALE DI FELTRE `S. MARIA DEL PRATO`",null,null,null,"PUBBLICO","Presidio ospedaliero di rete",null,null,null,null,null,"A.I.4.d.2.b) Altre migliorie su beni di terzi",null,null,null,"presente il progetto esecutivo e già adottata la \"delibera a contrarre\""]
["901.AOPadova","901.AOPadova","05020202. OSPEDALE DI LAMON `CASA CHARITAS`",null,null,null,"PUBBLICO","Ospedale nodo di rete monospecialistico riabilitativo",null,null,null,null,null,"A.I.4.d.3) Pubblicità",null,null,null,"colonna stato di avanzamento (NO edilizia)"]
["912.AOUIVerona","912.AOUIVerona",null,null,null,null,"Pubblico",null,null,null,null,null,null,"A.I.4.d.4) Altre immobilizzazioni immateriali",null,null,null,"iter non ancora avviato cespite solo in programmazione"]
["952.IOV","952.IOV",null,null,null,null,"Pubblico",null,null,null,null,null,null,"A.I.5) Altre immobilizzazioni immateriali",null,null,null,"fasi preliminari alla gara"]
["501.azienda ulss 1 dolomiti","501.azienda ulss 1 dolomiti",null,null,null,null,"Pubblico",null,null,null,null,null,null,"A.I.5.a) Concessioni, licenze, marchi e diritti simili",null,null,null,"fase di gara in corso o di acquisizione in corso"]
["502.azienda ulss 2 marca trevigiana","502.azienda ulss 2 marca trevigiana",null,null,null,null,"Pubblico",null,null,null,null,null,null,"A.I.5.b) F.do Amm.to concessioni, licenze, marchi e diritti simili",null,null,null,"cespite entrato nel processo produttivo"]
["503.azienda ulss 3 serenissima","503.azienda ulss 3 serenissima",null,null,null,null,"Pubblico",null,null,null,null,null,null,"A.I.5.c) Migliorie su beni di terzi"]
["504.azienda ulss 4 veneto orientale","504.azienda ulss 4 veneto orientale",null,null,null,null,"Pubblico",null,null,null,null,null,null,"A.I.5.c.1) Migliorie su beni di terzi con vincolo di destinazione sanitaria senza termini di scadenza"]
["505.azienda ulss 5 polesana","505.azienda ulss 5 polesana",null,null,null,null,"Pubblico",null,null,null,null,null,null,"A.I.5.c.2) Altre migliorie su beni di terzi"]
["506.azienda ulss 6 euganea","506.azienda ulss 6 euganea",null,null,null,null,"Pubblico",null,null,null,null,null,null,"A.I.5.d) F.do Amm.to migliorie su beni di terzi",null,null,"validità investimento (viene sostituito mediante l'utilizzo del codice univoco di investimento)","investimento annullato"]
["507.azienda ulss 7 pedemontana","507.azienda ulss 7 pedemontana",null,null,null,null,"Pubblico",null,null,null,null,null,null,"A.I.5.d.1) F.do Amm.to migliorie su beni di terzi con vincolo di destinazione sanitaria senza termini di scadenza",null,null,null,"capitalizzazione spostata nell'esercizio successivo"]
["508.azienda ulss 8 berica","508.azienda ulss 8 berica",null,null,null,null,"Pubblico",null,null,null,null,null,null,"A.I.5.d.2) F.do Amm.to altre migliorie su beni di terzi",null,null,null,"investimento rinviato "]
["509.azienda ulss 9 scaligera","509.azienda ulss 9 scaligera",null,null,null,null,"Pubblico",null,null,null,null,null,null,"A.I.5.e) Pubblicità",null,null,null,"C.R.I.T.E."]
["500.Azienda Zero","500.Azienda Zero",null,null,null,null,"Pubblico",null,null,null,null,null,null,"A.I.5.f) F.do Amm.to pubblicità",null,null,null,"assenza di copertura finanziaria"]
["902.AZ. Osp. Verona","902.AZ. Osp. Verona",null,null,null,null,"Pubblico",null,null,null,null,null,null,"A.I.5.g) Altre immobilizzazioni immateriali",null,null,null,"…ALTRO"]
[null,null,null,null,null,null,"Pubblico",null,null,null,null,null,null,"A.I.5.h) F.do Amm.to altre immobilizzazioni immateriali"]
[null,null,null,null,null,null,"Pubblico",null,null,null,null,null,null,"A.I.6) Fondo Svalutazione immobilizzazioni immateriali"]
[null,null,"05020301. OSPEDALE `SAN BASSIANO` DI BASSANO D.G.",null,null,null,"PUBBLICO","Presidio ospedaliero di rete",null,null,null,null,null,"A.I.6.a) F.do Svalut. Costi di impianto e di ampliamento"]
[null,null,"05020302. OSPEDALE DI ASIAGO",null,null,null,"PUBBLICO","Ospedale nodo di rete con specificità ",null,null,null,null,null,"A.I.6.b) F.do Svalut. Costi di ricerca e sviluppo"]
[null,null,null,null,null,null,"Pubblico",null,null,null,null,null,null,"A.I.6.c) F.do Svalut. Diritti di brevetto e diritti di utilizzazione delle opere d'ingegno"]
[null,null,null,null,null,null,"Pubblico",null,null,null,null,null,null,"A.I.6.d) F.do Svalut. Altre immobilizzazioni immateriali"]
[null,null,null,null,null,null,"Pubblico",null,null,null,null,null,null,"A.II) IMMOBILIZZAZIONI MATERIALI"]
[null,null,null,null,null,null,"Pubblico",null,null,null,null,null,null,"A.II.1) Terreni"]
[null,null,null,null,null,null,"Pubblico",null,null,null,null,null,null,"A.II.1.a) Terreni disponibili"]
[null,null,null,null,null,null,"Pubblico",null,null,null,null,null,null,"A.II.1.b) Terreni indisponibili"]
[null,null,null,null,null,null,"Privato",null,null,null,null,null,null,"A.II.2) Fabbricati"]
[null,null,null,null,null,null,"Privato",null,null,null,null,null,null,"A.II.2.a) Fabbricati non strumentali (disponibili)"]
[null,null,"05020401. PADIGLIONE OSP. DE LELLIS",null,null,null,"PUBBLICO","Presidio ospedaliero di rete su 2 sedi",null,null,null,null,null,"A.II.2.a.1) Fabbricati non strumentali (disponibili)"]
[null,null,"05020402. PADIGLIONE OSP. BOLDRINI",null,null,null,"PUBBLICO","Presidio ospedaliero di rete su 2 sedi",null,null,null,null,null,"A.II.2.a.1.a) Fabbricati non strumentali (disponibili)"]
[null,null,"05020403. OSPEDALE ALTO VICENTINO (Santorso)",null,null,null,"PUBBLICO","Presidio ospedaliero di rete",null,null,null,null,null,"A.II.2.a.1.b) Costruzioni leggere non strumentali (disponibili)"]
[null,null,null,null,null,null,"Pubblico",null,null,null,null,null,null,"A.II.2.a.2) F.do Amm.to Fabbricati non strumentali (disponibili)"]
[null,null,null,null,null,null,"Pubblico",null,null,null,null,null,null,"A.II.2.a.2.a) F.do Amm.to Fabbricati non strumentali (disponibili)"]
[null,null,null,null,null,null,"Pubblico",null,null,null,null,null,null,"A.II.2.a.2.b) F.do Amm.to Costruzioni leggere non strumentali (disponibili)"]
[null,null,null,null,null,null,"Pubblico",null,null,null,null,null,null,"A.II.2.b) Fabbricati strumentali (indisponibili)"]
[null,null,null,null,null,null,"Privato",null,null,null,null,null,null,"A.II.2.b.1) Fabbricati strumentali (indisponibili)"]
[null,null,null,null,null,null,"Privato",null,null,null,null,null,null,"A.II.2.b.1.a) Fabbricati strumentali (indisponibili)"]
[null,null,"05020501. OSPEDALE DI ARZIGNANO",null,null,null,"PUBBLICO","Presidio ospedaliero di rete su 2 sedi",null,null,null,null,null,"A.II.2.b.1.b) Costruzioni leggere strumentali (indisponibili)"]
[null,null,"05020502. OSPEDALE DI LONIGO",null,null,null,"PUBBLICO","Ospedale nodo di rete monospecialistico riabilitativo",null,null,null,null,null,"A.II.2.b.2) F.do Amm.to Fabbricati strumentali (indisponibili)"]
[null,null,"05020503. OSPEDALE DI MONTECCHIO",null,null,null,"PUBBLICO","Presidio ospedaliero di rete su 2 sedi",null,null,null,null,null,"A.II.2.b.2.a) F.do Amm.to Fabbricati strumentali (indisponibili)"]
[null,null,"05020504. OSPEDALE DI VALDAGNO",null,null,null,"PUBBLICO","Ospedale nodo di rete con specificità ",null,null,null,null,null,"A.II.2.b.2.b) F.do Amm.to Costruzioni leggere strumentali (indisponibili)"]
[null,null,null,null,null,null,"Pubblico",null,null,null,null,null,null,"A.II.3) Impianti e macchinari"]
[null,null,null,null,null,null,"Pubblico",null,null,null,null,null,null,"A.II.3.a) Impianti e macchinari"]
[null,null,null,null,null,null,"Pubblico",null,null,null,null,null,null,"A.II.3.a.1) Impianti e macchinari - audiovisivi"]
[null,null,null,null,null,null,"Pubblico",null,null,null,null,null,null,"A.II.3.a.2) Impianti e macchinari - altro"]
[null,null,null,null,null,null,"Privato",null,null,null,null,null,null,"A.II.3.b) F.do Amm.to Impianti e macchinari"]
[null,null,null,null,null,null,"Privato",null,null,null,null,null,null,"A.II.3.b.1) F.do Amm.to Impianti e macchinari - audiovisivi"]
[null,null,null,null,null,null,"Pubblico",null,null,null,null,null,null,"A.II.3.b.2) F.do Amm.to Impianti e macchinari - altro"]
[null,null,null,null,null,null,"Pubblico",null,null,null,null,null,null,"A.II.4) Attrezzature sanitarie e scientifiche"]
[null,null,null,null,null,null,"Pubblico",null,null,null,null,null,null,"A.II.4.a) Attrezzature sanitarie e scientifiche"]
[null,null,null,null,null,null,"Pubblico",null,null,null,null,null,null,"A.II.4.b) F.do Amm.to Attrezzature sanitarie e scientifiche"]
[null,null,"05004500. CASA DI CURA ERETENIA",null,null,null,"PRIVATO","Struttura privata accreditata con compiti complementari e di integrazione all'interno della rete ospedaliera regionale",null,null,null,null,null,"A.II.5) Mobili e arredi"]
[null,null,"05004600. CASA DI CURA BERICA",null,null,null,"PRIVATO","Struttura privata accreditata con compiti complementari e di integrazione all'interno della rete ospedaliera regionale",null,null,null,null,null,"A.II.5.a) Mobili e arredi"]
[null,null,"05020601. PRES. OSPED. VICENZA",null,null,null,"PUBBLICO","Hub provinciale",null,null,null,null,null,"A.II.5.b) F.do Amm.to Mobili e arredi"]
[null,null,"05020602. PRES. OSP. NOVENTA VICENTINA",null,null,null,"PUBBLICO","Ospedale nodo di rete",null,null,null,null,null,"A.II.6) Automezzi"]
[null,null,null,null,null,null,"Pubblico",null,null,null,null,null,null,"A.II.6.a) Automezzi"]
[null,null,null,null,null,null,"Pubblico",null,null,null,null,null,null,"A.II.6.b) F.do Amm.to Automezzi"]
[null,null,null,null,null,null,"Pubblico",null,null,null,null,null,null,"A.II.7) Oggetti d'arte"]
[null,null,null,null,null,null,"Pubblico",null,null,null,null,null,null,"A.II.8) Altre immobilizzazioni materiali"]
[null,null,null,null,null,null,"Pubblico",null,null,null,null,null,null,"A.II.8.a) Altre immobilizzazioni materiali"]
[null,null,null,null,null,null,"Pubblico",null,null,null,null,null,null,"A.II.8.a.1) Macchine d'ufficio"]
[null,null,null,null,null,null,"Pubblico",null,null,null,null,null,null,"A.II.8.a.2) Altre immobilizzazioni materiali (altri beni)"]
[null,null,null,null,null,null,"Pubblico",null,null,null,null,null,null,"A.II.8.b) F.do Amm.to Altre immobilizzazioni materiali"]
[null,null,null,null,null,null,"Pubblico",null,null,null,null,null,null,"A.II.8.b.1) F.do Amm.to Macchine d'ufficio"]
[null,null,"05014001. IRCSS MEDEA CONEGLIANO",null,null,null,"PRIVATO","Ospedale classificato",null,null,null,null,null,"A.II.8.b.2) F.do Amm.to Altre immobilizzazioni materiali (altri beni)"]
[null,null,"05014002. IRCSS MEDEA PIEVE DI SOLIGO",null,null,null,"PRIVATO","Ospedale classificato",null,null,null,null,null,"A.II.9) Immobilizzazioni materiali in corso e acconti"]
[null,null,"05020701. OSPEDALE DI CONEGLIANO",null,null,null,"PUBBLICO","Presidio ospedaliero di rete su 2 sedi",null,null,null,null,null,"A.II.9.a) Terreni"]
[null,null,"05020702. OSPEDALE DI VITTORIO VENETO",null,null,null,"PUBBLICO","Presidio ospedaliero di rete su 2 sedi",null,null,null,null,null,"A.II.9.b) Fabbricati"]
[null,null,"05020703. OSPEDALE DE GIRONCOLI",null,null,null,"PUBBLICO",null,null,null,null,null,null,"A.II.9.c) Impianti e macchinari"]
[null,null,null,null,null,null,"Pubblico",null,null,null,null,null,null,"A.II.9.d) Attrezzature sanitarie e scientifiche"]
[null,null,null,null,null,null,"Pubblico",null,null,null,null,null,null,"A.II.9.e) Mobili e arredi"]
[null,null,null,null,null,null,"Pubblico",null,null,null,null,null,null,"A.II.9.f) Automezzi"]
[null,null,null,null,null,null,"Pubblico",null,null,null,null,null,null,"A.II.9.g) Oggetti d'arte"]
[null,null,null,null,null,null,"Pubblico",null,null,null,null,null,null,"A.II.9.h) Altre immobilizzazioni materiali"]
[null,null,null,null,null,null,"Pubblico",null,null,null,null,null,null,"A.II.9.h.1) Macchine d'ufficio"]
[null,null,null,null,null,null,"Pubblico",null,null,null,null,null,null,"A.II.9.h.2) Altre immobilizzaioni materiali (altri beni)"]
[null,null,null,null,null,null,"Pubblico"]
[null,null,null,null,null,null,"Pubblico"]
[null,null,null,null,null,null,"Pubblico"]
[null,null,null,null,null,null,"Pubblico"]
[null,null,"05020801. OSPEDALE DI CASTELFRANCO VENETO",null,null,null,"PUBBLICO","Presidio ospedaliero di rete su 2 sedi"]
[null,null,"05020802. OSPEDALE DI MONTEBELLUNA",null,null,null,"PUBBLICO","Presidio ospedaliero di rete su 2 sedi"]
[null,null,null,null,null,null,"Pubblico"]
[null,null,null,null,null,null,"Pubblico"]
[null,null,null,null,null,null,"Pubblico"]
[null,null,null,null,null,null,"Pubblico"]
[null,null,null,null,null,null,"Pubblico"]
[null,null,null,null,null,null,"Pubblico"]
[null,null,null,null,null,null,"Pubblico"]
[null,null,null,null,null,null,"Pubblico"]
[null,null,null,null,null,null,"Pubblico"]
[null,null,null,null,null,null,"Pubblico"]
[null,null,null,null,null,null,"Pubblico"]
[null,null,null,null,null,null,"Pubblico"]
[null,null,null,null,null,null,"Pubblico"]
[null,null,null,null,null,null,"Pubblico"]
[null,null,null,null,null,null,"Pubblico"]
[null,null,null,null,null,null,"Pubblico"]
[null,null,null,null,null,null,"Pubblico"]
[null,null,null,null,null,null,"Pubblico"]
[null,null,null,null,null,null,"Privato"]
[null,null,null,null,null,null,"Privato"]
[null,null,null,null,null,null,"Pubblico"]
[null,null,null,null,null,null,"Pubblico"]
[null,null,null,null,null,null,"Pubblico"]
[null,null,null,null,null,null,"Pubblico"]
[null,null,null,null,null,null,"Pubblico"]
[null,null,"05007200. OSPEDALE DI MOTTA DI LIVENZA",null,null,null,"PRIVATO","Ospedale nodo di rete monospecialistico riabilitativo"]
[null,null,"05007900. OSPEDALE CLASSIFICATO SAN CAMILLO",null,null,null,"PRIVATO","Ospedale classificato"]
[null,null,"05020901. OSPEDALE CA` FONCELLO",null,null,null,"PUBBLICO","Hub provinciale"]
[null,null,"05020902. OSPEDALE DI ODERZO",null,null,null,"PUBBLICO","Ospedale nodo di rete"]
[null,null,null,null,null,null,"Pubblico"]
[null,null,null,null,null,null,"Pubblico"]
[null,null,"05021001. PRESIDIO OSPEDALIERO DI PORTOGRUARO",null,null,null,"PUBBLICO","Presidio ospedaliero di rete su 2 sedi"]
[null,null,"05021002. PRESIDIO OSPEDALIERO DI SAN DONA` DI P.",null,null,null,"PUBBLICO","Presidio ospedaliero di rete su 2 sedi"]
[null,null,"05021003. PRESIDIO OSPEDALIERO DI JESOLO",null,null,null,"PUBBLICO","Ospedale nodo di rete monospecialistico riabilitativo"]
[null,null,null,null,null,null,"Pubblico"]
[null,null,null,null,null,null,"Pubblico"]
[null,null,null,null,null,null,"Pubblico"]
[null,null,null,null,null,null,"Privato"]
[null,null,null,null,null,null,"Privato"]
[null,null,null,null,null,null,"Pubblico"]
[null,null,null,null,null,null,"Pubblico"]
[null,null,null,null,null,null,"Pubblico"]
[null,null,null,null,null,null,"Pubblico"]
[null,null,null,null,null,null,"Pubblico"]
[null,null,null,null,null,null,"Pubblico"]
[null,null,null,null,null,null,"Pubblico"]
[null,null,null,null,null,null,"Pubblico"]
[null,null,null,null,null,null,"Pubblico"]
[null,null,null,null,null,null,"Pubblico"]
[null,null,null,null,null,null,"Pubblico"]
[null,null,null,null,null,null,"Pubblico"]
[null,null,null,null,null,null,"Pubblico"]
[null,null,null,null,null,null,"Pubblico"]
[null,null,null,null,null,null,"Pubblico"]
[null,null,null,null,null,null,"Pubblico"]
[null,null,null,null,null,null,"Pubblico"]
[null,null,null,null,null,null,"Pubblico"]
[null,null,null,null,null,null,"Pubblico"]
[null,null,null,null,null,null,"Pubblico"]
[null,null,null,null,null,null,"Pubblico"]
[null,null,null,null,null,null,"Pubblico"]
[null,null,"05009700. OSPEDALE CLASSIFICATO RAFFAELE ARCANGELO",null,null,null,"PRIVATO","Ospedale classificato"]
[null,null,"05009800. OSPEDALE CLASSIFICATO VILLA SALUS",null,null,null,"PRIVATO","Ospedale classificato"]
[null,null,"05021201. OSPEDALE CIVILE VENEZIA",null,null,null,"PUBBLICO","Presidio ospedaliero di rete"]
[null,null,"05021204. OSPEDALE DELL`ANGELO",null,null,null,"PUBBLICO","Hub provinciale"]
[null,null,null,null,null,null,"Pubblico"]
[null,null,null,null,null,null,"Pubblico"]
[null,null,null,null,null,null,"Pubblico"]
[null,null,null,null,null,null,"Pubblico"]
[null,null,null,null,null,null,"Pubblico"]
[null,null,null,null,null,null,"Pubblico"]
[null,null,null,null,null,null,"Pubblico"]
[null,null,null,null,null,null,"Pubblico"]
[null,null,null,null,null,null,"Pubblico"]
[null,null,null,null,null,null,"Pubblico"]
[null,null,null,null,null,null,"Pubblico"]
[null,null,null,null,null,null,"Pubblico"]
[null,null,null,null,null,null,"Pubblico"]
[null,null,null,null,null,null,"Pubblico"]
[null,null,null,null,null,null,"Pubblico"]
[null,null,null,null,null,null,"Pubblico"]
[null,null,null,null,null,null,"Pubblico"]
[null,null,null,null,null,null,"Pubblico"]
[null,null,null,null,null,null,"Pubblico"]
[null,null,null,null,null,null,"Pubblico"]
[null,null,null,null,null,null,"Pubblico"]
[null,null,null,null,null,null,"Pubblico"]
[null,null,null,null,null,null,"Pubblico"]
[null,null,null,null,null,null,"Pubblico"]
[null,null,null,null,null,null,"Pubblico"]
[null,null,null,null,null,null,"Pubblico"]
[null,null,null,null,null,null,"Pubblico"]
[null,null,"05021301. OSPEDALE DI DOLO",null,null,null,"PUBBLICO","Presidio ospedaliero di rete su 2 sedi"]
[null,null,"05021302. OSPEDALE DI MIRANO",null,null,null,"PUBBLICO","Presidio ospedaliero di rete su 2 sedi"]
[null,null,"05021303. OSPEDALE DI NOALE",null,null,null,"PUBBLICO","Ospedale nodo di rete monospecialistico riabilitativo"]
[null,null,null,null,null,null,"Pubblico"]
[null,null,null,null,null,null,"Pubblico"]
[null,null,null,null,null,null,"Pubblico"]
[null,null,null,null,null,null,"Pubblico"]
[null,null,null,null,null,null,"Pubblico"]
[null,null,null,null,null,null,"Pubblico"]
[null,null,null,null,null,null,"Pubblico"]
[null,null,null,null,null,null,"Pubblico"]
[null,null,null,null,null,null,"Pubblico"]
[null,null,null,null,null,null,"Pubblico"]
[null,null,null,null,null,null,"Privato"]
[null,null,null,null,null,null,"Privato"]
[null,null,null,null,null,null,"Pubblico"]
[null,null,"05021400. OSPEDALE CIVILE MADONNA DELLA NAVICELLA",null,null,null,"PUBBLICO","Presidio ospedaliero di rete"]
[null,null,null,null,null,null,"Pubblico"]
[null,null,null,null,null,null,"Privato"]
[null,null,null,null,null,null,"Privato"]
[null,null,null,null,null,null,"Pubblico"]
[null,null,"05021501. PRESIDIO OSPEDALIERO DI CAMPOSAMPIERO",null,null,null,"PUBBLICO","Centro Traumatologico Ortopedico di riferimento - Presidio ospedaliero di rete su 2 sedi"]
[null,null,"05021502. PRESIDIO OSPEDALIERO DI CITTADELLA",null,null,null,"PUBBLICO","Presidio ospedaliero di rete su 2 sedi"]
[null,null,null,null,null,null,"Privato"]
[null,null,null,null,null,null,"Privato"]
[null,null,null,null,null,null,"Pubblico"]
[null,null,null,null,null,null,"Pubblico"]
[null,null,null,null,null,null,"Pubblico (No in flusso SPS)"]
[null,null,null,null,null,null,"Pubblico (No in flusso SPS)"]
[null,null,null,null,null,null,"Pubblico (No in flusso SPS)"]
[null,null,null,null,null,null,"Pubblico"]
[null,null,null,null,null,null,"Pubblico"]
[null,null,null,null,null,null,"Pubblico"]
[null,null,"05012000. CASA DI CURA DIAZ",null,null,null,"PRIVATO"]
[null,null,"05012100. CASA DI CURA VILLA MARIA",null,null,null,"PRIVATO","Struttura privata accreditata con compiti complementari e di integrazione all'interno della rete ospedaliera regionale"]
[null,null,"05021601. OSPEDALE SANT`ANTONIO",null,null,null,"PUBBLICO","Presidio ospedaliero di rete su 2 sedi"]
[null,null,"05021603. OSA C/O AZ.OSP. VIA GIUSTINIANI",null,null,null,"PUBBLICO","Ospedale nodo di rete monospecialistico riabilitativo"]
[null,null,"05021605. OSP. IMMACOL. CONCEZ. DI PIOVE DI SACCO",null,null,null,"PUBBLICO","Presidio ospedaliero di rete su 2 sedi"]
[null,null,null,null,null,null,"Pubblico"]
[null,null,null,null,null,null,"Pubblico"]
[null,null,null,null,null,null,"Pubblico"]
[null,null,null,null,null,null,"Pubblico"]
[null,null,null,null,null,null,"Pubblico"]
[null,null,null,null,null,null,"Pubblico"]
[null,null,null,null,null,null,"Pubblico"]
[null,null,null,null,null,null,"Pubblico"]
[null,null,null,null,null,null,"Pubblico"]
[null,null,null,null,null,null,"Pubblico"]
[null,null,null,null,null,null,"Pubblico"]
[null,null,null,null,null,null,"Pubblico"]
[null,null,null,null,null,null,"Pubblico"]
[null,null,null,null,null,null,"Pubblico"]
[null,null,null,null,null,null,"Pubblico"]
[null,null,null,null,null,null,"Pubblico"]
[null,null,null,null,null,null,"Pubblico"]
[null,null,null,null,null,null,"Pubblico"]
[null,null,null,null,null,null,"Pubblico"]
[null,null,null,null,null,null,"Pubblico"]
[null,null,null,null,null,null,"Pubblico"]
[null,null,null,null,null,null,"Pubblico"]
[null,null,null,null,null,null,"Pubblico"]
[null,null,null,null,null,null,"Pubblico"]
[null,null,null,null,null,null,"Pubblico"]
[null,null,null,null,null,null,"Pubblico"]
[null,null,null,null,null,null,"Pubblico"]
[null,null,null,null,null,null,"Pubblico"]
[null,null,null,null,null,null,"Pubblico"]
[null,null,null,null,null,null,"Pubblico"]
[null,null,null,null,null,null,"Pubblico"]
[null,null,null,null,null,null,"Pubblico"]
[null,null,null,null,null,null,"Pubblico"]
[null,null,null,null,null,null,"Pubblico"]
[null,null,null,null,null,null,"Pubblico"]
[null,null,null,null,null,null,"Pubblico"]
[null,null,null,null,null,null,"Pubblico"]
[null,null,null,null,null,null,"Pubblico"]
[null,null,null,null,null,null,"Pubblico"]
[null,null,null,null,null,null,"Pubblico"]
[null,null,null,null,null,null,"Pubblico"]
[null,null,null,null,null,null,"Pubblico"]
[null,null,null,null,null,null,"Pubblico"]
[null,null,null,null,null,null,"Pubblico"]
[null,null,null,null,null,null,"Pubblico"]
[null,null,null,null,null,null,"Pubblico"]
[null,null,null,null,null,null,"Pubblico"]
[null,null,null,null,null,null,"Pubblico"]
[null,null,null,null,null,null,"Pubblico"]
[null,null,null,null,null,null,"Pubblico"]
[null,null,null,null,null,null,"Pubblico"]
[null,null,null,null,null,null,"Pubblico"]
[null,null,null,null,null,null,"Pubblico"]
[null,null,null,null,null,null,"Pubblico"]
[null,null,null,null,null,null,"Pubblico"]
[null,null,null,null,null,null,"Pubblico"]
[null,null,null,null,null,null,"Pubblico"]
[null,null,null,null,null,null,"Pubblico"]
[null,null,null,null,null,null,"Pubblico"]
[null,null,null,null,null,null,"Pubblico"]
[null,null,null,null,null,null,"Pubblico"]
[null,null,null,null,null,null,"Pubblico"]
[null,null,"05021701. SEDE ESTE",null,null,null,"PUBBLICO","Presidio ospedaliero di rete su 2 sedi"]
[null,null,"05021702. SEDE MONSELICE",null,null,null,"PUBBLICO","Presidio ospedaliero di rete su 2 sedi"]
[null,null,"05021703. SEDE MONTAGNANA",null,null,null,"PUBBLICO","Ospedale nodo di rete monospecialistico riabilitativo"]
[null,null,"05021704. SEDE CONSELVE",null,null,null,"PUBBLICO","Ospedale nodo di rete monospecialistico riabilitativo"]
[null,null,"05021705. OSPEDALI RIUNITI PADOVA SUD",null,null,null,"PUBBLICO","Presidio ospedaliero di rete"]
[null,null,null,null,null,null,"Pubblico"]
[null,null,null,null,null,null,"Privato"]
[null,null,null,null,null,null,"Privato"]
[null,null,null,null,null,null,"Pubblico"]
[null,null,null,null,null,null,"Pubblico"]
[null,null,null,null,null,null,"Pubblico"]
[null,null,null,null,null,null,"Pubblico"]
[null,null,null,null,null,null,"Pubblico"]
[null,null,null,null,null,null,"Pubblico"]
[null,null,null,null,null,null,"Pubblico"]
[null,null,null,null,null,null,"Pubblico"]
[null,null,null,null,null,null,"Pubblico"]
[null,null,null,null,null,null,"Pubblico"]
[null,null,null,null,null,null,"Pubblico"]
[null,null,null,null,null,null,"Pubblico"]
[null,null,null,null,null,null,"Pubblico"]
[null,null,null,null,null,null,"Pubblico"]
[null,null,null,null,null,null,"Pubblico"]
[null,null,null,null,null,null,"Pubblico"]
[null,null,null,null,null,null,"Pubblico"]
[null,null,null,null,null,null,"Pubblico"]
[null,null,"05013100. CASA DI CURA SANTA MARIA MADDALENA",null,null,null,"PRIVATO","Struttura privata accreditata con compiti complementari e di integrazione all'interno della rete ospedaliera regionale"]
[null,null,"05014100. CASA DI CURA CITTA DI ROVIGO",null,null,null,"PRIVATO","Struttura privata accreditata con compiti complementari e di integrazione all'interno della rete ospedaliera regionale"]
[null,null,"05021801. P.O. DI ROVIGO",null,null,null,"PUBBLICO","Hub provinciale"]
[null,null,"05021802. P.O. DI TRECENTA",null,null,null,"PUBBLICO","Ospedale nodo di rete con specificità "]
[null,null,null,null,null,null,"Pubblico"]
[null,null,null,null,null,null,"Pubblico"]
[null,null,null,null,null,null,"Pubblico"]
[null,null,null,null,null,null,"Pubblico"]
[null,null,null,null,null,null,"Pubblico"]
[null,null,null,null,null,null,"Pubblico"]
[null,null,null,null,null,null,"Pubblico"]
[null,null,null,null,null,null,"Pubblico"]
[null,null,null,null,null,null,"Pubblico"]
[null,null,null,null,null,null,"Pubblico"]
[null,null,null,null,null,null,"Pubblico"]
[null,null,null,null,null,null,"Pubblico"]
[null,null,null,null,null,null,"Pubblico"]
[null,null,null,null,null,null,"Pubblico"]
[null,null,null,null,null,null,"Pubblico"]
[null,null,null,null,null,null,"Pubblico"]
[null,null,null,null,null,null,"Pubblico"]
[null,null,null,null,null,null,"Pubblico"]
[null,null,null,null,null,null,"Pubblico"]
[null,null,null,null,null,null,"Pubblico"]
[null,null,null,null,null,null,"Pubblico"]
[null,null,null,null,null,null,"Pubblico"]
[null,null,null,null,null,null,"Pubblico"]
[null,null,null,null,null,null,"Pubblico"]
[null,null,null,null,null,null,"Pubblico"]
[null,null,null,null,null,null,"Pubblico"]
[null,null,"05021900. OSPEDALE CIVILE DI ADRIA",null,null,null,"PUBBLICO","Presidio ospedaliero di rete"]
[null,null,null,null,null,null,"Pubblico"]
[null,null,null,null,null,null,"Pubblico"]
[null,null,null,null,null,null,"Pubblico"]
[null,null,null,null,null,null,"Pubblico"]
[null,null,null,null,null,null,"Pubblico"]
[null,null,null,null,null,null,"Pubblico"]
[null,null,null,null,null,null,"Pubblico"]
[null,null,null,null,null,null,"Pubblico"]
[null,null,null,null,null,null,"Pubblico"]
[null,null,null,null,null,null,"Pubblico"]
[null,null,null,null,null,null,"Pubblico"]
[null,null,null,null,null,null,"Pubblico"]
[null,null,"05001800. OSPEDALE CLASSIFICATO VILLA S. GIULIANA",null,null,null,"PRIVATO","Ospedale classificato"]
[null,null,"05001900. CASA DI CURA CENTRO RIABILIT VERONESE",null,null,null,"PRIVATO","Struttura privata accreditata con compiti complementari e di integrazione all'interno della rete ospedaliera regionale"]
[null,null,"05022004. PRESIDIO OSP. MARZANA",null,null,null,"PUBBLICO","Ospedale nodo di rete monospecialistico riabilitativo"]
[null,null,"05022005. POLO OSP. DELL`EST VERONESE OSP. SAN BONIFACIO",null,null,null,"PUBBLICO","Presidio ospedaliero di rete"]
[null,null,"05022006. PSICHIATRIA SEZIONE B.GO TRENTO - VERONA",null,null,null,"PUBBLICO","Psichiatria ospedaliera"]
[null,null,null,null,null,null,"Pubblico"]
[null,null,null,null,null,null,"Pubblico"]
[null,null,null,null,null,null,"Pubblico"]
[null,null,null,null,null,null,"Pubblico"]
[null,null,null,null,null,null,"Pubblico"]
[null,null,null,null,null,null,"Pubblico"]
[null,null,null,null,null,null,"Pubblico"]
[null,null,null,null,null,null,"Pubblico"]
[null,null,null,null,null,null,"Pubblico"]
[null,null,null,null,null,null,"Pubblico"]
[null,null,null,null,null,null,"Pubblico"]
[null,null,null,null,null,null,"Pubblico"]
[null,null,null,null,null,null,"Pubblico"]
[null,null,null,null,null,null,"Pubblico"]
[null,null,null,null,null,null,"Pubblico"]
[null,null,null,null,null,null,"Pubblico"]
[null,null,null,null,null,null,"Pubblico"]
[null,null,null,null,null,null,"Pubblico"]
[null,null,null,null,null,null,"Pubblico"]
[null,null,null,null,null,null,"Pubblico"]
[null,null,null,null,null,null,"Pubblico"]
[null,null,null,null,null,null,"Pubblico"]
[null,null,null,null,null,null,"Pubblico"]
[null,null,null,null,null,null,"Pubblico"]
[null,null,null,null,null,null,"Pubblico"]
[null,null,null,null,null,null,"Pubblico"]
[null,null,null,null,null,null,"Pubblico"]
[null,null,null,null,null,null,"Pubblico"]
[null,null,null,null,null,null,"Pubblico"]
[null,null,null,null,null,null,"Pubblico"]
[null,null,null,null,null,null,"Pubblico"]
[null,null,null,null,null,null,"Pubblico"]
[null,null,null,null,null,null,"Pubblico"]
[null,null,null,null,null,null,"Pubblico"]
[null,null,null,null,null,null,"Pubblico"]
[null,null,null,null,null,null,"Pubblico"]
[null,null,null,null,null,null,"Pubblico"]
[null,null,null,null,null,null,"Pubblico"]
[null,null,null,null,null,null,"Pubblico"]
[null,null,null,null,null,null,"Pubblico"]
[null,null,null,null,null,null,"Pubblico"]
[null,null,null,null,null,null,"Pubblico"]
[null,null,null,null,null,null,"Pubblico"]
[null,null,null,null,null,null,"Pubblico"]
[null,null,null,null,null,null,"Pubblico"]
[null,null,null,null,null,null,"Pubblico"]
[null,null,null,null,null,null,"Pubblico"]
[null,null,null,null,null,null,"Pubblico"]
[null,null,null,null,null,null,"Pubblico"]
[null,null,null,null,null,null,"Pubblico"]
[null,null,null,null,null,null,"Pubblico"]
[null,null,null,null,null,null,"Pubblico"]
[null,null,"05022101. OSPEDALE PER ACUTI DI LEGNAGO",null,null,null,"PUBBLICO","Presidio ospedaliero di rete"]
[null,null,"05022102. OSPEDALE CHIARENZI ZEVIO",null,null,null,"PUBBLICO","Ospedale nodo di rete monospecialistico riabilitativo"]
[null,null,"05022103. OSPEDALE S.BIAGIO BOVOLONE",null,null,null,"PUBBLICO","Ospedale nodo di rete monospecialistico riabilitativo"]
[null,null,null,null,null,null,"Pubblico"]
[null,null,null,null,null,null,"Pubblico"]
[null,null,null,null,null,null,"Pubblico"]
[null,null,null,null,null,null,"Pubblico"]
[null,null,null,null,null,null,"Pubblico"]
[null,null,null,null,null,null,"Pubblico"]
[null,null,null,null,null,null,"Pubblico"]
[null,null,null,null,null,null,"Pubblico"]
[null,null,null,null,null,null,"Pubblico"]
[null,null,null,null,null,null,"Pubblico"]
[null,null,null,null,null,null,"Pubblico"]
[null,null,null,null,null,null,"Pubblico"]
[null,null,null,null,null,null,"Pubblico"]
[null,null,null,null,null,null,"Pubblico"]
[null,null,"05001700. OSPEDALE SACRO CUORE DON CALABRIA",null,null,null,"PRIVATO","Ospedale classificato - Presidio Ospedaliero"]
[null,null,"05002100. CASA DI CURA VILLA GARDA",null,null,null,"PRIVATO","Struttura privata accreditata con compiti complementari e di integrazione all'interno della rete ospedaliera regionale"]
[null,null,"05022201. OSPEDALE CIVILE ORLANDI BUSSOLENGO",null,null,null,"PUBBLICO","Presidio ospedaliero di rete su 2 sedi"]
[null,null,"05022202. OSPEDALE ISOLA DELLA SCALA",null,null,null,"PUBBLICO","Struttura a vocazione territoriale"]
[null,null,"05022203. OSPEDALE DI CAPRINO VERONESE",null,null,null,"PUBBLICO","Psichiatria ospedaliera"]
[null,null,"05022204. OSPEDALE DI MALCESINE",null,null,null,"PUBBLICO","Ospedale nodo di rete monospecialistico riabilitativo"]
[null,null,"05022205. OSPEDALE MAGALINI - VILLAFRANCA DI VR",null,null,null,"PUBBLICO","Presidio ospedaliero di rete su 2 sedi"]
[null,null,null,null,null,null,"Pubblico"]
[null,null,null,null,null,null,"Pubblico"]
[null,null,null,null,null,null,"Pubblico"]
[null,null,null,null,null,null,"Pubblico"]
[null,null,null,null,null,null,"Pubblico"]
[null,null,null,null,null,null,"Pubblico"]
[null,null,null,null,null,null,"Pubblico"]
[null,null,null,null,null,null,"Pubblico"]
[null,null,null,null,null,null,"Pubblico"]
[null,null,null,null,null,null,"Pubblico"]
[null,null,"05090100. AZIENDA OSPEDALIERA PADOVA",null,null,{"$f":"C961&#REF!","v":{"$error":"#REF!"}},"PUBBLICO","Hub regionale"]
[null,null,"05090101. OSPEDALE DI S. ANTONIO",null,null,{"$f":"C962&#REF!","v":{"$error":"#REF!"}},"PUBBLICO"]
[null,null,"05091201. AOUI VERONA BORGO TRENTO",null,null,null,"PUBBLICO","Hub regionale"]
[null,null,"05091202. AOUI DI VERONA BORGO ROMA",null,null,null,"PUBBLICO","Hub regionale"]
[null,null,"05095201. IOV PADOVA",null,null,null,"PUBBLICO","Centro Regionale di supporto e coordinamento della rete oncologica"]
[null,null,"05095202. IOV h CASTELFRANCO",null,null,null,"PUBBLICO",{"$f":"VLOOKUP(A965,[1]Codifiche!#REF!,4,FALSE)","v":{"$error":"#REF!"}}]
[null,null,null,null,null,null,"Privato"]

{"sheet":"Foglio2","index":3,"n_rows":4,"n_cols":1,"rows_kept":4,"cut":false,"hidden":true,"merged":[]}
[2025]
[2026]
[2027]
["2025 in corso"]

{"sheet":"anagrafica ASL-presidio-tipo st","index":4,"n_rows":461,"n_cols":6,"rows_kept":461,"cut":false,"hidden":true,"merged":[]}
["VECCHIA ASL","Codice Ospedale e Denominazione Istituto","Codice e Descriz Nuova Struttura ambulatoriale","Ospedale - Struttura ambulatoriale","Pubblico/Privato","Tipo Struttura  [DGR 2122/2013]"]
["101.Belluno","05020101. OSPEDALE S. MARTINO BELLUNO",null,null,"PUBBLICO","Hub provinciale"]
["102.Feltre","05020103. OSPEDALE DI AGORDO",null,null,"PUBBLICO","Ospedale nodo di rete con specificità "]
["103.BassanoDelGrappa","05020104. OSPEDALE DI PIEVE DI CADORE",null,null,"PUBBLICO","Ospedale nodo di rete con specificità "]
["104.AltoVicentino",null,"000402. SERT AGORDO                                                                                         ",null,"Pubblico","OSPEDALE DI AGORDO"]
["105.OvestVicentino",null,"005009. C.S.M. AGORDO                                                                                       ",null,"Pubblico","OSPEDALE DI AGORDO"]
["106.Vicenza",null,"05050199. POLIAMB. AURONZO",null,"Pubblico"]
["107.PieveDiSoligo",null,"05050199. POLIAMB. TERRIT. PIEVE DI C.",null,"Pubblico"]
["108.Asolo",null,"05050199. SERV. TERR. NEUROPSICH. INF.",null,"Pubblico"]
["109.Treviso",null,"05050199. POLIAMB. TERRIT. S.STEFANO",null,"Pubblico"]
["110.VenetoOrientale",null,"05050199. POLIAMB. TERRIT. CORTINA",null,"Pubblico"]
["112.Veneziana",null,"05050199. POLIAMB. TERRIT. CANALE AG.",null,"Pubblico"]
["113.Mirano",null,"05050199. POLIAMB. TERRIT. ALLEGHE",null,"Pubblico"]
["114.Chioggia",null,"05050199. POLIAMB. EXTRAOSPEDALIERO",null,"Pubblico"]
["115.AltaPadovana",null,"001401. SALUS S.R.L.",null,"Privato"]
["116.Padova",null,"001501. LAB. ANALISI CLINICHE FLEMING S.R.L.",null,"Privato"]
["117.Este",null,"05050199. EQUIPE PSICOPED. AGORDO",null,"Pubblico"]
["118.Rovigo",null,"05050199. SERV. NEUROPSICHIATRIA INF.LE BELLUNO",null,"Pubblico"]
["119.Adria",null,"05050199. SERT BELLUNO",null,"Pubblico"]
["120.Verona",null,"05050199. SERT AURONZO                                      ",null,"Pubblico"]
["121.Legnago",null,"05050199. C.S.M. AURONZO                                    ",null,"Pubblico"]
["122.Bussolengo","05020201. OSPEDALE DI FELTRE `S. MARIA DEL PRATO`",null,null,"PUBBLICO","Presidio ospedaliero di rete"]
["901.AOPadova","05020202. OSPEDALE DI LAMON `CASA CHARITAS`",null,null,"PUBBLICO","Ospedale nodo di rete monospecialistico riabilitativo"]
["912.AOUIVerona",null,"05050199. POLIAMBULATORIO DI SEDICO",null,"Pubblico"]
["952.IOV",null,"05050199. C.S.M. SEDE DI SEDICO",null,"Pubblico"]
[null,null,"05050199. C.S.M. SEDE DI SANTA GIUSTINA",null,"Pubblico"]
[null,null,"05050199. SERVIZIO PER L'ETA' EVOLUTIVA",null,"Pubblico"]
[null,null,"05050199. CONSULTORIO FAMILIARE S.GIUSTINA",null,"Pubblico"]
[null,null,"05050199. SERVIZIO PER L'ETA' EVOLUTIVA",null,"Pubblico"]
[null,null,"042807. SERVIZIO PER L'ETA' EVOLUTIVA",null,"Pubblico"]
[null,null,"05050199. CONSULTORIO FAMILIARE ALANO",null,"Pubblico"]
[null,null,"05050199. CONSULTORIO FAMILIARE DI MEL",null,"Pubblico"]
[null,null,"05050199. C.S.M. SEDE DI MEL",null,"Pubblico"]
[null,null,"05050199. SER.D.",null,"Pubblico"]
[null,null,"05050199. SERVIZIO PER L'ETA' EVOLUTIVA",null,"Pubblico"]
[null,null,"05050199. CONSULTORIO FAMILIARE FELTRE",null,"Pubblico"]
[null,null,"05050199. SERVIZIO PER L'ETA' EVOLUTIVA",null,"Pubblico"]
[null,null,"05050199. AMBULATORIO FONZASO",null,"Pubblico"]
[null,"05020301. OSPEDALE `SAN BASSIANO` DI BASSANO D.G.",null,null,"PUBBLICO","Presidio ospedaliero di rete"]
[null,"05020302. OSPEDALE DI ASIAGO",null,null,"PUBBLICO","Ospedale nodo di rete con specificità "]
[null,null,"05050799. ATTIVITA' EXTRAOSP. BASSANO",null,"Pubblico"]
[null,null,"05050799. SERV. TOSSICODIP. E ALCOLISTI",null,"Pubblico"]
[null,null,"05050799. AMBULATORI EXTRAOSP. MAROSTICA",null,"Pubblico"]
[null,null,"05050799. AMBULATORI EXTRAOSP. ASIAGO",null,"Pubblico"]
[null,null,"05050799. AMBULATORI C/O DSB ROMANO",null,"Pubblico"]
[null,null,"05050799. ASS. INFERMIERISTICA CARPANE' - S.NAZARIO",null,"Pubblico"]
[null,null,"087001. RADIOLOGIA MEDICA BASSANO DELLA IMED SRL",null,"Privato"]
[null,null,"087002. CENTRO MEDICO DI FISIOTERAPIA SRL",null,"Privato"]
[null,"05020401. PADIGLIONE OSP. DE LELLIS",null,null,"PUBBLICO","Presidio ospedaliero di rete su 2 sedi"]
[null,"05020402. PADIGLIONE OSP. BOLDRINI",null,null,"PUBBLICO","Presidio ospedaliero di rete su 2 sedi"]
[null,"05020403. OSPEDALE ALTO VICENTINO (Santorso)",null,null,"PUBBLICO","Presidio ospedaliero di rete"]
[null,null,"05050799. POLIAMBULATORIO SCHIO",null,"Pubblico"]
[null,null,"05050799. POLIAMBULATORIO THIENE",null,"Pubblico"]
[null,null,"05050799. POLIAMBULATORIO MALO",null,"Pubblico"]
[null,null,"05050799. POLIAMBULATORIO PIOVENE",null,"Pubblico"]
[null,null,"130401. LABORATORIO ANALISI DOTT. PIAZZON SRL",null,"Privato"]
[null,null,"132257. CENTRO MEDICO THIENESE SRL",null,"Privato"]
[null,"05020501. OSPEDALE DI ARZIGNANO",null,null,"PUBBLICO","Presidio ospedaliero di rete su 2 sedi"]
[null,"05020502. OSPEDALE DI LONIGO",null,null,"PUBBLICO","Ospedale nodo di rete monospecialistico riabilitativo"]
[null,"05020503. OSPEDALE DI MONTECCHIO",null,null,"PUBBLICO","Presidio ospedaliero di rete su 2 sedi"]
[null,"05020504. OSPEDALE DI VALDAGNO",null,null,"PUBBLICO","Ospedale nodo di rete con specificità "]
[null,null,"162494. OSPEDALE DI COMUNITA' VALDAGNO",null,"Pubblico"]
[null,null,"05050899. POLIAMB.EXTRAOSP.VALDAGNO",null,"Pubblico"]
[null,null,"05050899. POLIAMB. EXTRAOSP. ARZIGNANO",null,"Pubblico"]
[null,null,"05050899. POLIAMB. EXTRAOSP. MONTECCHIO",null,"Pubblico"]
[null,null,"160701. DR.CAVEDON PAOLO",null,"Privato"]
[null,null,"160801. AMBULATORIO C.E.M.A.R. SRL",null,"Privato"]
[null,null,"05050899. CSM VALDAGNO",null,"Pubblico"]
[null,null,"05050899. SER. NEUROPSICHIATRIA INFANTILE AREA CENTRO SUD",null,"Pubblico"]
[null,null,"05050899. CSM MONTECCHIO",null,"Pubblico"]
[null,null,"05050899. CSM LONIGO",null,"Pubblico"]
[null,"05004500. CASA DI CURA ERETENIA",null,null,"PRIVATO","Struttura privata accreditata con compiti complementari e di integrazione all'interno della rete ospedaliera regionale"]
[null,"05004600. CASA DI CURA BERICA",null,null,"PRIVATO","Struttura privata accreditata con compiti complementari e di integrazione all'interno della rete ospedaliera regionale"]
[null,"05020601. PRES. OSPED. VICENZA",null,null,"PUBBLICO","Hub provinciale"]
[null,"05020602. PRES. OSP. NOVENTA VICENTINA",null,null,"PUBBLICO","Ospedale nodo di rete"]
[null,null,"05050899. CENTRO PROV. DISTURBI COMPORTAMENTO ALIM. PESO",null,"Pubblico"]
[null,null,"05050899.  CENTRO SANITARIO POLIFUNZIONALE SANDRIGO",null,"Pubblico"]
[null,null,"05050899.  STRUTTURA POLISPECIALISTICA TERRITORIALE EXTRAOSPE",null,"Pubblico"]
[null,null,"05050899. CENTRO DI SALUTE MENTALE",null,"Pubblico"]
[null,null,"05050899.  SERT- CENTRO CONSULENZA DIAGNOSI E PSICOTERAPIA",null,"Pubblico"]
[null,null,"05050899.  STRUTTURA DISTRETTUALE OVEST",null,"Pubblico"]
[null,null,"05050899.  SERVIZIO TERRITORIALE DI PNEUMOTISIOLOGIA",null,"Pubblico"]
[null,null,"05050899.  SERVIZIO TERRITORIALE DI PNEUMOTISIOLOGIA - ADI",null,"Pubblico"]
[null,null,"05050899.  SERVIZIO NEUROPSICHIATRIA INFANTILE",null,"Pubblico"]
[null,"05014001. IRCSS MEDEA CONEGLIANO",null,null,"PRIVATO","Ospedale classificato"]
[null,"05014002. IRCSS MEDEA PIEVE DI SOLIGO",null,null,"PRIVATO","Ospedale classificato"]
[null,"05020701. OSPEDALE DI CONEGLIANO",null,null,"PUBBLICO","Presidio ospedaliero di rete su 2 sedi"]
[null,"05020702. OSPEDALE DI VITTORIO VENETO",null,null,"PUBBLICO","Presidio ospedaliero di rete su 2 sedi"]
[null,"05020703. OSPEDALE DE GIRONCOLI",null,null,"PUBBLICO"]
[null,null,"05050299. POLIAMBUL.EXTRAOSP.FARRA DI SOLIGO",null,"Pubblico"]
[null,null,"05050299. POLIAMBULATORIO EXTRAOSP. CN",null,"Pubblico"]
[null,null,"05050299.  POLIAMBUL.EXTRAOSP.VITTORIO V.",null,"Pubblico"]
[null,null,"05050299. CONSULTORIO FAMIL. PIEVE DI SOLIGO",null,"Pubblico"]
[null,null,"05050299. SERVIZIO ETA' EVOLUTIVA CN",null,"Pubblico"]
[null,null,"05050299. SERVIZIO ETA' EVOL. PIEVE DI SOLIGO",null,"Pubblico"]
[null,null,"05050299. SERVIZIO ETA' EVOL. VITTORIO V",null,"Pubblico"]
[null,null,"05050299. CENTRO SALUTE MENTALE AMBUL.VV",null,"Pubblico"]
[null,null,"05050299. CENTRO SALUTE MENTALE AMBUL.SL",null,"Pubblico"]
[null,null,"05050299. SER.D. SERVIZIO DIPENDENZE",null,"Pubblico"]
[null,null,"05050299. CENTRO SALUTE MENTALE AMBUL.CN",null,"Pubblico"]
[null,"05020801. OSPEDALE DI CASTELFRANCO VENETO",null,null,"PUBBLICO","Presidio ospedaliero di rete su 2 sedi"]
[null,"05020802. OSPEDALE DI MONTEBELLUNA",null,null,"PUBBLICO","Presidio ospedaliero di rete su 2 sedi"]
[null,null,"05050299. CENTRO SALUTE MENTALE - CF",null,"Pubblico"]
[null,null,"05050299. NEUROPSCHIATRIA INFANTILE - SERVIZIO ETA' EVOLUTIV",null,"Pubblico"]
[null,null,"05050299. STRUTTURA DISTRETTUALE DI RIESE",null,"Pubblico"]
[null,null,"05050299. STRUTTURA DISTRETTUALE DI VEDELAGO",null,"Pubblico"]
[null,null,"05050299. CENTRO PRELIEVI 'VILLA PULLIN' - MB",null,"Pubblico"]
[null,null,"05050299. SERVIZIO CURE PALLIATIVE E DOMICILIARI - CF",null,"Pubblico"]
[null,null,"05050299. SERVIZIO CURE PALLIATIVE E DOMICILIARI - MB",null,"Pubblico"]
[null,null,"05050299. AMBULATORIO SALUTE MENTALE - MB",null,"Pubblico"]
[null,null,"05050299. AMBULATORIO SALUTE MENTALE - ASOLO",null,"Pubblico"]
[null,null,"05050299. CONSULTORIO FAMILIARE - VB",null,"Pubblico"]
[null,null,"05050299. POLIAMB. DISTRETTUALE - VB",null,"Pubblico"]
[null,null,"05050299. POLIAMB.'S.M.BATTUTI' - AS",null,"Pubblico"]
[null,null,"05050299. CONSULTORIO FAMILIARE - AS",null,"Pubblico"]
[null,null,"05050299. SERVIZIO ETA' EVOLUTIVA - ASOLO",null,"Pubblico"]
[null,null,"05050299. POLIAMB. 'AITA' - CRESPANO",null,"Pubblico"]
[null,null,"05050299. POLIAMB.EXTRAOSP.N.4 -GIAVERA",null,"Pubblico"]
[null,null,"05050299. POLIAMB.EXTRAOSP. - MB",null,"Pubblico"]
[null,null,"05050299. POLIAMB.EXTRAOSP. - PEDEROBBA",null,"Pubblico"]
[null,null,"280801. DOTT.SSA MEDICI LAURA",null,"Privato"]
[null,null,"280901. CENTRO DIAGNOSTICO CASTELLANO SRL",null,"Privato"]
[null,null,"05050299. CONSULTORIO FAMILIARE - CF",null,"Pubblico"]
[null,null,"05050299. CONSULTORIO FAMILIARE - MB",null,"Pubblico"]
[null,null,"05050299. SERVIZIO ETA' EVOLUTIVA - MONTEBELLUNA",null,"Pubblico"]
[null,null,"05050299. SERVIZIO ETA' EVOLUTIVA - VALDOBBIADENE",null,"Pubblico"]
[null,null,"05050299. CENTRO SALUTE MENTALE - VB",null,"Pubblico"]
[null,"05007200. OSPEDALE DI MOTTA DI LIVENZA",null,null,"PRIVATO","Ospedale nodo di rete monospecialistico riabilitativo"]
[null,"05007900. OSPEDALE CLASSIFICATO SAN CAMILLO",null,null,"PRIVATO","Ospedale classificato"]
[null,"05020901. OSPEDALE CA` FONCELLO",null,null,"PUBBLICO","Hub provinciale"]
[null,"05020902. OSPEDALE DI ODERZO",null,null,"PUBBLICO","Ospedale nodo di rete"]
[null,null,"05050299. POLIAMB. SEDE DI VIA SCARPA",null,"Pubblico"]
[null,null,"05050299.  S.C. POLIAMBULATORIO",null,"Pubblico"]
[null,"05021001. PRESIDIO OSPEDALIERO DI PORTOGRUARO",null,null,"PUBBLICO","Presidio ospedaliero di rete su 2 sedi"]
[null,"05021002. PRESIDIO OSPEDALIERO DI SAN DONA` DI P.",null,null,"PUBBLICO","Presidio ospedaliero di rete su 2 sedi"]
[null,"05021003. PRESIDIO OSPEDALIERO DI JESOLO",null,null,"PUBBLICO","Ospedale nodo di rete monospecialistico riabilitativo"]
[null,null,"05050499. POLIAMBULATORIO DISTRETTO UNICO - 'PORTOGRUARESE'",null,"Pubblico"]
[null,null,"05050499. POLIAMBULATORIO DISTRETTO UNICO - 'BASSO PIAVE'",null,"Pubblico"]
[null,null,"05050499. CSM SAN DONA' DI PIAVE - AMBULATORIO",null,"Pubblico"]
[null,null,"361001. STUDIO CARDIOLOGICO DOTT. SCHIO E C. SAS",null,"Privato"]
[null,null,"361101. POLIAMBULATORIO CAORLESE S.R.L.",null,"Privato"]
[null,null,"05050499. CSM PORTOGRUARO - AMBULATORIO",null,"Pubblico"]
[null,null,"05050499. N.P.I. DISTRETTO UNICO",null,"Pubblico"]
[null,null,"05050499. N.P.I. DISTR.2 'PORTOGRUARESE'",null,"Pubblico"]
[null,null,"05050499. SER.D. - SEDE DI SAN DONA' DI PIAVE - DISTRETTO UN",null,"Pubblico"]
[null,null,"05050499. SER.D. - SEDE DI PORTOGRUARO - DISTRETTO UNICO",null,"Pubblico"]
[null,null,"05050499. CONSULTORIO FAMILIARE - DISTRETTO UNICO - SEDE DI ",null,"Pubblico"]
[null,null,"05050499. CONS.FAM.DISTR.2-JESOLO",null,"Pubblico"]
[null,null,"05050499. D.C.A. AMBULATORIALE",null,"Pubblico"]
[null,null,"05050499. PUNTO PRELIEVI PRAMAGGIORE",null,"Pubblico"]
[null,null,"05050499. PUNTO PRELIEVI TEGLIO VENETO",null,"Pubblico"]
[null,null,"05050499. PUNTO PRELIEVI GRUARO",null,"Pubblico"]
[null,null,"05050499. PUNTO PRELIEVI CINTO CAOMAGGIORE",null,"Pubblico"]
[null,null,"05050499. PUNTO PRELIEVI ANNONE VENETO",null,"Pubblico"]
[null,null,"05050499. PUNTO PRELIEVI MEOLO",null,"Pubblico"]
[null,null,"05050499. PUNTO PRELIEVI SAN DONA` DI PIAVE",null,"Pubblico"]
[null,null,"05050499. PUNTO PRELIEVI NOVENTA DI PIAVE",null,"Pubblico"]
[null,null,"05050499. PUNTO PRELIEVI CEGGIA",null,"Pubblico"]
[null,null,"05050499. PUNTO PRELIEVI FOSSALTA DI PIAVE",null,"Pubblico"]
[null,null,"05050499. PUNTO PRELIEVI ERACLEA",null,"Pubblico"]
[null,null,"05050499. PUNTO PRELIEVI CAORLE",null,"Pubblico"]
[null,null,"05050499. PUNTO PRELIEVI SAN MICHELE AL TAGLIAMENTO",null,"Pubblico"]
[null,null,"05050499. PUNTO PRELIEVI FOSSALTA DI PORTOGRUARO",null,"Pubblico"]
[null,"05009700. OSPEDALE CLASSIFICATO RAFFAELE ARCANGELO",null,null,"PRIVATO","Ospedale classificato"]
[null,"05009800. OSPEDALE CLASSIFICATO VILLA SALUS",null,null,"PRIVATO","Ospedale classificato"]
[null,"05021201. OSPEDALE CIVILE VENEZIA",null,null,"PUBBLICO","Presidio ospedaliero di rete"]
[null,"05021204. OSPEDALE DELL`ANGELO",null,null,"PUBBLICO","Hub provinciale"]
[null,null,"05050399. POLIAMB.OSPED.AL MARE",null,"Pubblico"]
[null,null,"05050399. DIST.1 POLIAMB.-MURANO",null,"Pubblico"]
[null,null,"05050399. DIST.1 AMB.VACCINALE PEDIAT. PELLESTRINA",null,"Pubblico"]
[null,null,"05050399. DIST.1 POLIAMB.-CA' SAVIO",null,"Pubblico"]
[null,null,"05050399. DIST.1 POLIAMB.-BURANO",null,"Pubblico"]
[null,null,"05050399. DIST.1 POLIAMB.-VENEZIA",null,"Pubblico"]
[null,null,"05050399. DIST.2 POLIAMB.-MESTRE",null,"Pubblico"]
[null,null,"05050399. DIST.2 POLIAMB.-MARGHERA",null,"Pubblico"]
[null,null,"05050399. DIST.2 CONS.FAM. MARGHERA",null,"Pubblico"]
[null,null,"05050399.  DIST.3 CONS.FAM. V.S.MARCO ME",null,"Pubblico"]
[null,null,"05050399. DIST.2 CONS.FAM. FAVARO",null,"Pubblico"]
[null,null,"05050399. DIST.2 CONS.FAM. MARCON",null,"Pubblico"]
[null,null,"05050399. DIST.2 CONS.FAM. CHIRIGNAGO",null,"Pubblico"]
[null,null,"05050399. C.S.M. - MESTRE",null,"Pubblico"]
[null,null,"05050399. DIST.2 POLIAMB.-MARCON",null,"Pubblico"]
[null,null,"05050399. DIST.2 POLIAMB.-QUARTO",null,"Pubblico"]
[null,null,"05050399. DIST.2 POLIAMB.-FAVARO",null,"Pubblico"]
[null,null,"05050399. DIST.2 CENTRO PRELIEVI-CHIRIGNAGO",null,"Pubblico"]
[null,null,"05050399. C.S.M. - MESTRE NORD",null,"Pubblico"]
[null,null,"05050399. DIST.1 POLIAMB.-PELLESTRINA",null,"Pubblico"]
[null,null,"05050399. DIST.2 POLIAMB.-LIDO",null,"Pubblico"]
[null,null,"05050399. C.S.M. MARGHERA",null,"Pubblico"]
[null,null,"05050399. AMB. S.I.S.P.",null,"Pubblico"]
[null,null,"05050399. DIST.1 AMB.VACCINALE PEDIAT. LIDO                 ",null,"Pubblico"]
[null,null,"05050399. DIST.1 CONS.FAM. LIDO                             ",null,"Pubblico"]
[null,null,"05050399. C.S.M. LIDO                                       ",null,"Pubblico"]
[null,null,"05050399. SERV.PREV.RIAB.ETA'EVOL.-LIDO                     ",null,"Pubblico"]
[null,"05021301. OSPEDALE DI DOLO",null,null,"PUBBLICO","Presidio ospedaliero di rete su 2 sedi"]
[null,"05021302. OSPEDALE DI MIRANO",null,null,"PUBBLICO","Presidio ospedaliero di rete su 2 sedi"]
[null,"05021303. OSPEDALE DI NOALE",null,null,"PUBBLICO","Ospedale nodo di rete monospecialistico riabilitativo"]
[null,null,"05050399. DISTRETTO SOCIO SANITARIO - NOALE",null,"Pubblico"]
[null,null,"05050399. DISTRETTO SOCIO SANITARIO - MARTELLAGO",null,"Pubblico"]
[null,null,"05050399. DISTRETTO SOCIO SANITARIO - MIRANO",null,"Pubblico"]
[null,null,"05050399. DISTRETTO SOCIO SANITARIO - SPINEA",null,"Pubblico"]
[null,null,"05050399. DISTRETTO SOCIO SANITARIO - STRA'",null,"Pubblico"]
[null,null,"05050399. DISTRETTO SOCIO SANITARIO - MIRA",null,"Pubblico"]
[null,null,"05050399. DISTRETTO SOCIO SANITARIO - CAMPONOGARA",null,"Pubblico"]
[null,null,"05050399. CENTRO DI SALUTE MENTALE - DOLO",null,"Pubblico"]
[null,null,"05050399. CENTRO DI SALUTE MENTALE - MIRANO",null,"Pubblico"]
[null,null,"05050399. D.S.S. N. 2 - AREA SUD, (SEDE DI) ORIAGO DI MIRA",null,"Pubblico"]
[null,null,"480502. CENTRO DENTALE MIRANESE S.R.L.",null,"Privato"]
[null,null,"480601. LINZI SERGIO",null,"Privato"]
[null,null,"05050399. D.S.S. N. 1 - AREA NORD, (SEDE PRINCIPALE) SPINEA\n",null,"Pubblico"]
[null,"05021400. OSPEDALE CIVILE MADONNA DELLA NAVICELLA",null,null,"PUBBLICO","Presidio ospedaliero di rete"]
[null,null,"05050399. DISTRETTO SOCIO SANITARIO - SEDE DI CAVARZERE - PR",null,"Pubblico"]
[null,null,"520701. STUDIO ODONTOIATRICO DOTT. ROBERTO OSELLADORE",null,"Privato"]
[null,null,"520801. STUDIO ODONTOIATRICO DR. G. FRANCO BOSCOLO ANZOLETTI",null,"Privato"]
[null,null,"05050399. DISTRETTO SOCIO SANITARIO - SEDE DI CHIOGGIA",null,"Pubblico"]
[null,"05021501. PRESIDIO OSPEDALIERO DI CAMPOSAMPIERO",null,null,"PUBBLICO","Centro Traumatologico Ortopedico di riferimento - Presidio ospedaliero di rete su 2 sedi"]
[null,"05021502. PRESIDIO OSPEDALIERO DI CITTADELLA",null,null,"PUBBLICO","Presidio ospedaliero di rete su 2 sedi"]
[null,null,"202901. OTI MEDICALE VICENZA",null,"Privato"]
[null,null,"280901. CENTRO DIAGNOSTICO CASTELLANO SRL",null,"Privato"]
[null,null,"05050699. AMBULATORI SPECIAL. PIAZZOLA",null,"Pubblico"]
[null,null,"05050699. UTAP CARMIGNANO DI BRENTA",null,"Pubblico"]
[null,null,"563027. CONSULTORIO FAM. CITTADELLA",null,"Pubblico (No in flusso SPS)"]
[null,null,"563028. CONSULTORIO FAM. PIAZZOLA",null,"Pubblico (No in flusso SPS)"]
[null,null,"563029. CONSULTORIO FAM. VIGONZA",null,"Pubblico (No in flusso SPS)"]
[null,null,"05050699. AMBULATORI SPECIAL. VIGONZA",null,"Pubblico"]
[null,null,"05050699. AMBULATORI SPEC. TREBASELEGHE",null,"Pubblico"]
[null,null,"05050699. AMBULATORI SPEC. VIGODARZERE",null,"Pubblico"]
[null,"05012000. CASA DI CURA DIAZ",null,null,"PRIVATO"]
[null,"05012100. CASA DI CURA VILLA MARIA",null,null,"PRIVATO","Struttura privata accreditata con compiti complementari e di integrazione all'interno della rete ospedaliera regionale"]
[null,"05021601. OSPEDALE SANT`ANTONIO",null,null,"PUBBLICO","Presidio ospedaliero di rete su 2 sedi"]
[null,"05021603. OSA C/O AZ.OSP. VIA GIUSTINIANI",null,null,"PUBBLICO","Ospedale nodo di rete monospecialistico riabilitativo"]
[null,"05021605. OSP. IMMACOL. CONCEZ. DI PIOVE DI SACCO",null,null,"PUBBLICO","Presidio ospedaliero di rete su 2 sedi"]
[null,null,"05050699. POLIAMB. C.S.S. COLLI",null,"Pubblico"]
[null,null,"05050699. POLIAMBULATORIO VIA SCROVEGNI - PADOVA",null,"Pubblico"]
[null,null,"05050699. POLIAMBULATORIO VIA TEMANZA - PADOVA",null,"Pubblico"]
[null,null,"05050699. POLIAMBULATORIO SELVAZZANO",null,"Pubblico"]
[null,null,"05050699. POLIAMBULATORIO RUBANO",null,"Pubblico"]
[null,null,"05050699. POLIAMBULATORIO ALBIGNASEGO",null,"Pubblico"]
[null,null,"05050699.  AMB. DI DIABET. - NOVENTA PAD.",null,"Pubblico"]
[null,null,"05050699.  AMB. DI DIABET. - CADONEGHE",null,"Pubblico"]
[null,null,"05050699.  POLIAMBULATORIO ABANO TERME",null,"Pubblico"]
[null,null,"05050699. CONS. FAM. -PD VIA OGNISSANTI",null,"Pubblico"]
[null,null,"05050699. CONS. FAM. -PD",null,"Pubblico"]
[null,null,"05050699. CONS. FAM. -CADONEGHE",null,"Pubblico"]
[null,null,"05050699. PEDIATRIA DI COMUNITA' DI SELVAZZANO",null,"Pubblico"]
[null,null,"05050699. CONS. FAMILIARE - RUBANO",null,"Pubblico"]
[null,null,"05050699. CONS. FAMILIARE - SELVAZZANO",null,"Pubblico"]
[null,null,"05050699. PEDIATRIA DI COMUNITA' DI ALBIGNASEGO",null,"Pubblico"]
[null,null,"05050699. CONS.FAMILIARE -ABANO TERME",null,"Pubblico"]
[null,null,"05050699. CONS. FAMILIARE -ALBIGNASEGO",null,"Pubblico"]
[null,null,"05050699. AMB. NPI E PSICOLOGIA DI ALBIGNASEGO",null,"Pubblico"]
[null,null,"05050699. PEDIATRIA DI COMUNITA' DI V. BOCCACCIO",null,"Pubblico"]
[null,null,"05050699. CONS. FAM. -PD V.DAL PIAZ",null,"Pubblico"]
[null,null,"05050699. C.S.M. 3 - V. BUZZACARINI",null,"Pubblico"]
[null,null,"05050699. AMBULATORIO SALUTE MENTALE- V. AVANZO",null,"Pubblico"]
[null,null,"05050699. C.S.M. 2 - V. DEI COLLI",null,"Pubblico"]
[null,null,"05050699. AMBUL. SALUTE MENTALE - MONTEGROTTO",null,"Pubblico"]
[null,null,"05050699. S.E.R.T. N. 1",null,"Pubblico"]
[null,null,"05050699. S.E.R.T. N. 1",null,"Pubblico"]
[null,null,"05050699. C.DI RIABILITAZIONE UDITIVA-PD V.EULERO",null,"Pubblico"]
[null,null,"05050699. AMB.DI LOGOPEDIA",null,"Pubblico"]
[null,null,"05050699. AMB.DI LOGOPEDIA DI CADONEGHE",null,"Pubblico"]
[null,null,"05050699. AMB. DI LOGOPEDIA DI LIMENA",null,"Pubblico"]
[null,null,"05050699. AMB. DI LOGOGOPEDIA DI VIA DAL PIAZ",null,"Pubblico"]
[null,null,"05050699. AMB. DI LOGOPEDIA DI RUBANO",null,"Pubblico"]
[null,null,"05050699. AMB. DI LOGOPEDIA DI SELVAZZANO",null,"Pubblico"]
[null,null,"05050699. AMB. DI LOGOGOPEDIA - ABANO T.",null,"Pubblico"]
[null,null,"05050699. AMB. DI LOGOPEDIA DI ALBIGNASEGO",null,"Pubblico"]
[null,null,"05050699. AMB. DI LOGOPEDIA DI MONTEGROTTO TERME",null,"Pubblico"]
[null,null,"05050699. AMB.DI LOGOPEDIA DI NOVENTA PD",null,"Pubblico"]
[null,null,"05050699. CONS. FAMILIARE - NOVENTA",null,"Pubblico"]
[null,null,"05050699. AMB. DI LOGOPEDIA DI V. PIOVESE",null,"Pubblico"]
[null,null,"05050699. CONS. FAM. - PD V. PIOVESE",null,"Pubblico"]
[null,null,"05050699. PEDIATRIA DI COMUNITA' DI VIA PIOVESE",null,"Pubblico"]
[null,null,"05050699. AMB.ATT.SCREENING-PDV.SCROVEGN",null,"Pubblico"]
[null,null,"05050699. U.O.C. NEUROPSICH. INFANTILE",null,"Pubblico"]
[null,null,"05050699. AMB. DI DIABET. -V. VIGONOVESE",null,"Pubblico"]
[null,null,"05050699. C.S.M. 1 - VIA BERCHET",null,"Pubblico"]
[null,null,"05050699. POLIAMB. ULSS 16 V GIUSTINIANI",null,"Pubblico"]
[null,null,"05050699. CONS.FAM. - PD V. SALERNO",null,"Pubblico"]
[null,null,"05050699. AMB. LOGOPEDIA DI VIA SALERNO 1",null,"Pubblico"]
[null,null,"05050699. SERVIZIO CONTATTO GIOVANI - CONSULTORIO ADOLESCENT",null,"Pubblico"]
[null,null,"05050699. AMB. C/O CASA DI RECLUSIONE",null,"Pubblico"]
[null,null,"05050699. POLIAMBULATORIO P.LE MAZZINI - PD",null,"Pubblico"]
[null,null,"05050699. POLIAMBULATORIO MASERA'",null,"Pubblico"]
[null,null,"05050699. C.S.M. DI PIOVE DI SACCO",null,"Pubblico"]
[null,null,"05050699. CONSULTORIO FAMILIARE DI PIOVE DI SACCO",null,"Pubblico"]
[null,null,"05050699. AMB. NEUROPSICHIATRIA INF. E PSICOLOGIA PIOVE DI SACCO",null,"Pubblico"]
[null,null,"05050699. POLIAMBULATORIO VIA PIOVESE - ALBIGNASEGO",null,"Pubblico"]
[null,null,"05050699. AMB. ATT. SCREENING VIA DEI COLLI",null,"Pubblico"]
[null,null,"05050699. AMBULATORIO DI LOGOPEDIA ABANO TERME",null,"Pubblico"]
[null,null,"05050699. CONSULTORIO FAM. ABANO TERME",null,"Pubblico"]
[null,null,"05050699. POLIAMBULATORIO D2 ABANO",null,"Pubblico"]
[null,null,"05050699. POLIAMBULATORIO GUIZZA",null,"Pubblico"]
[null,"05021701. SEDE ESTE",null,null,"PUBBLICO","Presidio ospedaliero di rete su 2 sedi"]
[null,"05021702. SEDE MONSELICE",null,null,"PUBBLICO","Presidio ospedaliero di rete su 2 sedi"]
[null,"05021703. SEDE MONTAGNANA",null,null,"PUBBLICO","Ospedale nodo di rete monospecialistico riabilitativo"]
[null,"05021704. SEDE CONSELVE",null,null,"PUBBLICO","Ospedale nodo di rete monospecialistico riabilitativo"]
[null,"05021705. OSPEDALI RIUNITI PADOVA SUD",null,null,"PUBBLICO","Presidio ospedaliero di rete"]
[null,null,"05050699. D SIAP CONSULT. FAM. MONSELICE",null,"Pubblico"]
[null,null,"640801. DR. GASPARETTO GIOVANNI",null,"Privato"]
[null,null,"640901. DR. SCIBETTA ENZO",null,"Privato"]
[null,null,"05050699. CENTRO SALUTE MENTALE UNICO - CONSELVE",null,"Pubblico"]
[null,null,"05050699. CENTRO SALUTE MENTALE UNICO - MONSELICE",null,"Pubblico"]
[null,null,"05050699. UOC DIPENDENZE MONSELICE (SERD)",null,"Pubblico"]
[null,null,"05050699. D SIAP CONSULT. FAM. MONTAGNANA",null,"Pubblico"]
[null,null,"05050699. D SIAP CONSULT. FAM. CONSELVE",null,"Pubblico"]
[null,null,"05050699. D SIAP EENPI CONSELVE",null,"Pubblico"]
[null,null,"05050699. D SIAP EENPI ESTE",null,"Pubblico"]
[null,null,"05050699. UOC DIPENDENZE ESTE (SERD)",null,"Pubblico"]
[null,null,"05050699. D SIAP CONSULT. FAM. ESTE",null,"Pubblico"]
[null,null,"05050699. CENTRO SALUTE MENTALE UNICO - ESTE",null,"Pubblico"]
[null,null,"05050699. D SIAP EENPI MONSELICE",null,"Pubblico"]
[null,null,"05050699. D SIAP EENPI MONTAGNANA",null,"Pubblico"]
[null,null,"05050699. CENTRO SALUTE MENTALE UNICO - MONTAGNANA",null,"Pubblico"]
[null,null,"05050699. MEDICINA SPORT ESTE",null,"Pubblico"]
[null,null,"05050699. CURE PRIMARIE ESTE",null,"Pubblico"]
[null,null,"05050699. CURE PRIMARIE MONSELICE",null,"Pubblico"]
[null,null,"05050699. CURE PRIMARIE CONSELVE",null,"Pubblico"]
[null,null,"05050699. POLIAMBULATORIO SCHIAVONIA",null,"Pubblico"]
[null,"05013100. CASA DI CURA SANTA MARIA MADDALENA",null,null,"PRIVATO","Struttura privata accreditata con compiti complementari e di integrazione all'interno della rete ospedaliera regionale"]
[null,"05014100. CASA DI CURA CITTA DI ROVIGO",null,null,"PRIVATO","Struttura privata accreditata con compiti complementari e di integrazione all'interno della rete ospedaliera regionale"]
[null,"05021801. P.O. DI ROVIGO",null,null,"PUBBLICO","Hub provinciale"]
[null,"05021802. P.O. DI TRECENTA",null,null,"PUBBLICO","Ospedale nodo di rete con specificità "]
[null,null,"05050599. POLIAMB. TERR.LE BADIA POLESINE",null,"Pubblico"]
[null,null,"05050599. POLIAMB. TERR.LE CASTELMASSA",null,"Pubblico"]
[null,null,"05050599. POLIAMB. TERR.LE LENDINARA",null,"Pubblico"]
[null,null,"05050599. POLIAMB. TERR.LE OCCHIOBELLO",null,"Pubblico"]
[null,null,"05050599. POLIAMB. TERR.LE DI TRECENTA",null,"Pubblico"]
[null,null,"05050599. CONSULTORIO FAM. BADIA POLESINE",null,"Pubblico"]
[null,null,"05050599. CONSULTORIO FAM. CASTELMASSA",null,"Pubblico"]
[null,null,"05050599. CONSULTORIO FAM. OCCHIOBELLO",null,"Pubblico"]
[null,null,"05050599. CONSULTORIO FAM. POLESELLA",null,"Pubblico"]
[null,null,"05050599. CONSULTORIO FAM. ARQUA' POLESINE",null,"Pubblico"]
[null,null,"05050599. CONSULTORIO FAM. ROVIGO",null,"Pubblico"]
[null,null,"05050599. C.S.M. ROVIGO",null,"Pubblico"]
[null,null,"05050599. C.S.M. BADIA POLESINE",null,"Pubblico"]
[null,null,"05050599. SERT MEDIO POLESINE-ROVIGO",null,"Pubblico"]
[null,null,"05050599. CENTRO DISTURBI ALIMENTARI",null,"Pubblico"]
[null,null,"05050599. SERT ALTO POLESINE BADIA POL.",null,"Pubblico"]
[null,null,"05050599. CSM TRECENTA",null,"Pubblico"]
[null,null,"05050599. CSM CASTELMASSA",null,"Pubblico"]
[null,null,"05050599. CSM LENDINARA",null,"Pubblico"]
[null,null,"05050599. CSM S. MARIA MADDALENA - OCCHIOBELLO",null,"Pubblico"]
[null,null,"05050599. POLIAMB. EXTRAOSPED. ROVIGO",null,"Pubblico"]
[null,null,"05050599. POLIAMB. TERR.LE ARQUA' POLESINE",null,"Pubblico"]
[null,null,"05050599. POLIAMB. TERR.LE CEREGNANO",null,"Pubblico"]
[null,null,"05050599. POLIAMB. TERR.LE POLESELLA",null,"Pubblico"]
[null,null,"05050599. POLIAMBULATORIO TERRITORIALE DI CEREGNANO",null,"Pubblico"]
[null,null,"05050599. AMBULATORIO C/O CASA CIRCONDARIALE DI ROVIGO",null,"Pubblico"]
[null,"05021900. OSPEDALE CIVILE DI ADRIA",null,null,"PUBBLICO","Presidio ospedaliero di rete"]
[null,null,"05050599. POLIAMBULATORIO EXTRAOSPEDALIERO - ADRIA",null,"Pubblico"]
[null,null,"05050599. POLIAMBULATORIO EXTRAOSPEDALIERO - PORTO TOLLE",null,"Pubblico"]
[null,null,"05050599. POLIAMBULATORIO EXTRAOSPEDALIERO - PORTO VIRO",null,"Pubblico"]
[null,null,"05050599. AMBULATORIO EXTRAOSPEDALIERO - TAGLIO DI PO",null,"Pubblico"]
[null,null,"05050599. CONSULTORIO PEDIATRICO - TAGLIO DI PO",null,"Pubblico"]
[null,null,"05050599. CONSULTORIO PEDIATRICO - PORTO TOLLE",null,"Pubblico"]
[null,null,"05050599. CONSULTORIO PEDIATRICO - ADRIA",null,"Pubblico"]
[null,null,"05050599. SER. D.",null,"Pubblico"]
[null,null,"05050599. CONSULTORIO GINECOLOGICO - ADRIA",null,"Pubblico"]
[null,null,"05050599. CONSULTORIO GINECOLOGICO - PORTO VIRO",null,"Pubblico"]
[null,null,"05050599. CONSULTORIO GINECOLOGICO - PORTO TOLLE",null,"Pubblico"]
[null,null,"05050599. AMBULATORIO EXTRAOSPEDALIERO ROSOLINA",null,"Pubblico"]
[null,"05001800. OSPEDALE CLASSIFICATO VILLA S. GIULIANA",null,null,"PRIVATO","Ospedale classificato"]
[null,"05001900. CASA DI CURA CENTRO RIABILIT VERONESE",null,null,"PRIVATO","Struttura privata accreditata con compiti complementari e di integrazione all'interno della rete ospedaliera regionale"]
[null,"05022004. PRESIDIO OSP. MARZANA",null,null,"PUBBLICO","Ospedale nodo di rete monospecialistico riabilitativo"]
[null,"05022005. POLO OSP. DELL`EST VERONESE OSP. SAN BONIFACIO",null,null,"PUBBLICO","Presidio ospedaliero di rete"]
[null,"05022006. PSICHIATRIA SEZIONE B.GO TRENTO - VERONA",null,null,"PUBBLICO","Psichiatria ospedaliera"]
[null,null,"05050999. POL. TER. MONTECCHIA DI CROSARA",null,"Pubblico"]
[null,null,"05050999. POL. TER. VIA POLONI",null,"Pubblico"]
[null,null,"05050999. POL. TER. VIA VALEGGIO",null,"Pubblico"]
[null,null,"05050999. POL. TER. VIA DEL CAPITEL",null,"Pubblico"]
[null,null,"05050999. POL. TER. VIA CAMPANIA",null,"Pubblico"]
[null,null,"05050999. SERVIZIO DIPENDENZE (SER.D.) - SOAVE",null,"Pubblico"]
[null,null,"05050999. SERVIZIO DIPENDENZE (SER.D.) - VIA PACINOTTI",null,"Pubblico"]
[null,null,"05050999. SERVIZIO DIPENDENZE (SER.D.)",null,"Pubblico"]
[null,null,"05050999. CONSULTORIO FAMILIARE 3 - VERONA",null,"Pubblico"]
[null,null,"05050999. CONSULTORIO FAMILIARE 4 - VERONA",null,"Pubblico"]
[null,null,"05050999. CONSULTORIO FAMILIARE 8 - COLOGNA VENETA",null,"Pubblico"]
[null,null,"05050999. CONSULTORIO FAMILIARE 1 - VERONA",null,"Pubblico"]
[null,null,"05050999. CONSULTORIO FAMILIARE 6 - TREGNAGO",null,"Pubblico"]
[null,null,"05050999. CONSULTORIO FAMILIARE 7 - SAN BONIFACIO",null,"Pubblico"]
[null,null,"05050999. POL. TER. TREGNAGO",null,"Pubblico"]
[null,null,"05050999. SERV. DIABETOLOGIA PEDIATRICA",null,"Pubblico"]
[null,null,"05050999. POL. TER. S. GIOVANNI LUPATOTO",null,"Pubblico"]
[null,null,"05050999. CONSULTORIO FAMILIARE 9 SAN GIOVANNI LUPATOTO",null,"Pubblico"]
[null,null,"05050999. C.S.M. DI VICOLO TERESE - VERONA (1? SERVIZIO)",null,"Pubblico"]
[null,null,"05050999. NEUROPSICHIATRIA INFANTILE DI VERONA",null,"Pubblico"]
[null,null,"05050999. POL. TER. COLOGNA VENETA",null,"Pubblico"]
[null,null,"05050999. NEUROPSICHIATRIA INFANTILE DI SAN BONIFACIO",null,"Pubblico"]
[null,null,"05050999. C.S.M. DI COLOGNA VENETA (4? SERVIZIO)",null,"Pubblico"]
[null,null,"05050999. C.S.M. DI VIA E. TOTI - VERONA (2? SERVIZIO)",null,"Pubblico"]
[null,null,"05050999. CONSULTORIO FAMILIARE 2 VIA DEL CAPITEL",null,"Pubblico"]
[null,null,"05050999. CONSULTORIO FAMILIARE 5 - VIA DEL CAPITEL",null,"Pubblico"]
[null,null,"05050999. NEUROPSICHIATRIA INFANTILE (CENTRO AUTISMO)",null,"Pubblico"]
[null,null,"05050999. NEUROPSICHIATRIA INFANTILE SAN GIOVANNI LUPATOTO",null,"Pubblico"]
[null,null,"05050999. NEUROPSICHIATRIA INFANTILE VIA DEL CAPITEL",null,"Pubblico"]
[null,null,"05050999. NEUROPSICHIATRIA INFANTILE TREGNAGO",null,"Pubblico"]
[null,null,"05050999. CENTRO REGIONALE DISTURBI DELL'APPRENDIMENTO",null,"Pubblico"]
[null,null,"05050999. SERV. DI AUDIOLOGIA E RIEDUC. FONETICA VIA DEL CAP",null,"Pubblico"]
[null,null,"05050999. SERV. DI AUDIOLOGIA E RIEDUC. FONETICA S.GIOVANNI ",null,"Pubblico"]
[null,null,"05050999. SERV. DI AUDIOLOGIA E RIEDUC. FONETICA SAN BONIFAC",null,"Pubblico"]
[null,null,"05050999. SERV. DI AUDIOLOGIA E RIEDUC. FONETICA TREGNAGO",null,"Pubblico"]
[null,null,"05050999. SERV. RIEDUCAZIONE MOTORIA SAN BONIFACIO",null,"Pubblico"]
[null,null,"05050999. SERV. RIEDUCAZIONE MOTORIA COLOGNA VENETA",null,"Pubblico"]
[null,null,"05050999. SERV. RIEDUCAZIONE MOTORIA VIA DEL CAPITEL",null,"Pubblico"]
[null,null,"05050999. SERV. RIEDUCAZIONE MOTORIA VIA MONTE NOVEGNO",null,"Pubblico"]
[null,null,"05050999. SERV. RIEDUCAZIONE MOTORIA TREGNAGO",null,"Pubblico"]
[null,null,"05050999. SERV. RIEDUCAZIONE MOTORIA SAN GIOVANNI LUPATOTO",null,"Pubblico"]
[null,null,"05050999. SERV. RIEDUCAZIONE MOTORIA VIA VALEGGIO",null,"Pubblico"]
[null,null,"05050999. SERV. RIEDUCAZIONE MOTORIA BAMBINI VIA POLONI",null,"Pubblico"]
[null,null,"05050999. SERV. RIEDUCAZIONE MOTORIA VIA POLONI",null,"Pubblico"]
[null,null,"05050999. SERV. PSICOLOGIA TERRITORIALE - VIA MONTE NOVEGNO",null,"Pubblico"]
[null,null,"05050999. SERV. ODONTOIATRIA DISABILI",null,"Pubblico"]
[null,null,"05050999. SERVIZIO RIEDUCAZIONE MOTORIA - MARZANA",null,"Pubblico"]
[null,null,"05050999. SERVIZIO RIEDUCAZIONE MOTORIA VIA CAMPANIA",null,"Pubblico"]
[null,null,"05050999. CASA CIRCONDARIALE - SANITA' PENITENZIARIA",null,"Pubblico"]
[null,null,"05050999. CENTRO DECADIMENTO COGNITIVO - C.D.C. - PALAZZO DE",null,"Pubblico"]
[null,null,"05050999. CENTRO DECADIMENTO COGNITIVO - C.D.C. - POLO SAN B",null,"Pubblico"]
[null,null,"05050999. CENTRO MALATTIE DIFFUSIVE",null,"Pubblico"]
[null,"05022101. OSPEDALE PER ACUTI DI LEGNAGO",null,null,"PUBBLICO","Presidio ospedaliero di rete"]
[null,"05022102. OSPEDALE CHIARENZI ZEVIO",null,null,"PUBBLICO","Ospedale nodo di rete monospecialistico riabilitativo"]
[null,"05022103. OSPEDALE S.BIAGIO BOVOLONE",null,null,"PUBBLICO","Ospedale nodo di rete monospecialistico riabilitativo"]
[null,null,"05050999. POLIAMB.TERRITORIALE ZEVIO",null,"Pubblico"]
[null,null,"05050999. MALATTIE INFETTIVE OSP.LEGNAGO",null,"Pubblico"]
[null,null,"05050999. POLIAMB.STRUTT.SOC. SAN.NOGARA",null,"Pubblico"]
[null,null,"05050999. POLIAMB.TERRIT.DI BOVOLONE",null,"Pubblico"]
[null,null,"05050999. POLIAMB.TERRIT.LEGNAGO",null,"Pubblico"]
[null,null,"05050999. POLIAMB.TERRITOR. LEGNAGO SX",null,"Pubblico"]
[null,null,"05050999. POLIAMB.TERRIT.DI CEREA",null,"Pubblico"]
[null,null,"05050999. POLIAMB.TERRITOR.DI NOGARA",null,"Pubblico"]
[null,null,"05050999. U.S.D.INFANZIA ADOLESCENZA E FAMIGLIA",null,"Pubblico"]
[null,null,"05050999. U.O.TUTELA FAM./ CONSULT. FAM./TUT.MINORI",null,"Pubblico"]
[null,null,"05050999. AMB PSICH.DI LEGNAGO",null,"Pubblico"]
[null,null,"05050999. SERD.DI LEGNAGO",null,"Pubblico"]
[null,null,"05050999. SERD DI ZEVIO",null,"Pubblico"]
[null,null,"05050999. CENTRO DI SALUTE MENT.BOVOLONE",null,"Pubblico"]
[null,"05001700. OSPEDALE SACRO CUORE DON CALABRIA",null,null,"PRIVATO","Ospedale classificato - Presidio Ospedaliero"]
[null,"05002100. CASA DI CURA VILLA GARDA",null,null,"PRIVATO","Struttura privata accreditata con compiti complementari e di integrazione all'interno della rete ospedaliera regionale"]
[null,"05022201. OSPEDALE CIVILE ORLANDI BUSSOLENGO",null,null,"PUBBLICO","Presidio ospedaliero di rete su 2 sedi"]
[null,"05022202. OSPEDALE ISOLA DELLA SCALA",null,null,"PUBBLICO","Struttura a vocazione territoriale"]
[null,"05022203. OSPEDALE DI CAPRINO VERONESE",null,null,"PUBBLICO","Psichiatria ospedaliera"]
[null,"05022204. OSPEDALE DI MALCESINE",null,null,"PUBBLICO","Ospedale nodo di rete monospecialistico riabilitativo"]
[null,"05022205. OSPEDALE MAGALINI - VILLAFRANCA DI VR",null,null,"PUBBLICO","Presidio ospedaliero di rete su 2 sedi"]
[null,null,"05050999. POLIAMB. TERR. S. AMBROGIO",null,"Pubblico"]
[null,null,"05050999. POLIAMB. TERR. PESCHIERA",null,"Pubblico"]
[null,null,"05050999. POLIAMB. TERR. BARDOLINO",null,"Pubblico"]
[null,null,"05050999. POLIAMB. TERR. ISOLA",null,"Pubblico"]
[null,null,"05050999. POLIAMB. TERR. VILLAFRANCA",null,"Pubblico"]
[null,null,"05050999. POLIAMB. TERR. VALEGGIO",null,"Pubblico"]
[null,null,"05050999. POLIAMB. TERR. MALCESINE",null,"Pubblico"]
[null,null,"05050999. POLIAMB. TERR. BUSSOLENGO",null,"Pubblico"]
[null,null,"05050999. POLIAMB. TERR. SOMMACAMPAGNA",null,"Pubblico"]
[null,null,"05050999. SERVIZIO NPI BUSSOLENGO",null,"Pubblico"]
[null,"05090100. AZIENDA OSPEDALIERA PADOVA",null,{"$f":"B455&C455","v":"05090100. AZIENDA OSPEDALIERA PADOVA"},"PUBBLICO","Hub regionale"]
[null,"05090101. OSPEDALE DI S. ANTONIO",null,{"$f":"B456&C456","v":"05090101. OSPEDALE DI S. ANTONIO"},"PUBBLICO"]
[null,"05091201. AOUI VERONA BORGO TRENTO",null,null,"PUBBLICO","Hub regionale"]
[null,"05091202. AOUI DI VERONA BORGO ROMA",null,null,"PUBBLICO","Hub regionale"]
[null,"05095201. IOV PADOVA",null,null,"PUBBLICO","Centro Regionale di supporto e coordinamento della rete oncologica"]
[null,"05095202. IOV h CASTELFRANCO",null,null,"PUBBLICO",{"$f":"VLOOKUP(A460,[1]Codifiche!#REF!,4,FALSE)","v":{"$error":"#REF!"}}]
[null,null,"05012300. CASA DI CURA ABANO TERME POLISPEC. E TER",null,"Privato"]

{"sheet":"SP_nuovoPDC","index":5,"n_rows":436,"n_cols":2,"rows_kept":436,"cut":false,"hidden":true,"merged":[]}
["TA","TA (TOTALE ATTIVO)"]
["AAZ999","A) IMMOBILIZZAZIONI"]
["AAA000","A.I) IMMOBILIZZAZIONI IMMATERIALI"]
["AAA010","A.I.1) Costi di impianto e di ampliamento"]
["AAA020","A.I.1.a) Costi di impianto e di ampliamento"]
["AAA030","A.I.1.b) F.do Amm.to costi di impianto e di ampliamento"]
["AAA040","A.I.2) Costi di ricerca e sviluppo"]
["AAA050","A.I.2.a) Costi di ricerca e sviluppo"]
["AAA060","A.I.2.b) F.do Amm.to costi di ricerca e sviluppo"]
["AAA070","A.I.3) Diritti di brevetto e diritti di utilizzazione delle opere d'ingegno"]
["AAA080","A.I.3.a) Diritti di brevetto e diritti di utilizzazione delle opere d'ingegno - derivanti dall'attività di ricerca"]
["AAA090","A.I.3.b) F.do Amm.to diritti di brevetto e diritti di utilizzazione delle opere d'ingegno - derivanti dall'attività di ricerca"]
["AAA100","A.I.3.c) Diritti di brevetto e diritti di utilizzazione delle opere d'ingegno - altri"]
["AAA110","A.I.3.d) F.do Amm.to diritti di brevetto e diritti di utilizzazione delle opere d'ingegno - altri"]
["AAA120","A.I.4) Immobilizzazioni immateriali in corso e acconti"]
["AAA120a","A.I.4.a) Costi di impianto e di ampliamento"]
["AAA120b","A.I.4.b) Costi di ricerca, sviluppo"]
["AAA120c","A.I.4.c) Diritti di brevetto e diritti di utilizzazione delle opere d'ingegno"]
["AAA120d","A.I.4.d) Altre immobilizzazioni immateriali"]
["AAA121a","A.I.4.d.1) Concessioni, licenze, marchi e diritti simili"]
["AAA121b","A.I.4.d.2) Migliorie su beni di terzi"]
["AAA121b1","A.I.4.d.2.a) Migliorie su beni di terzi con vincolo di destinazione sanitaria senza termini di scadenza"]
["AAA121b2","A.I.4.d.2.b) Altre migliorie su beni di terzi"]
["AAA121c","A.I.4.d.3) Pubblicità"]
["AAA121d","A.I.4.d.4) Altre immobilizzazioni immateriali"]
["AAA130","A.I.5) Altre immobilizzazioni immateriali"]
["AAA140","A.I.5.a) Concessioni, licenze, marchi e diritti simili"]
["AAA150","A.I.5.b) F.do Amm.to concessioni, licenze, marchi e diritti simili"]
["AAA160","A.I.5.c) Migliorie su beni di terzi"]
["AAA160a","A.I.5.c.1) Migliorie su beni di terzi con vincolo di destinazione sanitaria senza termini di scadenza"]
["AAA160b","A.I.5.c.2) Altre migliorie su beni di terzi"]
["AAA170","A.I.5.d) F.do Amm.to migliorie su beni di terzi"]
["AAA170a","A.I.5.d.1) F.do Amm.to migliorie su beni di terzi con vincolo di destinazione sanitaria senza termini di scadenza"]
["AAA170b","A.I.5.d.2) F.do Amm.to altre migliorie su beni di terzi"]
["AAA180","A.I.5.e) Pubblicità"]
["AAA190","A.I.5.f) F.do Amm.to pubblicità"]
["AAA200","A.I.5.g) Altre immobilizzazioni immateriali"]
["AAA210","A.I.5.h) F.do Amm.to altre immobilizzazioni immateriali"]
["AAA220","A.I.6) Fondo Svalutazione immobilizzazioni immateriali"]
["AAA230","A.I.6.a) F.do Svalut. Costi di impianto e di ampliamento"]
["AAA240","A.I.6.b) F.do Svalut. Costi di ricerca e sviluppo"]
["AAA250","A.I.6.c) F.do Svalut. Diritti di brevetto e diritti di utilizzazione delle opere d'ingegno"]
["AAA260","A.I.6.d) F.do Svalut. Altre immobilizzazioni immateriali"]
["AAA270","A.II) IMMOBILIZZAZIONI MATERIALI"]
["AAA280","A.II.1) Terreni"]
["AAA290","A.II.1.a) Terreni disponibili"]
["AAA300","A.II.1.b) Terreni indisponibili"]
["AAA310","A.II.2) Fabbricati"]
["AAA320","A.II.2.a) Fabbricati non strumentali (disponibili)"]
["AAA330","A.II.2.a.1) Fabbricati non strumentali (disponibili)"]
["AAA330a","A.II.2.a.1.a) Fabbricati non strumentali (disponibili)"]
["AAA330b","A.II.2.a.1.b) Costruzioni leggere non strumentali (disponibili)"]
["AAA340","A.II.2.a.2) F.do Amm.to Fabbricati non strumentali (disponibili)"]
["AAA340a","A.II.2.a.2.a) F.do Amm.to Fabbricati non strumentali (disponibili)"]
["AAA340b","A.II.2.a.2.b) F.do Amm.to Costruzioni leggere non strumentali (disponibili)"]
["AAA350","A.II.2.b) Fabbricati strumentali (indisponibili)"]
["AAA360","A.II.2.b.1) Fabbricati strumentali (indisponibili)"]
["AAA360a","A.II.2.b.1.a) Fabbricati strumentali (indisponibili)"]
["AAA360b","A.II.2.b.1.b) Costruzioni leggere strumentali (indisponibili)"]
["AAA370","A.II.2.b.2) F.do Amm.to Fabbricati strumentali (indisponibili)"]
["AAA370a","A.II.2.b.2.a) F.do Amm.to Fabbricati strumentali (indisponibili)"]
["AAA370b","A.II.2.b.2.b) F.do Amm.to Costruzioni leggere strumentali (indisponibili)"]
["AAA380","A.II.3) Impianti e macchinari"]
["AAA390","A.II.3.a) Impianti e macchinari"]
["AAA390a","A.II.3.a.1) Impianti e macchinari - audiovisivi"]
["AAA390b","A.II.3.a.2) Impianti e macchinari - altro"]
["AAA400","A.II.3.b) F.do Amm.to Impianti e macchinari"]
["AAA400a","A.II.3.b.1) F.do Amm.to Impianti e macchinari - audiovisivi"]
["AAA400b","A.II.3.b.2) F.do Amm.to Impianti e macchinari - altro"]
["AAA410","A.II.4) Attrezzature sanitarie e scientifiche"]
["AAA420","A.II.4.a) Attrezzature sanitarie e scientifiche"]
["AAA430","A.II.4.b) F.do Amm.to Attrezzature sanitarie e scientifiche"]
["AAA440","A.II.5) Mobili e arredi"]
["AAA450","A.II.5.a) Mobili e arredi"]
["AAA460","A.II.5.b) F.do Amm.to Mobili e arredi"]
["AAA470","A.II.6) Automezzi"]
["AAA480","A.II.6.a) Automezzi"]
["AAA490","A.II.6.b) F.do Amm.to Automezzi"]
["AAA500","A.II.7) Oggetti d'arte"]
["AAA510","A.II.8) Altre immobilizzazioni materiali"]
["AAA520","A.II.8.a) Altre immobilizzazioni materiali"]
["AAA520a","A.II.8.a.1) Macchine d'ufficio"]
["AAA520b","A.II.8.a.2) Altre immobilizzazioni materiali (altri beni)"]
["AAA530","A.II.8.b) F.do Amm.to Altre immobilizzazioni materiali"]
["AAA530a","A.II.8.b.1) F.do Amm.to Macchine d'ufficio"]
["AAA530b","A.II.8.b.2) F.do Amm.to Altre immobilizzazioni materiali (altri beni)"]
["AAA540","A.II.9) Immobilizzazioni materiali in corso e acconti"]
["AAA540a","A.II.9.a) Terreni"]
["AAA540b","A.II.9.b) Fabbricati"]
["AAA540c","A.II.9.c) Impianti e macchinari"]
["AAA540d","A.II.9.d) Attrezzature sanitarie e scientifiche"]
["AAA540e","A.II.9.e) Mobili e arredi"]
["AAA540f","A.II.9.f) Automezzi"]
["AAA540g","A.II.9.g) Oggetti d'arte"]
["AAA540h","A.II.9.h) Altre immobilizzazioni materiali"]
["AAA540h1","A.II.9.h.1) Macchine d'ufficio"]
["AAA540h2","A.II.9.h.2) Altre immobilizzaioni materiali (altri beni)"]
["AAA550","A.II.10) Fondo Svalutazione immobilizzazioni materiali"]
["AAA560","A.II.10.a) F.do Svalut. Terreni"]
["AAA570","A.II.10.b) F.do Svalut. Fabbricati"]
["AAA580","A.II.10.c) F.do Svalut. Impianti e macchinari"]
["AAA590","A.II.10.d) F.do Svalut. Attrezzature sanitarie e scientifiche"]
["AAA600","A.II.10.e) F.do Svalut. Mobili e arredi"]
["AAA610","A.II.10.f) F.do Svalut. Automezzi"]
["AAA620","A.II.10.g) F.do Svalut. Oggetti d'arte"]
["AAA630","A.II.10.h) F.do Svalut. Altre immobilizzazioni materiali"]
["AAA640","A.III) IMMOBILIZZAZIONI FINANZIARIE"]
["AAA650","A.III.1) Crediti finanziari"]
["AAA660","A.III.1.a) Crediti finanziari v/Stato"]
["AAA670","A.III.1.b) Crediti finanziari v/Regione"]
["AAA680","A.III.1.c) Crediti finanziari v/partecipate"]
["AAA690","A.III.1.d) Crediti finanziari v/altri"]
["AAA700","A.III.2) Titoli"]
["AAA710","A.III.2.a) Partecipazioni"]
["AAA710a","A.III.2.a.1) Partecipazioni in imprese controllate"]
["AAA710b","A.III.2.a.2) Partecipazioni in imprese collegate"]
["AAA710c","A.III.2.a.3) Partecipazioni in altre imprese"]
["AAA720","A.III.2.b) Altri titoli"]
["AAA730","A.III.2.b.1) Titoli di Stato"]
["AAA740","A.III.2.b.2) Altre Obbligazioni"]
["AAA750","A.III.2.b.3) Titoli azionari quotati in Borsa"]
["AAA760","A.III.2.b.4) Titoli diversi"]
["ABZ999","B) ATTIVO CIRCOLANTE"]
["ABA000","B.I) RIMANENZE"]
["ABA010","B.I.1) Rimanenze beni sanitari"]
["ABA020","B.I.1.a) Prodotti farmaceutici ed emoderivati"]
["ABA030","B.I.1.b) Sangue ed emocomponenti"]
["ABA040","B.I.1.c) Dispositivi medici"]
["ABA050","B.I.1.d) Prodotti dietetici"]
["ABA060","B.I.1.e) Materiali per la profilassi (vaccini)"]
["ABA070","B.I.1.f) Prodotti chimici"]
["ABA080","B.I.1.g) Materiali e prodotti per uso veterinario"]
["ABA090","B.I.1.h) Altri beni e prodotti sanitari"]
["ABA100","B.I.1.i) Acconti per acquisto di beni e prodotti sanitari"]
["ABA110","B.I.2) Rimanenze beni non sanitari"]
["ABA120","B.I.2.a) Prodotti alimentari"]
["ABA130","B.I.2.b) Materiali di guardaroba, di pulizia, e di convivenza in genere"]
["ABA140","B.I.2.c) Combustibili, carburanti e lubrificanti"]
["ABA150","B.I.2.d) Supporti informatici e cancelleria"]
["ABA160","B.I.2.e) Materiale per la manutenzione"]
["ABA170","B.I.2.f) Altri beni e prodotti non sanitari"]
["ABA180","B.I.2.g) Acconti per acquisto di beni e prodotti non sanitari"]
["ABA190","B.II) CREDITI "]
["ABA200","B.II.1) Crediti v/Stato"]
["ABA201","B.II.1.a) Crediti v/Stato per spesa corrente - FSN indistinto"]
["ABA220","B.II.1.b) Crediti v/Stato per spesa corrente - FSN vincolato"]
["ABA230","B.II.1.c) Crediti v/Stato per mobilità attiva extraregionale"]
["ABA240","B.II.1.d) Crediti v/Stato per mobilità attiva internazionale"]
["ABA250","B.II.1.e) Crediti v/Stato per acconto quota fabbisogno sanitario regionale standard"]
["ABA260","B.II.1.f) Crediti v/Stato per finanziamento sanitario aggiuntivo corrente"]
["ABA270","B.II.1.g) Crediti v/Stato per spesa corrente - altro"]
["ABA271","B.II.1.h) Crediti v/Stato per spesa corrente per STP (ex D.lgs. 286/98)"]
["ABA280","B.II.1.i) Crediti v/Stato per finanziamenti per investimenti"]
["ABA290","B.II.1.j) Crediti v/Stato per ricerca"]
["ABA300","B.II.1.j.1) Crediti v/Stato per ricerca corrente - Ministero della Salute"]
["ABA310","B.II.1.j.2) Crediti v/Stato per ricerca finalizzata - Ministero della Salute"]
["ABA320","B.II.1.j.3) Crediti v/Stato per ricerca - altre Amministrazioni centrali "]
["ABA330","B.II.1.j.4) Crediti v/Stato per ricerca - finanziamenti per investimenti"]
["ABA340","B.II.1.k) Crediti v/prefetture"]
["ABA350","B.II.2) Crediti v/Regione o Provincia Autonoma"]
["ABA360","B.II.2.a) Crediti v/Regione o Provincia Autonoma per spesa corrente"]
["ABA390","B.II.2.a.1) Crediti v/Regione o Provincia Autonoma per quota FSR"]
["ABA390a","B.II.2.a.1.a) Crediti v/Regione o Provincia Autonoma per quota FSR"]
["ABA390b","B.II.2.a.1.b) Crediti v/Azienda Zero per quota FSR"]
["ABA400","B.II.2.a.2) Crediti v/Regione o Provincia Autonoma per mobilità attiva intraregionale"]
["ABA400a","B.II.2.a.2.a) Crediti v/Regione o Provincia Autonoma per mobilità attiva intraregionale"]
["ABA400b","B.II.2.a.2.b) Crediti v/Azienda Zero per mobilità attiva intraregionale"]
["ABA410","B.II.2.a.3) Crediti v/Regione o Provincia Autonoma per mobilità attiva extraregionale"]
["ABA410a","B.II.2.a.3.a) Crediti v/Regione o Provincia Autonoma per mobilità attiva extraregionale"]
["ABA410b","B.II.2.a.3.b) Crediti v/Azienda Zero per mobilità attiva extraregionale"]
["ABA420","B.II.2.a.4) Crediti v/Regione o Provincia Autonoma per acconto quota FSR"]
["ABA420a","B.II.2.a.4.a) Crediti v/Regione o Provincia Autonoma per acconto quota FSR"]
["ABA420b","B.II.2.a.4.b) Crediti v/Azienda Zero per acconto quota FSR"]
["ABA430","B.II.2.a.5) Crediti v/Regione o Provincia Autonoma per finanziamento sanitario aggiuntivo corrente LEA"]
["ABA430a","B.II.2.a.5.a) Crediti v/Regione o Provincia Autonoma per finanziamento sanitario aggiuntivo corrente LEA"]
["ABA430b","B.II.2.a.5.b) Crediti v/Azienda Zero per finanziamento sanitario aggiuntivo corrente LEA"]
["ABA440","B.II.2.a.6) Crediti v/Regione o Provincia Autonoma per finanziamento sanitario aggiuntivo corrente extra LEA"]
["ABA440a","B.II.2.a.6.a) Crediti v/Regione o Provincia Autonoma per finanziamento sanitario aggiuntivo corrente extra LEA"]
["ABA440b","B.II.2.a.6.b) Crediti v/Azienda Zero per finanziamento sanitario aggiuntivo corrente extra LEA"]
["ABA450","B.II.2.a.7) Crediti v/Regione o Provincia Autonoma per spesa corrente - altro"]
["ABA450a","B.II.2.a.7.a) Crediti v/Regione o Provincia Autonoma per spesa corrente - altro - GSA"]
["ABA450b","B.II.2.a.7.b) Crediti v/Azienda Zero per spesa corrente - altro"]
["ABA450c","B.II.2.a.7.c) Crediti v/Regione o Provincia Autonoma per spesa corrente - altro - NO GSA"]
["ABA451","B.II.2.a.8) Crediti v/Regione o Provincia Autonoma per spesa corrente - STP (ex D.lgs. 286/98)"]
["ABA451a","B.II.2.a.8.a) Crediti v/Regione o Provincia Autonoma per spesa corrente - STP (ex D.lgs. 286/98)"]
["ABA451b","B.II.2.a.8.b) Crediti v/Azienda Zero per spesa corrente - STP (ex D.lgs. 286/98)"]
["ABA460","B.II.2.a.9) Crediti v/Regione o Provincia Autonoma per ricerca"]
["ABA460a","B.II.2.a.9.a) Crediti v/Regione o Provincia Autonoma per ricerca"]
["ABA460b","B.II.2.a.9.b) Crediti v/Azienda Zero per ricerca"]
["ABA461","B.II.2.a.10) Crediti v/Regione o Provincia Autonoma per mobilità attiva internazionale"]
["ABA461a","B.II.2.a.10.a) Crediti v/Regione o Provincia Autonoma per mobilità attiva internazionale"]
["ABA461b","B.II.2.a.10.b) Crediti v/Azienda Zero per mobilità attiva internazionale"]
["ABA470","B.II.2.b) Crediti v/Regione o Provincia Autonoma per versamenti a patrimonio netto"]
["ABA480","B.II.2.b.1) Crediti v/Regione o Provincia Autonoma per finanziamenti per investimenti"]
["ABA480a","B.II.2.b.1.a) Crediti v/Regione o Provincia Autonoma per finanziamenti per investimenti"]
["ABA480b","B.II.2.b.1.b) Crediti v/Azienda Zero per finanziamenti per investimenti"]
["ABA480c","B.II.2.b.1.c) Crediti v/Azienda Zero per finanziamenti per investimenti - altro"]
["ABA480d","B.II.2.b.1.d) Crediti v/Regione o Provincia Autonoma per finanziamenti per investimenti - NO GSA"]
["ABA490","B.II.2.b.2) Crediti v/Regione o Provincia Autonoma per incremento fondo \ndotazione"]
["ABA490a","B.II.2.b.2.a) Crediti v/Regione o Provincia Autonoma per incremento fondo \ndotazione"]
["ABA490b","B.II.2.b.2.b) Crediti v/Azienda Zero per incremento fondo \ndotazione"]
["ABA500","B.II.2.b.3) Crediti v/Regione o Provincia Autonoma per ripiano perdite"]
["ABA500a","B.II.2.b.3.a) Crediti v/Regione o Provincia Autonoma per ripiano perdite"]
["ABA500b","B.II.2.b.3.b) Crediti v/Azienda Zero per ripiano perdite"]
["ABA501","B.II.2.b.4) Crediti v/Regione o Provincia Autonoma per anticipazione ripiano disavanzo programmato dai Piani aziendali di cui all'art. 1, comma 528, L. 208/2015"]
["ABA501a","B.II.2.b.4.a) Crediti v/Regione o Provincia Autonoma per anticipazione ripiano disavanzo programmato dai Piani aziendali di cui all'art. 1, comma 528, L. 208/2015"]
["ABA501b","B.II.2.b.4.b) Crediti v/Azienda Zero per anticipazione ripiano disavanzo programmato dai Piani aziendali di cui all'art. 1, comma 528, L. 208/2015"]
["ABA510","B.II.2.b.5) Crediti v/Regione per copertura debiti al 31/12/2005"]
["ABA510a","B.II.2.b.5.a) Crediti v/Regione per copertura debiti al 31/12/2005"]
["ABA510b","B.II.2.b.5.b) Crediti v/Azienda Zero per copertura debiti al 31/12/2005"]
["ABA520","B.II.2.b.6) Crediti v/Regione o Provincia Autonoma per ricostituzione risorse da investimenti esercizi precedenti"]
["ABA520a","B.II.2.b.6.a) Crediti v/Regione o Provincia Autonoma per ricostituzione risorse da investimenti esercizi precedenti"]
["ABA520b","B.II.2.b.6.b) Crediti v/Azienda Zero per ricostituzione risorse da investimenti esercizi precedenti"]
["ABA521","B.II.2.c) Crediti v/Regione o Provincia Autonoma per contributi L. 210/92  - NO GSA"]
["ABA522","B.II.2.d) Crediti v/Regione o Provincia Autonoma per contributi L. 210/92 - GSA"]
["ABA522a","B.II.2.d.1) Crediti v/Regione o Provincia Autonoma per contributi L. 210/92 - GSA"]
["ABA522b","B.II.2.d.2) Crediti v/Azienda Zero per contributi L. 210/92"]
["ABA530","B.II.3) Crediti v/Comuni"]
["ABA540","B.II.4) Crediti v/Aziende sanitarie pubbliche"]
["ABA550","B.II.4.a) Crediti v/Aziende sanitarie pubbliche della Regione"]
["ABA560","B.II.4.a.1) Crediti v/Aziende sanitarie pubbliche della Regione - per mobilità in compensazione"]
["ABA570","B.II.4.a.2) Crediti v/Aziende sanitarie pubbliche della Regione - per mobilità non in compensazione"]
["ABA580","B.II.4.a.3) Crediti v/Aziende sanitarie pubbliche della Regione - per altre prestazioni"]
["ABA590","B.II.4.b) Acconto quota FSR da distribuire"]
["ABA591","B.II.4.c) Crediti v/Aziende Sanitarie pubbliche della Regione per anticipazione ripiano disavanzo programmato dai Piani aziendali di cui all'art. 1, comma 528, L. 208/2015"]
["ABA600","B.II.4.d) Crediti v/Aziende sanitarie pubbliche Extraregione"]
["ABA601","B.II.4.e)  Crediti v/Aziende sanitarie pubbliche della Regione - per Contributi da Aziende sanitarie pubbliche della Regione o Prov. Aut. (extra fondo) "]
["ABA610","B.II.5) Crediti v/società partecipate e/o enti dipendenti della Regione"]
["ABA620","B.II.5.a) Crediti v/enti regionali"]
["ABA630","B.II.5.b) Crediti v/sperimentazioni gestionali"]
["ABA640","B.II.5.c) Crediti v/altre partecipate"]
["ABA650","B.II.6) Crediti v/Erario"]
["ABA660","B.II.7) Crediti v/altri"]
["ABA670","B.II.7.a) Crediti v/clienti privati"]
["ABA670a","B.II.7.a.1) Crediti v/clienti privati"]
["ABA670b","B.II.7.a.2) F.do svalutazione crediti v/clienti privati"]
["ABA680","B.II.7.b) Crediti v/gestioni liquidatorie"]
["ABA690","B.II.7.c) Crediti v/altri soggetti pubblici"]
["ABA700","B.II.7.d) Crediti v/altri soggetti pubblici per ricerca"]
["ABA710","B.II.7.e) Altri crediti diversi"]
["ABA711","B.II.7.e.1) Altri Crediti diversi "]
["ABA711a","B.II.7.e.1.a) Altri Crediti diversi "]
["ABA711b","B.II.7.e.1.b) F.do svalutazione altri crediti diversi"]
["ABA712","B.II.7.e.2) Note di credito da emettere (diverse)"]
["ABA713","B.II.7.f) Altri crediti verso erogatori (privati accreditati e convenzionati) di prestazioni sanitarie"]
["ABA714","B.II.7.f.1) Altri crediti verso erogatori (privati accreditati e convenzionati) di prestazioni sanitarie"]
["ABA715","B.II.7.f.2) Note di credito da emettere  (privati accreditati e convenzionati)"]
["ABA720","B.III) ATTIVITA' FINANZIARIE CHE NON COSTITUISCONO IMMOBILIZZAZIONI"]
["ABA730","B.III.1) Partecipazioni che non costituiscono immobilizzazioni"]
["ABA740","B.III.2) Altri titoli che non costituiscono immobilizzazioni"]
["ABA750","B.IV) DISPONIBILITA' LIQUIDE"]
["ABA760","B.IV.1) Cassa"]
["ABA770","B.IV.2) Istituto Tesoriere"]
["ABA780","B.IV.3) Tesoreria Unica"]
["ABA790","B.IV.4) Conto corrente postale"]
["ACZ999","C) RATEI E RISCONTI ATTIVI"]
["ACA000","C.I) RATEI ATTIVI"]
["ACA010","C.I.1) Ratei attivi"]
["ACA020","C.I.2) Ratei attivi v/Aziende sanitarie pubbliche della Regione"]
["ACA030","C.II) RISCONTI ATTIVI"]
["ACA040","C.II.1) Risconti attivi"]
["ACA050","C.II.2) Risconti attivi v/Aziende sanitarie pubbliche della Regione"]
["ADZ999","E) CONTI D'ORDINE"]
["ADA000","E.I) CANONI DI LEASING ANCORA DA PAGARE"]
["ADA010","E.II) DEPOSITI CAUZIONALI"]
["ADA020","E.III) BENI IN COMODATO"]
["ADA021","E.IV) CANONI DI PROJECT FINANCING ANCORA DA PAGARE"]
["ADA030","E.V) ALTRI CONTI D'ORDINE"]
["TP","TP) TOTALE PASSIVO"]
["PAZ999","A) PATRIMONIO NETTO"]
["PAA000","A.I) FONDO DI DOTAZIONE"]
["PAA010","A.II) FINANZIAMENTI PER INVESTIMENTI"]
["PAA020","A.II.1) Finanziamenti per beni di prima dotazione"]
["PAA030","A.II.2) Finanziamenti da Stato per investimenti"]
["PAA040","A.II.2.a) Finanziamenti da Stato per investimenti - ex art. 20 legge 67/88"]
["PAA040a","A.II.2.a.1) Finanziamenti da Stato per investimenti - ex art. 20 legge 67/88 - assegnazioni dirette"]
["PAA040b","A.II.2.a.2) Finanziamenti da Stato per investimenti - ex art. 20 legge 67/88 - trasferimenti tramite Regione GSA - Azienda Zero"]
["PAA050","A.II.2.b) Finanziamenti da Stato per investimenti - ricerca"]
["PAA050a","A.II.2.b.1) Finanziamenti da Stato per investimenti - ricerca - assegnazioni dirette"]
["PAA050b","A.II.2.b.2) Finanziamenti da Stato per investimenti - ricerca - trasferimenti tramite Regione GSA - Azienda Zero"]
["PAA060","A.II.2.c) Finanziamenti da Stato per investimenti - altro"]
["PAA060a","A.II.2.c.1) Finanziamenti da Stato per investimenti - altro - assegnazioni dirette"]
["PAA060b","A.II.2.c.2) Finanziamenti da Stato per investimenti - altro - trasferimenti tramite Regione GSA - Azienda Zero"]
["PAA070","A.II.3) Finanziamenti da Regione per investimenti"]
["PAA070a","A.II.3.a) Finanziamenti da Regione - trasferimenti in c/capitale - GSA "]
["PAA070b","A.II.3.b) Finanziamenti da Azienda Zero - trasferimenti in c/capitale (extrafondo - A4)"]
["PAA070c","A.II.3.c) Finanziamenti da Azienda zero - altro"]
["PAA070d","A.II.3.d) Finanziamenti da Regione - trasferimenti in c/capitale - NO GSA"]
["PAA080","A.II.4) Finanziamenti da altri soggetti pubblici per investimenti"]
["PAA090","A.II.5) Finanziamenti per investimenti da rettifica contributi in conto esercizio"]
["PAA090a","A.II.5.a) Fin. per inv. da rettifica contributi in conto esercizio - da Regione - contributi FSR - Indistinta"]
["PAA090b","A.II.5.b) Fin. per inv. da rettifica contributi in conto esercizio - da Regione - contributi FSR - Accentrata"]
["PAA090c","A.II.5.c) Fin. per inv. da rettifica contributi in conto esercizio - da altri Enti pubblici - Extrafondo - PERIMETRO SANITA'"]
["PAA090d","A.II.5.d) Fin. per inv. da rettifica contributi in conto esercizio - da altri Enti pubblici - NO PERIMETRO SANITA'"]
["PAA090e","A.II.5.e) Fin. per inv. da rettifica contributi in conto esercizio - da Privati"]
["PAA100","A.III) RISERVE DA DONAZIONI E LASCITI VINCOLATI AD INVESTIMENTI"]
["PAA110","A.IV) ALTRE RISERVE"]
["PAA120","A.IV.1) Riserve da rivalutazioni"]
["PAA130","A.IV.2) Riserve da plusvalenze da reinvestire"]
["PAA140","A.IV.3) Contributi da reinvestire"]
["PAA150","A.IV.4) Riserve da utili di esercizio destinati ad investimenti"]
["PAA160","A.IV.5) Riserve diverse"]
["PAA170","A.V) CONTRIBUTI PER RIPIANO PERDITE"]
["PAA180","A.V.1) Contributi per copertura debiti al 31/12/2005"]
["PAA190","A.V.2) Contributi per ricostituzione risorse da investimenti esercizi precedenti"]
["PAA200","A.V.3) Altro"]
["PAA210","A.VI) UTILI (PERDITE) PORTATI A NUOVO"]
["PAA220","A.VII) UTILE (PERDITA) D'ESERCIZIO"]
["PBZ999","B) FONDI PER RISCHI E ONERI"]
["PBA000","B.I) FONDI PER IMPOSTE, ANCHE DIFFERITE"]
["PBA010","B.II) FONDI PER RISCHI"]
["PBA020","B.II.1) Fondo rischi per cause civili ed oneri processuali"]
["PBA030","B.II.2) Fondo rischi per contenzioso personale dipendente"]
["PBA040","B.II.3) Fondo rischi connessi all'acquisto di prestazioni sanitarie da privato"]
["PBA050","B.II.4) Fondo rischi per copertura diretta dei rischi (autoassicurazione)"]
["PBA051","B.II.5) Fondo rischi per franchigia assicurativa"]
["PBA052","B.II.6) Fondo rischi per interessi di mora"]
["PBA060","B.II.7) Altri fondi rischi"]
["PBA070","B.III) FONDI DA DISTRIBUIRE"]
["PBA080","B.III.1) FSR indistinto da distribuire"]
["PBA080a","B.III.1.a) FSR indistinto da distribuire - LEA"]
["PBA080b","B.III.1.b) FSR indistinto da distribuire - ACCENTRATA"]
["PBA090","B.III.2) FSR vincolato da distribuire"]
["PBA100","B.III.3) Fondo per ripiano disavanzi pregressi"]
["PBA110","B.III.4) Fondo finanziamento sanitario aggiuntivo corrente LEA"]
["PBA120","B.III.5) Fondo finanziamento sanitario aggiuntivo corrente extra LEA"]
["PBA130","B.III.6) Fondo finanziamento per ricerca"]
["PBA140","B.III.7) Fondo finanziamento per investimenti"]
["PBA141","B.III.8) Fondo finanziamento sanitario aggiuntivo corrente (extra fondo) - Risorse aggiuntive da bilancio regionale a titolo di copertura extra LEA"]
["PBA150","B.IV) QUOTE INUTILIZZATE CONTRIBUTI"]
["PBA151","B.IV.1) Quote inutilizzate contributi da Regione o Prov. Aut. per quota F.S. indistinto finalizzato"]
["PBA160","B.IV.2) Quote inutilizzate contributi da Regione o Prov. Aut. per quota F.S. vincolato"]
["PBA170","B.IV.3) Quote inutilizzate contributi vincolati da soggetti pubblici (extra fondo)"]
["PBA170a","B.IV.3.a) Quote inutilizzate contributi vincolati da soggetti pubblici (extra fondo) - PERIMETRO SANITA"]
["PBA170b","B.IV.3.b) Quote inutilizzate contributi vincolati da soggetti pubblici (extra fondo) - NO PERIMETRO SANITA"]
["PBA180","B.IV.4) Quote inutilizzate contributi per ricerca"]
["PBA190","B.IV.5) Quote inutilizzate contributi vincolati da privati"]
["PBA200","B.V) ALTRI FONDI PER ONERI E SPESE"]
["PBA210","B.V.1) Fondi integrativi pensione"]
["PBA220","B.V.2) Fondi rinnovi contrattuali"]
["PBA230","B.V.2.a) Fondo rinnovi contrattuali personale dipendente "]
["PBA240","B.V.2.b) Fondo rinnovi convenzioni MMG/PLS/MCA"]
["PBA250","B.V.2.c) Fondo rinnovi convenzioni medici Sumai"]
["PBA260","B.V.3) Altri fondi per oneri e spese"]
["PBA270","B.V.4) Altri fondi incentivi funzioni tecniche art. 113 D.Lgs 50/2016"]
["PCZ999","C) TRATTAMENTO FINE RAPPORTO"]
["PCA000","C.I) FONDO PER PREMI OPEROSITA' MEDICI SUMAI"]
["PCA010","C.II) FONDO PER TRATTAMENTO DI FINE RAPPORTO DIPENDENTI"]
["PCA020","C.III) FONDO PER TRATTAMENTI DI QUIESCENZA E SIMILI"]
["PDZ999","D) DEBITI"]
["PDA000","D.I) DEBITI PER MUTUI PASSIVI"]
["PDA010","D.II) DEBITI V/STATO"]
["PDA020","D.II.1) Debiti v/Stato per mobilità passiva extraregionale"]
["PDA030","D.II.2) Debiti v/Stato per mobilità passiva internazionale"]
["PDA040","D.II.3) Acconto quota FSR v/Stato"]
["PDA050","D.II.4) Debiti v/Stato per restituzione finanziamenti - per ricerca"]
["PDA060","D.II.5) Altri debiti v/Stato"]
["PDA070","D.III) DEBITI V/REGIONE O PROVINCIA AUTONOMA"]
["PDA080","D.III.1) Debiti v/Regione o Provincia Autonoma per finanziamenti - GSA"]
["PDA080a","D.III.1.a) Debiti v/Regione o Provincia Autonoma per finanziamenti - GSA"]
["PDA080b","D.III.1.b) Debiti v/Azienda Zero per finanziamenti"]
["PDA081","D.III.2) Debiti v/Regione o Provincia Autonoma per finanziamenti - NO GSA"]
["PDA090","D.III.3) Debiti v/Regione o Provincia Autonoma per mobilità passiva intraregionale"]
["PDA090a","D.III.3.a) Debiti v/Regione o Provincia Autonoma per mobilità passiva intraregionale"]
["PDA090b","D.III.3.b) Debiti v/Azienda Zero per mobilità passiva intraregionale"]
["PDA100","D.III.4) Debiti v/Regione o Provincia Autonoma per mobilità passiva extraregionale"]
["PDA100a","D.III.4.a) Debiti v/Regione o Provincia Autonoma per mobilità passiva extraregionale"]
["PDA100b","D.III.4.b) Debiti v/Azienda Zero per mobilità passiva extraregionale"]
["PDA101","D.III.5) Debiti v/Regione o Provincia Autonoma per mobilità passiva internazionale"]
["PDA101a","D.III.5.a) Debiti v/Regione o Provincia Autonoma per mobilità passiva internazionale"]
["PDA101b","D.III.5.b) Debiti v/Azienda Zero per mobilità passiva internazionale"]
["PDA110","D.III.6) Acconto quota FSR da Regione o Provincia Autonoma"]
["PDA110a","D.III.6.a) Acconto quota FSR da Regione o Provincia Autonoma"]
["PDA110b","D.III.6.b) Acconto quota FSR da Azienda Zero"]
["PDA111","D.III.7) Acconto da Regione o Provincia Autonoma per anticipazione ripiano disavanzo programmato dai Piani aziendali di cui all'art. 1, comma 528, L. 208/2015"]
["PDA111a","D.III.7.a) Acconto da Regione o Provincia Autonoma per anticipazione ripiano disavanzo programmato dai Piani aziendali di cui all'art. 1, comma 528, L. 208/2015"]
["PDA111b","D.III.7.b) Acconto da Azienda Zero per anticipazione ripiano disavanzo programmato dai Piani aziendali di cui all'art. 1, comma 528, L. 208/2015"]
["PDA112","D.III.8) Debiti v/Regione o Provincia Autonoma per contributi L. 210/92 - NO GSA"]
["PDA120","D.III.9) Altri debiti v/Regione o Provincia Autonoma - GSA"]
["PDA120a","D.III.9.a) Altri debiti v/Regione o Provincia Autonoma - GSA"]
["PDA120b","D.III.9.b) Altri debiti v/Azienda Zero"]
["PDA121","D.III.10) Altri debiti v/Regione o Provincia Autonoma - NO GSA"]
["PDA130","D.IV) DEBITI V/COMUNI"]
["PDA140","D.V) DEBITI V/AZIENDE SANITARIE PUBBLICHE"]
["PDA150","D.V.1) Debiti v/Aziende sanitarie pubbliche della Regione"]
["PDA160","D.V.1.a) Debiti v/Aziende sanitarie pubbliche della Regione - per quota FSR"]
["PDA170","D.V.1.b) Debiti v/Aziende sanitarie pubbliche della Regione - per finanziamento sanitario aggiuntivo corrente LEA"]
["PDA180","D.V.1.c) Debiti v/Aziende sanitarie pubbliche della Regione - per finanziamento sanitario aggiuntivo corrente extra LEA"]
["PDA190","D.V.1.d) Debiti v/Aziende sanitarie pubbliche della Regione - per mobilità in compensazione"]
["PDA200","D.V.1.e) Debiti v/Aziende sanitarie pubbliche della Regione - per mobilità non in compensazione"]
["PDA210","D.V.1.f) Debiti v/Aziende sanitarie pubbliche della Regione - per altre prestazioni"]
["PDA211","D.V.1.g) Debiti v/Aziende sanitarie pubbliche della Regione - altre prestazioni per STP"]
["PDA212","D.V.1.h)  Debiti v/Aziende sanitarie pubbliche della Regione - per Contributi da Aziende sanitarie pubbliche della Regione o Prov. Aut. (extra fondo) "]
["PDA213","D.V.1.i) Debiti v/Aziende sanitarie pubbliche della Regione - per contributi L. 210/92 "]
["PDA220","D.V.2) Debiti v/Aziende sanitarie pubbliche Extraregione "]
["PDA230","D.V.3) Debiti v/Aziende sanitarie pubbliche della Regione per versamenti c/patrimonio netto"]
["PDA231","D.V.3.a) Debiti v/Aziende sanitarie pubbliche della Regione per versamenti c/patrimonio netto - finanziamenti per investimenti"]
["PDA232","D.V.3.b) Debiti v/Aziende sanitarie pubbliche della Regione per versamenti c/patrimonio netto - incremento fondo dotazione"]
["PDA233","D.V.3.c) Debiti v/Aziende sanitarie pubbliche della Regione per versamenti c/patrimonio netto - ripiano perdite"]
["PDA234","D.V.3.d) Debiti v/Aziende sanitarie pubbliche della Regione per anticipazione ripiano disavanzo programmato dai Piani aziendali di cui all'art. 1, comma 528, L. 208/2015"]
["PDA235","D.V.3.e) Debiti v/Aziende sanitarie pubbliche della Regione per versamenti c/patrimonio netto - altro"]
["PDA240","D.VI) DEBITI V/ SOCIETA' PARTECIPATE E/O ENTI DIPENDENTI DELLA REGIONE"]
["PDA250","D.VI.1) Debiti v/enti regionali"]
["PDA260","D.VI.2) Debiti v/sperimentazioni gestionali"]
["PDA270","D.VI.3) Debiti v/altre partecipate"]
["PDA280","D.VII) DEBITI V/FORNITORI"]
["PDA290","D.VII.1) Debiti verso erogatori (privati accreditati e convenzionati) di prestazioni sanitarie "]
["PDA291","D.VII.1.a) Debiti verso erogatori (privati accreditati e convenzionati) di prestazioni sanitarie "]
["PDA292","D.VII.1.b) Note di credito da ricevere (privati accreditati e convenzionati)"]
["PDA300","D.VII.2) Debiti verso altri fornitori"]
["PDA301","D.VII.2.a) Debiti verso altri fornitori"]
["PDA302","D.VII.2.b) Note di credito da ricevere (altri fornitori)"]
["PDA310","D.VIII) DEBITI V/ISTITUTO TESORIERE"]
["PDA320","D.IX) DEBITI TRIBUTARI"]
["PDA330","D.X) DEBITI V/ISTITUTI PREVIDENZIALI, ASSISTENZIALI E SICUREZZA SOCIALE"]
["PDA340","D.XI) DEBITI V/ALTRI"]
["PDA350","D.XI.1) Debiti v/altri finanziatori"]
["PDA360","D.XI.2) Debiti v/dipendenti"]
["PDA370","D.XI.3) Debiti v/gestioni liquidatorie"]
["PDA380","D.XI.4) Altri debiti diversi"]
["PDA380a","D.XI.4.a) Altri debiti diversi verso altri soggetti pubblici"]
["PDA380b","D.XI.4.b) Altri debiti diversi"]
["PEZ999","E) RATEI E RISCONTI PASSIVI"]
["PEA000","E.I) RATEI PASSIVI"]
["PEA010","E.I.1) Ratei passivi"]
["PEA020","E.I.2) Ratei passivi v/Aziende sanitarie pubbliche della Regione"]
["PEA030","E.II) RISCONTI PASSIVI"]
["PEA040","E.II.1) Risconti passivi"]
["PEA050","E.II.2) Risconti passivi v/Aziende sanitarie pubbliche della Regione"]
["PEA060","E.II.3) Risconti passivi - in attuazione dell’art.79, comma 1 sexies lettera c), del D.L. 112/2008, convertito con legge 133/2008 e della legge 23 dicembre 2009 n. 191"]
["PFZ999","G) CONTI D'ORDINE"]
["PFA000","G.I) CANONI DI LEASING ANCORA DA PAGARE"]
["PFA010","G.II) DEPOSITI CAUZIONALI"]
["PFA020","G.III) BENI IN COMODATO"]
["PFA021","G.IV) CANONI DI PROJECT FINANCING ANCORA DA PAGARE"]
["PFA030","G.V) ALTRI CONTI D'ORDINE"]

{"sheet":"altre anagrafiche","index":6,"n_rows":35,"n_cols":3,"rows_kept":35,"cut":false,"hidden":true,"merged":[[29,0,34,0],[1,0,2,0],[4,1,4,2],[5,0,15,0],[13,1,13,2],[18,0,26,0]]}
[null,"Colonna autorizzazione CRITE"]
["Nel caso l'investimento complessivo superi o no la soglia CRITE (200.000 € + IVA)","SI"]
[null,"NO"]
[]
[null,"colonna tipologia lavori (edilizia/impiantistica)"]
["Per la parte di Edilizia da compilare come da art. 128 co.3 D.Lgs. 163/2006 secondo i seguenti parametri","nuova realizzazione","1 - nuova realizzazione"]
[null,"demolizione","2 - demolizione"]
[null,"lavori di recupero del patrimonio esistente","3 - lavori di recupero del patrimonio esistente"]
[null,"ristrutturazione","4 - ristrutturazione"]
[null,"interventi di adeguamento normativo","5 - interventi di adeguamento normativo"]
[null,"manutenzione ordinaria","6 - manutenzione ordinaria"]
[null,"manutenzione straordinaria","7 - manutenzione straordinaria"]
[null,"ampliamento","8 - ampliamento"]
[null,"colonna tipologia lavori (altra natura)"]
[null,"gara regionale","9 - gara regionale"]
[null,"gara aziendale/procedura negoziata/convenzione/affidamento diretto/….","10 - gara aziendale/procedura negoziata/convenzione/affidamento diretto/…."]
[]
[null,"colonna stato di avanzamento (edilizia)"]
["esplicitare lo stato di avanzamento dell'iter amministrativo di acquisizione del cespite / realizzazione dell'opera","iter non ancora avviato"]
[null,"presenza del documento finale relativo al progetto di fattibilità tecnico-economica"]
[null,"iter avviato con la presenza del documento di progetto definitivo"]
[null,"presente il progetto esecutivo e già adottata la \"delibera a contrarre\""]
[null,"colonna stato di avanzamento (NO edilizia)"]
[null,"iter non ancora avviato cespite solo in programmazione"]
[null,"fasi preliminari alla gara"]
[null,"fase di gara in corso o di acquisizione in corso"]
[null,"cespite entrato nel processo produttivo"]
[]
[]
["validità investimento (viene sostituito mediante l'utilizzo del codice univoco di investimento)","investimento annullato"]
[null,"capitalizzazione spostata nell'esercizio successivo"]
[null,"investimento rinviato "]
[null,"C.R.I.T.E."]
[null,"assenza di copertura finanziaria"]
[null,"…ALTRO"]

{"sheet":"ANAGR","index":7,"n_rows":2,"n_cols":6,"rows_kept":2,"cut":false,"hidden":true,"merged":[]}
["ENTE_ID","ENTE_DESC","ANNO","PERIODO_VERSIONE","DT_GENERAZIONE","VERSIONE_MODELLO"]
[500,"Azienda Zero","2024","PREV","2021-03-16T09:27:02","V1"]

{"sheet":"Totale investimenti","index":8,"n_rows":10,"n_cols":24,"rows_kept":10,"cut":false,"hidden":false,"merged":[[0,1,0,2],[1,1,1,10],[2,0,3,0],[2,2,3,2],[2,3,3,3],[2,4,3,4],[2,5,3,5]]}
[{"$f":"Info!B2","v":0},{"$f":"Info!C2","v":0},null,{"$f":"Info!B3","v":2025}]
[null,"All. 2 ) Piano Investimenti 2025-2027"]
["TOTALI",null,"❶                                                        CESPITI CAPITALIZZATI provenienti da Immobilizzazioni in corso fino al 31/12/2024","❷                                                                         NUOVI ACQUISTI e INCREMENTI MIGLIORATIVI (su cespiti già esistenti)  CAPITALIZZATI entro il 31/12/2025","❸  = 1+2                                                    TOTALE CAPITALIZZATO AL 31/12/2025","4 IN CORSO AL 31/12/2025 ","PAA070a\nPAA070b\nPAA070d\n\n","PAA040 (a e b)\nPAA050 (a e b)\nPAA060 (a e b)","PAA080","PAA100","PAA090b\nPAA090c\nPAA090d\nPAA090e","PAA000","PAA130 Riserve da plusvalenze\nPAA140 Contributi da reinvestire","PDA000 Debiti per mutui (non viene iscritta alcuna riserva)","PAA070c \n","PAA070c","PAA070c \n","PAA090a ","PAA090a ","PAA060a "]
[null,"Valore PROGRAMMATO del cespite/intervento",null,null,null,null,"❶                                         Contributi regionali in conto capitale","❷                                          Contributi statali in conto capitale","❹                                          Contributi in conto capitale da altre P.A.","❺                                   Contributi in conto capitale acquisti da soggetti privati","❻                                               Contributi vincolati destinati in parte al finanziamento di beni immobili, esclusi i finaziamenti a funzione","❼     Utili di esercizio","❽     Introiti derivanti da alienazioni","❿                                     Entrate derivanti da contrazione di mutui autorizzati","⓫\n Fondo per il Finanziamento\ndegli Investimenti - POTENZIAMENTO\n","⓬                                                Impiego Obiettivi di piano -    \nUtili GSA - \nCespiti COVID/PANFLU da elenchi Azienda Zero","13\n Fondo per il Finanziamento\ndegli Investimenti -MANTENIMENTO (Budget Aziendale)","⓮\nRettifiche già apportate in anni precedenti (correlata tavola 33 SP)","⓯\nContributi aziendali in conto esercizio\n(compresi i finanziamenti a funzione)\n","⓰\nCespiti Finanziati con il DL 34/2020 \"Rilancio\" - Covid\nDGRV 782/2020","TOTALE FINANZIAMENTI ","⓱ \nCespiti in attesa di copertura finanziaria","NOTE","QUADRATURA"]
[2025,{"$f":"SUMIF('Anno 2025 Capitalizzato'!$E$7:E498,$A$5,'Anno 2025 Capitalizzato'!$O$7:O498)-B8","v":47536400},{"$f":"SUMIF('Anno 2025 Capitalizzato'!$E$7:$E$498,$A$5,'Anno 2025 Capitalizzato'!$P$7:P498)","v":0},{"$f":"SUMIF('Anno 2025 Capitalizzato'!$E$7:$E$498,$A$5,'Anno 2025 Capitalizzato'!$Q$7:$Q$498)","v":47536400},{"$f":"SUMIF('Anno 2025 Capitalizzato'!$E$7:$E$498,A5,'Anno 2025 Capitalizzato'!$R$7:$R$498)","v":47536400},0,{"$f":"SUMIF('Anno 2025 Capitalizzato'!$E$7:$E$498,$A$5,'Anno 2025 Capitalizzato'!$T$7:$T$498)","v":0},{"$f":"SUMIF('Anno 2025 Capitalizzato'!$E$7:$E$498,$A$5,'Anno 2025 Capitalizzato'!$U$7:$U$498)-H8","v":15438000},{"$f":"SUMIF('Anno 2025 Capitalizzato'!$E$7:$E$498,$A$5,'Anno 2025 Capitalizzato'!$V$7:$V$498)","v":0},{"$f":"SUMIF('Anno 2025 Capitalizzato'!$E$7:M498,$A$5,'Anno 2025 Capitalizzato'!$W$7:$W$498)","v":0},{"$f":"SUMIF('Anno 2025 Capitalizzato'!$E$7:$E$498,$A$5,'Anno 2025 Capitalizzato'!$X$7:$X$498)","v":1600000},{"$f":"SUMIF('Anno 2025 Capitalizzato'!$E$7:$E$498,$A$5,'Anno 2025 Capitalizzato'!$Y$7:$Y$498)","v":319300},{"$f":"SUMIF('Anno 2025 Capitalizzato'!$E$7:$E$498,$A$5,'Anno 2025 Capitalizzato'!$Z$7:$Z$498)","v":0},{"$f":"SUMIF('Anno 2025 Capitalizzato'!$E$7:$E$498,$A$5,'Anno 2025 Capitalizzato'!$AA$7:$AA$498)","v":0},{"$f":"SUMIF('Anno 2025 Capitalizzato'!$E$7:$E$498,$A$5,'Anno 2025 Capitalizzato'!$AB$7:$AB$498)","v":0},{"$f":"SUMIF('Anno 2025 Capitalizzato'!$E$7:$E$498,$A$5,'Anno 2025 Capitalizzato'!$AC$7:$AC$498)","v":0},{"$f":"SUMIF('Anno 2025 Capitalizzato'!$E$7:$E$498,$A$5,'Anno 2025 Capitalizzato'!$AD$7:$AD$498)","v":0},{"$f":"SUMIF('Anno 2025 Capitalizzato'!$E$7:$E$498,$A$5,'Anno 2025 Capitalizzato'!$AE$7:$AE$498)","v":0},{"$f":"SUMIF('Anno 2025 Capitalizzato'!$E$7:$E$498,$A$5,'Anno 2025 Capitalizzato'!$AF$7:$AF$498)-S8","v":30179100},{"$f":"SUMIF('Anno 2025 Capitalizzato'!$E$7:$E$498,$A$5,'Anno 2025 Capitalizzato'!$AG$7:$AG$498)","v":0},{"$f":"SUMIF('Anno 2025 Capitalizzato'!$E$7:$E$498,$A$5,'Anno 2025 Capitalizzato'!$AH$7:$AH$498)-U8","v":47536400},{"$f":"SUMIF('Anno 2025 Capitalizzato'!$E$7:$E$498,$A$5,'Anno 2025 Capitalizzato'!$AI$7:$AI$498)","v":0},{"$f":"SUMIF('Anno 2025 Capitalizzato'!$E$7:$E$498,$A$5,'Anno 2025 Capitalizzato'!$AJ$7:$AJ$498)","v":0},{"$f":"SUMIF('Anno 2025 Capitalizzato'!$E$7:$E$498,$A$5,'Anno 2025 Capitalizzato'!$AK$7:$AK$498)","v":0}]
[2026,{"$f":"SUMIF('Anno 2025 Capitalizzato'!$E$7:E499,$A$6,'Anno 2025 Capitalizzato'!$O$7:O499)","v":34780726},{"$f":"SUMIF('Anno 2025 Capitalizzato'!$E$7:$E$498,$A$6,'Anno 2025 Capitalizzato'!$P$7:P499)","v":0},{"$f":"SUMIF('Anno 2025 Capitalizzato'!$E$7:$E$498,$A$6,'Anno 2025 Capitalizzato'!$Q$7:$Q$498)","v":34780726},{"$f":"SUMIF('Anno 2025 Capitalizzato'!$E$7:$E$498,A6,'Anno 2025 Capitalizzato'!$R$7:$R$498)","v":34780726},{"$f":"SUMIF('Anno 2025 Capitalizzato'!$E$7:$E$498,$A$6,'Anno 2025 Capitalizzato'!$S$7:$S$498)","v":0},{"$f":"SUMIF('Anno 2025 Capitalizzato'!$E$7:$E$498,$A$6,'Anno 2025 Capitalizzato'!$T$7:$T$498)","v":0},{"$f":"SUMIF('Anno 2025 Capitalizzato'!$E$7:$E$498,$A$6,'Anno 2025 Capitalizzato'!$U$7:$U$498)","v":13835456},{"$f":"SUMIF('Anno 2025 Capitalizzato'!$E$7:$E$498,$A$6,'Anno 2025 Capitalizzato'!$V$7:$V$498)","v":0},{"$f":"SUMIF('Anno 2025 Capitalizzato'!$E$7:M499,$A$6,'Anno 2025 Capitalizzato'!$W$7:$W$498)","v":0},{"$f":"SUMIF('Anno 2025 Capitalizzato'!$E$7:$E$498,$A$6,'Anno 2025 Capitalizzato'!$X$7:$X$498)","v":350000},{"$f":"SUMIF('Anno 2025 Capitalizzato'!$E$7:$E$498,$A$6,'Anno 2025 Capitalizzato'!$Y$7:$Y$498)","v":0},{"$f":"SUMIF('Anno 2025 Capitalizzato'!$E$7:$E$498,$A$6,'Anno 2025 Capitalizzato'!$Z$7:$Z$498)","v":0},{"$f":"SUMIF('Anno 2025 Capitalizzato'!$E$7:$E$498,$A$6,'Anno 2025 Capitalizzato'!$AA$7:$AA$498)","v":0},{"$f":"SUMIF('Anno 2025 Capitalizzato'!$E$7:$E$498,$A$6,'Anno 2025 Capitalizzato'!$AB$7:$AB$498)","v":0},{"$f":"SUMIF('Anno 2025 Capitalizzato'!$E$7:$E$498,$A$6,'Anno 2025 Capitalizzato'!$AC$7:$AC$498)","v":0},{"$f":"SUMIF('Anno 2025 Capitalizzato'!$E$7:$E$498,$A$6,'Anno 2025 Capitalizzato'!$AD$7:$AD$498)","v":0},{"$f":"SUMIF('Anno 2025 Capitalizzato'!$E$7:$E$498,$A$6,'Anno 2025 Capitalizzato'!$AE$7:$AE$498)","v":0},{"$f":"SUMIF('Anno 2025 Capitalizzato'!$E$7:$E$498,$A$6,'Anno 2025 Capitalizzato'!$AF$7:$AF$498)","v":20595270},{"$f":"SUMIF('Anno 2025 Capitalizzato'!$E$7:$E$498,$A$6,'Anno 2025 Capitalizzato'!$AG$7:$AG$498)","v":0},{"$f":"SUMIF('Anno 2025 Capitalizzato'!$E$7:$E$498,$A$6,'Anno 2025 Capitalizzato'!$AH$7:$AH$498)","v":34780726},{"$f":"SUMIF('Anno 2025 Capitalizzato'!$E$7:$E$498,$A$6,'Anno 2025 Capitalizzato'!$AI$7:$AI$498)","v":0},{"$f":"SUMIF('Anno 2025 Capitalizzato'!$E$7:$E$498,$A$6,'Anno 2025 Capitalizzato'!$AJ$7:$AJ$498)","v":0},{"$f":"SUMIF('Anno 2025 Capitalizzato'!$E$7:$E$498,$A$6,'Anno 2025 Capitalizzato'!$AK$7:$AK$498)","v":0}]
[2027,{"$f":"SUMIF('Anno 2025 Capitalizzato'!$E$7:E500,$A$7,'Anno 2025 Capitalizzato'!$O$7:O500)","v":26379350},{"$f":"SUMIF('Anno 2025 Capitalizzato'!$E$7:$E$498,$A$7,'Anno 2025 Capitalizzato'!$P$7:P500)","v":0},{"$f":"SUMIF('Anno 2025 Capitalizzato'!$E$7:$E$498,$A$7,'Anno 2025 Capitalizzato'!$Q$7:$Q$498)","v":26379350},{"$f":"SUMIF('Anno 2025 Capitalizzato'!$E$7:$E$498,A7,'Anno 2025 Capitalizzato'!$R$7:$R$498)","v":26379350},{"$f":"SUMIF('Anno 2025 Capitalizzato'!$E$7:$E$498,$A$7,'Anno 2025 Capitalizzato'!$S$7:$S$498)","v":0},{"$f":"SUMIF('Anno 2025 Capitalizzato'!$E$7:$E$498,$A$7,'Anno 2025 Capitalizzato'!$T$7:$T$498)","v":0},{"$f":"SUMIF('Anno 2025 Capitalizzato'!$E$7:$E$498,$A$7,'Anno 2025 Capitalizzato'!$U$7:$U$498)","v":7826000},{"$f":"SUMIF('Anno 2025 Capitalizzato'!$E$7:$E$498,$A$7,'Anno 2025 Capitalizzato'!$V$7:$V$498)","v":0},{"$f":"SUMIF('Anno 2025 Capitalizzato'!$E$7:M500,$A$7,'Anno 2025 Capitalizzato'!$W$7:$W$498)","v":0},{"$f":"SUMIF('Anno 2025 Capitalizzato'!$E$7:$E$498,$A$7,'Anno 2025 Capitalizzato'!$X$7:$X$498)","v":350000},{"$f":"SUMIF('Anno 2025 Capitalizzato'!$E$7:$E$498,$A$7,'Anno 2025 Capitalizzato'!$Y$7:$Y$498)","v":0},{"$f":"SUMIF('Anno 2025 Capitalizzato'!$E$7:$E$498,$A$7,'Anno 2025 Capitalizzato'!$Z$7:$Z$498)","v":0},{"$f":"SUMIF('Anno 2025 Capitalizzato'!$E$7:$E$498,$A$7,'Anno 2025 Capitalizzato'!$AA$7:$AA$498)","v":0},{"$f":"SUMIF('Anno 2025 Capitalizzato'!$E$7:$E$498,$A$7,'Anno 2025 Capitalizzato'!$AB$7:$AB$498)","v":0},{"$f":"SUMIF('Anno 2025 Capitalizzato'!$E$7:$E$498,$A$7,'Anno 2025 Capitalizzato'!$AC$7:$AC$498)","v":0},{"$f":"SUMIF('Anno 2025 Capitalizzato'!$E$7:$E$498,$A$7,'Anno 2025 Capitalizzato'!$AD$7:$AD$498)","v":0},{"$f":"SUMIF('Anno 2025 Capitalizzato'!$E$7:$E$498,$A$7,'Anno 2025 Capitalizzato'!$AE$7:$AE$498)","v":0},{"$f":"SUMIF('Anno 2025 Capitalizzato'!$E$7:$E$498,$A$7,'Anno 2025 Capitalizzato'!$AF$7:$AF$498)","v":18203350},{"$f":"SUMIF('Anno 2025 Capitalizzato'!$E$7:$E$498,$A$7,'Anno 2025 Capitalizzato'!$AG$7:$AG$498)","v":0},{"$f":"SUMIF('Anno 2025 Capitalizzato'!$E$7:$E$498,$A$7,'Anno 2025 Capitalizzato'!$AH$7:$AH$498)","v":26379350},{"$f":"SUMIF('Anno 2025 Capitalizzato'!$E$7:$E$498,$A$7,'Anno 2025 Capitalizzato'!$AI$7:$AI$498)","v":0},{"$f":"SUMIF('Anno 2025 Capitalizzato'!$E$7:$E$498,$A$7,'Anno 2025 Capitalizzato'!$AJ$7:$AJ$498)","v":0},{"$f":"SUMIF('Anno 2025 Capitalizzato'!$E$7:$E$498,$A$7,'Anno 2025 Capitalizzato'!$AK$7:$AK$498)","v":0}]
["2025 in corso",17832700,{"$f":"SUMIF('Anno 2025 Capitalizzato'!$E$7:$E$498,$A$8,'Anno 2025 Capitalizzato'!$P$7:P501)","v":0},{"$f":"SUMIF('Anno 2025 Capitalizzato'!$E$7:$E$498,$A$8,'Anno 2025 Capitalizzato'!$Q$7:$Q$498)","v":0},{"$f":"SUMIF('Anno 2025 Capitalizzato'!$E$7:$E$498,A8,'Anno 2025 Capitalizzato'!$R$7:$R$498)","v":0},17832700,{"$f":"SUMIF('Anno 2025 Capitalizzato'!$E$7:$E$498,$A$8,'Anno 2025 Capitalizzato'!$T$7:$T$498)","v":0},17790000,{"$f":"SUMIF('Anno 2025 Capitalizzato'!$E$7:$E$498,$A$8,'Anno 2025 Capitalizzato'!$V$7:$V$498)","v":0},{"$f":"SUMIF('Anno 2025 Capitalizzato'!$E$7:M501,$A$8,'Anno 2025 Capitalizzato'!$W$7:$W$498)","v":0},{"$f":"SUMIF('Anno 2025 Capitalizzato'!$E$7:$E$498,$A$8,'Anno 2025 Capitalizzato'!$X$7:$X$498)","v":0},{"$f":"SUMIF('Anno 2025 Capitalizzato'!$E$7:$E$498,$A$8,'Anno 2025 Capitalizzato'!$Y$7:$Y$498)","v":0},{"$f":"SUMIF('Anno 2025 Capitalizzato'!$E$7:$E$498,$A$8,'Anno 2025 Capitalizzato'!$Z$7:$Z$498)","v":0},{"$f":"SUMIF('Anno 2025 Capitalizzato'!$E$7:$E$498,$A$8,'Anno 2025 Capitalizzato'!$AA$7:$AA$498)","v":0},{"$f":"SUMIF('Anno 2025 Capitalizzato'!$E$7:$E$498,$A$8,'Anno 2025 Capitalizzato'!$AB$7:$AB$498)","v":0},{"$f":"SUMIF('Anno 2025 Capitalizzato'!$E$7:$E$498,$A$8,'Anno 2025 Capitalizzato'!$AC$7:$AC$498)","v":0},{"$f":"SUMIF('Anno 2025 Capitalizzato'!$E$7:$E$498,$A$8,'Anno 2025 Capitalizzato'!$AD$7:$AD$498)","v":0},{"$f":"SUMIF('Anno 2025 Capitalizzato'!$E$7:$E$498,$A$8,'Anno 2025 Capitalizzato'!$AE$7:$AE$498)","v":0},42700,{"$f":"SUMIF('Anno 2025 Capitalizzato'!$E$7:$E$498,$A$8,'Anno 2025 Capitalizzato'!$AG$7:$AG$498)","v":0},{"$f":"SUM(G8:T8)","v":17832700},{"$f":"SUMIF('Anno 2025 Capitalizzato'!$E$7:$E$498,$A$8,'Anno 2025 Capitalizzato'!$AI$7:$AI$498)","v":0},{"$f":"SUMIF('Anno 2025 Capitalizzato'!$E$7:$E$498,$A$8,'Anno 2025 Capitalizzato'!$AJ$7:$AJ$498)","v":0},{"$f":"SUMIF('Anno 2025 Capitalizzato'!$E$7:$E$498,$A$8,'Anno 2025 Capitalizzato'!$AK$7:$AK$498)","v":0}]
["TOTALE",{"$f":"SUM(B5:B8)","v":126529176},{"$f":"SUM(C5:C8)","v":0},108696476,108696476,17832700,0,54889456,0,0,2300000,319300,0,0,0,0,0,0,69020420,0,126529176,0,0,0]
[null,null,{"$f":"SUM(C5:C8)","v":0},{"$f":"SUM(D5:D8)","v":108696476},108696476,17832700,0,54889456,0,0,2300000,319300,0,0,0,0,0,0,69020420,0,126529176,0,0,0]

{"sheet":"Controlli","index":9,"n_rows":2,"n_cols":7,"rows_kept":2,"cut":false,"hidden":true,"merged":[]}
["Cespite","Piano Investimenti","Tavola 33","sterilizzazione anno","CE","di cui vincolati","note"]
[null,0,0,0]

{"sheet":"Foglio1","index":10,"n_rows":4,"n_cols":3,"rows_kept":4,"cut":false,"hidden":true,"merged":[]}
["DESCRIZIONE","VALORE","CHIAVE"]
["TOTALE CAPITALIZZATO (cella E6 Foglio \"Totale Investimenti\")",{"$f":"'Totale investimenti'!E8","v":0},2]
["TOT IMM. IN CORSO (cella E5 Foglio \"Totale Investimenti\")",{"$f":"'Totale investimenti'!E5","v":47536400},3]
["NUOVI ACQUISTI (cella D6 Foglio \"Totale Investimenti\")",{"$f":"'Totale investimenti'!D8","v":0},4]